Workbook

Sheet Main Menu
E1: 2025
A2: Main Menu | F2: Currency: | G2: USD
G3: Effective February 2, 2026 Rev 2
A4: =HYPERLINK("#'"&C4&"'!A1",B4) -> How to Use | B4: =_xlfn.VSTACK('How to Use:Professional Services'!B2) -> How to Use | C4: =_xlfn.VSTACK('How to Use:Professional Services'!P1) -> How to Use | E4: =IF(OR(Currency="AUD",Currency="CAD",Currency="USD"),$Q$5,$Q$6) -> Blackline offers a rental program designed to meet your needs, regardless of the size or scope of your project. To initiate a request for rental, please contact rentals@blacklinesafety.com with your product needs and contact information, or reach out to Blackline’s Customer Care team at 1-877-869-7212.
A5: =HYPERLINK("#'"&C5&"'!A1",B5) -> G6 Purchase | B5: G6 Purchase | C5: G6 Purchase | Q5: Blackline offers a rental program designed to meet your needs, regardless of the size or scope of your project. To initiate a request for rental, please contact rentals@blacklinesafety.com with your product needs and contact information, or reach out to Blackline’s Customer Care team at 1-877-869-7212.
A6: G6 Combination | B6: G6 Combination | C6: G6 Combination | Q6: Blackline offers a rental program designed to meet your needs, regardless of the size or scope of your project. To initiate a request for rental, please contact rentals@blacklinesafety.com with your product needs and contact information, or reach out to Blackline’s Customer Care team at +44 1787 222684
A7: G6 Lease | B7: G6 Lease | C7: G6 Lease
A8: G7 Lone Worker Purchase | B8: G7 Lone Worker Purchase | C8: G7 Lone Worker Purchase
A9: G7 Single-Gas Purchase | B9: G7 Single-Gas Purchase | C9: G7 Single-Gas Purchase
A10: G7 Multi-Gas Purchase | B10: G7 Multi-Gas Purchase | C10: G7 Multi-Gas Purchase
A11: G7 Purchase Optional Services | B11: G7 Purchase Optional Services | C11: G7 Purchase Optional Services
A12: G7 Lone Worker Blend | B12: G7 Lone Worker Blend | C12: G7 Lone Worker Blend
A13: G7 Single-Gas Blend | B13: G7 Single-Gas Blend | C13: G7 Single-Gas Blend
A14: G7 Multi-Gas Blend | B14: G7 Multi-Gas Blend | C14: G7 Multi-Gas Blend
A15: G7 Lone Worker Lease | B15: G7 Lone Worker Lease | C15: G7 Lone Worker Lease
A16: G7 Single-Gas Lease | B16: G7 Single-Gas Lease | C16: G7 Single-Gas Lease
A17: G7 Multi-Gas Lease | B17: G7 Multi-Gas Lease | C17: G7 Multi-Gas Lease
A18: G7 Bridge and Satellite Plans | B18: G7 Bridge and Satellite Plans | C18: G7 Bridge & Satellite Plans
A19: G8 Lone Worker Purchase | B19: G8 Lone Worker Purchase | C19: G8 Lone Worker Purchase
A20: G8 Single-Gas Purchase | B20: G8 Single-Gas Purchase | C20: G8 Single-Gas Purchase
A21: G8 Multi-Gas Purchase | B21: G8 Multi-Gas Purchase | C21: G8 Multi-Gas Purchase
A22: G8 Lone Worker Combination | B22: G8 Lone Worker Combination | C22: G8 Lone Worker Combination
A23: G8 Single-Gas Combination | B23: G8 Single-Gas Combination | C23: G8 Single-Gas Combination
A24: G8 Multi-Gas Combination | B24: G8 Multi-Gas Combination | C24: G8 Multi-Gas Combination
A25: G8 Lone Worker Blend | B25: G8 Lone Worker Blend | C25: G8 Lone Worker Blend
A26: G8 Single-Gas Blend | B26: G8 Single-Gas Blend | C26: G8 Single-Gas Blend
A27: G8 Multi-Gas Blend | B27: G8 Multi-Gas Blend | C27: G8 Multi-Gas Blend
A28: G8 Lone Worker Lease | B28: G8 Lone Worker Lease | C28: G8 Lone Worker Lease
A29: =HYPERLINK("#'"&C29&"'!A1",B29) -> G8 Single-Gas Lease | B29: G8 Single-Gas Lease | C29: G8 Single-Gas Lease
A30: =HYPERLINK("#'"&C30&"'!A1",B30) -> G8 Multi-Gas Lease | B30: G8 Multi-Gas Lease | C30: G8 Multi-Gas Lease
A31: EXO 8 Purchase | B31: EXO 8 Purchase | C31: EXO 8 Purchase
A32: EXO 8 Combination | B32: EXO 8 Combination | C32: EXO 8 Combination
A33: EXO 8 Lease | B33: EXO 8 Lease | C33: EXO 8 Lease
A34: EXO Gas Expansion Module | B34: EXO Gas Expansion Module | C34: EXO Gas Expansion Module
A35: EXO Automatic Bump & Calibration | B35: EXO Automatic Bump & Calibration | C35: EXO Auto Bump & Cal
A36: Accessories | B36: Accessories | C36: Accessories
A37: Gas Cylinders | B37: Gas Cylinders | C37: Gas Cylinders
A38: Professional Services | B38: Professional Services | C38: Professional Services
A39: 0
A40: 0
A41: 0
A42: 0

Sheet How to Use
H1: Main Menu | P1: =_xlfn.TEXTAFTER(CELL("filename",P1),"]") -> How to Use
B2: How to Use

Sheet G6 Purchase
M1: =Currency -> USD | P1: G6 Purchase
B2: G6 Purchase | M2: =PBYear -> 2025 | N2: Quick Links
M3: =Revision -> Effective February 2, 2026 Rev 2 | N3: Main Menu
M4: Blackline Safety Confidential | N4: Accessories
M5: All prices are an estimate - for a formal quote contact your local Blackline Safety representative
F8: Device + Cartridge | H8: =CONCATENATE(H15,"-",H18,"-",H24,"-",H27,"-",H31,"-",H34) -> J-G6-H-XX-PTX-XX-4Y | L8: =L18+L27 -> $ 432 | M8: =M1&" List" -> USD List
P10: Power and calibration accessories not included. Charge clip included with Protect Plus plan
B14: Buying Option
B15: Purchase | C15: è | D15: J-G6 | H15: =D15 -> J-G6
H16: -
B17: Sensor
B18: H2S | C18: è | D18: H | E18: =IF(B18=0,"","=") -> = | F18: =P18 -> $ 192 | H18: H | L18: =VLOOKUP(H18,D18:F21,3,FALSE) -> $ 192 | P18: =ROUNDUP(INDEX(G6Base[],MATCH("G6 H2S Monthly",G6Base[Type],0),MATCH($M$1,G6Base[#Headers],0))*48*(1-G6PurchaseDiscount),0) -> 192
B19: CO | C19: è | D19: M | E19: = | F19: =P19 -> $ 192 | P19: =ROUNDUP(INDEX(G6Base[],MATCH("G6 CO Monthly",G6Base[Type],0),MATCH($M$1,G6Base[#Headers],0))*48*(1-G6PurchaseDiscount),0) -> 192
B20: O2 | C20: è | D20: O | E20: = | F20: $ 192 | P20: =ROUNDUP(INDEX(G6Base[],MATCH("G6 O2 Monthly",G6Base[Type],0),MATCH($M$1,G6Base[#Headers],0))*48*(1-G6PurchaseDiscount),0) -> 192
B21: (2-year term) SO2 | C21: =IF(B21="","","è") -> è | D21: S | E21: = | F21: $ 192 | P21: =ROUNDUP(INDEX(G6Base[],MATCH("G6 SO2 Monthly",G6Base[Type],0),MATCH($M$1,G6Base[#Headers],0))*24*(1-G6PurchaseDiscount),0) -> 192
H22: - | L22: +
B23: Future
B24: Future | C24: è | D24: XX | H24: XX
H25: -
B26: Service Plan
B27: Protect | C27: =IF(B27=0,"","è") -> è | D27: PTX | E27: =IF(B27=0,"","=") -> = | F27: =P27 -> $ 240 | H27: PTX | L27: =VLOOKUP(H27,D27:F28,3,FALSE) -> $ 240 | P27: =ROUNDUP(INDEX(G6Base[],MATCH("G6 Protect Monthly",G6Base[Type],0),MATCH($M$1,G6Base[#Headers],0))*IF($H$18="S",24,48),0) -> 240
B28: Protect Plus | C28: =IF(B28=0,"","è") -> è | D28: PPX | E28: =IF(B28=0,"","=") -> = | F28: =P28 -> $ 528 | P28: =ROUNDUP(INDEX(G6Base[],MATCH("G6 Protect Plus Monthly",G6Base[Type],0),MATCH($M$1,G6Base[#Headers],0))*IF($H$18="S",24,48),0) -> 528
H29: -
B30: Future
B31: Future | C31: =IF(B31="","","è") -> è | D31: XX | H31: XX
H32: -
B33: Term
B34: Two-Years | C34: è | D34: 2Y | H34: =IF(H18="S","2Y","4Y") -> 4Y
B35: Four-Years | C35: è | D35: 4Y

Sheet G6 Combination
M1: =Currency -> USD | P1: G6 Combination
B2: G6 Combination | M2: =PBYear -> 2025 | N2: Quick Links
M3: =Revision -> Effective February 2, 2026 Rev 2 | N3: Main Menu
M4: Blackline Safety Confidential | N4: Accessories
M5: All prices are an estimate - for a formal quote contact your local Blackline Safety representative
F8: Hardware | H8: =CONCATENATE(H16,"-",H19,"-",H25,"-",H28) -> G6-H-XX-4Y | L8: =L19 -> $ 228 | M8: =M1&" Upfront" -> USD Upfront
F10: Service | H10: =CONCATENATE(H33,"-",H36,"-",H39,"-",H43,"-",H46) -> SER-G6-H-PTX-XX-4Y | L10: =L39 -> $ 5 | M10: =M1&" / mo*" -> USD / mo* | P10: Power and calibration accessories not included. Charge clip included in Protect Plus plan
P12: *Monthly rates are billed annually
B14: Hardware (Upfront)
B15: Buying Option
B16: Combination | C16: è | D16: G6 | H16: =D16 -> G6
H17: -
B18: Sensor
B19: H2S | C19: è | D19: H | E19: =IF(B19=0,"","=") -> = | F19: =P19 -> $ 228 | H19: H | L19: =VLOOKUP(H19,D19:F22,3,FALSE) -> $ 228 | P19: =ROUNDUP(INDEX(G6Base[],MATCH("G6 H2S Monthly",G6Base[Type],0),MATCH($M$1,G6Base[#Headers],0))*48*(1-G6ComboDiscount),0) -> 228
B20: CO | C20: è | D20: M | E20: = | F20: =P20 -> $ 228 | P20: =ROUNDUP(INDEX(G6Base[],MATCH("G6 CO Monthly",G6Base[Type],0),MATCH($M$1,G6Base[#Headers],0))*48*(1-G6ComboDiscount),0) -> 228
B21: O2 | C21: è | D21: O | E21: = | F21: $ 228 | P21: =ROUNDUP(INDEX(G6Base[],MATCH("G6 O2 Monthly",G6Base[Type],0),MATCH($M$1,G6Base[#Headers],0))*48*(1-G6ComboDiscount),0) -> 228
B22: (2-year term) SO2 | C22: =IF(B22="","","è") -> è | D22: S | E22: = | F22: $ 228 | P22: =ROUNDUP(INDEX(G6Base[],MATCH("G6 SO2 Monthly",G6Base[Type],0),MATCH($M$1,G6Base[#Headers],0))*24*(1-G6ComboDiscount),0) -> 228
H23: -
B24: Future
B25: Future | C25: è | D25: XX | H25: XX
H26: -
B27: Term
B28: Two-Years | C28: è | D28: 2Y | H28: =IF(H19="S","2Y","4Y") -> 4Y
B29: Four-Years | C29: è | D29: 4Y
B31: Service (Monthly)
B32: Buying Option
B33: Combination | C33: è | D33: SER-G6 | H33: =D33 -> SER-G6
H34: -
B35: Sensor
B36: From Above | H36: =H19 -> H
H37: -
B38: Service Plan
B39: Protect | C39: =IF(B39=0,"","è") -> è | D39: PTX | E39: =IF(B39=0,"","=") -> = | F39: =P39 -> $ 5 | H39: PTX | L39: =VLOOKUP(H39,D39:F40,3,FALSE) -> $ 5 | P39: =INDEX(G6Base[],MATCH("G6 Protect Monthly",G6Base[Type],0),MATCH($M$1,G6Base[#Headers],0)) -> 5
B40: Protect Plus | C40: =IF(B40=0,"","è") -> è | D40: PPX | E40: =IF(B40=0,"","=") -> = | F40: =P40 -> $ 11 | P40: =INDEX(G6Base[],MATCH("G6 Protect Plus Monthly",G6Base[Type],0),MATCH($M$1,G6Base[#Headers],0)) -> 11
H41: -
B42: Future
B43: Future | C43: =IF(B43="","","è") -> è | D43: XX | H43: XX
H44: -
B45: Term
B46: From Above | H46: =H28 -> 4Y

Sheet G6 Lease
M1: =Currency -> USD | P1: G6 Lease
B2: G6 Lease | M2: =PBYear -> 2025 | N2: Quick Links
M3: =Revision -> Effective February 2, 2026 Rev 2 | N3: Main Menu
M4: Blackline Safety Confidential | N4: Accessories
M5: All prices are an estimate - for a formal quote contact your local Blackline Safety representative
F8: Device + Cartridge | H8: =CONCATENATE(H15,"-",H18,"-",H24,"-",H27,"-",H31,"-",H34) -> CMP-G6-H-XX-PTX-XX-4Y | L8: =L18+L27 -> $ 10 | M8: =M1&" / mo*" -> USD / mo*
P10: Power and calibration accessories not included. Charge clip included in Protect Plus plan
P12: *Monthly rates are billed annually
B14: Buying Option
B15: Lease | C15: è | D15: CMP-G6 | H15: =D15 -> CMP-G6
H16: -
B17: Sensor
B18: H2S | C18: è | D18: H | E18: =IF(B18=0,"","=") -> = | F18: =P18 -> $ 5 | H18: H | L18: =VLOOKUP(H18,D18:F21,3,FALSE) -> $ 5 | P18: =INDEX(G6Base[],MATCH("G6 H2S Monthly",G6Base[Type],0),MATCH($M$1,G6Base[#Headers],0)) -> 5
B19: CO | C19: è | D19: M | E19: = | F19: =P19 -> $ 5 | P19: =INDEX(G6Base[],MATCH("G6 CO Monthly",G6Base[Type],0),MATCH($M$1,G6Base[#Headers],0)) -> 5
B20: O2 | C20: è | D20: O | E20: = | F20: $ 5 | P20: =INDEX(G6Base[],MATCH("G6 O2 Monthly",G6Base[Type],0),MATCH($M$1,G6Base[#Headers],0)) -> 5
B21: (2-year term) SO2 | C21: =IF(B21="","","è") -> è | D21: S | E21: = | F21: $ 10 | P21: =INDEX(G6Base[],MATCH("G6 SO2 Monthly",G6Base[Type],0),MATCH($M$1,G6Base[#Headers],0)) -> 10
H22: - | L22: +
B23: Future
B24: Future | C24: è | D24: XX | H24: XX
H25: -
B26: Service Plan
B27: Protect | C27: =IF(B27=0,"","è") -> è | D27: PTX | E27: =IF(B27=0,"","=") -> = | F27: =P27 -> $ 5 | H27: PTX | L27: =VLOOKUP(H27,D27:F28,3,FALSE) -> $ 5 | P27: =INDEX(G6Base[],MATCH("G6 Protect Monthly",G6Base[Type],0),MATCH($M$1,G6Base[#Headers],0)) -> 5
B28: Protect Plus | C28: =IF(B28=0,"","è") -> è | D28: PPX | E28: =IF(B28=0,"","=") -> = | F28: =P28 -> $ 11 | P28: =INDEX(G6Base[],MATCH("G6 Protect Plus Monthly",G6Base[Type],0),MATCH($M$1,G6Base[#Headers],0)) -> 11
H29: -
B30: Future
B31: Future | C31: =IF(B31="","","è") -> è | D31: XX | H31: XX
H32: -
B33: Term
B34: Two-Years | C34: è | D34: 2Y | H34: =IF(H18="S","2Y","4Y") -> 4Y
B35: Four-Years | C35: è | D35: 4Y

Sheet G7 Lone Worker Purchase
M1: =Currency -> USD | P1: G7 Lone Worker Purchase
B2: G7 Lone Worker Purchase | M2: =PBYear -> 2025 | N2: Quick Links
M3: =Revision -> Effective February 2, 2026 Rev 2 | N3: Main Menu
M4: Blackline Safety Confidential | N4: G7 Optional Services
M5: All prices are an estimate - for a formal quote contact your local Blackline Safety representative | N5: Accessories
N6: G7 Bridge & Satellite Plans
F8: Device + Cartridge | H8: =CONCATENATE(H15,H19,"-",H23,"-",H26,"-",H31) -> J-G7C-Z-NA2-2Y | L8: =L15 -> $ 854 | M8: =M1&" List" -> USD List
F10: 2Y Extended Warranty | H10: =CONCATENATE("J-WAR-",H23) -> J-WAR-Z | L10: =SUM(V16:V24) -> $ 482 | M10: =M1&" List" -> USD List
F12: Additional Cartridge | H12: =CONCATENATE("J-CART-",H23,"-",H31,"-R") -> J-CART-Z-2Y-R | L12: =SUM(X16:X24) -> $ 118 | M12: =M1&" List" -> USD List
B14: Buying Option | S14: 2Y Price | T14: 3Y Adder | U14: Extended Warranty | W14: Additional CART
B15: Purchase | C15: è | D15: J-G7 | H15: =D15 -> J-G7 | L15: =F16 -> $ 854
A16: 1 | D16: Lone Worker | E16: = | F16: =SUM(S16:T16) -> $ 854 | S16: =INDEX(BasePrices[],MATCH("G7 Purchase Base Price",BasePrices[Type],0),MATCH($M$1,BasePrices[#Headers],0))+ INDEX(ServicePrices[],MATCH("System Access",ServicePrices[Type],0),MATCH($M$1,ServicePrices[#Headers],0))*24 -> 854 | T16: =IF(H$31="2Y",0, INDEX(BasePrices[],MATCH("G7 Warranty Base Price",BasePrices[Type],0),MATCH($M$1,BasePrices[#Headers],0))+ INDEX(ServicePrices[],MATCH("System Access",ServicePrices[Type],0),MATCH($M$1,ServicePrices[#Headers],0))*12) -> 0 | V16: =(INDEX(BasePrices[],MATCH("G7 Warranty Base Price",BasePrices[Type],0),MATCH($M$1,BasePrices[#Headers],0))+ INDEX(ServicePrices[],MATCH("System Access",ServicePrices[Type],0),MATCH($M$1,ServicePrices[#Headers],0))*12)*2 -> 482 | X16: =ROUNDUP(INDEX(BasePrices[],MATCH("Standard Cartridge",BasePrices[Type],0),MATCH($M$1,BasePrices[#Headers],0))*IF(H$31="2Y",2.5,3),0) -> 118
B18: Connectivity
B19: Cellular | C19: è | D19: C | H19: C
B20: =IF(OR(M1="EUR",M1="GBP"),"","Satellite (900 MHz)*") -> Satellite (900 MHz)* | C20: =IF(B20="","","è") -> è | D20: =IF(OR(M1="EUR",M1="GBP"),"","X") -> X
H21: - | O21: =IF(OR(M1="EUR",M1="GBP"),"","*Bridge and satellite service plan required") -> *Bridge and satellite service plan required
B22: Cartridge Type
B23: Lone Worker | C23: è | D23: Z | H23: Z
H24: -
B25: Country Code
B26: =_xlfn.VSTACK(O26:O28) -> North America (3G/4G) - G7C | C26: =IF(B26="","","è") -> è | D26: =IFERROR(VLOOKUP(B26,Lookup!$F$3:$G$12,2,FALSE),"") -> NA2 | H26: NA2 | O26: =_xlfn.LET( _xlpm.Dtype,G7CountryCodes[Type],_xlpm.Curr,G7CountryCodes[Currency],_xlpm.SType,H19,_xlpm.SCurr,M1, _xlpm.myCalculation,_xlfn.VSTACK(_xlfn._xlws.FILTER(G7CountryCodes[],(_xlpm.Dtype=_xlpm.SType)*(_xlpm.Curr=_xlpm.SCurr))),_xlpm.myCalculation) -> North America (3G/4G) - G7C | P26: NA2 | Q26: C | R26: USD
B27: Outside of North America (3G/4G) - G7C | C27: =IF(B27=0,"","è") -> è | D27: =IFERROR(VLOOKUP(B27,Lookup!$F$3:$G$12,2,FALSE),"") -> EU2 | O27: Outside of North America (3G/4G) - G7C | P27: EU2 | Q27: C | R27: USD
B28: Brazil (3G/4G) - G7C | C28: =IF(B28=0,"","è") -> è | D28: =IFERROR(VLOOKUP(B28,Lookup!$F$3:$G$12,2,FALSE),"") -> BR2 | O28: Brazil (3G/4G) - G7C | P28: BR2 | Q28: C | R28: USD
H29: -
B30: Term
B31: Two-Years | C31: è | D31: 2Y | H31: 2Y
B32: Three-Years | C32: è | D32: 3Y

Sheet G7 Single-Gas Purchase
M1: =Currency -> USD | P1: G7 Single-Gas Purchase
B2: G7 Single-Gas Purchase | M2: =PBYear -> 2025 | N2: Quick Links
M3: =Revision -> Effective February 2, 2026 Rev 2 | N3: Main Menu
M4: Blackline Safety Confidential | N4: G7 Optional Services
M5: All prices are an estimate - for a formal quote contact your local Blackline Safety representative | N5: Accessories
N6: G7 Bridge & Satellite Plans
F8: Device + Cartridge | H8: =CONCATENATE(H15,H19,"-",H23,"-",H26,"-",H47,"-",H52) -> J-G7C-S-H-NA2-2Y | L8: =L15+L26 -> $ 1,000 | M8: =M1&" List" -> USD List
F10: 2Y Extended Warranty | H10: =CONCATENATE("J-WAR-",H23,"-",H26) -> J-WAR-S-H | L10: =SUM(V16:V24) -> $ 523 | M10: =M1&" List" -> USD List
F12: Additional Cartridge | H12: =CONCATENATE("J-CART-",H23,"-",H26,"-",H52,"-R") -> J-CART-S-H-2Y-R | L12: =SUM(X16:X24) -> $ 183 | M12: =M1&" List" -> USD List
B14: Buying Option | S14: 2Y Price | T14: 3Y Adder | U14: Extended Warranty | W14: Additional CART
B15: Purchase | C15: è | D15: J-G7 | H15: =D15 -> J-G7 | L15: =F16 -> $ 1,000
A16: 1 | D16: Single-sensor | E16: = | F16: =SUM(S16:T16) -> $ 1,000 | S16: =INDEX(BasePrices[],MATCH("G7 Purchase Base Price",BasePrices[Type],0),MATCH($M$1,BasePrices[#Headers],0))+ INDEX(BasePrices[],MATCH("1 Sensor Cartridge",BasePrices[Type],0),MATCH($M$1,BasePrices[#Headers],0))*2+ INDEX(ServicePrices[],MATCH("System Access",ServicePrices[Type],0),MATCH($M$1,ServicePrices[#Headers],0))*24 -> 1000 | T16: =IF(H$52="2Y",0, ROUNDUP(INDEX(BasePrices[],MATCH("1 Sensor Cartridge",BasePrices[Type],0),MATCH($M$1,BasePrices[#Headers],0))*0.2777777,0)+ INDEX(BasePrices[],MATCH("G7 Warranty Base Price",BasePrices[Type],0),MATCH($M$1,BasePrices[#Headers],0))+ INDEX(ServicePrices[],MATCH("System Access",ServicePrices[Type],0),MATCH($M$1,ServicePrices[#Headers],0))*12) -> 0 | V16: =(INDEX(BasePrices[],MATCH("G7 Warranty Base Price",BasePrices[Type],0),MATCH($M$1,BasePrices[#Headers],0))+ INDEX(ServicePrices[],MATCH("System Access",ServicePrices[Type],0),MATCH($M$1,ServicePrices[#Headers],0))*12)*2+ ROUNDUP(INDEX(BasePrices[],MATCH("1 Sensor Cartridge",BasePrices[Type],0),MATCH($M$1,BasePrices[#Headers],0))*0.2777777*2,0) -> 523 | X16: =ROUNDUP(INDEX(BasePrices[],MATCH("1 Sensor Cartridge",BasePrices[Type],0),MATCH($M$1,BasePrices[#Headers],0))*IF(H$52="2Y",2.5,3),0) -> 183
L17: +
B18: Connectivity
B19: Cellular | C19: è | D19: C | H19: C
B20: =IF(OR(M1="EUR",M1="GBP"),"","Satellite (900 MHz)*") -> Satellite (900 MHz)* | C20: =IF(B20="","","è") -> è | D20: =IF(OR(M1="EUR",M1="GBP"),"","X") -> X
H21: - | O21: =IF(OR(M1="EUR",M1="GBP"),"","*Bridge and satellite service plan required") -> *Bridge and satellite service plan required
B22: Cartridge Type
B23: Single Sensor | C23: è | D23: S | H23: S | V23: =VLOOKUP(H26,P26:U44,6,FALSE) -> 0 | X23: =VLOOKUP(H26,P26:X44,9,FALSE) -> 0
H24: -
B25: Toxic Sensor
B26: =_xlfn.VSTACK(O26:O44) -> HF | C26: =IF(B26=0,"","è") -> è | D26: =_xlfn.VSTACK(P26:P44) -> 2 | E26: =IF(B26=0,"","=") -> = | F26: =IFERROR(SUM(S26:T26),"") -> $ 840 | H26: H | L26: =VLOOKUP(H26,D26:F44,3,FALSE) -> $ 0 | O26: =_xlfn.LET( _xlpm.Dtype,G7Sensors[Type1],_xlpm.Curr,G7Sensors[Currency],_xlpm.Stype,H23,_xlpm.SCurr,M1, _xlpm.myCalculation,_xlfn.VSTACK(_xlfn._xlws.FILTER(G7Sensors[],(_xlpm.Dtype=_xlpm.Stype)*(_xlpm.Curr=_xlpm.SCurr))),_xlpm.myCalculation) -> HF | P26: 2 | Q26: S | R26: USD | S26: =INDEX(SensorPricing[],MATCH(P26,SensorPricing[Sensor],0),MATCH($M$1,SensorPricing[#Headers],0))*2 -> 840 | T26: =IF($H$52="2Y",0,ROUNDUP(INDEX(SensorPricing[],MATCH(P26,SensorPricing[Sensor],0),MATCH($M$1,SensorPricing[#Headers],0))*0.2777777,0)) -> 0 | U26: =ROUNDUP(S26*0.2777777,0) -> 234 | X26: =ROUNDUP(INDEX(SensorPricing[],MATCH(P26,SensorPricing[Sensor],0),MATCH($M$1,SensorPricing[#Headers],0))*IF($H$52="2Y",2.5,3),0) -> 1050
B27: NH3 | C27: è | D27: A | E27: = | F27: =IFERROR(SUM(S27:T27),"") -> $ 120 | O27: NH3 | P27: A | Q27: S | R27: USD | S27: =INDEX(SensorPricing[],MATCH(P27,SensorPricing[Sensor],0),MATCH($M$1,SensorPricing[#Headers],0))*2 -> 120 | T27: =IF($H$52="2Y",0,ROUNDUP(INDEX(SensorPricing[],MATCH(P27,SensorPricing[Sensor],0),MATCH($M$1,SensorPricing[#Headers],0))*0.2777777,0)) -> 0 | U27: =ROUNDUP(S27*0.2777777,0) -> 34 | X27: =ROUNDUP(INDEX(SensorPricing[],MATCH(P27,SensorPricing[Sensor],0),MATCH($M$1,SensorPricing[#Headers],0))*IF($H$52="2Y",2.5,3),0) -> 150
B28: High-range NH3 | C28: è | D28: B | E28: = | F28: $ 252 | O28: High-range NH3 | P28: B | Q28: S | R28: USD | S28: =INDEX(SensorPricing[],MATCH(P28,SensorPricing[Sensor],0),MATCH($M$1,SensorPricing[#Headers],0))*2 -> 252 | T28: =IF($H$52="2Y",0,ROUNDUP(INDEX(SensorPricing[],MATCH(P28,SensorPricing[Sensor],0),MATCH($M$1,SensorPricing[#Headers],0))*0.2777777,0)) -> 0 | U28: 70 | X28: =ROUNDUP(INDEX(SensorPricing[],MATCH(P28,SensorPricing[Sensor],0),MATCH($M$1,SensorPricing[#Headers],0))*IF($H$52="2Y",2.5,3),0) -> 315
B29: CO2 | C29: è | D29: C | E29: = | F29: $ 480 | O29: CO2 | P29: C | Q29: S | R29: USD | S29: =INDEX(SensorPricing[],MATCH(P29,SensorPricing[Sensor],0),MATCH($M$1,SensorPricing[#Headers],0))*2 -> 480 | T29: =IF($H$52="2Y",0,ROUNDUP(INDEX(SensorPricing[],MATCH(P29,SensorPricing[Sensor],0),MATCH($M$1,SensorPricing[#Headers],0))*0.2777777,0)) -> 0 | U29: 134 | X29: =ROUNDUP(INDEX(SensorPricing[],MATCH(P29,SensorPricing[Sensor],0),MATCH($M$1,SensorPricing[#Headers],0))*IF($H$52="2Y",2.5,3),0) -> 600
B30: O3 | C30: è | D30: E | E30: = | F30: $ 240 | O30: O3 | P30: E | Q30: S | R30: USD | S30: =INDEX(SensorPricing[],MATCH(P30,SensorPricing[Sensor],0),MATCH($M$1,SensorPricing[#Headers],0))*2 -> 240 | T30: =IF($H$52="2Y",0,ROUNDUP(INDEX(SensorPricing[],MATCH(P30,SensorPricing[Sensor],0),MATCH($M$1,SensorPricing[#Headers],0))*0.2777777,0)) -> 0 | U30: 67 | X30: =ROUNDUP(INDEX(SensorPricing[],MATCH(P30,SensorPricing[Sensor],0),MATCH($M$1,SensorPricing[#Headers],0))*IF($H$52="2Y",2.5,3),0) -> 300
B31: H2S | C31: è | D31: H | E31: = | F31: $ 0 | O31: H2S | P31: H | Q31: S | R31: USD | S31: =INDEX(SensorPricing[],MATCH(P31,SensorPricing[Sensor],0),MATCH($M$1,SensorPricing[#Headers],0))*2 -> 0 | T31: =IF($H$52="2Y",0,ROUNDUP(INDEX(SensorPricing[],MATCH(P31,SensorPricing[Sensor],0),MATCH($M$1,SensorPricing[#Headers],0))*0.2777777,0)) -> 0 | U31: 0 | X31: =ROUNDUP(INDEX(SensorPricing[],MATCH(P31,SensorPricing[Sensor],0),MATCH($M$1,SensorPricing[#Headers],0))*IF($H$52="2Y",2.5,3),0) -> 0
B32: High-range H2S | C32: è | D32: J | E32: = | F32: $ 240 | O32: High-range H2S | P32: J | Q32: S | R32: USD | S32: =INDEX(SensorPricing[],MATCH(P32,SensorPricing[Sensor],0),MATCH($M$1,SensorPricing[#Headers],0))*2 -> 240 | T32: =IF($H$52="2Y",0,ROUNDUP(INDEX(SensorPricing[],MATCH(P32,SensorPricing[Sensor],0),MATCH($M$1,SensorPricing[#Headers],0))*0.2777777,0)) -> 0 | U32: 67 | X32: =ROUNDUP(INDEX(SensorPricing[],MATCH(P32,SensorPricing[Sensor],0),MATCH($M$1,SensorPricing[#Headers],0))*IF($H$52="2Y",2.5,3),0) -> 300
B33: NO2 | C33: è | D33: K | E33: = | F33: $ 120 | O33: NO2 | P33: K | Q33: S | R33: USD | S33: =INDEX(SensorPricing[],MATCH(P33,SensorPricing[Sensor],0),MATCH($M$1,SensorPricing[#Headers],0))*2 -> 120 | T33: =IF($H$52="2Y",0,ROUNDUP(INDEX(SensorPricing[],MATCH(P33,SensorPricing[Sensor],0),MATCH($M$1,SensorPricing[#Headers],0))*0.2777777,0)) -> 0 | U33: 34 | X33: =ROUNDUP(INDEX(SensorPricing[],MATCH(P33,SensorPricing[Sensor],0),MATCH($M$1,SensorPricing[#Headers],0))*IF($H$52="2Y",2.5,3),0) -> 150
B34: Cl2 | C34: è | D34: L | E34: = | F34: $ 120 | O34: Cl2 | P34: L | Q34: S | R34: USD | S34: =INDEX(SensorPricing[],MATCH(P34,SensorPricing[Sensor],0),MATCH($M$1,SensorPricing[#Headers],0))*2 -> 120 | T34: =IF($H$52="2Y",0,ROUNDUP(INDEX(SensorPricing[],MATCH(P34,SensorPricing[Sensor],0),MATCH($M$1,SensorPricing[#Headers],0))*0.2777777,0)) -> 0 | U34: 34 | X34: =ROUNDUP(INDEX(SensorPricing[],MATCH(P34,SensorPricing[Sensor],0),MATCH($M$1,SensorPricing[#Headers],0))*IF($H$52="2Y",2.5,3),0) -> 150
B35: CO | C35: è | D35: M | E35: = | F35: $ 0 | O35: CO | P35: M | Q35: S | R35: USD | S35: =INDEX(SensorPricing[],MATCH(P35,SensorPricing[Sensor],0),MATCH($M$1,SensorPricing[#Headers],0))*2 -> 0 | T35: =IF($H$52="2Y",0,ROUNDUP(INDEX(SensorPricing[],MATCH(P35,SensorPricing[Sensor],0),MATCH($M$1,SensorPricing[#Headers],0))*0.2777777,0)) -> 0 | U35: 0 | X35: =ROUNDUP(INDEX(SensorPricing[],MATCH(P35,SensorPricing[Sensor],0),MATCH($M$1,SensorPricing[#Headers],0))*IF($H$52="2Y",2.5,3),0) -> 0
B36: HCN | C36: è | D36: N | E36: = | F36: $ 120 | O36: HCN | P36: N | Q36: S | R36: USD | S36: =INDEX(SensorPricing[],MATCH(P36,SensorPricing[Sensor],0),MATCH($M$1,SensorPricing[#Headers],0))*2 -> 120 | T36: =IF($H$52="2Y",0,ROUNDUP(INDEX(SensorPricing[],MATCH(P36,SensorPricing[Sensor],0),MATCH($M$1,SensorPricing[#Headers],0))*0.2777777,0)) -> 0 | U36: 34 | X36: =ROUNDUP(INDEX(SensorPricing[],MATCH(P36,SensorPricing[Sensor],0),MATCH($M$1,SensorPricing[#Headers],0))*IF($H$52="2Y",2.5,3),0) -> 150
B37: O2 | C37: è | D37: O | E37: = | F37: $ 0 | O37: O2 | P37: O | Q37: S | R37: USD | S37: =INDEX(SensorPricing[],MATCH(P37,SensorPricing[Sensor],0),MATCH($M$1,SensorPricing[#Headers],0))*2 -> 0 | T37: =IF($H$52="2Y",0,ROUNDUP(INDEX(SensorPricing[],MATCH(P37,SensorPricing[Sensor],0),MATCH($M$1,SensorPricing[#Headers],0))*0.2777777,0)) -> 0 | U37: 0 | X37: =ROUNDUP(INDEX(SensorPricing[],MATCH(P37,SensorPricing[Sensor],0),MATCH($M$1,SensorPricing[#Headers],0))*IF($H$52="2Y",2.5,3),0) -> 0
B38: CO-H | C38: è | D38: R | E38: = | F38: $ 0 | O38: CO-H | P38: R | Q38: S | R38: USD | S38: =INDEX(SensorPricing[],MATCH(P38,SensorPricing[Sensor],0),MATCH($M$1,SensorPricing[#Headers],0))*2 -> 0 | T38: =IF($H$52="2Y",0,ROUNDUP(INDEX(SensorPricing[],MATCH(P38,SensorPricing[Sensor],0),MATCH($M$1,SensorPricing[#Headers],0))*0.2777777,0)) -> 0 | U38: 0 | X38: =ROUNDUP(INDEX(SensorPricing[],MATCH(P38,SensorPricing[Sensor],0),MATCH($M$1,SensorPricing[#Headers],0))*IF($H$52="2Y",2.5,3),0) -> 0
B39: SO2 | C39: è | D39: S | E39: = | F39: $ 0 | O39: SO2 | P39: S | Q39: S | R39: USD | S39: =INDEX(SensorPricing[],MATCH(P39,SensorPricing[Sensor],0),MATCH($M$1,SensorPricing[#Headers],0))*2 -> 0 | T39: =IF($H$52="2Y",0,ROUNDUP(INDEX(SensorPricing[],MATCH(P39,SensorPricing[Sensor],0),MATCH($M$1,SensorPricing[#Headers],0))*0.2777777,0)) -> 0 | U39: 0 | X39: =ROUNDUP(INDEX(SensorPricing[],MATCH(P39,SensorPricing[Sensor],0),MATCH($M$1,SensorPricing[#Headers],0))*IF($H$52="2Y",2.5,3),0) -> 0
B40: High-range CO | C40: è | D40: T | E40: = | F40: $ 240 | O40: High-range CO | P40: T | Q40: S | R40: USD | S40: =INDEX(SensorPricing[],MATCH(P40,SensorPricing[Sensor],0),MATCH($M$1,SensorPricing[#Headers],0))*2 -> 240 | T40: =IF($H$52="2Y",0,ROUNDUP(INDEX(SensorPricing[],MATCH(P40,SensorPricing[Sensor],0),MATCH($M$1,SensorPricing[#Headers],0))*0.2777777,0)) -> 0 | U40: 67 | X40: =ROUNDUP(INDEX(SensorPricing[],MATCH(P40,SensorPricing[Sensor],0),MATCH($M$1,SensorPricing[#Headers],0))*IF($H$52="2Y",2.5,3),0) -> 300
B41: PID | C41: è | D41: V | E41: = | F41: $ 966 | O41: PID | P41: V | Q41: S | R41: USD | S41: =INDEX(SensorPricing[],MATCH(P41,SensorPricing[Sensor],0),MATCH($M$1,SensorPricing[#Headers],0))*2 -> 966 | T41: =IF($H$52="2Y",0,ROUNDUP(INDEX(SensorPricing[],MATCH(P41,SensorPricing[Sensor],0),MATCH($M$1,SensorPricing[#Headers],0))*0.2777777,0)) -> 0 | U41: 269 | X41: =ROUNDUP(INDEX(SensorPricing[],MATCH(P41,SensorPricing[Sensor],0),MATCH($M$1,SensorPricing[#Headers],0))*IF($H$52="2Y",2.5,3),0) -> 1208
B42: ClO2 | C42: è | D42: W | E42: = | F42: $ 120 | O42: ClO2 | P42: W | Q42: S | R42: USD | S42: =INDEX(SensorPricing[],MATCH(P42,SensorPricing[Sensor],0),MATCH($M$1,SensorPricing[#Headers],0))*2 -> 120 | T42: =IF($H$52="2Y",0,ROUNDUP(INDEX(SensorPricing[],MATCH(P42,SensorPricing[Sensor],0),MATCH($M$1,SensorPricing[#Headers],0))*0.2777777,0)) -> 0 | U42: 34 | X42: =ROUNDUP(INDEX(SensorPricing[],MATCH(P42,SensorPricing[Sensor],0),MATCH($M$1,SensorPricing[#Headers],0))*IF($H$52="2Y",2.5,3),0) -> 150
B43: 0 | C43: =IF(B43=0,"","è") ->  | D43: 0 | E43: =IF(B43=0,"","=") ->  | S43: =INDEX(SensorPricing[],MATCH(P43,SensorPricing[Sensor],0),MATCH($M$1,SensorPricing[#Headers],0))*2 ->  | T43: =IF($H$52="2Y",0,ROUNDUP(INDEX(SensorPricing[],MATCH(P43,SensorPricing[Sensor],0),MATCH($M$1,SensorPricing[#Headers],0))*0.2777777,0)) -> 0 | X43: =ROUNDUP(INDEX(SensorPricing[],MATCH(P43,SensorPricing[Sensor],0),MATCH($M$1,SensorPricing[#Headers],0))*IF($H$52="2Y",2.5,3),0) -> 
B44: 0 | C44: =IF(B44=0,"","è") ->  | D44: 0 | E44: =IF(B44=0,"","=") ->  | S44: =INDEX(SensorPricing[],MATCH(P44,SensorPricing[Sensor],0),MATCH($M$1,SensorPricing[#Headers],0))*2 ->  | T44: =IF($H$52="2Y",0,ROUNDUP(INDEX(SensorPricing[],MATCH(P44,SensorPricing[Sensor],0),MATCH($M$1,SensorPricing[#Headers],0))*0.2777777,0)) -> 0 | X44: =ROUNDUP(INDEX(SensorPricing[],MATCH(P44,SensorPricing[Sensor],0),MATCH($M$1,SensorPricing[#Headers],0))*IF($H$52="2Y",2.5,3),0) -> 
H45: -
B46: Country Code
B47: =_xlfn.VSTACK(O47:O49) -> North America (3G/4G) - G7C | C47: =IF(B47="","","è") -> è | D47: =IFERROR(VLOOKUP(B47,Lookup!$F$3:$G$12,2,FALSE),"") -> NA2 | H47: NA2 | O47: =_xlfn.LET( _xlpm.Dtype,G7CountryCodes[Type],_xlpm.Curr,G7CountryCodes[Currency],_xlpm.SType,H19,_xlpm.SCurr,M1, _xlpm.myCalculation,_xlfn.VSTACK(_xlfn._xlws.FILTER(G7CountryCodes[],(_xlpm.Dtype=_xlpm.SType)*(_xlpm.Curr=_xlpm.SCurr))),_xlpm.myCalculation) -> North America (3G/4G) - G7C | P47: NA2 | Q47: C | R47: USD
B48: Outside of North America (3G/4G) - G7C | C48: =IF(B48=0,"","è") -> è | D48: =IFERROR(VLOOKUP(B48,Lookup!$F$3:$G$12,2,FALSE),"") -> EU2 | O48: Outside of North America (3G/4G) - G7C | P48: EU2 | Q48: C | R48: USD
B49: Brazil (3G/4G) - G7C | C49: =IF(B49=0,"","è") -> è | D49: =IFERROR(VLOOKUP(B49,Lookup!$F$3:$G$12,2,FALSE),"") -> BR2 | O49: Brazil (3G/4G) - G7C | P49: BR2 | Q49: C | R49: USD
H50: -
B51: Term
B52: Two-Years | C52: è | D52: 2Y | H52: 2Y
B53: Three-Years | C53: è | D53: 3Y

Sheet G7 Multi-Gas Purchase
M1: =Currency -> USD | P1: G7 Multi-Gas Purchase
B2: G7 Multi-Gas Purchase | M2: =PBYear -> 2025 | N2: Quick Links
M3: =Revision -> Effective February 2, 2026 Rev 2 | N3: Main Menu
M4: Blackline Safety Confidential | N4: G7 Optional Services
M5: All prices are an estimate - for a formal quote contact your local Blackline Safety representative | N5: Accessories
N6: G7 Bridge & Satellite Plans
F8: Device + Cartridge | H8: =CONCATENATE(H15,H26,"-",H30,"-",J34,"-",H85,"-",H90) -> J-G7C-Q-FHMO-NA2-2Y | L8: =L15+L30+L34+L39+L60+L81 -> $ 1,254 | M8: =M1&" List" -> USD List
F10: 2Y Extended Warranty | H10: =CONCATENATE("J-WAR-",H30,"-",J34) -> J-WAR-Q-FHMO | L10: =SUM(V16:V37) -> $ 594 | M10: =M1&" List" -> USD List
F12: Additional Cartridge | H12: =CONCATENATE("J-CART-",H30,"-",J34,"-",H90,"-R") -> J-CART-Q-FHMO-2Y-R | L12: =SUM(X16:X37) -> $ 500 | M12: =M1&" List" -> USD List
B14: Buying Option | S14: 2Y Price | T14: 3Y Adder | U14: Extended Warranty | W14: Additional CART
B15: Purchase | C15: è | D15: J-G7 | H15: =D15 -> J-G7 | L15: =VLOOKUP(Q38,A16:F23,6,FALSE) -> $ 1,254
A16: Q1 | D16: Multi 1-sensor | E16: = | F16: =SUM(S16:T16) -> $ 1,000 | R16: 1 | S16: =INDEX(BasePrices[],MATCH("G7 Purchase Base Price",BasePrices[Type],0),MATCH($M$1,BasePrices[#Headers],0))+ INDEX(BasePrices[],MATCH(R16&" Sensor Cartridge",BasePrices[Type],0),MATCH($M$1,BasePrices[#Headers],0))*2+ INDEX(ServicePrices[],MATCH("System Access",ServicePrices[Type],0),MATCH($M$1,ServicePrices[#Headers],0))*24 -> 1000 | T16: =IF(H$90="2Y",0, ROUNDUP(INDEX(BasePrices[],MATCH(R16&" Sensor Cartridge",BasePrices[Type],0),MATCH($M$1,BasePrices[#Headers],0))*0.2777777,0)+ INDEX(BasePrices[],MATCH("G7 Warranty Base Price",BasePrices[Type],0),MATCH($M$1,BasePrices[#Headers],0))+ INDEX(ServicePrices[],MATCH("System Access",ServicePrices[Type],0),MATCH($M$1,ServicePrices[#Headers],0))*12) -> 0 | U16: =(INDEX(BasePrices[],MATCH("G7 Warranty Base Price",BasePrices[Type],0),MATCH($M$1,BasePrices[#Headers],0))+ INDEX(ServicePrices[],MATCH("System Access",ServicePrices[Type],0),MATCH($M$1,ServicePrices[#Headers],0))*12)*2+ ROUNDUP(INDEX(BasePrices[],MATCH(R16&" Sensor Cartridge",BasePrices[Type],0),MATCH($M$1,BasePrices[#Headers],0))*0.2777777*2,0) -> 523 | V16: =VLOOKUP(Q38,A16:U23,COLUMN()-1,FALSE) -> 594 | W16: =ROUNDUP(INDEX(BasePrices[],MATCH(R16&" Sensor Cartridge",BasePrices[Type],0),MATCH($M$1,BasePrices[#Headers],0))*IF(H$90="2Y",2.5,3),0) -> 183 | X16: =VLOOKUP(Q38,A16:W23,COLUMN()-1,FALSE) -> 500
A17: Q2 | D17: Multi 2-sensor | E17: = | F17: =SUM(S17:T17) -> $ 1,106 | R17: 2 | S17: =INDEX(BasePrices[],MATCH("G7 Purchase Base Price",BasePrices[Type],0),MATCH($M$1,BasePrices[#Headers],0))+ INDEX(BasePrices[],MATCH(R17&" Sensor Cartridge",BasePrices[Type],0),MATCH($M$1,BasePrices[#Headers],0))*2+ INDEX(ServicePrices[],MATCH("System Access",ServicePrices[Type],0),MATCH($M$1,ServicePrices[#Headers],0))*24 -> 1106 | T17: =IF(H$90="2Y",0, ROUNDUP(INDEX(BasePrices[],MATCH(R17&" Sensor Cartridge",BasePrices[Type],0),MATCH($M$1,BasePrices[#Headers],0))*0.2777777,0)+ INDEX(BasePrices[],MATCH("G7 Warranty Base Price",BasePrices[Type],0),MATCH($M$1,BasePrices[#Headers],0))+ INDEX(ServicePrices[],MATCH("System Access",ServicePrices[Type],0),MATCH($M$1,ServicePrices[#Headers],0))*12) -> 0 | U17: =(INDEX(BasePrices[],MATCH("G7 Warranty Base Price",BasePrices[Type],0),MATCH($M$1,BasePrices[#Headers],0))+ INDEX(ServicePrices[],MATCH("System Access",ServicePrices[Type],0),MATCH($M$1,ServicePrices[#Headers],0))*12)*2+ ROUNDUP(INDEX(BasePrices[],MATCH(R17&" Sensor Cartridge",BasePrices[Type],0),MATCH($M$1,BasePrices[#Headers],0))*0.2777777*2,0) -> 552 | W17: =ROUNDUP(INDEX(BasePrices[],MATCH(R17&" Sensor Cartridge",BasePrices[Type],0),MATCH($M$1,BasePrices[#Headers],0))*IF(H$90="2Y",2.5,3),0) -> 315
A18: Q3 | D18: Multi 3-sensor | E18: = | F18: =SUM(S18:T18) -> $ 1,184 | R18: 3 | S18: =INDEX(BasePrices[],MATCH("G7 Purchase Base Price",BasePrices[Type],0),MATCH($M$1,BasePrices[#Headers],0))+ INDEX(BasePrices[],MATCH(R18&" Sensor Cartridge",BasePrices[Type],0),MATCH($M$1,BasePrices[#Headers],0))*2+ INDEX(ServicePrices[],MATCH("System Access",ServicePrices[Type],0),MATCH($M$1,ServicePrices[#Headers],0))*24 -> 1184 | T18: =IF(H$90="2Y",0, ROUNDUP(INDEX(BasePrices[],MATCH(R18&" Sensor Cartridge",BasePrices[Type],0),MATCH($M$1,BasePrices[#Headers],0))*0.2777777,0)+ INDEX(BasePrices[],MATCH("G7 Warranty Base Price",BasePrices[Type],0),MATCH($M$1,BasePrices[#Headers],0))+ INDEX(ServicePrices[],MATCH("System Access",ServicePrices[Type],0),MATCH($M$1,ServicePrices[#Headers],0))*12) -> 0 | U18: =(INDEX(BasePrices[],MATCH("G7 Warranty Base Price",BasePrices[Type],0),MATCH($M$1,BasePrices[#Headers],0))+ INDEX(ServicePrices[],MATCH("System Access",ServicePrices[Type],0),MATCH($M$1,ServicePrices[#Headers],0))*12)*2+ ROUNDUP(INDEX(BasePrices[],MATCH(R18&" Sensor Cartridge",BasePrices[Type],0),MATCH($M$1,BasePrices[#Headers],0))*0.2777777*2,0) -> 574 | W18: =ROUNDUP(INDEX(BasePrices[],MATCH(R18&" Sensor Cartridge",BasePrices[Type],0),MATCH($M$1,BasePrices[#Headers],0))*IF(H$90="2Y",2.5,3),0) -> 413
A19: Q4 | D19: Multi 4-sensor | E19: = | F19: =SUM(S19:T19) -> $ 1,254 | R19: 4 | S19: =INDEX(BasePrices[],MATCH("G7 Purchase Base Price",BasePrices[Type],0),MATCH($M$1,BasePrices[#Headers],0))+ INDEX(BasePrices[],MATCH(R19&" Sensor Cartridge",BasePrices[Type],0),MATCH($M$1,BasePrices[#Headers],0))*2+ INDEX(ServicePrices[],MATCH("System Access",ServicePrices[Type],0),MATCH($M$1,ServicePrices[#Headers],0))*24 -> 1254 | T19: =IF(H$90="2Y",0, ROUNDUP(INDEX(BasePrices[],MATCH(R19&" Sensor Cartridge",BasePrices[Type],0),MATCH($M$1,BasePrices[#Headers],0))*0.2777777,0)+ INDEX(BasePrices[],MATCH("G7 Warranty Base Price",BasePrices[Type],0),MATCH($M$1,BasePrices[#Headers],0))+ INDEX(ServicePrices[],MATCH("System Access",ServicePrices[Type],0),MATCH($M$1,ServicePrices[#Headers],0))*12) -> 0 | U19: =(INDEX(BasePrices[],MATCH("G7 Warranty Base Price",BasePrices[Type],0),MATCH($M$1,BasePrices[#Headers],0))+ INDEX(ServicePrices[],MATCH("System Access",ServicePrices[Type],0),MATCH($M$1,ServicePrices[#Headers],0))*12)*2+ ROUNDUP(INDEX(BasePrices[],MATCH(R19&" Sensor Cartridge",BasePrices[Type],0),MATCH($M$1,BasePrices[#Headers],0))*0.2777777*2,0) -> 594 | W19: =ROUNDUP(INDEX(BasePrices[],MATCH(R19&" Sensor Cartridge",BasePrices[Type],0),MATCH($M$1,BasePrices[#Headers],0))*IF(H$90="2Y",2.5,3),0) -> 500
A20: P1 | D20: Multi 1-sensor pump | E20: = | F20: =SUM(S20:T20) -> $ 1,364 | R20: 1 | S20: =INDEX(BasePrices[],MATCH("G7 Purchase Base Price",BasePrices[Type],0),MATCH($M$1,BasePrices[#Headers],0))+ INDEX(BasePrices[],MATCH(R20&" Sensor Cartridge",BasePrices[Type],0),MATCH($M$1,BasePrices[#Headers],0))*2+ INDEX(BasePrices[],MATCH("G7 Pump",BasePrices[Type],0),MATCH($M$1,BasePrices[#Headers],0))*2+ INDEX(ServicePrices[],MATCH("System Access",ServicePrices[Type],0),MATCH($M$1,ServicePrices[#Headers],0))*24 -> 1364 | T20: =IF(H$90="2Y",0, ROUNDUP((INDEX(BasePrices[],MATCH(R20&" Sensor Cartridge",BasePrices[Type],0),MATCH($M$1,BasePrices[#Headers],0))+ INDEX(BasePrices[],MATCH("G7 Pump",BasePrices[Type],0),MATCH($M$1,BasePrices[#Headers],0)))*0.2777777,0)+ INDEX(BasePrices[],MATCH("G7 Warranty Base Price",BasePrices[Type],0),MATCH($M$1,BasePrices[#Headers],0))+ INDEX(ServicePrices[],MATCH("System Access",ServicePrices[Type],0),MATCH($M$1,ServicePrices[#Headers],0))*12) -> 0 | U20: =(INDEX(BasePrices[],MATCH("G7 Warranty Base Price",BasePrices[Type],0),MATCH($M$1,BasePrices[#Headers],0))+ INDEX(ServicePrices[],MATCH("System Access",ServicePrices[Type],0),MATCH($M$1,ServicePrices[#Headers],0))*12)*2+ ROUNDUP((INDEX(BasePrices[],MATCH(R20&" Sensor Cartridge",BasePrices[Type],0),MATCH($M$1,BasePrices[#Headers],0))+ INDEX(BasePrices[],MATCH("G7 Pump",BasePrices[Type],0),MATCH($M$1,BasePrices[#Headers],0)))*0.2777777*2,0) -> 624 | W20: =ROUNDUP((INDEX(BasePrices[],MATCH(R20&" Sensor Cartridge",BasePrices[Type],0),MATCH($M$1,BasePrices[#Headers],0))+ INDEX(BasePrices[],MATCH("G7 Pump",BasePrices[Type],0),MATCH($M$1,BasePrices[#Headers],0)))*IF(H$90="2Y",2.5,3),0) -> 638
A21: P2 | D21: Multi 2-sensor pump | E21: = | F21: $ 1,470 | R21: 2 | S21: =INDEX(BasePrices[],MATCH("G7 Purchase Base Price",BasePrices[Type],0),MATCH($M$1,BasePrices[#Headers],0))+ INDEX(BasePrices[],MATCH(R21&" Sensor Cartridge",BasePrices[Type],0),MATCH($M$1,BasePrices[#Headers],0))*2+ INDEX(BasePrices[],MATCH("G7 Pump",BasePrices[Type],0),MATCH($M$1,BasePrices[#Headers],0))*2+ INDEX(ServicePrices[],MATCH("System Access",ServicePrices[Type],0),MATCH($M$1,ServicePrices[#Headers],0))*24 -> 1470 | T21: =IF(H$90="2Y",0, ROUNDUP((INDEX(BasePrices[],MATCH(R21&" Sensor Cartridge",BasePrices[Type],0),MATCH($M$1,BasePrices[#Headers],0))+ INDEX(BasePrices[],MATCH("G7 Pump",BasePrices[Type],0),MATCH($M$1,BasePrices[#Headers],0)))*0.2777777,0)+ INDEX(BasePrices[],MATCH("G7 Warranty Base Price",BasePrices[Type],0),MATCH($M$1,BasePrices[#Headers],0))+ INDEX(ServicePrices[],MATCH("System Access",ServicePrices[Type],0),MATCH($M$1,ServicePrices[#Headers],0))*12) -> 0 | U21: =(INDEX(BasePrices[],MATCH("G7 Warranty Base Price",BasePrices[Type],0),MATCH($M$1,BasePrices[#Headers],0))+ INDEX(ServicePrices[],MATCH("System Access",ServicePrices[Type],0),MATCH($M$1,ServicePrices[#Headers],0))*12)*2+ ROUNDUP((INDEX(BasePrices[],MATCH(R21&" Sensor Cartridge",BasePrices[Type],0),MATCH($M$1,BasePrices[#Headers],0))+ INDEX(BasePrices[],MATCH("G7 Pump",BasePrices[Type],0),MATCH($M$1,BasePrices[#Headers],0)))*0.2777777*2,0) -> 654 | W21: =ROUNDUP((INDEX(BasePrices[],MATCH(R21&" Sensor Cartridge",BasePrices[Type],0),MATCH($M$1,BasePrices[#Headers],0))+ INDEX(BasePrices[],MATCH("G7 Pump",BasePrices[Type],0),MATCH($M$1,BasePrices[#Headers],0)))*IF(H$90="2Y",2.5,3),0) -> 770
A22: P3 | D22: Multi 3-sensor pump | E22: = | F22: $ 1,548 | R22: 3 | S22: =INDEX(BasePrices[],MATCH("G7 Purchase Base Price",BasePrices[Type],0),MATCH($M$1,BasePrices[#Headers],0))+ INDEX(BasePrices[],MATCH(R22&" Sensor Cartridge",BasePrices[Type],0),MATCH($M$1,BasePrices[#Headers],0))*2+ INDEX(BasePrices[],MATCH("G7 Pump",BasePrices[Type],0),MATCH($M$1,BasePrices[#Headers],0))*2+ INDEX(ServicePrices[],MATCH("System Access",ServicePrices[Type],0),MATCH($M$1,ServicePrices[#Headers],0))*24 -> 1548 | T22: =IF(H$90="2Y",0, ROUNDUP((INDEX(BasePrices[],MATCH(R22&" Sensor Cartridge",BasePrices[Type],0),MATCH($M$1,BasePrices[#Headers],0))+ INDEX(BasePrices[],MATCH("G7 Pump",BasePrices[Type],0),MATCH($M$1,BasePrices[#Headers],0)))*0.2777777,0)+ INDEX(BasePrices[],MATCH("G7 Warranty Base Price",BasePrices[Type],0),MATCH($M$1,BasePrices[#Headers],0))+ INDEX(ServicePrices[],MATCH("System Access",ServicePrices[Type],0),MATCH($M$1,ServicePrices[#Headers],0))*12) -> 0 | U22: =(INDEX(BasePrices[],MATCH("G7 Warranty Base Price",BasePrices[Type],0),MATCH($M$1,BasePrices[#Headers],0))+ INDEX(ServicePrices[],MATCH("System Access",ServicePrices[Type],0),MATCH($M$1,ServicePrices[#Headers],0))*12)*2+ ROUNDUP((INDEX(BasePrices[],MATCH(R22&" Sensor Cartridge",BasePrices[Type],0),MATCH($M$1,BasePrices[#Headers],0))+ INDEX(BasePrices[],MATCH("G7 Pump",BasePrices[Type],0),MATCH($M$1,BasePrices[#Headers],0)))*0.2777777*2,0) -> 675 | W22: =ROUNDUP((INDEX(BasePrices[],MATCH(R22&" Sensor Cartridge",BasePrices[Type],0),MATCH($M$1,BasePrices[#Headers],0))+ INDEX(BasePrices[],MATCH("G7 Pump",BasePrices[Type],0),MATCH($M$1,BasePrices[#Headers],0)))*IF(H$90="2Y",2.5,3),0) -> 868
A23: P4 | D23: Multi 4-sensor pump | E23: = | F23: $ 1,618 | R23: 4 | S23: =INDEX(BasePrices[],MATCH("G7 Purchase Base Price",BasePrices[Type],0),MATCH($M$1,BasePrices[#Headers],0))+ INDEX(BasePrices[],MATCH(R23&" Sensor Cartridge",BasePrices[Type],0),MATCH($M$1,BasePrices[#Headers],0))*2+ INDEX(BasePrices[],MATCH("G7 Pump",BasePrices[Type],0),MATCH($M$1,BasePrices[#Headers],0))*2+ INDEX(ServicePrices[],MATCH("System Access",ServicePrices[Type],0),MATCH($M$1,ServicePrices[#Headers],0))*24 -> 1618 | T23: =IF(H$90="2Y",0, ROUNDUP((INDEX(BasePrices[],MATCH(R23&" Sensor Cartridge",BasePrices[Type],0),MATCH($M$1,BasePrices[#Headers],0))+ INDEX(BasePrices[],MATCH("G7 Pump",BasePrices[Type],0),MATCH($M$1,BasePrices[#Headers],0)))*0.2777777,0)+ INDEX(BasePrices[],MATCH("G7 Warranty Base Price",BasePrices[Type],0),MATCH($M$1,BasePrices[#Headers],0))+ INDEX(ServicePrices[],MATCH("System Access",ServicePrices[Type],0),MATCH($M$1,ServicePrices[#Headers],0))*12) -> 0 | U23: =(INDEX(BasePrices[],MATCH("G7 Warranty Base Price",BasePrices[Type],0),MATCH($M$1,BasePrices[#Headers],0))+ INDEX(ServicePrices[],MATCH("System Access",ServicePrices[Type],0),MATCH($M$1,ServicePrices[#Headers],0))*12)*2+ ROUNDUP((INDEX(BasePrices[],MATCH(R23&" Sensor Cartridge",BasePrices[Type],0),MATCH($M$1,BasePrices[#Headers],0))+ INDEX(BasePrices[],MATCH("G7 Pump",BasePrices[Type],0),MATCH($M$1,BasePrices[#Headers],0)))*0.2777777*2,0) -> 695 | W23: =ROUNDUP((INDEX(BasePrices[],MATCH(R23&" Sensor Cartridge",BasePrices[Type],0),MATCH($M$1,BasePrices[#Headers],0))+ INDEX(BasePrices[],MATCH("G7 Pump",BasePrices[Type],0),MATCH($M$1,BasePrices[#Headers],0)))*IF(H$90="2Y",2.5,3),0) -> 955
L24: +
B25: Connectivity
B26: Cellular | C26: è | D26: C | H26: C
B27: =IF(OR(M1="EUR",M1="GBP"),"","Satellite (900 MHz)*") -> Satellite (900 MHz)* | C27: =IF(B27="","","è") -> è | D27: =IF(OR(M1="EUR",M1="GBP"),"","X") -> X
H28: - | O28: =IF(OR(M1="EUR",M1="GBP"),"","*Bridge and satellite service plan required") -> *Bridge and satellite service plan required
B29: Cartridge Type
B30: Diffusion | C30: è | D30: Q | H30: Q
B31: Pump | C31: è | D31: P
H32: -
B33: Combustible Sensor | S33: 2Y Price | T33: 3Y Adder | U33: Extended Warranty | W33: Additional CART
B34: LEL-IR | C34: è | D34: I | E34: = | F34: =SUM(S34:T34) -> $ 120 | H34: F | J34: =CONCATENATE(P34,P35,P36,P37) -> FHMO | L34: =VLOOKUP(H34,D34:F36,3,FALSE) -> $ 0 | O34: =H34 -> F | P34: =_xlfn._xlws.SORT(O34:O37) -> F | Q34: =IF(P34="X",1,0) -> 0 | S34: =INDEX(SensorPricing[],MATCH(D34,SensorPricing[Sensor],0),MATCH($M$1,SensorPricing[#Headers],0))*2 -> 120 | T34: =IFERROR(IF($H$90="2Y",0,ROUNDUP(INDEX(SensorPricing[],MATCH(D34,SensorPricing[Sensor],0),MATCH($M$1,SensorPricing[#Headers],0))*0.2777777,0)),0) -> 0 | V34: =IFERROR(ROUNDUP(INDEX(SensorPricing[],MATCH(P34,SensorPricing[Sensor],0),MATCH($M$1,SensorPricing[#Headers],0))*0.2777777*2,0),"") -> 0 | X34: =IFERROR(ROUNDUP(INDEX(SensorPricing[],MATCH(P34,SensorPricing[Sensor],0),MATCH($M$1,SensorPricing[#Headers],0))*IF(H$90="2Y",2.5,3),0),"") -> 0
B35: LEL-MPS | C35: è | D35: F | E35: = | F35: =SUM(S35:T35) -> $ 0 | O35: =H39 -> H | P35: H | Q35: =IF(P35="X",1,0) -> 0 | S35: =INDEX(SensorPricing[],MATCH(D35,SensorPricing[Sensor],0),MATCH($M$1,SensorPricing[#Headers],0))*2 -> 0 | T35: =IFERROR(IF($H$90="2Y",0,ROUNDUP(INDEX(SensorPricing[],MATCH(D35,SensorPricing[Sensor],0),MATCH($M$1,SensorPricing[#Headers],0))*0.2777777,0)),0) -> 0 | V35: =IFERROR(ROUNDUP(INDEX(SensorPricing[],MATCH(P35,SensorPricing[Sensor],0),MATCH($M$1,SensorPricing[#Headers],0))*0.2777777*2,0),"") -> 0 | X35: =IFERROR(ROUNDUP(INDEX(SensorPricing[],MATCH(P35,SensorPricing[Sensor],0),MATCH($M$1,SensorPricing[#Headers],0))*IF(H$90="2Y",2.5,3),0),"") -> 0
B36: None | C36: è | D36: X | E36: = | F36: =SUM(S36:T36) -> $ 0 | O36: =H60 -> M | P36: M | Q36: =IF(P36="X",1,0) -> 0 | S36: =INDEX(SensorPricing[],MATCH(D36,SensorPricing[Sensor],0),MATCH($M$1,SensorPricing[#Headers],0))*2 -> 0 | T36: =IFERROR(IF($H$90="2Y",0,ROUNDUP(INDEX(SensorPricing[],MATCH(D36,SensorPricing[Sensor],0),MATCH($M$1,SensorPricing[#Headers],0))*0.2777777,0)),0) -> 0 | V36: =IFERROR(ROUNDUP(INDEX(SensorPricing[],MATCH(P36,SensorPricing[Sensor],0),MATCH($M$1,SensorPricing[#Headers],0))*0.2777777*2,0),"") -> 0 | X36: =IFERROR(ROUNDUP(INDEX(SensorPricing[],MATCH(P36,SensorPricing[Sensor],0),MATCH($M$1,SensorPricing[#Headers],0))*IF(H$90="2Y",2.5,3),0),"") -> 0
L37: + | O37: =H81 -> O | P37: O | Q37: =IF(P37="X",1,0) -> 0 | V37: =IFERROR(ROUNDUP(INDEX(SensorPricing[],MATCH(P37,SensorPricing[Sensor],0),MATCH($M$1,SensorPricing[#Headers],0))*0.2777777*2,0),"") -> 0 | X37: =IFERROR(ROUNDUP(INDEX(SensorPricing[],MATCH(P37,SensorPricing[Sensor],0),MATCH($M$1,SensorPricing[#Headers],0))*IF(H$90="2Y",2.5,3),0),"") -> 0
B38: Toxic Sensor #1 | Q38: =H30&4-SUM(Q34:Q37) -> Q4
B39: =_xlfn.VSTACK(O39:O57) -> HF | C39: =IF(B39=0,"","è") -> è | D39: =_xlfn.VSTACK(P39:P57) -> 2 | E39: =IF(B39=0,"","=") -> = | F39: =IFERROR(SUM(S39:T39),"") -> $ 840 | H39: H | L39: =VLOOKUP(H39,D39:F57,3,FALSE) -> $ 0 | O39: =_xlfn.LET( _xlpm.Dtype,G7Sensors[Type1],_xlpm.Curr,G7Sensors[Currency],_xlpm.Stype,H30&1,_xlpm.SCurr,M1, _xlpm.myCalculation,_xlfn.VSTACK(_xlfn._xlws.FILTER(G7Sensors[],(_xlpm.Dtype=_xlpm.Stype)*(_xlpm.Curr=_xlpm.SCurr))),_xlpm.myCalculation) -> HF | P39: 2 | Q39: Q1 | R39: USD | S39: =INDEX(SensorPricing[],MATCH(D39,SensorPricing[Sensor],0),MATCH($M$1,SensorPricing[#Headers],0))*2 -> 840 | T39: =IFERROR(IF($H$90="2Y",0,ROUNDUP(INDEX(SensorPricing[],MATCH(D39,SensorPricing[Sensor],0),MATCH($M$1,SensorPricing[#Headers],0))*0.2777777,0)),0) -> 0
B40: NH3 | C40: è | D40: A | E40: = | F40: =IFERROR(SUM(S40:T40),"") -> $ 120 | O40: NH3 | P40: A | Q40: Q1 | R40: USD | S40: =INDEX(SensorPricing[],MATCH(D40,SensorPricing[Sensor],0),MATCH($M$1,SensorPricing[#Headers],0))*2 -> 120 | T40: =IFERROR(IF($H$90="2Y",0,ROUNDUP(INDEX(SensorPricing[],MATCH(D40,SensorPricing[Sensor],0),MATCH($M$1,SensorPricing[#Headers],0))*0.2777777,0)),0) -> 0
B41: High-range NH3 | C41: è | D41: B | E41: = | F41: $ 252 | O41: High-range NH3 | P41: B | Q41: Q1 | R41: USD | S41: =INDEX(SensorPricing[],MATCH(D41,SensorPricing[Sensor],0),MATCH($M$1,SensorPricing[#Headers],0))*2 -> 252 | T41: =IFERROR(IF($H$90="2Y",0,ROUNDUP(INDEX(SensorPricing[],MATCH(D41,SensorPricing[Sensor],0),MATCH($M$1,SensorPricing[#Headers],0))*0.2777777,0)),0) -> 0
B42: CO2 | C42: è | D42: C | E42: = | F42: $ 480 | O42: CO2 | P42: C | Q42: Q1 | R42: USD | S42: =INDEX(SensorPricing[],MATCH(D42,SensorPricing[Sensor],0),MATCH($M$1,SensorPricing[#Headers],0))*2 -> 480 | T42: =IFERROR(IF($H$90="2Y",0,ROUNDUP(INDEX(SensorPricing[],MATCH(D42,SensorPricing[Sensor],0),MATCH($M$1,SensorPricing[#Headers],0))*0.2777777,0)),0) -> 0
B43: O3 | C43: è | D43: E | E43: = | F43: $ 240 | O43: O3 | P43: E | Q43: Q1 | R43: USD | S43: =INDEX(SensorPricing[],MATCH(D43,SensorPricing[Sensor],0),MATCH($M$1,SensorPricing[#Headers],0))*2 -> 240 | T43: =IFERROR(IF($H$90="2Y",0,ROUNDUP(INDEX(SensorPricing[],MATCH(D43,SensorPricing[Sensor],0),MATCH($M$1,SensorPricing[#Headers],0))*0.2777777,0)),0) -> 0
B44: H2S | C44: è | D44: H | E44: = | F44: $ 0 | O44: H2S | P44: H | Q44: Q1 | R44: USD | S44: =INDEX(SensorPricing[],MATCH(D44,SensorPricing[Sensor],0),MATCH($M$1,SensorPricing[#Headers],0))*2 -> 0 | T44: =IFERROR(IF($H$90="2Y",0,ROUNDUP(INDEX(SensorPricing[],MATCH(D44,SensorPricing[Sensor],0),MATCH($M$1,SensorPricing[#Headers],0))*0.2777777,0)),0) -> 0
B45: High-range H2S | C45: è | D45: J | E45: = | F45: $ 240 | O45: High-range H2S | P45: J | Q45: Q1 | R45: USD | S45: =INDEX(SensorPricing[],MATCH(D45,SensorPricing[Sensor],0),MATCH($M$1,SensorPricing[#Headers],0))*2 -> 240 | T45: =IFERROR(IF($H$90="2Y",0,ROUNDUP(INDEX(SensorPricing[],MATCH(D45,SensorPricing[Sensor],0),MATCH($M$1,SensorPricing[#Headers],0))*0.2777777,0)),0) -> 0
B46: NO2 | C46: è | D46: K | E46: = | F46: $ 120 | O46: NO2 | P46: K | Q46: Q1 | R46: USD | S46: =INDEX(SensorPricing[],MATCH(D46,SensorPricing[Sensor],0),MATCH($M$1,SensorPricing[#Headers],0))*2 -> 120 | T46: =IFERROR(IF($H$90="2Y",0,ROUNDUP(INDEX(SensorPricing[],MATCH(D46,SensorPricing[Sensor],0),MATCH($M$1,SensorPricing[#Headers],0))*0.2777777,0)),0) -> 0
B47: Cl2 | C47: è | D47: L | E47: = | F47: $ 120 | O47: Cl2 | P47: L | Q47: Q1 | R47: USD | S47: =INDEX(SensorPricing[],MATCH(D47,SensorPricing[Sensor],0),MATCH($M$1,SensorPricing[#Headers],0))*2 -> 120 | T47: =IFERROR(IF($H$90="2Y",0,ROUNDUP(INDEX(SensorPricing[],MATCH(D47,SensorPricing[Sensor],0),MATCH($M$1,SensorPricing[#Headers],0))*0.2777777,0)),0) -> 0
B48: CO | C48: è | D48: M | E48: = | F48: $ 0 | O48: CO | P48: M | Q48: Q1 | R48: USD | S48: =INDEX(SensorPricing[],MATCH(D48,SensorPricing[Sensor],0),MATCH($M$1,SensorPricing[#Headers],0))*2 -> 0 | T48: =IFERROR(IF($H$90="2Y",0,ROUNDUP(INDEX(SensorPricing[],MATCH(D48,SensorPricing[Sensor],0),MATCH($M$1,SensorPricing[#Headers],0))*0.2777777,0)),0) -> 0
B49: HCN | C49: è | D49: N | E49: = | F49: $ 120 | O49: HCN | P49: N | Q49: Q1 | R49: USD | S49: =INDEX(SensorPricing[],MATCH(D49,SensorPricing[Sensor],0),MATCH($M$1,SensorPricing[#Headers],0))*2 -> 120 | T49: =IFERROR(IF($H$90="2Y",0,ROUNDUP(INDEX(SensorPricing[],MATCH(D49,SensorPricing[Sensor],0),MATCH($M$1,SensorPricing[#Headers],0))*0.2777777,0)),0) -> 0
B50: CO-H | C50: è | D50: R | E50: = | F50: $ 0 | O50: CO-H | P50: R | Q50: Q1 | R50: USD | S50: =INDEX(SensorPricing[],MATCH(D50,SensorPricing[Sensor],0),MATCH($M$1,SensorPricing[#Headers],0))*2 -> 0 | T50: =IFERROR(IF($H$90="2Y",0,ROUNDUP(INDEX(SensorPricing[],MATCH(D50,SensorPricing[Sensor],0),MATCH($M$1,SensorPricing[#Headers],0))*0.2777777,0)),0) -> 0
B51: SO2 | C51: è | D51: S | E51: = | F51: $ 0 | O51: SO2 | P51: S | Q51: Q1 | R51: USD | S51: =INDEX(SensorPricing[],MATCH(D51,SensorPricing[Sensor],0),MATCH($M$1,SensorPricing[#Headers],0))*2 -> 0 | T51: =IFERROR(IF($H$90="2Y",0,ROUNDUP(INDEX(SensorPricing[],MATCH(D51,SensorPricing[Sensor],0),MATCH($M$1,SensorPricing[#Headers],0))*0.2777777,0)),0) -> 0
B52: High-range CO | C52: è | D52: T | E52: = | F52: $ 240 | O52: High-range CO | P52: T | Q52: Q1 | R52: USD | S52: =INDEX(SensorPricing[],MATCH(D52,SensorPricing[Sensor],0),MATCH($M$1,SensorPricing[#Headers],0))*2 -> 240 | T52: =IFERROR(IF($H$90="2Y",0,ROUNDUP(INDEX(SensorPricing[],MATCH(D52,SensorPricing[Sensor],0),MATCH($M$1,SensorPricing[#Headers],0))*0.2777777,0)),0) -> 0
B53: PID | C53: è | D53: V | E53: = | F53: $ 966 | O53: PID | P53: V | Q53: Q1 | R53: USD | S53: =INDEX(SensorPricing[],MATCH(D53,SensorPricing[Sensor],0),MATCH($M$1,SensorPricing[#Headers],0))*2 -> 966 | T53: =IFERROR(IF($H$90="2Y",0,ROUNDUP(INDEX(SensorPricing[],MATCH(D53,SensorPricing[Sensor],0),MATCH($M$1,SensorPricing[#Headers],0))*0.2777777,0)),0) -> 0
B54: ClO2 | C54: è | D54: W | E54: = | F54: $ 120 | O54: ClO2 | P54: W | Q54: Q1 | R54: USD | S54: =INDEX(SensorPricing[],MATCH(D54,SensorPricing[Sensor],0),MATCH($M$1,SensorPricing[#Headers],0))*2 -> 120 | T54: =IFERROR(IF($H$90="2Y",0,ROUNDUP(INDEX(SensorPricing[],MATCH(D54,SensorPricing[Sensor],0),MATCH($M$1,SensorPricing[#Headers],0))*0.2777777,0)),0) -> 0
B55: No Sensor | C55: è | D55: X | E55: = | F55: $ 0 | O55: No Sensor | P55: X | Q55: Q1 | R55: USD | S55: =INDEX(SensorPricing[],MATCH(D55,SensorPricing[Sensor],0),MATCH($M$1,SensorPricing[#Headers],0))*2 -> 0 | T55: =IFERROR(IF($H$90="2Y",0,ROUNDUP(INDEX(SensorPricing[],MATCH(D55,SensorPricing[Sensor],0),MATCH($M$1,SensorPricing[#Headers],0))*0.2777777,0)),0) -> 0
B56: 0 | C56: =IF(B56=0,"","è") ->  | D56: 0 | E56: =IF(B56=0,"","=") ->  | S56: =INDEX(SensorPricing[],MATCH(D56,SensorPricing[Sensor],0),MATCH($M$1,SensorPricing[#Headers],0))*2 ->  | T56: =IFERROR(IF($H$90="2Y",0,ROUNDUP(INDEX(SensorPricing[],MATCH(D56,SensorPricing[Sensor],0),MATCH($M$1,SensorPricing[#Headers],0))*0.2777777,0)),0) -> 0
B57: 0 | C57: =IF(B57=0,"","è") ->  | D57: 0 | E57: =IF(B57=0,"","=") ->  | S57: =INDEX(SensorPricing[],MATCH(D57,SensorPricing[Sensor],0),MATCH($M$1,SensorPricing[#Headers],0))*2 ->  | T57: =IFERROR(IF($H$90="2Y",0,ROUNDUP(INDEX(SensorPricing[],MATCH(D57,SensorPricing[Sensor],0),MATCH($M$1,SensorPricing[#Headers],0))*0.2777777,0)),0) -> 0
L58: +
B59: Toxic Sensor #2
B60: =_xlfn.VSTACK(O60:O78) -> HF | C60: =IF(B60=0,"","è") -> è | D60: =_xlfn.VSTACK(P60:P78) -> 2 | E60: =IF(B60=0,"","=") -> = | F60: =IFERROR(SUM(S60:T60),"") -> $ 840 | H60: M | L60: =VLOOKUP(H60,D60:F78,3,FALSE) -> $ 0 | O60: =_xlfn.LET( _xlpm.Dtype,G7Sensors[Type1],_xlpm.Curr,G7Sensors[Currency],_xlpm.Stype,H30&2,_xlpm.SCurr,M1, _xlpm.myCalculation,_xlfn.VSTACK(_xlfn._xlws.FILTER(G7Sensors[],(_xlpm.Dtype=_xlpm.Stype)*(_xlpm.Curr=_xlpm.SCurr))),_xlpm.myCalculation) -> HF | P60: 2 | Q60: Q2 | R60: USD | S60: =INDEX(SensorPricing[],MATCH(D60,SensorPricing[Sensor],0),MATCH($M$1,SensorPricing[#Headers],0))*2 -> 840 | T60: =IFERROR(IF($H$90="2Y",0,ROUNDUP(INDEX(SensorPricing[],MATCH(D60,SensorPricing[Sensor],0),MATCH($M$1,SensorPricing[#Headers],0))*0.2777777,0)),0) -> 0
B61: NH3 | C61: è | D61: A | E61: = | F61: $ 120 | O61: NH3 | P61: A | Q61: Q2 | R61: USD | S61: =INDEX(SensorPricing[],MATCH(D61,SensorPricing[Sensor],0),MATCH($M$1,SensorPricing[#Headers],0))*2 -> 120 | T61: =IFERROR(IF($H$90="2Y",0,ROUNDUP(INDEX(SensorPricing[],MATCH(D61,SensorPricing[Sensor],0),MATCH($M$1,SensorPricing[#Headers],0))*0.2777777,0)),0) -> 0
B62: High-range NH3 | C62: è | D62: B | E62: = | F62: $ 252 | O62: High-range NH3 | P62: B | Q62: Q2 | R62: USD | S62: =INDEX(SensorPricing[],MATCH(D62,SensorPricing[Sensor],0),MATCH($M$1,SensorPricing[#Headers],0))*2 -> 252 | T62: =IFERROR(IF($H$90="2Y",0,ROUNDUP(INDEX(SensorPricing[],MATCH(D62,SensorPricing[Sensor],0),MATCH($M$1,SensorPricing[#Headers],0))*0.2777777,0)),0) -> 0
B63: COSH | C63: è | D63: D | E63: = | F63: $ 120 | O63: COSH | P63: D | Q63: Q2 | R63: USD | S63: =INDEX(SensorPricing[],MATCH(D63,SensorPricing[Sensor],0),MATCH($M$1,SensorPricing[#Headers],0))*2 -> 120 | T63: =IFERROR(IF($H$90="2Y",0,ROUNDUP(INDEX(SensorPricing[],MATCH(D63,SensorPricing[Sensor],0),MATCH($M$1,SensorPricing[#Headers],0))*0.2777777,0)),0) -> 0
B64: O3 | C64: è | D64: E | E64: = | F64: $ 240 | O64: O3 | P64: E | Q64: Q2 | R64: USD | S64: =INDEX(SensorPricing[],MATCH(D64,SensorPricing[Sensor],0),MATCH($M$1,SensorPricing[#Headers],0))*2 -> 240 | T64: =IFERROR(IF($H$90="2Y",0,ROUNDUP(INDEX(SensorPricing[],MATCH(D64,SensorPricing[Sensor],0),MATCH($M$1,SensorPricing[#Headers],0))*0.2777777,0)),0) -> 0
B65: H2S | C65: è | D65: H | E65: = | F65: $ 0 | O65: H2S | P65: H | Q65: Q2 | R65: USD | S65: =INDEX(SensorPricing[],MATCH(D65,SensorPricing[Sensor],0),MATCH($M$1,SensorPricing[#Headers],0))*2 -> 0 | T65: =IFERROR(IF($H$90="2Y",0,ROUNDUP(INDEX(SensorPricing[],MATCH(D65,SensorPricing[Sensor],0),MATCH($M$1,SensorPricing[#Headers],0))*0.2777777,0)),0) -> 0
B66: High-range H2S | C66: è | D66: J | E66: = | F66: $ 240 | O66: High-range H2S | P66: J | Q66: Q2 | R66: USD | S66: =INDEX(SensorPricing[],MATCH(D66,SensorPricing[Sensor],0),MATCH($M$1,SensorPricing[#Headers],0))*2 -> 240 | T66: =IFERROR(IF($H$90="2Y",0,ROUNDUP(INDEX(SensorPricing[],MATCH(D66,SensorPricing[Sensor],0),MATCH($M$1,SensorPricing[#Headers],0))*0.2777777,0)),0) -> 0
B67: NO2 | C67: è | D67: K | E67: = | F67: $ 120 | O67: NO2 | P67: K | Q67: Q2 | R67: USD | S67: =INDEX(SensorPricing[],MATCH(D67,SensorPricing[Sensor],0),MATCH($M$1,SensorPricing[#Headers],0))*2 -> 120 | T67: =IFERROR(IF($H$90="2Y",0,ROUNDUP(INDEX(SensorPricing[],MATCH(D67,SensorPricing[Sensor],0),MATCH($M$1,SensorPricing[#Headers],0))*0.2777777,0)),0) -> 0
B68: Cl2 | C68: è | D68: L | E68: = | F68: $ 120 | O68: Cl2 | P68: L | Q68: Q2 | R68: USD | S68: =INDEX(SensorPricing[],MATCH(D68,SensorPricing[Sensor],0),MATCH($M$1,SensorPricing[#Headers],0))*2 -> 120 | T68: =IFERROR(IF($H$90="2Y",0,ROUNDUP(INDEX(SensorPricing[],MATCH(D68,SensorPricing[Sensor],0),MATCH($M$1,SensorPricing[#Headers],0))*0.2777777,0)),0) -> 0
B69: CO | C69: è | D69: M | E69: = | F69: $ 0 | O69: CO | P69: M | Q69: Q2 | R69: USD | S69: =INDEX(SensorPricing[],MATCH(D69,SensorPricing[Sensor],0),MATCH($M$1,SensorPricing[#Headers],0))*2 -> 0 | T69: =IFERROR(IF($H$90="2Y",0,ROUNDUP(INDEX(SensorPricing[],MATCH(D69,SensorPricing[Sensor],0),MATCH($M$1,SensorPricing[#Headers],0))*0.2777777,0)),0) -> 0
B70: HCN | C70: è | D70: N | E70: = | F70: $ 120 | O70: HCN | P70: N | Q70: Q2 | R70: USD | S70: =INDEX(SensorPricing[],MATCH(D70,SensorPricing[Sensor],0),MATCH($M$1,SensorPricing[#Headers],0))*2 -> 120 | T70: =IFERROR(IF($H$90="2Y",0,ROUNDUP(INDEX(SensorPricing[],MATCH(D70,SensorPricing[Sensor],0),MATCH($M$1,SensorPricing[#Headers],0))*0.2777777,0)),0) -> 0
B71: CO-H | C71: è | D71: R | E71: = | F71: $ 0 | O71: CO-H | P71: R | Q71: Q2 | R71: USD | S71: =INDEX(SensorPricing[],MATCH(D71,SensorPricing[Sensor],0),MATCH($M$1,SensorPricing[#Headers],0))*2 -> 0 | T71: =IFERROR(IF($H$90="2Y",0,ROUNDUP(INDEX(SensorPricing[],MATCH(D71,SensorPricing[Sensor],0),MATCH($M$1,SensorPricing[#Headers],0))*0.2777777,0)),0) -> 0
B72: SO2 | C72: è | D72: S | E72: = | F72: $ 0 | O72: SO2 | P72: S | Q72: Q2 | R72: USD | S72: =INDEX(SensorPricing[],MATCH(D72,SensorPricing[Sensor],0),MATCH($M$1,SensorPricing[#Headers],0))*2 -> 0 | T72: =IFERROR(IF($H$90="2Y",0,ROUNDUP(INDEX(SensorPricing[],MATCH(D72,SensorPricing[Sensor],0),MATCH($M$1,SensorPricing[#Headers],0))*0.2777777,0)),0) -> 0
B73: High-range CO | C73: è | D73: T | E73: = | F73: $ 240 | O73: High-range CO | P73: T | Q73: Q2 | R73: USD | S73: =INDEX(SensorPricing[],MATCH(D73,SensorPricing[Sensor],0),MATCH($M$1,SensorPricing[#Headers],0))*2 -> 240 | T73: =IFERROR(IF($H$90="2Y",0,ROUNDUP(INDEX(SensorPricing[],MATCH(D73,SensorPricing[Sensor],0),MATCH($M$1,SensorPricing[#Headers],0))*0.2777777,0)),0) -> 0
B74: ClO2 | C74: è | D74: W | E74: = | F74: $ 120 | O74: ClO2 | P74: W | Q74: Q2 | R74: USD | S74: =INDEX(SensorPricing[],MATCH(D74,SensorPricing[Sensor],0),MATCH($M$1,SensorPricing[#Headers],0))*2 -> 120 | T74: =IFERROR(IF($H$90="2Y",0,ROUNDUP(INDEX(SensorPricing[],MATCH(D74,SensorPricing[Sensor],0),MATCH($M$1,SensorPricing[#Headers],0))*0.2777777,0)),0) -> 0
B75: No Sensor | C75: è | D75: X | E75: = | F75: $ 0 | O75: No Sensor | P75: X | Q75: Q2 | R75: USD | S75: =INDEX(SensorPricing[],MATCH(D75,SensorPricing[Sensor],0),MATCH($M$1,SensorPricing[#Headers],0))*2 -> 0 | T75: =IFERROR(IF($H$90="2Y",0,ROUNDUP(INDEX(SensorPricing[],MATCH(D75,SensorPricing[Sensor],0),MATCH($M$1,SensorPricing[#Headers],0))*0.2777777,0)),0) -> 0
B76: 0 | D76: 0 | S76: =INDEX(SensorPricing[],MATCH(D76,SensorPricing[Sensor],0),MATCH($M$1,SensorPricing[#Headers],0))*2 ->  | T76: =IFERROR(IF($H$90="2Y",0,ROUNDUP(INDEX(SensorPricing[],MATCH(D76,SensorPricing[Sensor],0),MATCH($M$1,SensorPricing[#Headers],0))*0.2777777,0)),0) -> 0
B77: 0 | D77: 0 | S77: =INDEX(SensorPricing[],MATCH(D77,SensorPricing[Sensor],0),MATCH($M$1,SensorPricing[#Headers],0))*2 ->  | T77: =IFERROR(IF($H$90="2Y",0,ROUNDUP(INDEX(SensorPricing[],MATCH(D77,SensorPricing[Sensor],0),MATCH($M$1,SensorPricing[#Headers],0))*0.2777777,0)),0) -> 0
B78: 0 | D78: 0 | S78: =INDEX(SensorPricing[],MATCH(D78,SensorPricing[Sensor],0),MATCH($M$1,SensorPricing[#Headers],0))*2 ->  | T78: =IFERROR(IF($H$90="2Y",0,ROUNDUP(INDEX(SensorPricing[],MATCH(D78,SensorPricing[Sensor],0),MATCH($M$1,SensorPricing[#Headers],0))*0.2777777,0)),0) -> 0
L79: +
B80: Oxygen Sensor
B81: =_xlfn.VSTACK(O81:O82) -> O2 | C81: =IF(B81=0,"","è") -> è | D81: =_xlfn.VSTACK(P81:P82) -> O | E81: =IF(B81=0,"","=") -> = | F81: =IFERROR(SUM(S81:T81),"") -> $ 0 | H81: O | L81: =VLOOKUP(H81,D81:F82,3,FALSE) -> $ 0 | O81: =_xlfn._xlws.FILTER(_xlfn._xlws.FILTER(Oxygen[],Oxygen[Type]=H34),{1,1,0}) -> O2 | P81: O | S81: =INDEX(SensorPricing[],MATCH(D81,SensorPricing[Sensor],0),MATCH($M$1,SensorPricing[#Headers],0))*2 -> 0 | T81: =IFERROR(IF($H$90="2Y",0,ROUNDUP(INDEX(SensorPricing[],MATCH(D81,SensorPricing[Sensor],0),MATCH($M$1,SensorPricing[#Headers],0))*0.2777777,0)),0) -> 0
B82: 0 | D82: 0 | F82: =IFERROR(SUM(S82:T82),"") ->  | S82: =INDEX(SensorPricing[],MATCH(D82,SensorPricing[Sensor],0),MATCH($M$1,SensorPricing[#Headers],0))*2 ->  | T82: =IFERROR(IF($H$90="2Y",0,ROUNDUP(INDEX(SensorPricing[],MATCH(D82,SensorPricing[Sensor],0),MATCH($M$1,SensorPricing[#Headers],0))*0.2777777,0)),0) -> 0
H83: -
B84: Country Code
B85: =_xlfn.VSTACK(O85:O87) -> North America (3G/4G) - G7C | C85: =IF(B85="","","è") -> è | D85: =IFERROR(VLOOKUP(B85,Lookup!$F$3:$G$12,2,FALSE),"") -> NA2 | H85: NA2 | O85: =_xlfn.LET( _xlpm.Dtype,G7CountryCodes[Type],_xlpm.Curr,G7CountryCodes[Currency],_xlpm.SType,H26,_xlpm.SCurr,M1, _xlpm.myCalculation,_xlfn.VSTACK(_xlfn._xlws.FILTER(G7CountryCodes[],(_xlpm.Dtype=_xlpm.SType)*(_xlpm.Curr=_xlpm.SCurr))),_xlpm.myCalculation) -> North America (3G/4G) - G7C | P85: NA2 | Q85: C | R85: USD
B86: Outside of North America (3G/4G) - G7C | C86: =IF(B86=0,"","è") -> è | D86: =IFERROR(VLOOKUP(B86,Lookup!$F$3:$G$12,2,FALSE),"") -> EU2 | O86: Outside of North America (3G/4G) - G7C | P86: EU2 | Q86: C | R86: USD
B87: Brazil (3G/4G) - G7C | C87: =IF(B87=0,"","è") -> è | D87: =IFERROR(VLOOKUP(B87,Lookup!$F$3:$G$12,2,FALSE),"") -> BR2 | O87: Brazil (3G/4G) - G7C | P87: BR2 | Q87: C | R87: USD
H88: -
B89: Term
B90: Two-Years | C90: è | D90: 2Y | H90: 2Y
B91: Three-Years | C91: è | D91: 3Y

Sheet G7 Purchase Optional Services
M1: =Currency -> USD | P1: G7 Purchase Optional Services
B2: G7 Purchase Optional Services | M2: =PBYear -> 2025 | N2: Quick Links
M3: =Revision -> Effective February 2, 2026 Rev 2 | N3: Main Menu
M4: Blackline Safety Confidential | N4: G7 Lone Worker Purchase
M5: All prices are an estimate - for a formal quote contact your local Blackline Safety representative | N5: G7 Single-Gas Purchase
N6: G7 Multi-Gas Purchase
L7: Monthly | M7: Term | N7: Accessories
F8: Monitoring Service Plan | H8: =IF(H19="XX",CONCATENATE("J-SYS-ACCESS-",H26),CONCATENATE(H16,"-",H19,"-",H26)) -> J-SER-SX-1Y | L8: =L19 -> $ 19 | M8: =LEFT(H26,1)*12*L8 -> $ 228
F10: Push-To-Talk (PTT) | H10: =CONCATENATE(H34,"-",H37,"-",H40) -> J-SER-PTT-1Y | L10: =L37 -> $ 15 | M10: =LEFT(H40,1)*12*L10 -> $ 180
B14: Monitoring Service Plans
B15: Buying Option
B16: Purchase | C16: è | D16: J-SER | H16: =D16 -> J-SER
H17: -
B18: Service Plan (Monthly)
B19: System Access (used for renewal) | C19: è | D19: XX | F19: =S19 -> $ 15 | H19: SX | L19: =VLOOKUP(H19,D19:F23,3,FALSE) -> $ 19 | S19: =INDEX(ServicePrices[],MATCH("System Access",ServicePrices[Type],0),MATCH($M$1,ServicePrices[#Headers],0)) -> 15
B20: Self-Monitored | C20: è | D20: SX | F20: =S20 -> $ 19 | S20: =INDEX(ServicePrices[],MATCH("Self-monitored",ServicePrices[Type],0),MATCH($M$1,ServicePrices[#Headers],0)) -> 19
B21: Self-Monitored w/ Voice* | C21: è | D21: SV | F21: =S21 -> $ 40 | S21: =INDEX(ServicePrices[],MATCH("Self-monitored",ServicePrices[Type],0),MATCH($M$1,ServicePrices[#Headers],0))+ INDEX(ServicePrices[],MATCH("Voice",ServicePrices[Type],0),MATCH($M$1,ServicePrices[#Headers],0)) -> 40
B22: Blackline Monitored | C22: è | D22: BX | F22: =S22 -> $ 39 | S22: =INDEX(ServicePrices[],MATCH("Blackline Monitored",ServicePrices[Type],0),MATCH($M$1,ServicePrices[#Headers],0)) -> 39
B23: Blackline Monitored w/ Voice* | C23: =IF(B23="","","è") -> è | D23: BV | F23: =S23 -> $ 60 | S23: =INDEX(ServicePrices[],MATCH("Blackline Monitored",ServicePrices[Type],0),MATCH($M$1,ServicePrices[#Headers],0))+ INDEX(ServicePrices[],MATCH("Voice",ServicePrices[Type],0),MATCH($M$1,ServicePrices[#Headers],0)) -> 60
H24: - | O24: *Voice only available on G7c models
B25: Term
B26: 1-Year | C26: è | D26: 1Y | H26: 1Y
B27: 2-years | C27: è | D27: 2Y
B28: 3-Years | C28: è | D28: 3Y
B29: 4-Years | C29: è | D29: 4Y
B30: 5-Years | C30: è | D30: 5Y
B32: Push-to-Talk (PTT)** | O32: **Push-to-Talk only available on G7c models
B33: Buying Option
B34: Purchase | C34: è | D34: J-SER | H34: =D34 -> J-SER
H35: -
B36: Service Plan (Monthly)
B37: Push-to-Talk | C37: è | D37: PTT | F37: =S37 -> $ 15 | H37: PTT | L37: =F37 -> $ 15 | S37: =INDEX(ServicePrices[],MATCH("Push-to-talk",ServicePrices[Type],0),MATCH($M$1,ServicePrices[#Headers],0)) -> 15
H38: -
B39: Term
B40: 1-Year | C40: è | D40: 1Y | H40: 1Y
B41: 2-years | C41: è | D41: 2Y
B42: 3-Years | C42: è | D42: 3Y
B43: 4-Years | C43: è | D43: 4Y
B44: 5-Years | C44: è | D44: 5Y

Sheet G7 Lone Worker Blend
M1: =Currency -> USD | P1: G7 Lone Worker Blend
B2: G7 Lone Worker Blend | M2: =PBYear -> 2025 | N2: Quick Links
M3: =Revision -> Effective February 2, 2026 Rev 2 | N3: Main Menu
M4: Blackline Safety Confidential | N4: Accessories
M5: All prices are an estimate - for a formal quote contact your local Blackline Safety representative
M6: Buying option not available in all countries. Please confirm with your local Blackline representative
F8: Device | H8: =CONCATENATE(H16,H20,"-",H24,"-",H27) -> G7C-Z-NA2 | L8: =L16 -> $ 677 | M8: =M1&" upfront" -> USD upfront
F10: Cartridge + Service | H10: =CONCATENATE("SER-",H33,"-",H45,"-",H48) -> SER-XX-Z-1Y | L10: =ROUNDUP(SUM(L33:L45)*(1-VLOOKUP(LEFT(H48,1),R48:S52,2,FALSE)),0) -> $ 180 | M10: =M1&" /year" -> USD /year
L12: =L10*(LEFT(H48,1)) -> $ 180 | M12: =M1&" /term" -> USD /term
B14: Device
B15: Buying Option | S15: Price
B16: Blend | C16: è | D16: G7 | H16: =D16 -> G7 | L16: =F17 -> $ 677
A17: 1 | D17: Device | E17: = | F17: =SUM(S17:S17) -> $ 677 | S17: =INDEX(BasePrices[],MATCH("G7 Blend Base Price",BasePrices[Type],0),MATCH($M$1,BasePrices[#Headers],0)) -> 677
B19: Connectivity
B20: Cellular | C20: è | D20: C | H20: C
B21: =IF(OR(M1="EUR",M1="GBP"),"","Satellite (900 MHz)*") -> Satellite (900 MHz)* | C21: =IF(B21="","","è") -> è | D21: =IF(OR(M1="EUR",M1="GBP"),"","X") -> X
H22: - | O22: =IF(OR(M1="EUR",M1="GBP"),"","*Bridge and satellite service plan required") -> *Bridge and satellite service plan required
B23: Cartridge Type
B24: Lone Worker | C24: è | D24: Z | H24: Z
H25: -
B26: Country Code
B27: =_xlfn.VSTACK(O27:O29) -> North America (3G/4G) - G7C | C27: =IF(B27="","","è") -> è | D27: =IFERROR(VLOOKUP(B27,Lookup!$F$3:$G$12,2,FALSE),"") -> NA2 | H27: NA2 | O27: =_xlfn.LET( _xlpm.Dtype,G7CountryCodes[Type],_xlpm.Curr,G7CountryCodes[Currency],_xlpm.SType,H20,_xlpm.SCurr,M1, _xlpm.myCalculation,_xlfn.VSTACK(_xlfn._xlws.FILTER(G7CountryCodes[],(_xlpm.Dtype=_xlpm.SType)*(_xlpm.Curr=_xlpm.SCurr))),_xlpm.myCalculation) -> North America (3G/4G) - G7C | P27: NA2 | Q27: C | R27: USD
B28: Outside of North America (3G/4G) - G7C | C28: =IF(B28=0,"","è") -> è | D28: =IFERROR(VLOOKUP(B28,Lookup!$F$3:$G$12,2,FALSE),"") -> EU2 | O28: Outside of North America (3G/4G) - G7C | P28: EU2 | Q28: C | R28: USD
B29: Brazil (3G/4G) - G7C | C29: =IF(B29=0,"","è") -> è | D29: =IFERROR(VLOOKUP(B29,Lookup!$F$3:$G$12,2,FALSE),"") -> BR2 | O29: Brazil (3G/4G) - G7C | P29: BR2 | Q29: C | R29: USD
B31: Cartridge + Service
B32: Service Plan
B33: =_xlfn.VSTACK(O33:O42) -> System Access | C33: =IF(B33=0,"","è") -> è | D33: =IFERROR(VLOOKUP(B33,O33:P42,2,FALSE),"") -> XX | E33: =IF(B33=0,"","=") -> = | F33: =S33 -> $ 0 | H33: XX | L33: =VLOOKUP(H33,D33:F42,3,FALSE) -> $ 0 | O33: =_xlfn.LET( _xlpm.Dtype,G7ServicePlans[Type],_xlpm.Curr,G7ServicePlans[Currency],_xlpm.SType,H20,_xlpm.SCurr,M1, _xlpm.myCalculation,_xlfn.VSTACK(_xlfn._xlws.FILTER(G7ServicePlans[],(_xlpm.Dtype=_xlpm.SType)*(_xlpm.Curr=_xlpm.SCurr))),_xlpm.myCalculation) -> System Access | P33: XX | Q33: C | R33: USD | S33: =IFERROR(INDEX(BlendServicePrices[],MATCH(P33,BlendServicePrices[Blend Service Plans],0),MATCH($M$1,BlendServicePrices[#Headers],0)),"") -> 0
B34: System Access + PTT | C34: è | D34: =IFERROR(VLOOKUP(B34,O34:P43,2,FALSE),"") -> XXP | E34: = | F34: =S34 -> $ 180 | O34: System Access + PTT | P34: XXP | Q34: C | R34: USD | S34: =IFERROR(INDEX(BlendServicePrices[],MATCH(P34,BlendServicePrices[Blend Service Plans],0),MATCH($M$1,BlendServicePrices[#Headers],0)),"") -> 180
B35: Self-Monitored (no voice) | C35: è | D35: =IFERROR(VLOOKUP(B35,O35:P44,2,FALSE),"") -> SX | E35: = | F35: $ 228 | O35: Self-Monitored (no voice) | P35: SX | Q35: C | R35: USD | S35: =IFERROR(INDEX(BlendServicePrices[],MATCH(P35,BlendServicePrices[Blend Service Plans],0),MATCH($M$1,BlendServicePrices[#Headers],0)),"") -> 228
B36: Self-Monitored (no voice) + PTT | C36: è | D36: =IFERROR(VLOOKUP(B36,O36:P45,2,FALSE),"") -> SXP | E36: = | F36: $ 408 | O36: Self-Monitored (no voice) + PTT | P36: SXP | Q36: C | R36: USD | S36: =IFERROR(INDEX(BlendServicePrices[],MATCH(P36,BlendServicePrices[Blend Service Plans],0),MATCH($M$1,BlendServicePrices[#Headers],0)),"") -> 408
B37: Self-Monitored + Voice | C37: è | D37: =IFERROR(VLOOKUP(B37,O37:P45,2,FALSE),"") -> SV | E37: = | F37: $ 480 | O37: Self-Monitored + Voice | P37: SV | Q37: C | R37: USD | S37: =IFERROR(INDEX(BlendServicePrices[],MATCH(P37,BlendServicePrices[Blend Service Plans],0),MATCH($M$1,BlendServicePrices[#Headers],0)),"") -> 480
B38: Self-Monitored + Voice + PTT | C38: è | D38: =IFERROR(VLOOKUP(B38,O38:P45,2,FALSE),"") -> SVP | E38: = | F38: $ 660 | O38: Self-Monitored + Voice + PTT | P38: SVP | Q38: C | R38: USD | S38: =IFERROR(INDEX(BlendServicePrices[],MATCH(P38,BlendServicePrices[Blend Service Plans],0),MATCH($M$1,BlendServicePrices[#Headers],0)),"") -> 660
B39: Blackline 24/7 Monitored (no voice) | C39: è | D39: =IFERROR(VLOOKUP(B39,O39:P45,2,FALSE),"") -> BX | E39: = | F39: $ 468 | O39: Blackline 24/7 Monitored (no voice) | P39: BX | Q39: C | R39: USD | S39: =IFERROR(INDEX(BlendServicePrices[],MATCH(P39,BlendServicePrices[Blend Service Plans],0),MATCH($M$1,BlendServicePrices[#Headers],0)),"") -> 468
B40: Blackline 24/7 Monitored (no voice) + PTT | C40: è | D40: =IFERROR(VLOOKUP(B40,O40:P45,2,FALSE),"") -> BXP | E40: = | F40: $ 648 | O40: Blackline 24/7 Monitored (no voice) + PTT | P40: BXP | Q40: C | R40: USD | S40: =IFERROR(INDEX(BlendServicePrices[],MATCH(P40,BlendServicePrices[Blend Service Plans],0),MATCH($M$1,BlendServicePrices[#Headers],0)),"") -> 648
B41: Blackline 24/7 Monitored + Voice | C41: è | D41: =IFERROR(VLOOKUP(B41,O41:P45,2,FALSE),"") -> BV | E41: = | F41: $ 720 | O41: Blackline 24/7 Monitored + Voice | P41: BV | Q41: C | R41: USD | S41: =IFERROR(INDEX(BlendServicePrices[],MATCH(P41,BlendServicePrices[Blend Service Plans],0),MATCH($M$1,BlendServicePrices[#Headers],0)),"") -> 720
B42: Blackline 24/7 Monitored + Voice + PTT | C42: è | D42: =IFERROR(VLOOKUP(B42,O42:P45,2,FALSE),"") -> BVP | E42: = | F42: $ 900 | O42: Blackline 24/7 Monitored + Voice + PTT | P42: BVP | Q42: C | R42: USD | S42: =IFERROR(INDEX(BlendServicePrices[],MATCH(P42,BlendServicePrices[Blend Service Plans],0),MATCH($M$1,BlendServicePrices[#Headers],0)),"") -> 900
H43: - | L43: + | S43: =IFERROR(INDEX(BlendServicePrices[],MATCH(P43,BlendServicePrices[Blend Service Plans],0),MATCH($M$1,BlendServicePrices[#Headers],0)),"") -> 
B44: Cartridge Type
B45: Lone Worker | C45: è | D45: Z | F45: =S45 -> $ 180 | H45: =D45 -> Z | L45: =S45 -> $ 180 | S45: =INDEX(ServicePrices[],MATCH("Push-to-talk",ServicePrices[Type],0),MATCH($M$1,ServicePrices[#Headers],0))*12 -> 180
H46: -
B47: Term
B48: One-Year | C48: è | D48: 1Y | H48: 1Y | R48: 1 | S48: 0%
B49: Two-Years | C49: è | D49: 2Y | R49: 2 | S49: 2%
B50: Three-Years | C50: è | D50: 3Y | R50: 3 | S50: 3%
B51: Four-Years | C51: è | D51: 4Y | R51: 4 | S51: 4%
B52: Five-Years | C52: è | D52: 5Y | R52: 5 | S52: 5%

Sheet G7 Single-Gas Blend
M1: =Currency -> USD | P1: G7 Single-Gas Blend
B2: G7 Single-Gas Blend | M2: =PBYear -> 2025 | N2: Quick Links
M3: =Revision -> Effective February 2, 2026 Rev 2 | N3: Main Menu
M4: Blackline Safety Confidential | N4: Accessories
M5: All prices are an estimate - for a formal quote contact your local Blackline Safety representative
M6: Buying option not available in all countries. Please confirm with your local Blackline representative
F8: Device | H8: =CONCATENATE(H16,H20,"-",H24,"-",H27) -> G7C-S-H-NA2 | L8: =L16 -> $ 677 | M8: =M1&" upfront" -> USD upfront
F10: Cartridge + Service | H10: =CONCATENATE("SER-",H33,"-",H48,"-",H51,"-",H72) -> SER-XX-S-H-1Y | L10: =ROUNDUP(SUM(L33:L69)*(1-VLOOKUP(LEFT(H72,1),R72:S76,2,FALSE)),0) -> $ 253 | M10: =M1&" /year" -> USD /year
L12: =L10*LEFT(H72,1) -> $ 253 | M12: =M1&" /term" -> USD /term
B14: Device
B15: Buying Option | S15: Price
B16: Blend | C16: è | D16: G7 | H16: =D16 -> G7 | L16: =F17 -> $ 677
A17: 1 | D17: Device | E17: = | F17: =SUM(S17:S17) -> $ 677 | S17: =INDEX(BasePrices[],MATCH("G7 Blend Base Price",BasePrices[Type],0),MATCH($M$1,BasePrices[#Headers],0)) -> 677
B19: Connectivity
B20: Cellular | C20: è | D20: C | H20: C
B21: =IF(OR(M1="EUR",M1="GBP"),"","Satellite (900 MHz)*") -> Satellite (900 MHz)* | C21: =IF(B21="","","è") -> è | D21: =IF(OR(M1="EUR",M1="GBP"),"","X") -> X
H22: - | O22: =IF(OR(M1="EUR",M1="GBP"),"","*Bridge and satellite service plan required") -> *Bridge and satellite service plan required
B23: Cartridge
B24: Configured below | H24: =CONCATENATE(H48,"-",H51) -> S-H
H25: -
B26: Country Code
B27: =_xlfn.VSTACK(O27:O29) -> North America (3G/4G) - G7C | C27: =IF(B27="","","è") -> è | D27: =IFERROR(VLOOKUP(B27,Lookup!$F$3:$G$12,2,FALSE),"") -> NA2 | H27: NA2 | O27: =_xlfn.LET( _xlpm.Dtype,G7CountryCodes[Type],_xlpm.Curr,G7CountryCodes[Currency],_xlpm.SType,H20,_xlpm.SCurr,M1, _xlpm.myCalculation,_xlfn.VSTACK(_xlfn._xlws.FILTER(G7CountryCodes[],(_xlpm.Dtype=_xlpm.SType)*(_xlpm.Curr=_xlpm.SCurr))),_xlpm.myCalculation) -> North America (3G/4G) - G7C | P27: NA2 | Q27: C | R27: USD
B28: Outside of North America (3G/4G) - G7C | C28: =IF(B28=0,"","è") -> è | D28: =IFERROR(VLOOKUP(B28,Lookup!$F$3:$G$12,2,FALSE),"") -> EU2 | O28: Outside of North America (3G/4G) - G7C | P28: EU2 | Q28: C | R28: USD
B29: Brazil (3G/4G) - G7C | C29: =IF(B29=0,"","è") -> è | D29: =IFERROR(VLOOKUP(B29,Lookup!$F$3:$G$12,2,FALSE),"") -> BR2 | O29: Brazil (3G/4G) - G7C | P29: BR2 | Q29: C | R29: USD
B31: Cartridge + Service
B32: Service Plan
B33: =_xlfn.VSTACK(O33:O42) -> System Access | C33: =IF(B33=0,"","è") -> è | D33: =IFERROR(VLOOKUP(B33,O33:P42,2,FALSE),"") -> XX | E33: =IF(B33=0,"","=") -> = | F33: =S33 -> $ 0 | H33: XX | L33: =VLOOKUP(H33,D33:F42,3,FALSE) -> $ 0 | O33: =_xlfn.LET( _xlpm.Dtype,G7ServicePlans[Type],_xlpm.Curr,G7ServicePlans[Currency],_xlpm.Stype,H20,_xlpm.SCurr,M1, _xlpm.myCalculation,_xlfn.VSTACK(_xlfn._xlws.FILTER(G7ServicePlans[],(_xlpm.Dtype=_xlpm.Stype)*(_xlpm.Curr=_xlpm.SCurr))),_xlpm.myCalculation) -> System Access | P33: XX | Q33: C | R33: USD | S33: =IFERROR(INDEX(BlendServicePrices[],MATCH(P33,BlendServicePrices[Blend Service Plans],0),MATCH($M$1,BlendServicePrices[#Headers],0)),"") -> 0
B34: System Access + PTT | C34: è | D34: =IFERROR(VLOOKUP(B34,O34:P43,2,FALSE),"") -> XXP | E34: = | F34: =S34 -> $ 180 | O34: System Access + PTT | P34: XXP | Q34: C | R34: USD | S34: =IFERROR(INDEX(BlendServicePrices[],MATCH(P34,BlendServicePrices[Blend Service Plans],0),MATCH($M$1,BlendServicePrices[#Headers],0)),"") -> 180
B35: Self-Monitored (no voice) | C35: è | D35: =IFERROR(VLOOKUP(B35,O35:P47,2,FALSE),"") -> SX | E35: = | F35: $ 228 | O35: Self-Monitored (no voice) | P35: SX | Q35: C | R35: USD | S35: =IFERROR(INDEX(BlendServicePrices[],MATCH(P35,BlendServicePrices[Blend Service Plans],0),MATCH($M$1,BlendServicePrices[#Headers],0)),"") -> 228
B36: Self-Monitored (no voice) + PTT | C36: è | D36: =IFERROR(VLOOKUP(B36,O36:P48,2,FALSE),"") -> SXP | E36: = | F36: $ 408 | O36: Self-Monitored (no voice) + PTT | P36: SXP | Q36: C | R36: USD | S36: =IFERROR(INDEX(BlendServicePrices[],MATCH(P36,BlendServicePrices[Blend Service Plans],0),MATCH($M$1,BlendServicePrices[#Headers],0)),"") -> 408
B37: Self-Monitored + Voice | C37: è | D37: =IFERROR(VLOOKUP(B37,O37:P48,2,FALSE),"") -> SV | E37: = | F37: $ 480 | O37: Self-Monitored + Voice | P37: SV | Q37: C | R37: USD | S37: =IFERROR(INDEX(BlendServicePrices[],MATCH(P37,BlendServicePrices[Blend Service Plans],0),MATCH($M$1,BlendServicePrices[#Headers],0)),"") -> 480
B38: Self-Monitored + Voice + PTT | C38: è | D38: =IFERROR(VLOOKUP(B38,O38:P49,2,FALSE),"") -> SVP | E38: = | F38: $ 660 | O38: Self-Monitored + Voice + PTT | P38: SVP | Q38: C | R38: USD | S38: =IFERROR(INDEX(BlendServicePrices[],MATCH(P38,BlendServicePrices[Blend Service Plans],0),MATCH($M$1,BlendServicePrices[#Headers],0)),"") -> 660
B39: Blackline 24/7 Monitored (no voice) | C39: è | D39: =IFERROR(VLOOKUP(B39,O39:P49,2,FALSE),"") -> BX | E39: = | F39: $ 468 | O39: Blackline 24/7 Monitored (no voice) | P39: BX | Q39: C | R39: USD | S39: =IFERROR(INDEX(BlendServicePrices[],MATCH(P39,BlendServicePrices[Blend Service Plans],0),MATCH($M$1,BlendServicePrices[#Headers],0)),"") -> 468
B40: Blackline 24/7 Monitored (no voice) + PTT | C40: è | D40: =IFERROR(VLOOKUP(B40,O40:P49,2,FALSE),"") -> BXP | E40: = | F40: $ 648 | O40: Blackline 24/7 Monitored (no voice) + PTT | P40: BXP | Q40: C | R40: USD | S40: =IFERROR(INDEX(BlendServicePrices[],MATCH(P40,BlendServicePrices[Blend Service Plans],0),MATCH($M$1,BlendServicePrices[#Headers],0)),"") -> 648
B41: Blackline 24/7 Monitored + Voice | C41: è | D41: =IFERROR(VLOOKUP(B41,O41:P49,2,FALSE),"") -> BV | E41: = | F41: $ 720 | O41: Blackline 24/7 Monitored + Voice | P41: BV | Q41: C | R41: USD | S41: =IFERROR(INDEX(BlendServicePrices[],MATCH(P41,BlendServicePrices[Blend Service Plans],0),MATCH($M$1,BlendServicePrices[#Headers],0)),"") -> 720
B42: Blackline 24/7 Monitored + Voice + PTT | C42: è | D42: =IFERROR(VLOOKUP(B42,O42:P49,2,FALSE),"") -> BVP | E42: = | F42: $ 900 | O42: Blackline 24/7 Monitored + Voice + PTT | P42: BVP | Q42: C | R42: USD | S42: =IFERROR(INDEX(BlendServicePrices[],MATCH(P42,BlendServicePrices[Blend Service Plans],0),MATCH($M$1,BlendServicePrices[#Headers],0)),"") -> 900
H43: - | L43: +
B44: Cartridge
A45: 1 | D45: Single Sensor | E45: = | F45: =SUM(S45:T45) -> $ 253 | L45: =S45 -> $ 253 | S45: =INDEX(BasePrices[],MATCH("1 Sensor Cartridge",BasePrices[Type],0),MATCH($M$1,BasePrices[#Headers],0))+ INDEX(ServicePrices[],MATCH("System Access",ServicePrices[Type],0),MATCH($M$1,ServicePrices[#Headers],0))*12 -> 253
L46: +
B47: Cartridge Type
B48: Single Sensor | C48: è | D48: S | H48: S
H49: -
B50: Toxic Sensor
B51: =_xlfn.VSTACK(O51:O69) -> HF | C51: =IF(B51=0,"","è") -> è | D51: =_xlfn.VSTACK(P51:P69) -> 2 | E51: =IF(B51=0,"","=") -> = | F51: =IFERROR(SUM(S51:S51),"") -> $ 420 | H51: H | L51: =VLOOKUP(H51,D51:F69,3,FALSE) -> $ 0 | O51: =_xlfn.LET( _xlpm.Dtype,G7Sensors[Type1],_xlpm.Curr,G7Sensors[Currency],_xlpm.Stype,H48,_xlpm.SCurr,M1, _xlpm.myCalculation,_xlfn.VSTACK(_xlfn._xlws.FILTER(G7Sensors[],(_xlpm.Dtype=_xlpm.Stype)*(_xlpm.Curr=_xlpm.SCurr))),_xlpm.myCalculation) -> HF | P51: 2 | Q51: S | R51: USD | S51: =INDEX(SensorPricing[],MATCH(P51,SensorPricing[Sensor],0),MATCH($M$1,SensorPricing[#Headers],0)) -> 420
B52: NH3 | C52: è | D52: A | E52: = | F52: $ 60 | O52: NH3 | P52: A | Q52: S | R52: USD | S52: =INDEX(SensorPricing[],MATCH(P52,SensorPricing[Sensor],0),MATCH($M$1,SensorPricing[#Headers],0)) -> 60
B53: High-range NH3 | C53: è | D53: B | E53: = | F53: $ 126 | O53: High-range NH3 | P53: B | Q53: S | R53: USD | S53: =INDEX(SensorPricing[],MATCH(P53,SensorPricing[Sensor],0),MATCH($M$1,SensorPricing[#Headers],0)) -> 126
B54: CO2 | C54: è | D54: C | E54: = | F54: $ 240 | O54: CO2 | P54: C | Q54: S | R54: USD | S54: =INDEX(SensorPricing[],MATCH(P54,SensorPricing[Sensor],0),MATCH($M$1,SensorPricing[#Headers],0)) -> 240
B55: O3 | C55: è | D55: E | E55: = | F55: $ 120 | O55: O3 | P55: E | Q55: S | R55: USD | S55: =INDEX(SensorPricing[],MATCH(P55,SensorPricing[Sensor],0),MATCH($M$1,SensorPricing[#Headers],0)) -> 120
B56: H2S | C56: è | D56: H | E56: = | F56: $ 0 | O56: H2S | P56: H | Q56: S | R56: USD | S56: =INDEX(SensorPricing[],MATCH(P56,SensorPricing[Sensor],0),MATCH($M$1,SensorPricing[#Headers],0)) -> 0
B57: High-range H2S | C57: è | D57: J | E57: = | F57: $ 120 | O57: High-range H2S | P57: J | Q57: S | R57: USD | S57: =INDEX(SensorPricing[],MATCH(P57,SensorPricing[Sensor],0),MATCH($M$1,SensorPricing[#Headers],0)) -> 120
B58: NO2 | C58: è | D58: K | E58: = | F58: $ 60 | O58: NO2 | P58: K | Q58: S | R58: USD | S58: =INDEX(SensorPricing[],MATCH(P58,SensorPricing[Sensor],0),MATCH($M$1,SensorPricing[#Headers],0)) -> 60
B59: Cl2 | C59: è | D59: L | E59: = | F59: $ 60 | O59: Cl2 | P59: L | Q59: S | R59: USD | S59: =INDEX(SensorPricing[],MATCH(P59,SensorPricing[Sensor],0),MATCH($M$1,SensorPricing[#Headers],0)) -> 60
B60: CO | C60: è | D60: M | E60: = | F60: $ 0 | O60: CO | P60: M | Q60: S | R60: USD | S60: =INDEX(SensorPricing[],MATCH(P60,SensorPricing[Sensor],0),MATCH($M$1,SensorPricing[#Headers],0)) -> 0
B61: HCN | C61: è | D61: N | E61: = | F61: $ 60 | O61: HCN | P61: N | Q61: S | R61: USD | S61: =INDEX(SensorPricing[],MATCH(P61,SensorPricing[Sensor],0),MATCH($M$1,SensorPricing[#Headers],0)) -> 60
B62: O2 | C62: è | D62: O | E62: = | F62: $ 0 | O62: O2 | P62: O | Q62: S | R62: USD | S62: =INDEX(SensorPricing[],MATCH(P62,SensorPricing[Sensor],0),MATCH($M$1,SensorPricing[#Headers],0)) -> 0
B63: CO-H | C63: è | D63: R | E63: = | F63: $ 0 | O63: CO-H | P63: R | Q63: S | R63: USD | S63: =INDEX(SensorPricing[],MATCH(P63,SensorPricing[Sensor],0),MATCH($M$1,SensorPricing[#Headers],0)) -> 0
B64: SO2 | C64: è | D64: S | E64: = | F64: $ 0 | O64: SO2 | P64: S | Q64: S | R64: USD | S64: =INDEX(SensorPricing[],MATCH(P64,SensorPricing[Sensor],0),MATCH($M$1,SensorPricing[#Headers],0)) -> 0
B65: High-range CO | C65: è | D65: T | E65: = | F65: $ 120 | O65: High-range CO | P65: T | Q65: S | R65: USD | S65: =INDEX(SensorPricing[],MATCH(P65,SensorPricing[Sensor],0),MATCH($M$1,SensorPricing[#Headers],0)) -> 120
B66: PID | C66: è | D66: V | E66: = | F66: $ 483 | O66: PID | P66: V | Q66: S | R66: USD | S66: =INDEX(SensorPricing[],MATCH(P66,SensorPricing[Sensor],0),MATCH($M$1,SensorPricing[#Headers],0)) -> 483
B67: ClO2 | C67: è | D67: W | E67: = | F67: $ 60 | O67: ClO2 | P67: W | Q67: S | R67: USD | S67: =INDEX(SensorPricing[],MATCH(P67,SensorPricing[Sensor],0),MATCH($M$1,SensorPricing[#Headers],0)) -> 60
B68: 0 | C68: =IF(B68=0,"","è") ->  | D68: 0 | E68: =IF(B68=0,"","=") ->  | S68: =INDEX(SensorPricing[],MATCH(P68,SensorPricing[Sensor],0),MATCH($M$1,SensorPricing[#Headers],0)) -> 
B69: 0 | C69: =IF(B69=0,"","è") ->  | D69: 0 | E69: =IF(B69=0,"","=") ->  | S69: =INDEX(SensorPricing[],MATCH(P69,SensorPricing[Sensor],0),MATCH($M$1,SensorPricing[#Headers],0)) -> 
H70: -
B71: Term
B72: One-Year | C72: è | D72: 1Y | H72: 1Y | R72: 1 | S72: 0%
B73: Two-Years | C73: è | D73: 2Y | R73: 2 | S73: 2%
B74: Three-Years | C74: è | D74: 3Y | R74: 3 | S74: 3%
B75: Four-Years | C75: è | D75: 4Y | R75: 4 | S75: 4%
B76: Five-Years | C76: è | D76: 5Y | R76: 5 | S76: 5%

Sheet G7 Multi-Gas Blend
M1: =Currency -> USD | P1: G7 Multi-Gas Blend
B2: G7 Multi-Gas Blend | M2: =PBYear -> 2025 | N2: Quick Links
M3: =Revision -> Effective February 2, 2026 Rev 2 | N3: Main Menu
M4: Blackline Safety Confidential | N4: Accessories
M5: All prices are an estimate - for a formal quote contact your local Blackline Safety representative
M6: Buying option not available in all countries. Please confirm with your local Blackline representative
F8: Device | H8: =CONCATENATE(H16,H20,"-",H24,"-",H27) -> G7C-Q-FHMO-NA2 | L8: =L16 -> $ 677 | M8: =M1&" upfront" -> USD upfront
F10: Cartridge + Service | H10: =CONCATENATE("SER-",H33,"-",H55,"-",J59,"-",H110) -> SER-XX-Q-FHMO-1Y | L10: =ROUNDUP(SUM(L33:L107)*(1-VLOOKUP(LEFT(H110,1),R110:S114,2,FALSE)),0) -> $ 380 | M10: =M1&" /year" -> USD /year
L12: =L10*(LEFT(H110,1)) -> $ 380 | M12: =M1&" /term" -> USD /term
B14: Device
B15: Buying Option | S15: Price
B16: Blend | C16: è | D16: G7 | H16: =D16 -> G7 | L16: =F17 -> $ 677
A17: 1 | D17: Device | E17: = | F17: =SUM(S17:S17) -> $ 677 | S17: =INDEX(BasePrices[],MATCH("G7 Blend Base Price",BasePrices[Type],0),MATCH($M$1,BasePrices[#Headers],0)) -> 677
B19: Connectivity
B20: Cellular | C20: è | D20: C | H20: C
B21: =IF(OR(M1="EUR",M1="GBP"),"","Satellite (900 MHz)*") -> Satellite (900 MHz)* | C21: =IF(B21="","","è") -> è | D21: =IF(OR(M1="EUR",M1="GBP"),"","X") -> X
H22: - | O22: =IF(OR(M1="EUR",M1="GBP"),"","*Bridge and satellite service plan required") -> *Bridge and satellite service plan required
B23: Cartridge
B24: Configured below | H24: =CONCATENATE(H55,"-",J59) -> Q-FHMO
H25: -
B26: Country Code
B27: =_xlfn.VSTACK(O27:O29) -> North America (3G/4G) - G7C | C27: =IF(B27="","","è") -> è | D27: =IFERROR(VLOOKUP(B27,Lookup!$F$3:$G$12,2,FALSE),"") -> NA2 | H27: NA2 | O27: =_xlfn.LET( _xlpm.Dtype,G7CountryCodes[Type],_xlpm.Curr,G7CountryCodes[Currency],_xlpm.SType,H20,_xlpm.SCurr,M1, _xlpm.myCalculation,_xlfn.VSTACK(_xlfn._xlws.FILTER(G7CountryCodes[],(_xlpm.Dtype=_xlpm.SType)*(_xlpm.Curr=_xlpm.SCurr))),_xlpm.myCalculation) -> North America (3G/4G) - G7C | P27: NA2 | Q27: C | R27: USD
B28: Outside of North America (3G/4G) - G7C | C28: =IF(B28=0,"","è") -> è | D28: =IFERROR(VLOOKUP(B28,Lookup!$F$3:$G$12,2,FALSE),"") -> EU2 | O28: Outside of North America (3G/4G) - G7C | P28: EU2 | Q28: C | R28: USD
B29: Brazil (3G/4G) - G7C | C29: =IF(B29=0,"","è") -> è | D29: =IFERROR(VLOOKUP(B29,Lookup!$F$3:$G$12,2,FALSE),"") -> BR2 | O29: Brazil (3G/4G) - G7C | P29: BR2 | Q29: C | R29: USD
B31: Cartridge + Service
B32: Service Plan
B33: =_xlfn.VSTACK(O33:O42) -> System Access | C33: =IF(B33=0,"","è") -> è | D33: =IFERROR(VLOOKUP(B33,O33:P42,2,FALSE),"") -> XX | E33: =IF(B33=0,"","=") -> = | F33: =S33 -> $ 0 | H33: XX | L33: =VLOOKUP(H33,D33:F42,3,FALSE) -> $ 0 | O33: =_xlfn.LET( _xlpm.Dtype,G7ServicePlans[Type],_xlpm.Curr,G7ServicePlans[Currency],_xlpm.Stype,H20,_xlpm.SCurr,M1, _xlpm.myCalculation,_xlfn.VSTACK(_xlfn._xlws.FILTER(G7ServicePlans[],(_xlpm.Dtype=_xlpm.Stype)*(_xlpm.Curr=_xlpm.SCurr))),_xlpm.myCalculation) -> System Access | P33: XX | Q33: C | R33: USD | S33: =IFERROR(INDEX(BlendServicePrices[],MATCH(P33,BlendServicePrices[Blend Service Plans],0),MATCH($M$1,BlendServicePrices[#Headers],0)),"") -> 0
B34: System Access + PTT | C34: è | D34: =IFERROR(VLOOKUP(B34,O34:P43,2,FALSE),"") -> XXP | E34: = | F34: =S34 -> $ 180 | O34: System Access + PTT | P34: XXP | Q34: C | R34: USD | S34: =IFERROR(INDEX(BlendServicePrices[],MATCH(P34,BlendServicePrices[Blend Service Plans],0),MATCH($M$1,BlendServicePrices[#Headers],0)),"") -> 180
B35: Self-Monitored (no voice) | C35: è | D35: =IFERROR(VLOOKUP(B35,O35:P54,2,FALSE),"") -> SX | E35: = | F35: $ 228 | O35: Self-Monitored (no voice) | P35: SX | Q35: C | R35: USD | S35: =IFERROR(INDEX(BlendServicePrices[],MATCH(P35,BlendServicePrices[Blend Service Plans],0),MATCH($M$1,BlendServicePrices[#Headers],0)),"") -> 228
B36: Self-Monitored (no voice) + PTT | C36: è | D36: SXP | E36: = | F36: $ 408 | O36: Self-Monitored (no voice) + PTT | P36: SXP | Q36: C | R36: USD | S36: =IFERROR(INDEX(BlendServicePrices[],MATCH(P36,BlendServicePrices[Blend Service Plans],0),MATCH($M$1,BlendServicePrices[#Headers],0)),"") -> 408
B37: Self-Monitored + Voice | C37: è | D37: SV | E37: = | F37: $ 480 | O37: Self-Monitored + Voice | P37: SV | Q37: C | R37: USD | S37: =IFERROR(INDEX(BlendServicePrices[],MATCH(P37,BlendServicePrices[Blend Service Plans],0),MATCH($M$1,BlendServicePrices[#Headers],0)),"") -> 480
B38: Self-Monitored + Voice + PTT | C38: è | D38: SVP | E38: = | F38: $ 660 | O38: Self-Monitored + Voice + PTT | P38: SVP | Q38: C | R38: USD | S38: =IFERROR(INDEX(BlendServicePrices[],MATCH(P38,BlendServicePrices[Blend Service Plans],0),MATCH($M$1,BlendServicePrices[#Headers],0)),"") -> 660
B39: Blackline 24/7 Monitored (no voice) | C39: è | D39: BX | E39: = | F39: $ 468 | O39: Blackline 24/7 Monitored (no voice) | P39: BX | Q39: C | R39: USD | S39: =IFERROR(INDEX(BlendServicePrices[],MATCH(P39,BlendServicePrices[Blend Service Plans],0),MATCH($M$1,BlendServicePrices[#Headers],0)),"") -> 468
B40: Blackline 24/7 Monitored (no voice) + PTT | C40: è | D40: BXP | E40: = | F40: $ 648 | O40: Blackline 24/7 Monitored (no voice) + PTT | P40: BXP | Q40: C | R40: USD | S40: =IFERROR(INDEX(BlendServicePrices[],MATCH(P40,BlendServicePrices[Blend Service Plans],0),MATCH($M$1,BlendServicePrices[#Headers],0)),"") -> 648
B41: Blackline 24/7 Monitored + Voice | C41: è | D41: BV | E41: = | F41: $ 720 | O41: Blackline 24/7 Monitored + Voice | P41: BV | Q41: C | R41: USD | S41: =IFERROR(INDEX(BlendServicePrices[],MATCH(P41,BlendServicePrices[Blend Service Plans],0),MATCH($M$1,BlendServicePrices[#Headers],0)),"") -> 720
B42: Blackline 24/7 Monitored + Voice + PTT | C42: è | D42: BVP | E42: = | F42: $ 900 | O42: Blackline 24/7 Monitored + Voice + PTT | P42: BVP | Q42: C | R42: USD | S42: =IFERROR(INDEX(BlendServicePrices[],MATCH(P42,BlendServicePrices[Blend Service Plans],0),MATCH($M$1,BlendServicePrices[#Headers],0)),"") -> 900
H43: - | L43: +
B44: Cartridge
A45: Q1 | D45: Multi 1-sensor | E45: = | F45: =SUM(S45:S45) -> $ 253 | L45: =VLOOKUP(Q63,A45:F52,6,FALSE) -> $ 380 | R45: 1 | S45: =INDEX(BasePrices[],MATCH(R45&" Sensor Cartridge",BasePrices[Type],0),MATCH($M$1,BasePrices[#Headers],0))+ INDEX(ServicePrices[],MATCH("System Access",ServicePrices[Type],0),MATCH($M$1,ServicePrices[#Headers],0))*12 -> 253
A46: Q2 | D46: Multi 2-sensor | E46: = | F46: =SUM(S46:S46) -> $ 306 | R46: 2 | S46: =INDEX(BasePrices[],MATCH(R46&" Sensor Cartridge",BasePrices[Type],0),MATCH($M$1,BasePrices[#Headers],0))+ INDEX(ServicePrices[],MATCH("System Access",ServicePrices[Type],0),MATCH($M$1,ServicePrices[#Headers],0))*12 -> 306
A47: Q3 | D47: Multi 3-sensor | E47: = | F47: $ 345 | R47: 3 | S47: =INDEX(BasePrices[],MATCH(R47&" Sensor Cartridge",BasePrices[Type],0),MATCH($M$1,BasePrices[#Headers],0))+ INDEX(ServicePrices[],MATCH("System Access",ServicePrices[Type],0),MATCH($M$1,ServicePrices[#Headers],0))*12 -> 345
A48: Q4 | D48: Multi 4-sensor | E48: = | F48: $ 380 | R48: 4 | S48: =INDEX(BasePrices[],MATCH(R48&" Sensor Cartridge",BasePrices[Type],0),MATCH($M$1,BasePrices[#Headers],0))+ INDEX(ServicePrices[],MATCH("System Access",ServicePrices[Type],0),MATCH($M$1,ServicePrices[#Headers],0))*12 -> 380
A49: P1 | D49: Multi 1-sensor pump | E49: = | F49: $ 435 | R49: 1 | S49: =INDEX(BasePrices[],MATCH(R49&" Sensor Cartridge",BasePrices[Type],0),MATCH($M$1,BasePrices[#Headers],0))+ INDEX(BasePrices[],MATCH("G7 Pump",BasePrices[Type],0),MATCH($M$1,BasePrices[#Headers],0))+ INDEX(ServicePrices[],MATCH("System Access",ServicePrices[Type],0),MATCH($M$1,ServicePrices[#Headers],0))*12 -> 435
A50: P2 | D50: Multi 2-sensor pump | E50: = | F50: $ 488 | R50: 2 | S50: =INDEX(BasePrices[],MATCH(R50&" Sensor Cartridge",BasePrices[Type],0),MATCH($M$1,BasePrices[#Headers],0))+ INDEX(BasePrices[],MATCH("G7 Pump",BasePrices[Type],0),MATCH($M$1,BasePrices[#Headers],0))+ INDEX(ServicePrices[],MATCH("System Access",ServicePrices[Type],0),MATCH($M$1,ServicePrices[#Headers],0))*12 -> 488
A51: P3 | D51: Multi 3-sensor pump | E51: = | F51: $ 527 | R51: 3 | S51: =INDEX(BasePrices[],MATCH(R51&" Sensor Cartridge",BasePrices[Type],0),MATCH($M$1,BasePrices[#Headers],0))+ INDEX(BasePrices[],MATCH("G7 Pump",BasePrices[Type],0),MATCH($M$1,BasePrices[#Headers],0))+ INDEX(ServicePrices[],MATCH("System Access",ServicePrices[Type],0),MATCH($M$1,ServicePrices[#Headers],0))*12 -> 527
A52: P4 | D52: Multi 4-sensor pump | E52: = | F52: $ 562 | R52: 4 | S52: =INDEX(BasePrices[],MATCH(R52&" Sensor Cartridge",BasePrices[Type],0),MATCH($M$1,BasePrices[#Headers],0))+ INDEX(BasePrices[],MATCH("G7 Pump",BasePrices[Type],0),MATCH($M$1,BasePrices[#Headers],0))+ INDEX(ServicePrices[],MATCH("System Access",ServicePrices[Type],0),MATCH($M$1,ServicePrices[#Headers],0))*12 -> 562
L53: +
B54: Cartridge Type
B55: Diffusion | C55: è | D55: Q | H55: Q
B56: Pump | C56: è | D56: P
H57: -
B58: Combustible Sensor
B59: LEL-IR | C59: è | D59: I | E59: = | F59: =SUM(S59:S59) -> $ 60 | H59: F | J59: =CONCATENATE(P59,P60,P61,P62) -> FHMO | L59: =VLOOKUP(H59,D59:F61,3,FALSE) -> $ 0 | O59: =H59 -> F | P59: =_xlfn._xlws.SORT(O59:O62) -> F | Q59: =IF(P59="X",1,0) -> 0 | S59: =INDEX(SensorPricing[],MATCH(D59,SensorPricing[Sensor],0),MATCH($M$1,SensorPricing[#Headers],0)) -> 60
B60: LEL-MPS | C60: è | D60: F | E60: = | F60: =SUM(S60:S60) -> $ 0 | O60: =H64 -> H | P60: H | Q60: =IF(P60="X",1,0) -> 0 | S60: =INDEX(SensorPricing[],MATCH(D60,SensorPricing[Sensor],0),MATCH($M$1,SensorPricing[#Headers],0)) -> 0
B61: None | C61: è | D61: X | E61: = | F61: =SUM(S61:S61) -> $ 0 | O61: =H85 -> M | P61: M | Q61: =IF(P61="X",1,0) -> 0 | S61: =INDEX(SensorPricing[],MATCH(D61,SensorPricing[Sensor],0),MATCH($M$1,SensorPricing[#Headers],0)) -> 0
L62: + | O62: =H106 -> O | P62: O | Q62: =IF(P62="X",1,0) -> 0
B63: Toxic Sensor #1 | Q63: =H55&4-SUM(Q59:Q62) -> Q4
B64: =_xlfn.VSTACK(O64:O82) -> HF | C64: =IF(B64=0,"","è") -> è | D64: =_xlfn.VSTACK(P64:P82) -> 2 | E64: =IF(B64=0,"","=") -> = | F64: =IFERROR(SUM(S64:S64),"") -> $ 420 | H64: H | L64: =VLOOKUP(H64,D64:F82,3,FALSE) -> $ 0 | O64: =_xlfn.LET( _xlpm.Dtype,G7Sensors[Type1],_xlpm.Curr,G7Sensors[Currency],_xlpm.Stype,H55&1,_xlpm.SCurr,M1, _xlpm.myCalculation,_xlfn.VSTACK(_xlfn._xlws.FILTER(G7Sensors[],(_xlpm.Dtype=_xlpm.Stype)*(_xlpm.Curr=_xlpm.SCurr))),_xlpm.myCalculation) -> HF | P64: 2 | Q64: Q1 | R64: USD | S64: =INDEX(SensorPricing[],MATCH(D64,SensorPricing[Sensor],0),MATCH($M$1,SensorPricing[#Headers],0)) -> 420
B65: NH3 | C65: è | D65: A | E65: = | F65: $ 60 | O65: NH3 | P65: A | Q65: Q1 | R65: USD | S65: =INDEX(SensorPricing[],MATCH(D65,SensorPricing[Sensor],0),MATCH($M$1,SensorPricing[#Headers],0)) -> 60
B66: High-range NH3 | C66: è | D66: B | E66: = | F66: $ 126 | O66: High-range NH3 | P66: B | Q66: Q1 | R66: USD | S66: =INDEX(SensorPricing[],MATCH(D66,SensorPricing[Sensor],0),MATCH($M$1,SensorPricing[#Headers],0)) -> 126
B67: CO2 | C67: è | D67: C | E67: = | F67: $ 240 | O67: CO2 | P67: C | Q67: Q1 | R67: USD | S67: =INDEX(SensorPricing[],MATCH(D67,SensorPricing[Sensor],0),MATCH($M$1,SensorPricing[#Headers],0)) -> 240
B68: O3 | C68: è | D68: E | E68: = | F68: $ 120 | O68: O3 | P68: E | Q68: Q1 | R68: USD | S68: =INDEX(SensorPricing[],MATCH(D68,SensorPricing[Sensor],0),MATCH($M$1,SensorPricing[#Headers],0)) -> 120
B69: H2S | C69: è | D69: H | E69: = | F69: $ 0 | O69: H2S | P69: H | Q69: Q1 | R69: USD | S69: =INDEX(SensorPricing[],MATCH(D69,SensorPricing[Sensor],0),MATCH($M$1,SensorPricing[#Headers],0)) -> 0
B70: High-range H2S | C70: è | D70: J | E70: = | F70: $ 120 | O70: High-range H2S | P70: J | Q70: Q1 | R70: USD | S70: =INDEX(SensorPricing[],MATCH(D70,SensorPricing[Sensor],0),MATCH($M$1,SensorPricing[#Headers],0)) -> 120
B71: NO2 | C71: è | D71: K | E71: = | F71: $ 60 | O71: NO2 | P71: K | Q71: Q1 | R71: USD | S71: =INDEX(SensorPricing[],MATCH(D71,SensorPricing[Sensor],0),MATCH($M$1,SensorPricing[#Headers],0)) -> 60
B72: Cl2 | C72: è | D72: L | E72: = | F72: $ 60 | O72: Cl2 | P72: L | Q72: Q1 | R72: USD | S72: =INDEX(SensorPricing[],MATCH(D72,SensorPricing[Sensor],0),MATCH($M$1,SensorPricing[#Headers],0)) -> 60
B73: CO | C73: è | D73: M | E73: = | F73: $ 0 | O73: CO | P73: M | Q73: Q1 | R73: USD | S73: =INDEX(SensorPricing[],MATCH(D73,SensorPricing[Sensor],0),MATCH($M$1,SensorPricing[#Headers],0)) -> 0
B74: HCN | C74: è | D74: N | E74: = | F74: $ 60 | O74: HCN | P74: N | Q74: Q1 | R74: USD | S74: =INDEX(SensorPricing[],MATCH(D74,SensorPricing[Sensor],0),MATCH($M$1,SensorPricing[#Headers],0)) -> 60
B75: CO-H | C75: è | D75: R | E75: = | F75: $ 0 | O75: CO-H | P75: R | Q75: Q1 | R75: USD | S75: =INDEX(SensorPricing[],MATCH(D75,SensorPricing[Sensor],0),MATCH($M$1,SensorPricing[#Headers],0)) -> 0
B76: SO2 | C76: è | D76: S | E76: = | F76: $ 0 | O76: SO2 | P76: S | Q76: Q1 | R76: USD | S76: =INDEX(SensorPricing[],MATCH(D76,SensorPricing[Sensor],0),MATCH($M$1,SensorPricing[#Headers],0)) -> 0
B77: High-range CO | C77: è | D77: T | E77: = | F77: $ 120 | O77: High-range CO | P77: T | Q77: Q1 | R77: USD | S77: =INDEX(SensorPricing[],MATCH(D77,SensorPricing[Sensor],0),MATCH($M$1,SensorPricing[#Headers],0)) -> 120
B78: PID | C78: è | D78: V | E78: = | F78: $ 483 | O78: PID | P78: V | Q78: Q1 | R78: USD | S78: =INDEX(SensorPricing[],MATCH(D78,SensorPricing[Sensor],0),MATCH($M$1,SensorPricing[#Headers],0)) -> 483
B79: ClO2 | C79: è | D79: W | E79: = | F79: $ 60 | O79: ClO2 | P79: W | Q79: Q1 | R79: USD | S79: =INDEX(SensorPricing[],MATCH(D79,SensorPricing[Sensor],0),MATCH($M$1,SensorPricing[#Headers],0)) -> 60
B80: No Sensor | C80: è | D80: X | E80: = | F80: $ 0 | O80: No Sensor | P80: X | Q80: Q1 | R80: USD | S80: =INDEX(SensorPricing[],MATCH(D80,SensorPricing[Sensor],0),MATCH($M$1,SensorPricing[#Headers],0)) -> 0
B81: 0 | C81: =IF(B81=0,"","è") ->  | D81: 0 | E81: =IF(B81=0,"","=") ->  | S81: =INDEX(SensorPricing[],MATCH(D81,SensorPricing[Sensor],0),MATCH($M$1,SensorPricing[#Headers],0)) -> 
B82: 0 | C82: =IF(B82=0,"","è") ->  | D82: 0 | E82: =IF(B82=0,"","=") ->  | S82: =INDEX(SensorPricing[],MATCH(D82,SensorPricing[Sensor],0),MATCH($M$1,SensorPricing[#Headers],0)) -> 
L83: +
B84: Toxic Sensor #2
B85: =_xlfn.VSTACK(O85:O103) -> HF | C85: =IF(B85=0,"","è") -> è | D85: =_xlfn.VSTACK(P85:P103) -> 2 | E85: =IF(B85=0,"","=") -> = | F85: =IFERROR(SUM(S85:S85),"") -> $ 420 | H85: M | L85: =VLOOKUP(H85,D85:F103,3,FALSE) -> $ 0 | O85: =_xlfn.LET( _xlpm.Dtype,G7Sensors[Type1],_xlpm.Curr,G7Sensors[Currency],_xlpm.Stype,H55&2,_xlpm.SCurr,M1, _xlpm.myCalculation,_xlfn.VSTACK(_xlfn._xlws.FILTER(G7Sensors[],(_xlpm.Dtype=_xlpm.Stype)*(_xlpm.Curr=_xlpm.SCurr))),_xlpm.myCalculation) -> HF | P85: 2 | Q85: Q2 | R85: USD | S85: =INDEX(SensorPricing[],MATCH(D85,SensorPricing[Sensor],0),MATCH($M$1,SensorPricing[#Headers],0)) -> 420
B86: NH3 | C86: è | D86: A | E86: = | F86: $ 60 | O86: NH3 | P86: A | Q86: Q2 | R86: USD | S86: =INDEX(SensorPricing[],MATCH(D86,SensorPricing[Sensor],0),MATCH($M$1,SensorPricing[#Headers],0)) -> 60
B87: High-range NH3 | C87: è | D87: B | E87: = | F87: $ 126 | O87: High-range NH3 | P87: B | Q87: Q2 | R87: USD | S87: =INDEX(SensorPricing[],MATCH(D87,SensorPricing[Sensor],0),MATCH($M$1,SensorPricing[#Headers],0)) -> 126
B88: COSH | C88: è | D88: D | E88: = | F88: $ 60 | O88: COSH | P88: D | Q88: Q2 | R88: USD | S88: =INDEX(SensorPricing[],MATCH(D88,SensorPricing[Sensor],0),MATCH($M$1,SensorPricing[#Headers],0)) -> 60
B89: O3 | C89: è | D89: E | E89: = | F89: $ 120 | O89: O3 | P89: E | Q89: Q2 | R89: USD | S89: =INDEX(SensorPricing[],MATCH(D89,SensorPricing[Sensor],0),MATCH($M$1,SensorPricing[#Headers],0)) -> 120
B90: H2S | C90: è | D90: H | E90: = | F90: $ 0 | O90: H2S | P90: H | Q90: Q2 | R90: USD | S90: =INDEX(SensorPricing[],MATCH(D90,SensorPricing[Sensor],0),MATCH($M$1,SensorPricing[#Headers],0)) -> 0
B91: High-range H2S | C91: è | D91: J | E91: = | F91: $ 120 | O91: High-range H2S | P91: J | Q91: Q2 | R91: USD | S91: =INDEX(SensorPricing[],MATCH(D91,SensorPricing[Sensor],0),MATCH($M$1,SensorPricing[#Headers],0)) -> 120
B92: NO2 | C92: è | D92: K | E92: = | F92: $ 60 | O92: NO2 | P92: K | Q92: Q2 | R92: USD | S92: =INDEX(SensorPricing[],MATCH(D92,SensorPricing[Sensor],0),MATCH($M$1,SensorPricing[#Headers],0)) -> 60
B93: Cl2 | C93: è | D93: L | E93: = | F93: $ 60 | O93: Cl2 | P93: L | Q93: Q2 | R93: USD | S93: =INDEX(SensorPricing[],MATCH(D93,SensorPricing[Sensor],0),MATCH($M$1,SensorPricing[#Headers],0)) -> 60
B94: CO | C94: è | D94: M | E94: = | F94: $ 0 | O94: CO | P94: M | Q94: Q2 | R94: USD | S94: =INDEX(SensorPricing[],MATCH(D94,SensorPricing[Sensor],0),MATCH($M$1,SensorPricing[#Headers],0)) -> 0
B95: HCN | C95: è | D95: N | E95: = | F95: $ 60 | O95: HCN | P95: N | Q95: Q2 | R95: USD | S95: =INDEX(SensorPricing[],MATCH(D95,SensorPricing[Sensor],0),MATCH($M$1,SensorPricing[#Headers],0)) -> 60
B96: CO-H | C96: =IF($B$96=0,"","è") -> è | D96: R | E96: =IF($B$96=0,"","=") -> = | F96: $ 0 | O96: CO-H | P96: R | Q96: Q2 | R96: USD | S96: =INDEX(SensorPricing[],MATCH(D96,SensorPricing[Sensor],0),MATCH($M$1,SensorPricing[#Headers],0)) -> 0
B97: SO2 | C97: è | D97: S | E97: = | F97: $ 0 | O97: SO2 | P97: S | Q97: Q2 | R97: USD | S97: =INDEX(SensorPricing[],MATCH(D97,SensorPricing[Sensor],0),MATCH($M$1,SensorPricing[#Headers],0)) -> 0
B98: High-range CO | C98: è | D98: T | E98: = | F98: $ 120 | O98: High-range CO | P98: T | Q98: Q2 | R98: USD | S98: =INDEX(SensorPricing[],MATCH(D98,SensorPricing[Sensor],0),MATCH($M$1,SensorPricing[#Headers],0)) -> 120
B99: ClO2 | C99: è | D99: W | E99: = | F99: $ 60 | O99: ClO2 | P99: W | Q99: Q2 | R99: USD | S99: =INDEX(SensorPricing[],MATCH(D99,SensorPricing[Sensor],0),MATCH($M$1,SensorPricing[#Headers],0)) -> 60
B100: No Sensor | C100: è | D100: X | E100: = | F100: $ 0 | O100: No Sensor | P100: X | Q100: Q2 | R100: USD | S100: =INDEX(SensorPricing[],MATCH(D100,SensorPricing[Sensor],0),MATCH($M$1,SensorPricing[#Headers],0)) -> 0
B101: 0 | D101: 0 | S101: =INDEX(SensorPricing[],MATCH(D101,SensorPricing[Sensor],0),MATCH($M$1,SensorPricing[#Headers],0)) -> 
B102: 0 | D102: 0 | S102: =INDEX(SensorPricing[],MATCH(D102,SensorPricing[Sensor],0),MATCH($M$1,SensorPricing[#Headers],0)) -> 
B103: 0 | D103: 0 | S103: =INDEX(SensorPricing[],MATCH(D103,SensorPricing[Sensor],0),MATCH($M$1,SensorPricing[#Headers],0)) -> 
L104: +
B105: Oxygen Sensor
B106: =_xlfn.VSTACK(O106:O107) -> O2 | C106: =IF(B106=0,"","è") -> è | D106: =_xlfn.VSTACK(P106:P107) -> O | E106: =IF(B106=0,"","=") -> = | F106: =IFERROR(SUM(S106:T106),"") -> $ 0 | H106: O | L106: =VLOOKUP(H106,D106:F107,3,FALSE) -> $ 0 | O106: =_xlfn._xlws.FILTER(_xlfn._xlws.FILTER(Oxygen[],Oxygen[Type]=H59),{1,1,0}) -> O2 | P106: O | S106: =INDEX(SensorPricing[],MATCH(D106,SensorPricing[Sensor],0),MATCH($M$1,SensorPricing[#Headers],0)) -> 0
B107: 0 | D107: 0 | F107: =IFERROR(SUM(S107:T107),"") ->  | S107: =INDEX(SensorPricing[],MATCH(D107,SensorPricing[Sensor],0),MATCH($M$1,SensorPricing[#Headers],0)) -> 
H108: -
B109: Term
B110: One-Year | C110: è | D110: 1Y | H110: 1Y | R110: 1 | S110: 0%
B111: Two-Years | C111: è | D111: 2Y | R111: 2 | S111: 2%
B112: Three-Years | C112: è | D112: 3Y | R112: 3 | S112: 3%
B113: Four-Years | C113: è | D113: 4Y | R113: 4 | S113: 4%
B114: Five-Years | C114: è | D114: 5Y | R114: 5 | S114: 5%

Sheet G7 Lone Worker Lease
M1: =Currency -> USD | P1: G7 Lone Worker Lease
B2: G7 Lone Worker Lease | M2: =PBYear -> 2025 | N2: Quick Links
M3: =Revision -> Effective February 2, 2026 Rev 2 | N3: Main Menu
M4: Blackline Safety Confidential | N4: Accessories
M5: All prices are an estimate - for a formal quote contact your local Blackline Safety representative
M6: Buying option not available in all countries. Please confirm with your local Blackline representative
F8: =CONCATENATE(H15,"-",H18,"-",H30,H33,"-",H37,"-",H40,"-",H45) -> CMP-XX-G7C-Z-NA2-4Y | L8: =L18+L37 -> $ 33 | M8: =M1&" / mo" -> USD / mo
F12: Additional Cartridge | H12: =CONCATENATE(H15,"-CART-",H37,"-",H45,"-R") -> CMP-CART-Z-4Y-R | L12: =T39 -> $ 4 | M12: =M1&" / mo" -> USD / mo
B14: Buying Option | S14: Price | T14: Addl Cart
B15: Lease | C15: è | D15: CMP | H15: =D15 -> CMP
H16: -
B17: Service Plan
B18: =_xlfn.VSTACK(O18:O27) -> System Access | C18: =IF(B18=0,"","è") -> è | D18: =IFERROR(VLOOKUP(B18,O18:P27,2,FALSE),"") -> XX | E18: =IF(B18=0,"","=") -> = | F18: =S18 -> $ 0 | H18: XX | L18: =VLOOKUP(H18,D18:F27,3,FALSE) -> $ 0 | O18: =_xlfn.LET( _xlpm.Dtype,G7ServicePlans[Type],_xlpm.Curr,G7ServicePlans[Currency],_xlpm.Stype,H33,_xlpm.SCurr,M1, _xlpm.myCalculation,_xlfn.VSTACK(_xlfn._xlws.FILTER(G7ServicePlans[],(_xlpm.Dtype=_xlpm.Stype)*(_xlpm.Curr=_xlpm.SCurr))),_xlpm.myCalculation) -> System Access | P18: XX | Q18: C | R18: USD | S18: =IFERROR(INDEX(LeaseServicePrices[],MATCH(P18,LeaseServicePrices[Lease Service Plans],0),MATCH($M$1,LeaseServicePrices[#Headers],0)),"") -> 0
B19: System Access + PTT | C19: è | D19: =IFERROR(VLOOKUP(B19,O19:P27,2,FALSE),"") -> XXP | E19: = | F19: =S19 -> $ 18 | O19: System Access + PTT | P19: XXP | Q19: C | R19: USD | S19: =IFERROR(INDEX(LeaseServicePrices[],MATCH(P19,LeaseServicePrices[Lease Service Plans],0),MATCH($M$1,LeaseServicePrices[#Headers],0)),"") -> 18
B20: Self-Monitored (no voice) | C20: è | D20: =IFERROR(VLOOKUP(B20,O20:P36,2,FALSE),"") -> SX | E20: = | F20: $ 23 | O20: Self-Monitored (no voice) | P20: SX | Q20: C | R20: USD | S20: =IFERROR(INDEX(LeaseServicePrices[],MATCH(P20,LeaseServicePrices[Lease Service Plans],0),MATCH($M$1,LeaseServicePrices[#Headers],0)),"") -> 23
B21: Self-Monitored (no voice) + PTT | C21: è | D21: =IFERROR(VLOOKUP(B21,O21:P37,2,FALSE),"") -> SXP | E21: = | F21: $ 41 | O21: Self-Monitored (no voice) + PTT | P21: SXP | Q21: C | R21: USD | S21: =IFERROR(INDEX(LeaseServicePrices[],MATCH(P21,LeaseServicePrices[Lease Service Plans],0),MATCH($M$1,LeaseServicePrices[#Headers],0)),"") -> 41
B22: Self-Monitored + Voice | C22: è | D22: =IFERROR(VLOOKUP(B22,O22:P37,2,FALSE),"") -> SV | E22: = | F22: $ 48 | O22: Self-Monitored + Voice | P22: SV | Q22: C | R22: USD | S22: =IFERROR(INDEX(LeaseServicePrices[],MATCH(P22,LeaseServicePrices[Lease Service Plans],0),MATCH($M$1,LeaseServicePrices[#Headers],0)),"") -> 48
B23: Self-Monitored + Voice + PTT | C23: è | D23: =IFERROR(VLOOKUP(B23,O23:P38,2,FALSE),"") -> SVP | E23: = | F23: $ 66 | O23: Self-Monitored + Voice + PTT | P23: SVP | Q23: C | R23: USD | S23: =IFERROR(INDEX(LeaseServicePrices[],MATCH(P23,LeaseServicePrices[Lease Service Plans],0),MATCH($M$1,LeaseServicePrices[#Headers],0)),"") -> 66
B24: Blackline 24/7 Monitored (no voice) | C24: è | D24: =IFERROR(VLOOKUP(B24,O24:P38,2,FALSE),"") -> BX | E24: = | F24: $ 47 | O24: Blackline 24/7 Monitored (no voice) | P24: BX | Q24: C | R24: USD | S24: =IFERROR(INDEX(LeaseServicePrices[],MATCH(P24,LeaseServicePrices[Lease Service Plans],0),MATCH($M$1,LeaseServicePrices[#Headers],0)),"") -> 47
B25: Blackline 24/7 Monitored (no voice) + PTT | C25: è | D25: =IFERROR(VLOOKUP(B25,O25:P38,2,FALSE),"") -> BXP | E25: = | F25: $ 65 | O25: Blackline 24/7 Monitored (no voice) + PTT | P25: BXP | Q25: C | R25: USD | S25: =IFERROR(INDEX(LeaseServicePrices[],MATCH(P25,LeaseServicePrices[Lease Service Plans],0),MATCH($M$1,LeaseServicePrices[#Headers],0)),"") -> 65
B26: Blackline 24/7 Monitored + Voice | C26: è | D26: =IFERROR(VLOOKUP(B26,O26:P38,2,FALSE),"") -> BV | E26: = | F26: $ 72 | O26: Blackline 24/7 Monitored + Voice | P26: BV | Q26: C | R26: USD | S26: =IFERROR(INDEX(LeaseServicePrices[],MATCH(P26,LeaseServicePrices[Lease Service Plans],0),MATCH($M$1,LeaseServicePrices[#Headers],0)),"") -> 72
B27: Blackline 24/7 Monitored + Voice + PTT | C27: è | D27: =IFERROR(VLOOKUP(B27,O27:P38,2,FALSE),"") -> BVP | E27: = | F27: $ 90 | O27: Blackline 24/7 Monitored + Voice + PTT | P27: BVP | Q27: C | R27: USD | S27: =IFERROR(INDEX(LeaseServicePrices[],MATCH(P27,LeaseServicePrices[Lease Service Plans],0),MATCH($M$1,LeaseServicePrices[#Headers],0)),"") -> 90
H28: -
B29: Device Type
B30: G7 Device | C30: è | D30: G7 | H30: =D30 -> G7
B32: Connectivity
B33: Cellular | C33: è | D33: C | H33: C
B34: =IF(OR(M1="EUR",M1="GBP"),"","Satellite (900 MHz)*") -> Satellite (900 MHz)* | C34: =IF(B34="","","è") -> è | D34: =IF(OR(M1="EUR",M1="GBP"),"","X") -> X
H35: - | O35: =IF(OR(M1="EUR",M1="GBP"),"","*Bridge and satellite service plan required") -> *Bridge and satellite service plan required
B36: Cartridge Type
B37: Lone Worker | C37: è | D37: Z | H37: Z | L37: =S37 -> $ 33 | S37: =ROUND( (INDEX(BasePrices[],MATCH("G7 Purchase Base Price",BasePrices[Type],0),MATCH($M$1,BasePrices[#Headers],0))+ INDEX(ServicePrices[],MATCH("System Access",ServicePrices[Type],0),MATCH($M$1,ServicePrices[#Headers],0))*12*LeaseYears+ INDEX(BasePrices[],MATCH("G7 Warranty Base Price",BasePrices[Type],0),MATCH($M$1,BasePrices[#Headers],0))*(LeaseYears-2))* Lease_Factor/LeaseMonths,0) -> 33 | T37: =INDEX(BasePrices[],MATCH("Standard Cartridge",BasePrices[Type],0),MATCH($M$1,BasePrices[#Headers],0)) -> 47
H38: - | T38: =IF(H45="3Y",3,3.5) -> 3.5
B39: Country Code | T39: =ROUND(T37*T38*Lease_Factor/LeaseMonths,0) -> 4
B40: =_xlfn.VSTACK(O40:O42) -> North America (3G/4G) - G7C | C40: =IF(B40="","","è") -> è | D40: =IFERROR(VLOOKUP(B40,Lookup!$F$3:$G$12,2,FALSE),"") -> NA2 | H40: NA2 | O40: =_xlfn.LET( _xlpm.Dtype,G7CountryCodes[Type],_xlpm.Curr,G7CountryCodes[Currency],_xlpm.SType,H33,_xlpm.SCurr,M1, _xlpm.myCalculation,_xlfn.VSTACK(_xlfn._xlws.FILTER(G7CountryCodes[],(_xlpm.Dtype=_xlpm.SType)*(_xlpm.Curr=_xlpm.SCurr))),_xlpm.myCalculation) -> North America (3G/4G) - G7C | P40: NA2 | Q40: C | R40: USD
B41: Outside of North America (3G/4G) - G7C | C41: =IF(B41=0,"","è") -> è | D41: =IFERROR(VLOOKUP(B41,Lookup!$F$3:$G$12,2,FALSE),"") -> EU2 | O41: Outside of North America (3G/4G) - G7C | P41: EU2 | Q41: C | R41: USD
B42: Brazil (3G/4G) - G7C | C42: =IF(B42=0,"","è") -> è | D42: =IFERROR(VLOOKUP(B42,Lookup!$F$3:$G$12,2,FALSE),"") -> BR2 | O42: Brazil (3G/4G) - G7C | P42: BR2 | Q42: C | R42: USD
H43: -
B44: Term
B45: Three-Years | C45: è | D45: 3Y | H45: 4Y | R45: =LEFT(H45,1) -> 4 | S45: =LEFT(H45,1)*12 -> 48
B46: Four-Years | C46: è | D46: 4Y

Sheet G7 Single-Gas Lease
M1: =Currency -> USD | P1: G7 Single-Gas Lease
B2: G7 Single-Gas Lease | M2: =PBYear -> 2025 | N2: Quick Links
M3: =Revision -> Effective February 2, 2026 Rev 2 | N3: Main Menu
M4: Blackline Safety Confidential | N4: Accessories
M5: All prices are an estimate - for a formal quote contact your local Blackline Safety representative
M6: Buying option not available in all countries. Please confirm with your local Blackline representative
F8: =CONCATENATE(H15,"-",H18,"-",H30,H33,"-",H37,"-",H40,"-",H61,"-",H66) -> CMP-XX-G7C-S-H-NA2-4Y | L8: =L18+L37+L40 -> $ 38 | M8: =M1&" / mo" -> USD / mo
F12: Additional Cartridge | H12: =CONCATENATE(H15,"-CART-",H37,"-",H40,"-",H66,"-R") -> CMP-CART-S-H-4Y-R | L12: =T40 -> $ 6 | M12: =M1&" / mo" -> USD / mo
B14: Buying Option | S14: Price | T14: Addl Cart
B15: Lease | C15: è | D15: CMP | H15: =D15 -> CMP
H16: -
B17: Service Plan
B18: =_xlfn.VSTACK(O18:O27) -> System Access | C18: =IF(B18=0,"","è") -> è | D18: =IFERROR(VLOOKUP(B18,O18:P27,2,FALSE),"") -> XX | E18: =IF(B18=0,"","=") -> = | F18: =S18 -> $ 0 | H18: XX | L18: =VLOOKUP(H18,D18:F27,3,FALSE) -> $ 0 | O18: =_xlfn.LET( _xlpm.Dtype,G7ServicePlans[Type],_xlpm.Curr,G7ServicePlans[Currency],_xlpm.SType,H33,_xlpm.SCurr,M1, _xlpm.myCalculation,_xlfn.VSTACK(_xlfn._xlws.FILTER(G7ServicePlans[],(_xlpm.Dtype=_xlpm.SType)*(_xlpm.Curr=_xlpm.SCurr))),_xlpm.myCalculation) -> System Access | P18: XX | Q18: C | R18: USD | S18: =IFERROR(INDEX(LeaseServicePrices[],MATCH(P18,LeaseServicePrices[Lease Service Plans],0),MATCH($M$1,LeaseServicePrices[#Headers],0)),"") -> 0
B19: System Access + PTT | C19: è | D19: =IFERROR(VLOOKUP(B19,O19:P28,2,FALSE),"") -> XXP | E19: = | F19: =S19 -> $ 18 | O19: System Access + PTT | P19: XXP | Q19: C | R19: USD | S19: =IFERROR(INDEX(LeaseServicePrices[],MATCH(P19,LeaseServicePrices[Lease Service Plans],0),MATCH($M$1,LeaseServicePrices[#Headers],0)),"") -> 18
B20: Self-Monitored (no voice) | C20: è | D20: =IFERROR(VLOOKUP(B20,O20:P36,2,FALSE),"") -> SX | E20: = | F20: $ 23 | O20: Self-Monitored (no voice) | P20: SX | Q20: C | R20: USD | S20: =IFERROR(INDEX(LeaseServicePrices[],MATCH(P20,LeaseServicePrices[Lease Service Plans],0),MATCH($M$1,LeaseServicePrices[#Headers],0)),"") -> 23
B21: Self-Monitored (no voice) + PTT | C21: è | D21: =IFERROR(VLOOKUP(B21,O21:P37,2,FALSE),"") -> SXP | E21: = | F21: $ 41 | O21: Self-Monitored (no voice) + PTT | P21: SXP | Q21: C | R21: USD | S21: =IFERROR(INDEX(LeaseServicePrices[],MATCH(P21,LeaseServicePrices[Lease Service Plans],0),MATCH($M$1,LeaseServicePrices[#Headers],0)),"") -> 41
B22: Self-Monitored + Voice | C22: è | D22: =IFERROR(VLOOKUP(B22,O22:P37,2,FALSE),"") -> SV | E22: = | F22: $ 48 | O22: Self-Monitored + Voice | P22: SV | Q22: C | R22: USD | S22: =IFERROR(INDEX(LeaseServicePrices[],MATCH(P22,LeaseServicePrices[Lease Service Plans],0),MATCH($M$1,LeaseServicePrices[#Headers],0)),"") -> 48
B23: Self-Monitored + Voice + PTT | C23: è | D23: =IFERROR(VLOOKUP(B23,O23:P38,2,FALSE),"") -> SVP | E23: = | F23: $ 66 | O23: Self-Monitored + Voice + PTT | P23: SVP | Q23: C | R23: USD | S23: =IFERROR(INDEX(LeaseServicePrices[],MATCH(P23,LeaseServicePrices[Lease Service Plans],0),MATCH($M$1,LeaseServicePrices[#Headers],0)),"") -> 66
B24: Blackline 24/7 Monitored (no voice) | C24: è | D24: =IFERROR(VLOOKUP(B24,O24:P38,2,FALSE),"") -> BX | E24: = | F24: $ 47 | O24: Blackline 24/7 Monitored (no voice) | P24: BX | Q24: C | R24: USD | S24: =IFERROR(INDEX(LeaseServicePrices[],MATCH(P24,LeaseServicePrices[Lease Service Plans],0),MATCH($M$1,LeaseServicePrices[#Headers],0)),"") -> 47
B25: Blackline 24/7 Monitored (no voice) + PTT | C25: è | D25: =IFERROR(VLOOKUP(B25,O25:P38,2,FALSE),"") -> BXP | E25: = | F25: $ 65 | O25: Blackline 24/7 Monitored (no voice) + PTT | P25: BXP | Q25: C | R25: USD | S25: =IFERROR(INDEX(LeaseServicePrices[],MATCH(P25,LeaseServicePrices[Lease Service Plans],0),MATCH($M$1,LeaseServicePrices[#Headers],0)),"") -> 65
B26: Blackline 24/7 Monitored + Voice | C26: è | D26: =IFERROR(VLOOKUP(B26,O26:P38,2,FALSE),"") -> BV | E26: = | F26: $ 72 | O26: Blackline 24/7 Monitored + Voice | P26: BV | Q26: C | R26: USD | S26: =IFERROR(INDEX(LeaseServicePrices[],MATCH(P26,LeaseServicePrices[Lease Service Plans],0),MATCH($M$1,LeaseServicePrices[#Headers],0)),"") -> 72
B27: Blackline 24/7 Monitored + Voice + PTT | C27: è | D27: =IFERROR(VLOOKUP(B27,O27:P38,2,FALSE),"") -> BVP | E27: = | F27: $ 90 | O27: Blackline 24/7 Monitored + Voice + PTT | P27: BVP | Q27: C | R27: USD | S27: =IFERROR(INDEX(LeaseServicePrices[],MATCH(P27,LeaseServicePrices[Lease Service Plans],0),MATCH($M$1,LeaseServicePrices[#Headers],0)),"") -> 90
H28: - | L28: +
B29: Device Type
A30: 1 | B30: G7 Device | C30: è | D30: G7 | H30: =D30 -> G7
B32: Connectivity
B33: Cellular | C33: è | D33: C | H33: C
B34: =IF(OR(M1="EUR",M1="GBP"),"","Satellite (900 MHz)*") -> Satellite (900 MHz)* | C34: =IF(B34="","","è") -> è | D34: =IF(OR(M1="EUR",M1="GBP"),"","X") -> X
H35: - | O35: =IF(OR(M1="EUR",M1="GBP"),"","*Bridge and satellite service plan required") -> *Bridge and satellite service plan required
B36: Cartridge Type
B37: Single Sensor | C37: è | D37: S | H37: S | L37: =S37 -> $ 38 | S37: =ROUND( (INDEX(BasePrices[],MATCH("G7 Purchase Base Price",BasePrices[Type],0),MATCH($M$1,BasePrices[#Headers],0))+ INDEX(ServicePrices[],MATCH("System Access",ServicePrices[Type],0),MATCH($M$1,ServicePrices[#Headers],0))*12*LeaseYears+ INDEX(BasePrices[],MATCH("G7 Warranty Base Price",BasePrices[Type],0),MATCH($M$1,BasePrices[#Headers],0))*(LeaseYears-2))* Lease_Factor/LeaseMonths,0)+ ROUND( (INDEX(BasePrices[],MATCH("1 Sensor Cartridge",BasePrices[Type],0),MATCH($M$1,BasePrices[#Headers],0))*2+ INDEX(BasePrices[],MATCH("1 Sensor Cartridge",BasePrices[Type],0),MATCH($M$1,BasePrices[#Headers],0))*(LeaseYears-2)*0.2777777)* Lease_Factor/LeaseMonths,0) -> 38 | T37: =INDEX(BasePrices[],MATCH("1 Sensor Cartridge",BasePrices[Type],0),MATCH($M$1,BasePrices[#Headers],0)) -> 73 | V37: =ROUND( (INDEX(BasePrices[],MATCH("1 Sensor Cartridge",BasePrices[Type],0),MATCH($M$1,BasePrices[#Headers],0))*2+ INDEX(BasePrices[],MATCH("1 Sensor Cartridge",BasePrices[Type],0),MATCH($M$1,BasePrices[#Headers],0))*(LeaseYears-2)*0.2777777)* Lease_Factor/LeaseMonths,0) -> 5
H38: - | L38: + | T38: =INDEX(SensorPricing[],MATCH(H40,SensorPricing[Sensor],0),MATCH($M$1,SensorPricing[#Headers],0)) -> 0
B39: Toxic Sensor | T39: =IF(H66="3Y",3,3.5) -> 3.5
B40: =_xlfn.VSTACK(O40:O58) -> HF | C40: =IF(B40=0,"","è") -> è | D40: =_xlfn.VSTACK(P40:P58) -> 2 | E40: =IF(B40=0,"","=") -> = | F40: =IFERROR(SUM(S40:S40),"") -> $ 27 | H40: H | L40: =VLOOKUP(H40,D40:F58,3,FALSE) -> $ 0 | O40: =_xlfn.LET( _xlpm.Dtype,G7Sensors[Type1],_xlpm.Curr,G7Sensors[Currency],_xlpm.Stype,H37,_xlpm.SCurr,M1, _xlpm.myCalculation,_xlfn.VSTACK(_xlfn._xlws.FILTER(G7Sensors[],(_xlpm.Dtype=_xlpm.Stype)*(_xlpm.Curr=_xlpm.SCurr))),_xlpm.myCalculation) -> HF | P40: 2 | Q40: S | R40: USD | S40: =ROUNDUP( (INDEX(SensorPricing[],MATCH(D40,SensorPricing[Sensor],0),MATCH($M$1,SensorPricing[#Headers],0))*2+ INDEX(SensorPricing[],MATCH(D40,SensorPricing[Sensor],0),MATCH($M$1,SensorPricing[#Headers],0))*(LeaseYears-2)*0.2777777)* Lease_Factor/LeaseMonths,0) -> 27 | T40: =ROUND(SUM(T37:T38)*T39*Lease_Factor/LeaseMonths,0) -> 6
B41: NH3 | C41: è | D41: A | E41: = | F41: $ 4 | O41: NH3 | P41: A | Q41: S | R41: USD | S41: =ROUNDUP( (INDEX(SensorPricing[],MATCH(D41,SensorPricing[Sensor],0),MATCH($M$1,SensorPricing[#Headers],0))*2+ INDEX(SensorPricing[],MATCH(D41,SensorPricing[Sensor],0),MATCH($M$1,SensorPricing[#Headers],0))*(LeaseYears-2)*0.2777777)* Lease_Factor/LeaseMonths,0) -> 4
B42: High-range NH3 | C42: è | D42: B | E42: = | F42: $ 9 | O42: High-range NH3 | P42: B | Q42: S | R42: USD | S42: =ROUNDUP( (INDEX(SensorPricing[],MATCH(D42,SensorPricing[Sensor],0),MATCH($M$1,SensorPricing[#Headers],0))*2+ INDEX(SensorPricing[],MATCH(D42,SensorPricing[Sensor],0),MATCH($M$1,SensorPricing[#Headers],0))*(LeaseYears-2)*0.2777777)* Lease_Factor/LeaseMonths,0) -> 9
B43: CO2 | C43: è | D43: C | E43: = | F43: $ 16 | O43: CO2 | P43: C | Q43: S | R43: USD | S43: =ROUNDUP( (INDEX(SensorPricing[],MATCH(D43,SensorPricing[Sensor],0),MATCH($M$1,SensorPricing[#Headers],0))*2+ INDEX(SensorPricing[],MATCH(D43,SensorPricing[Sensor],0),MATCH($M$1,SensorPricing[#Headers],0))*(LeaseYears-2)*0.2777777)* Lease_Factor/LeaseMonths,0) -> 16
B44: O3 | C44: è | D44: E | E44: = | F44: $ 8 | O44: O3 | P44: E | Q44: S | R44: USD | S44: =ROUNDUP( (INDEX(SensorPricing[],MATCH(D44,SensorPricing[Sensor],0),MATCH($M$1,SensorPricing[#Headers],0))*2+ INDEX(SensorPricing[],MATCH(D44,SensorPricing[Sensor],0),MATCH($M$1,SensorPricing[#Headers],0))*(LeaseYears-2)*0.2777777)* Lease_Factor/LeaseMonths,0) -> 8
B45: H2S | C45: è | D45: H | E45: = | F45: $ 0 | O45: H2S | P45: H | Q45: S | R45: USD | S45: =ROUNDUP( (INDEX(SensorPricing[],MATCH(D45,SensorPricing[Sensor],0),MATCH($M$1,SensorPricing[#Headers],0))*2+ INDEX(SensorPricing[],MATCH(D45,SensorPricing[Sensor],0),MATCH($M$1,SensorPricing[#Headers],0))*(LeaseYears-2)*0.2777777)* Lease_Factor/LeaseMonths,0) -> 0
B46: High-range H2S | C46: è | D46: J | E46: = | F46: $ 8 | O46: High-range H2S | P46: J | Q46: S | R46: USD | S46: =ROUNDUP( (INDEX(SensorPricing[],MATCH(D46,SensorPricing[Sensor],0),MATCH($M$1,SensorPricing[#Headers],0))*2+ INDEX(SensorPricing[],MATCH(D46,SensorPricing[Sensor],0),MATCH($M$1,SensorPricing[#Headers],0))*(LeaseYears-2)*0.2777777)* Lease_Factor/LeaseMonths,0) -> 8
B47: NO2 | C47: è | D47: K | E47: = | F47: $ 4 | O47: NO2 | P47: K | Q47: S | R47: USD | S47: =ROUNDUP( (INDEX(SensorPricing[],MATCH(D47,SensorPricing[Sensor],0),MATCH($M$1,SensorPricing[#Headers],0))*2+ INDEX(SensorPricing[],MATCH(D47,SensorPricing[Sensor],0),MATCH($M$1,SensorPricing[#Headers],0))*(LeaseYears-2)*0.2777777)* Lease_Factor/LeaseMonths,0) -> 4
B48: Cl2 | C48: è | D48: L | E48: = | F48: $ 4 | O48: Cl2 | P48: L | Q48: S | R48: USD | S48: =ROUNDUP( (INDEX(SensorPricing[],MATCH(D48,SensorPricing[Sensor],0),MATCH($M$1,SensorPricing[#Headers],0))*2+ INDEX(SensorPricing[],MATCH(D48,SensorPricing[Sensor],0),MATCH($M$1,SensorPricing[#Headers],0))*(LeaseYears-2)*0.2777777)* Lease_Factor/LeaseMonths,0) -> 4
B49: CO | C49: è | D49: M | E49: = | F49: $ 0 | O49: CO | P49: M | Q49: S | R49: USD | S49: =ROUNDUP( (INDEX(SensorPricing[],MATCH(D49,SensorPricing[Sensor],0),MATCH($M$1,SensorPricing[#Headers],0))*2+ INDEX(SensorPricing[],MATCH(D49,SensorPricing[Sensor],0),MATCH($M$1,SensorPricing[#Headers],0))*(LeaseYears-2)*0.2777777)* Lease_Factor/LeaseMonths,0) -> 0
B50: HCN | C50: è | D50: N | E50: = | F50: $ 4 | O50: HCN | P50: N | Q50: S | R50: USD | S50: =ROUNDUP( (INDEX(SensorPricing[],MATCH(D50,SensorPricing[Sensor],0),MATCH($M$1,SensorPricing[#Headers],0))*2+ INDEX(SensorPricing[],MATCH(D50,SensorPricing[Sensor],0),MATCH($M$1,SensorPricing[#Headers],0))*(LeaseYears-2)*0.2777777)* Lease_Factor/LeaseMonths,0) -> 4
B51: O2 | C51: è | D51: O | E51: = | F51: $ 0 | O51: O2 | P51: O | Q51: S | R51: USD | S51: =ROUNDUP( (INDEX(SensorPricing[],MATCH(D51,SensorPricing[Sensor],0),MATCH($M$1,SensorPricing[#Headers],0))*2+ INDEX(SensorPricing[],MATCH(D51,SensorPricing[Sensor],0),MATCH($M$1,SensorPricing[#Headers],0))*(LeaseYears-2)*0.2777777)* Lease_Factor/LeaseMonths,0) -> 0
B52: CO-H | C52: è | D52: R | E52: = | F52: $ 0 | O52: CO-H | P52: R | Q52: S | R52: USD | S52: =ROUNDUP( (INDEX(SensorPricing[],MATCH(D52,SensorPricing[Sensor],0),MATCH($M$1,SensorPricing[#Headers],0))*2+ INDEX(SensorPricing[],MATCH(D52,SensorPricing[Sensor],0),MATCH($M$1,SensorPricing[#Headers],0))*(LeaseYears-2)*0.2777777)* Lease_Factor/LeaseMonths,0) -> 0
B53: SO2 | C53: è | D53: S | E53: = | F53: $ 0 | O53: SO2 | P53: S | Q53: S | R53: USD | S53: =ROUNDUP( (INDEX(SensorPricing[],MATCH(D53,SensorPricing[Sensor],0),MATCH($M$1,SensorPricing[#Headers],0))*2+ INDEX(SensorPricing[],MATCH(D53,SensorPricing[Sensor],0),MATCH($M$1,SensorPricing[#Headers],0))*(LeaseYears-2)*0.2777777)* Lease_Factor/LeaseMonths,0) -> 0
B54: High-range CO | C54: è | D54: T | E54: = | F54: $ 8 | O54: High-range CO | P54: T | Q54: S | R54: USD | S54: =ROUNDUP( (INDEX(SensorPricing[],MATCH(D54,SensorPricing[Sensor],0),MATCH($M$1,SensorPricing[#Headers],0))*2+ INDEX(SensorPricing[],MATCH(D54,SensorPricing[Sensor],0),MATCH($M$1,SensorPricing[#Headers],0))*(LeaseYears-2)*0.2777777)* Lease_Factor/LeaseMonths,0) -> 8
B55: PID | C55: è | D55: V | E55: = | F55: $ 31 | O55: PID | P55: V | Q55: S | R55: USD | S55: =ROUNDUP( (INDEX(SensorPricing[],MATCH(D55,SensorPricing[Sensor],0),MATCH($M$1,SensorPricing[#Headers],0))*2+ INDEX(SensorPricing[],MATCH(D55,SensorPricing[Sensor],0),MATCH($M$1,SensorPricing[#Headers],0))*(LeaseYears-2)*0.2777777)* Lease_Factor/LeaseMonths,0) -> 31
B56: ClO2 | C56: è | D56: W | E56: = | F56: $ 4 | O56: ClO2 | P56: W | Q56: S | R56: USD | S56: =ROUNDUP( (INDEX(SensorPricing[],MATCH(D56,SensorPricing[Sensor],0),MATCH($M$1,SensorPricing[#Headers],0))*2+ INDEX(SensorPricing[],MATCH(D56,SensorPricing[Sensor],0),MATCH($M$1,SensorPricing[#Headers],0))*(LeaseYears-2)*0.2777777)* Lease_Factor/LeaseMonths,0) -> 4
B57: 0 | C57: =IF(B57=0,"","è") ->  | D57: 0 | E57: =IF(B57=0,"","=") ->  | S57: =ROUNDUP( (INDEX(SensorPricing[],MATCH(D57,SensorPricing[Sensor],0),MATCH($M$1,SensorPricing[#Headers],0))*2+ INDEX(SensorPricing[],MATCH(D57,SensorPricing[Sensor],0),MATCH($M$1,SensorPricing[#Headers],0))*(LeaseYears-2)*0.2777777)* Lease_Factor/LeaseMonths,0) -> 
B58: 0 | C58: =IF(B58=0,"","è") ->  | D58: 0 | E58: =IF(B58=0,"","=") ->  | S58: =ROUNDUP( (INDEX(SensorPricing[],MATCH(D58,SensorPricing[Sensor],0),MATCH($M$1,SensorPricing[#Headers],0))*2+ INDEX(SensorPricing[],MATCH(D58,SensorPricing[Sensor],0),MATCH($M$1,SensorPricing[#Headers],0))*(LeaseYears-2)*0.2777777)* Lease_Factor/LeaseMonths,0) -> 
H59: -
B60: Country Code
B61: =_xlfn.VSTACK(O61:O63) -> North America (3G/4G) - G7C | C61: =IF(B61="","","è") -> è | D61: =IFERROR(VLOOKUP(B61,Lookup!$F$3:$G$12,2,FALSE),"") -> NA2 | H61: NA2 | O61: =_xlfn.LET( _xlpm.Dtype,G7CountryCodes[Type],_xlpm.Curr,G7CountryCodes[Currency],_xlpm.SType,H33,_xlpm.SCurr,M1, _xlpm.myCalculation,_xlfn.VSTACK(_xlfn._xlws.FILTER(G7CountryCodes[],(_xlpm.Dtype=_xlpm.SType)*(_xlpm.Curr=_xlpm.SCurr))),_xlpm.myCalculation) -> North America (3G/4G) - G7C | P61: NA2 | Q61: C | R61: USD
B62: Outside of North America (3G/4G) - G7C | C62: =IF(B62=0,"","è") -> è | D62: =IFERROR(VLOOKUP(B62,Lookup!$F$3:$G$12,2,FALSE),"") -> EU2 | O62: Outside of North America (3G/4G) - G7C | P62: EU2 | Q62: C | R62: USD
B63: Brazil (3G/4G) - G7C | C63: =IF(B63=0,"","è") -> è | D63: =IFERROR(VLOOKUP(B63,Lookup!$F$3:$G$12,2,FALSE),"") -> BR2 | O63: Brazil (3G/4G) - G7C | P63: BR2 | Q63: C | R63: USD
H64: -
B65: Term
B66: Three-Years | C66: è | D66: 3Y | H66: 4Y | R66: =LEFT(H66,1) -> 4 | S66: =LEFT(H66,1)*12 -> 48
B67: Four-Years | C67: è | D67: 4Y

Sheet G7 Multi-Gas Lease
M1: =Currency -> USD | P1: G7 Multi-Gas Lease
B2: G7 Multi-Gas Lease | M2: =PBYear -> 2025 | N2: Quick Links
M3: =Revision -> Effective February 2, 2026 Rev 2 | N3: Main Menu
M4: Blackline Safety Confidential | N4: Accessories
M5: All prices are an estimate - for a formal quote contact your local Blackline Safety representative
M6: Buying option not available in all countries. Please confirm with your local Blackline representative
F8: =CONCATENATE(H15,"-",H18,"-",H30,H40,"-",H44,"-",J48,"-",H99,"-",H104) -> CMP-XX-G7C-Q-FHMO-NA2-4Y | L8: =L18+L30+L44+L48+L53+L74+L95 -> $ 46 | M8: =M1&" / mo" -> USD / mo
F12: Additional Cartridge | H12: =CONCATENATE(H15,"-CART-",H44,"-",J48,"-",H104,"-R") -> CMP-CART-Q-FHMO-4Y-R | L12: =T53 -> $ 18 | M12: =M1&" / mo" -> USD / mo
B14: Buying Option | S14: Price | T14: Addl Cart
B15: Lease | C15: è | D15: CMP | H15: =D15 -> CMP
H16: -
B17: Service Plan
B18: =_xlfn.VSTACK(O18:O27) -> System Access | C18: =IF(B18=0,"","è") -> è | D18: =IFERROR(VLOOKUP(B18,O18:P27,2,FALSE),"") -> XX | E18: =IF(B18=0,"","=") -> = | F18: =S18 -> $ 0 | H18: XX | L18: =VLOOKUP(H18,D18:F27,3,FALSE) -> $ 0 | O18: =_xlfn.LET( _xlpm.Dtype,G7ServicePlans[Type],_xlpm.Curr,G7ServicePlans[Currency],_xlpm.Stype,H40,_xlpm.SCurr,M1, _xlpm.myCalculation,_xlfn.VSTACK(_xlfn._xlws.FILTER(G7ServicePlans[],(_xlpm.Dtype=_xlpm.Stype)*(_xlpm.Curr=_xlpm.SCurr))),_xlpm.myCalculation) -> System Access | P18: XX | Q18: C | R18: USD | S18: =IFERROR(INDEX(LeaseServicePrices[],MATCH(P18,LeaseServicePrices[Lease Service Plans],0),MATCH($M$1,LeaseServicePrices[#Headers],0)),"") -> 0
B19: System Access + PTT | C19: è | D19: =IFERROR(VLOOKUP(B19,O19:P28,2,FALSE),"") -> XXP | E19: = | F19: =S19 -> $ 18 | O19: System Access + PTT | P19: XXP | Q19: C | R19: USD | S19: =IFERROR(INDEX(LeaseServicePrices[],MATCH(P19,LeaseServicePrices[Lease Service Plans],0),MATCH($M$1,LeaseServicePrices[#Headers],0)),"") -> 18
B20: Self-Monitored (no voice) | C20: è | D20: =IFERROR(VLOOKUP(B20,O20:P43,2,FALSE),"") -> SX | E20: = | F20: $ 23 | O20: Self-Monitored (no voice) | P20: SX | Q20: C | R20: USD | S20: =IFERROR(INDEX(LeaseServicePrices[],MATCH(P20,LeaseServicePrices[Lease Service Plans],0),MATCH($M$1,LeaseServicePrices[#Headers],0)),"") -> 23
B21: Self-Monitored (no voice) + PTT | C21: è | D21: SXP | E21: = | F21: $ 41 | O21: Self-Monitored (no voice) + PTT | P21: SXP | Q21: C | R21: USD | S21: =IFERROR(INDEX(LeaseServicePrices[],MATCH(P21,LeaseServicePrices[Lease Service Plans],0),MATCH($M$1,LeaseServicePrices[#Headers],0)),"") -> 41
B22: Self-Monitored + Voice | C22: è | D22: SV | E22: = | F22: $ 48 | O22: Self-Monitored + Voice | P22: SV | Q22: C | R22: USD | S22: =IFERROR(INDEX(LeaseServicePrices[],MATCH(P22,LeaseServicePrices[Lease Service Plans],0),MATCH($M$1,LeaseServicePrices[#Headers],0)),"") -> 48
B23: Self-Monitored + Voice + PTT | C23: è | D23: SVP | E23: = | F23: $ 66 | O23: Self-Monitored + Voice + PTT | P23: SVP | Q23: C | R23: USD | S23: =IFERROR(INDEX(LeaseServicePrices[],MATCH(P23,LeaseServicePrices[Lease Service Plans],0),MATCH($M$1,LeaseServicePrices[#Headers],0)),"") -> 66
B24: Blackline 24/7 Monitored (no voice) | C24: è | D24: BX | E24: = | F24: $ 47 | O24: Blackline 24/7 Monitored (no voice) | P24: BX | Q24: C | R24: USD | S24: =IFERROR(INDEX(LeaseServicePrices[],MATCH(P24,LeaseServicePrices[Lease Service Plans],0),MATCH($M$1,LeaseServicePrices[#Headers],0)),"") -> 47
B25: Blackline 24/7 Monitored (no voice) + PTT | C25: è | D25: BXP | E25: = | F25: $ 65 | O25: Blackline 24/7 Monitored (no voice) + PTT | P25: BXP | Q25: C | R25: USD | S25: =IFERROR(INDEX(LeaseServicePrices[],MATCH(P25,LeaseServicePrices[Lease Service Plans],0),MATCH($M$1,LeaseServicePrices[#Headers],0)),"") -> 65
B26: Blackline 24/7 Monitored + Voice | C26: è | D26: BV | E26: = | F26: $ 72 | O26: Blackline 24/7 Monitored + Voice | P26: BV | Q26: C | R26: USD | S26: =IFERROR(INDEX(LeaseServicePrices[],MATCH(P26,LeaseServicePrices[Lease Service Plans],0),MATCH($M$1,LeaseServicePrices[#Headers],0)),"") -> 72
B27: Blackline 24/7 Monitored + Voice + PTT | C27: è | D27: BVP | E27: = | F27: $ 90 | O27: Blackline 24/7 Monitored + Voice + PTT | P27: BVP | Q27: C | R27: USD | S27: =IFERROR(INDEX(LeaseServicePrices[],MATCH(P27,LeaseServicePrices[Lease Service Plans],0),MATCH($M$1,LeaseServicePrices[#Headers],0)),"") -> 90
H28: - | L28: +
B29: Cartridge
A30: Q1 | D30: Multi 1-sensor | E30: = | F30: =SUM(S30:T30) -> $ 38 | H30: G7 | L30: =VLOOKUP(Q52,A30:F37,6,FALSE) -> $ 46 | R30: 1 | S30: =ROUND( (INDEX(BasePrices[],MATCH("G7 Purchase Base Price",BasePrices[Type],0),MATCH($M$1,BasePrices[#Headers],0))+ INDEX(ServicePrices[],MATCH("System Access",ServicePrices[Type],0),MATCH($M$1,ServicePrices[#Headers],0))*12*LeaseYears+ INDEX(BasePrices[],MATCH("G7 Warranty Base Price",BasePrices[Type],0),MATCH($M$1,BasePrices[#Headers],0))*(LeaseYears-2))* Lease_Factor/LeaseMonths,0)+ ROUND( (INDEX(BasePrices[],MATCH(R30&" Sensor Cartridge",BasePrices[Type],0),MATCH($M$1,BasePrices[#Headers],0))*2+ INDEX(BasePrices[],MATCH(R30&" Sensor Cartridge",BasePrices[Type],0),MATCH($M$1,BasePrices[#Headers],0))*(LeaseYears-2)*0.2777777)* Lease_Factor/LeaseMonths,0) -> 38
A31: Q2 | D31: Multi 2-sensor | E31: = | F31: =SUM(S31:T31) -> $ 41 | R31: 2 | S31: =ROUND( (INDEX(BasePrices[],MATCH("G7 Purchase Base Price",BasePrices[Type],0),MATCH($M$1,BasePrices[#Headers],0))+ INDEX(ServicePrices[],MATCH("System Access",ServicePrices[Type],0),MATCH($M$1,ServicePrices[#Headers],0))*12*LeaseYears+ INDEX(BasePrices[],MATCH("G7 Warranty Base Price",BasePrices[Type],0),MATCH($M$1,BasePrices[#Headers],0))*(LeaseYears-2))* Lease_Factor/LeaseMonths,0)+ ROUND( (INDEX(BasePrices[],MATCH(R31&" Sensor Cartridge",BasePrices[Type],0),MATCH($M$1,BasePrices[#Headers],0))*2+ INDEX(BasePrices[],MATCH(R31&" Sensor Cartridge",BasePrices[Type],0),MATCH($M$1,BasePrices[#Headers],0))*(LeaseYears-2)*0.2777777)* Lease_Factor/LeaseMonths,0) -> 41
A32: Q3 | D32: Multi 3-sensor | E32: = | F32: =SUM(S32:T32) -> $ 44 | R32: 3 | S32: =ROUND( (INDEX(BasePrices[],MATCH("G7 Purchase Base Price",BasePrices[Type],0),MATCH($M$1,BasePrices[#Headers],0))+ INDEX(ServicePrices[],MATCH("System Access",ServicePrices[Type],0),MATCH($M$1,ServicePrices[#Headers],0))*12*LeaseYears+ INDEX(BasePrices[],MATCH("G7 Warranty Base Price",BasePrices[Type],0),MATCH($M$1,BasePrices[#Headers],0))*(LeaseYears-2))* Lease_Factor/LeaseMonths,0)+ ROUND( (INDEX(BasePrices[],MATCH(R32&" Sensor Cartridge",BasePrices[Type],0),MATCH($M$1,BasePrices[#Headers],0))*2+ INDEX(BasePrices[],MATCH(R32&" Sensor Cartridge",BasePrices[Type],0),MATCH($M$1,BasePrices[#Headers],0))*(LeaseYears-2)*0.2777777)* Lease_Factor/LeaseMonths,0) -> 44
A33: Q4 | D33: Multi 4-sensor | E33: = | F33: =SUM(S33:T33) -> $ 46 | R33: 4 | S33: =ROUND( (INDEX(BasePrices[],MATCH("G7 Purchase Base Price",BasePrices[Type],0),MATCH($M$1,BasePrices[#Headers],0))+ INDEX(ServicePrices[],MATCH("System Access",ServicePrices[Type],0),MATCH($M$1,ServicePrices[#Headers],0))*12*LeaseYears+ INDEX(BasePrices[],MATCH("G7 Warranty Base Price",BasePrices[Type],0),MATCH($M$1,BasePrices[#Headers],0))*(LeaseYears-2))* Lease_Factor/LeaseMonths,0)+ ROUND( (INDEX(BasePrices[],MATCH(R33&" Sensor Cartridge",BasePrices[Type],0),MATCH($M$1,BasePrices[#Headers],0))*2+ INDEX(BasePrices[],MATCH(R33&" Sensor Cartridge",BasePrices[Type],0),MATCH($M$1,BasePrices[#Headers],0))*(LeaseYears-2)*0.2777777)* Lease_Factor/LeaseMonths,0) -> 46
A34: P1 | D34: Multi 1-sensor pump | E34: = | F34: =SUM(S34:T34) -> $ 50 | R34: 1 | S34: =ROUND( (INDEX(BasePrices[],MATCH("G7 Purchase Base Price",BasePrices[Type],0),MATCH($M$1,BasePrices[#Headers],0))+ INDEX(ServicePrices[],MATCH("System Access",ServicePrices[Type],0),MATCH($M$1,ServicePrices[#Headers],0))*12*LeaseYears+ INDEX(BasePrices[],MATCH("G7 Warranty Base Price",BasePrices[Type],0),MATCH($M$1,BasePrices[#Headers],0))*(LeaseYears-2))* Lease_Factor/LeaseMonths,0)+ ROUND( (INDEX(BasePrices[],MATCH(R34&" Sensor Cartridge",BasePrices[Type],0),MATCH($M$1,BasePrices[#Headers],0))*2+ INDEX(BasePrices[],MATCH(R34&" Sensor Cartridge",BasePrices[Type],0),MATCH($M$1,BasePrices[#Headers],0))*(LeaseYears-2)*0.2777777)* Lease_Factor/LeaseMonths,0)+ ROUND( (INDEX(BasePrices[],MATCH("G7 Pump",BasePrices[Type],0),MATCH($M$1,BasePrices[#Headers],0))*2+ INDEX(BasePrices[],MATCH("G7 Pump",BasePrices[Type],0),MATCH($M$1,BasePrices[#Headers],0))*(LeaseYears-2)*0.2777777)* Lease_Factor/LeaseMonths,0) -> 50
A35: P2 | D35: Multi 2-sensor pump | E35: = | F35: $ 53 | R35: 2 | S35: =ROUND( (INDEX(BasePrices[],MATCH("G7 Purchase Base Price",BasePrices[Type],0),MATCH($M$1,BasePrices[#Headers],0))+ INDEX(ServicePrices[],MATCH("System Access",ServicePrices[Type],0),MATCH($M$1,ServicePrices[#Headers],0))*12*LeaseYears+ INDEX(BasePrices[],MATCH("G7 Warranty Base Price",BasePrices[Type],0),MATCH($M$1,BasePrices[#Headers],0))*(LeaseYears-2))* Lease_Factor/LeaseMonths,0)+ ROUND( (INDEX(BasePrices[],MATCH(R35&" Sensor Cartridge",BasePrices[Type],0),MATCH($M$1,BasePrices[#Headers],0))*2+ INDEX(BasePrices[],MATCH(R35&" Sensor Cartridge",BasePrices[Type],0),MATCH($M$1,BasePrices[#Headers],0))*(LeaseYears-2)*0.2777777)* Lease_Factor/LeaseMonths,0)+ ROUND( (INDEX(BasePrices[],MATCH("G7 Pump",BasePrices[Type],0),MATCH($M$1,BasePrices[#Headers],0))*2+ INDEX(BasePrices[],MATCH("G7 Pump",BasePrices[Type],0),MATCH($M$1,BasePrices[#Headers],0))*(LeaseYears-2)*0.2777777)* Lease_Factor/LeaseMonths,0) -> 53
A36: P3 | D36: Multi 3-sensor pump | E36: = | F36: $ 56 | R36: 3 | S36: =ROUND( (INDEX(BasePrices[],MATCH("G7 Purchase Base Price",BasePrices[Type],0),MATCH($M$1,BasePrices[#Headers],0))+ INDEX(ServicePrices[],MATCH("System Access",ServicePrices[Type],0),MATCH($M$1,ServicePrices[#Headers],0))*12*LeaseYears+ INDEX(BasePrices[],MATCH("G7 Warranty Base Price",BasePrices[Type],0),MATCH($M$1,BasePrices[#Headers],0))*(LeaseYears-2))* Lease_Factor/LeaseMonths,0)+ ROUND( (INDEX(BasePrices[],MATCH(R36&" Sensor Cartridge",BasePrices[Type],0),MATCH($M$1,BasePrices[#Headers],0))*2+ INDEX(BasePrices[],MATCH(R36&" Sensor Cartridge",BasePrices[Type],0),MATCH($M$1,BasePrices[#Headers],0))*(LeaseYears-2)*0.2777777)* Lease_Factor/LeaseMonths,0)+ ROUND( (INDEX(BasePrices[],MATCH("G7 Pump",BasePrices[Type],0),MATCH($M$1,BasePrices[#Headers],0))*2+ INDEX(BasePrices[],MATCH("G7 Pump",BasePrices[Type],0),MATCH($M$1,BasePrices[#Headers],0))*(LeaseYears-2)*0.2777777)* Lease_Factor/LeaseMonths,0) -> 56
A37: P4 | D37: Multi 4-sensor pump | E37: = | F37: $ 58 | R37: 4 | S37: =ROUND( (INDEX(BasePrices[],MATCH("G7 Purchase Base Price",BasePrices[Type],0),MATCH($M$1,BasePrices[#Headers],0))+ INDEX(ServicePrices[],MATCH("System Access",ServicePrices[Type],0),MATCH($M$1,ServicePrices[#Headers],0))*12*LeaseYears+ INDEX(BasePrices[],MATCH("G7 Warranty Base Price",BasePrices[Type],0),MATCH($M$1,BasePrices[#Headers],0))*(LeaseYears-2))* Lease_Factor/LeaseMonths,0)+ ROUND( (INDEX(BasePrices[],MATCH(R37&" Sensor Cartridge",BasePrices[Type],0),MATCH($M$1,BasePrices[#Headers],0))*2+ INDEX(BasePrices[],MATCH(R37&" Sensor Cartridge",BasePrices[Type],0),MATCH($M$1,BasePrices[#Headers],0))*(LeaseYears-2)*0.2777777)* Lease_Factor/LeaseMonths,0)+ ROUND( (INDEX(BasePrices[],MATCH("G7 Pump",BasePrices[Type],0),MATCH($M$1,BasePrices[#Headers],0))*2+ INDEX(BasePrices[],MATCH("G7 Pump",BasePrices[Type],0),MATCH($M$1,BasePrices[#Headers],0))*(LeaseYears-2)*0.2777777)* Lease_Factor/LeaseMonths,0) -> 58
L38: +
B39: Connectivity
B40: Cellular | C40: è | D40: C | H40: C
B41: =IF(OR(M1="EUR",M1="GBP"),"","Satellite (900 MHz)*") -> Satellite (900 MHz)* | C41: =IF(B41="","","è") -> è | D41: =IF(OR(M1="EUR",M1="GBP"),"","X") -> X
H42: - | O42: =IF(OR(M4="EUR",M4="GBP"),"","*Bridge and satellite service plan required") -> *Bridge and satellite service plan required
B43: Cartridge Type
B44: Diffusion | C44: è | D44: Q | H44: Q
B45: Pump | C45: è | D45: P
H46: -
B47: Combustible Sensor | T47: =INDEX(BasePrices[],MATCH(R52&" Sensor Cartridge",BasePrices[Type],0),MATCH($M$1,BasePrices[#Headers],0))+ IF(H44="P",INDEX(BasePrices[],MATCH("G7 Pump",BasePrices[Type],0),MATCH($M$1,BasePrices[#Headers],0)),0) -> 200
B48: LEL-IR | C48: è | D48: I | E48: = | F48: =SUM(S48:S48) -> $ 4 | H48: F | J48: =CONCATENATE(P48,P49,P50,P51) -> FHMO | L48: =VLOOKUP(H48,D48:F50,3,FALSE) -> $ 0 | O48: =H48 -> F | P48: =_xlfn._xlws.SORT(O48:O51) -> F | Q48: =IF(P48="X",1,0) -> 0 | S48: =ROUNDUP( (INDEX(SensorPricing[],MATCH(D48,SensorPricing[Sensor],0),MATCH($M$1,SensorPricing[#Headers],0))*2+ INDEX(SensorPricing[],MATCH(D48,SensorPricing[Sensor],0),MATCH($M$1,SensorPricing[#Headers],0))*(LeaseYears-2)*0.2777777)* Lease_Factor/LeaseMonths,0) -> 4 | T48: =INDEX(SensorPricing[],MATCH(P48,SensorPricing[Sensor],0),MATCH($M$1,SensorPricing[#Headers],0)) -> 0
B49: LEL-MPS | C49: è | D49: F | E49: = | F49: =SUM(S49:S49) -> $ 0 | O49: =H53 -> H | P49: H | Q49: =IF(P49="X",1,0) -> 0 | S49: =ROUNDUP( (INDEX(SensorPricing[],MATCH(D49,SensorPricing[Sensor],0),MATCH($M$1,SensorPricing[#Headers],0))*2+ INDEX(SensorPricing[],MATCH(D49,SensorPricing[Sensor],0),MATCH($M$1,SensorPricing[#Headers],0))*(LeaseYears-2)*0.2777777)* Lease_Factor/LeaseMonths,0) -> 0 | T49: =INDEX(SensorPricing[],MATCH(P49,SensorPricing[Sensor],0),MATCH($M$1,SensorPricing[#Headers],0)) -> 0
B50: None | C50: è | D50: X | E50: = | F50: =SUM(S50:S50) -> $ 0 | O50: =H74 -> M | P50: M | Q50: =IF(P50="X",1,0) -> 0 | S50: =ROUNDUP( (INDEX(SensorPricing[],MATCH(D50,SensorPricing[Sensor],0),MATCH($M$1,SensorPricing[#Headers],0))*2+ INDEX(SensorPricing[],MATCH(D50,SensorPricing[Sensor],0),MATCH($M$1,SensorPricing[#Headers],0))*(LeaseYears-2)*0.2777777)* Lease_Factor/LeaseMonths,0) -> 0 | T50: =INDEX(SensorPricing[],MATCH(P50,SensorPricing[Sensor],0),MATCH($M$1,SensorPricing[#Headers],0)) -> 0
L51: + | O51: =H95 -> O | P51: O | Q51: =IF(P51="X",1,0) -> 0 | T51: =INDEX(SensorPricing[],MATCH(P51,SensorPricing[Sensor],0),MATCH($M$1,SensorPricing[#Headers],0)) -> 0
B52: Toxic Sensor #1 | Q52: =H44&4-SUM(Q48:Q51) -> Q4 | R52: =4-SUM(Q48:Q51) -> 4 | T52: =IF(H104="3Y",3,3.5) -> 3.5
B53: =_xlfn.VSTACK(O53:O71) -> HF | C53: =IF(B53=0,"","è") -> è | D53: =_xlfn.VSTACK(P53:P71) -> 2 | E53: =IF(B53=0,"","=") -> = | F53: =IFERROR(SUM(S53:S53),"") -> $ 27 | H53: H | L53: =VLOOKUP(H53,D53:F71,3,FALSE) -> $ 0 | O53: =_xlfn.LET( _xlpm.Dtype,G7Sensors[Type1],_xlpm.Curr,G7Sensors[Currency],_xlpm.Stype,H44&1,_xlpm.SCurr,M1, _xlpm.myCalculation,_xlfn.VSTACK(_xlfn._xlws.FILTER(G7Sensors[],(_xlpm.Dtype=_xlpm.Stype)*(_xlpm.Curr=_xlpm.SCurr))),_xlpm.myCalculation) -> HF | P53: 2 | Q53: Q1 | R53: USD | S53: =ROUNDUP( (INDEX(SensorPricing[],MATCH(D53,SensorPricing[Sensor],0),MATCH($M$1,SensorPricing[#Headers],0))*2+ INDEX(SensorPricing[],MATCH(D53,SensorPricing[Sensor],0),MATCH($M$1,SensorPricing[#Headers],0))*(LeaseYears-2)*0.2777777)* Lease_Factor/LeaseMonths,0) -> 27 | T53: =ROUND(SUM(T47:T51)*T52*Lease_Factor/LeaseMonths,0) -> 18
B54: NH3 | C54: è | D54: A | E54: = | F54: $ 4 | O54: NH3 | P54: A | Q54: Q1 | R54: USD | S54: =ROUNDUP( (INDEX(SensorPricing[],MATCH(D54,SensorPricing[Sensor],0),MATCH($M$1,SensorPricing[#Headers],0))*2+ INDEX(SensorPricing[],MATCH(D54,SensorPricing[Sensor],0),MATCH($M$1,SensorPricing[#Headers],0))*(LeaseYears-2)*0.2777777)* Lease_Factor/LeaseMonths,0) -> 4
B55: High-range NH3 | C55: è | D55: B | E55: = | F55: $ 9 | O55: High-range NH3 | P55: B | Q55: Q1 | R55: USD | S55: =ROUNDUP( (INDEX(SensorPricing[],MATCH(D55,SensorPricing[Sensor],0),MATCH($M$1,SensorPricing[#Headers],0))*2+ INDEX(SensorPricing[],MATCH(D55,SensorPricing[Sensor],0),MATCH($M$1,SensorPricing[#Headers],0))*(LeaseYears-2)*0.2777777)* Lease_Factor/LeaseMonths,0) -> 9
B56: CO2 | C56: è | D56: C | E56: = | F56: $ 16 | O56: CO2 | P56: C | Q56: Q1 | R56: USD | S56: =ROUNDUP( (INDEX(SensorPricing[],MATCH(D56,SensorPricing[Sensor],0),MATCH($M$1,SensorPricing[#Headers],0))*2+ INDEX(SensorPricing[],MATCH(D56,SensorPricing[Sensor],0),MATCH($M$1,SensorPricing[#Headers],0))*(LeaseYears-2)*0.2777777)* Lease_Factor/LeaseMonths,0) -> 16
B57: O3 | C57: è | D57: E | E57: = | F57: $ 8 | O57: O3 | P57: E | Q57: Q1 | R57: USD | S57: =ROUNDUP( (INDEX(SensorPricing[],MATCH(D57,SensorPricing[Sensor],0),MATCH($M$1,SensorPricing[#Headers],0))*2+ INDEX(SensorPricing[],MATCH(D57,SensorPricing[Sensor],0),MATCH($M$1,SensorPricing[#Headers],0))*(LeaseYears-2)*0.2777777)* Lease_Factor/LeaseMonths,0) -> 8
B58: H2S | C58: è | D58: H | E58: = | F58: $ 0 | O58: H2S | P58: H | Q58: Q1 | R58: USD | S58: =ROUNDUP( (INDEX(SensorPricing[],MATCH(D58,SensorPricing[Sensor],0),MATCH($M$1,SensorPricing[#Headers],0))*2+ INDEX(SensorPricing[],MATCH(D58,SensorPricing[Sensor],0),MATCH($M$1,SensorPricing[#Headers],0))*(LeaseYears-2)*0.2777777)* Lease_Factor/LeaseMonths,0) -> 0
B59: High-range H2S | C59: è | D59: J | E59: = | F59: $ 8 | O59: High-range H2S | P59: J | Q59: Q1 | R59: USD | S59: =ROUNDUP( (INDEX(SensorPricing[],MATCH(D59,SensorPricing[Sensor],0),MATCH($M$1,SensorPricing[#Headers],0))*2+ INDEX(SensorPricing[],MATCH(D59,SensorPricing[Sensor],0),MATCH($M$1,SensorPricing[#Headers],0))*(LeaseYears-2)*0.2777777)* Lease_Factor/LeaseMonths,0) -> 8
B60: NO2 | C60: è | D60: K | E60: = | F60: $ 4 | O60: NO2 | P60: K | Q60: Q1 | R60: USD | S60: =ROUNDUP( (INDEX(SensorPricing[],MATCH(D60,SensorPricing[Sensor],0),MATCH($M$1,SensorPricing[#Headers],0))*2+ INDEX(SensorPricing[],MATCH(D60,SensorPricing[Sensor],0),MATCH($M$1,SensorPricing[#Headers],0))*(LeaseYears-2)*0.2777777)* Lease_Factor/LeaseMonths,0) -> 4
B61: Cl2 | C61: è | D61: L | E61: = | F61: $ 4 | O61: Cl2 | P61: L | Q61: Q1 | R61: USD | S61: =ROUNDUP( (INDEX(SensorPricing[],MATCH(D61,SensorPricing[Sensor],0),MATCH($M$1,SensorPricing[#Headers],0))*2+ INDEX(SensorPricing[],MATCH(D61,SensorPricing[Sensor],0),MATCH($M$1,SensorPricing[#Headers],0))*(LeaseYears-2)*0.2777777)* Lease_Factor/LeaseMonths,0) -> 4
B62: CO | C62: è | D62: M | E62: = | F62: $ 0 | O62: CO | P62: M | Q62: Q1 | R62: USD | S62: =ROUNDUP( (INDEX(SensorPricing[],MATCH(D62,SensorPricing[Sensor],0),MATCH($M$1,SensorPricing[#Headers],0))*2+ INDEX(SensorPricing[],MATCH(D62,SensorPricing[Sensor],0),MATCH($M$1,SensorPricing[#Headers],0))*(LeaseYears-2)*0.2777777)* Lease_Factor/LeaseMonths,0) -> 0
B63: HCN | C63: è | D63: N | E63: = | F63: $ 4 | O63: HCN | P63: N | Q63: Q1 | R63: USD | S63: =ROUNDUP( (INDEX(SensorPricing[],MATCH(D63,SensorPricing[Sensor],0),MATCH($M$1,SensorPricing[#Headers],0))*2+ INDEX(SensorPricing[],MATCH(D63,SensorPricing[Sensor],0),MATCH($M$1,SensorPricing[#Headers],0))*(LeaseYears-2)*0.2777777)* Lease_Factor/LeaseMonths,0) -> 4
B64: CO-H | C64: è | D64: R | E64: = | F64: $ 0 | O64: CO-H | P64: R | Q64: Q1 | R64: USD | S64: =ROUNDUP( (INDEX(SensorPricing[],MATCH(D64,SensorPricing[Sensor],0),MATCH($M$1,SensorPricing[#Headers],0))*2+ INDEX(SensorPricing[],MATCH(D64,SensorPricing[Sensor],0),MATCH($M$1,SensorPricing[#Headers],0))*(LeaseYears-2)*0.2777777)* Lease_Factor/LeaseMonths,0) -> 0
B65: SO2 | C65: è | D65: S | E65: = | F65: $ 0 | O65: SO2 | P65: S | Q65: Q1 | R65: USD | S65: =ROUNDUP( (INDEX(SensorPricing[],MATCH(D65,SensorPricing[Sensor],0),MATCH($M$1,SensorPricing[#Headers],0))*2+ INDEX(SensorPricing[],MATCH(D65,SensorPricing[Sensor],0),MATCH($M$1,SensorPricing[#Headers],0))*(LeaseYears-2)*0.2777777)* Lease_Factor/LeaseMonths,0) -> 0
B66: High-range CO | C66: è | D66: T | E66: = | F66: $ 8 | O66: High-range CO | P66: T | Q66: Q1 | R66: USD | S66: =ROUNDUP( (INDEX(SensorPricing[],MATCH(D66,SensorPricing[Sensor],0),MATCH($M$1,SensorPricing[#Headers],0))*2+ INDEX(SensorPricing[],MATCH(D66,SensorPricing[Sensor],0),MATCH($M$1,SensorPricing[#Headers],0))*(LeaseYears-2)*0.2777777)* Lease_Factor/LeaseMonths,0) -> 8
B67: PID | C67: è | D67: V | E67: = | F67: $ 31 | O67: PID | P67: V | Q67: Q1 | R67: USD | S67: =ROUNDUP( (INDEX(SensorPricing[],MATCH(D67,SensorPricing[Sensor],0),MATCH($M$1,SensorPricing[#Headers],0))*2+ INDEX(SensorPricing[],MATCH(D67,SensorPricing[Sensor],0),MATCH($M$1,SensorPricing[#Headers],0))*(LeaseYears-2)*0.2777777)* Lease_Factor/LeaseMonths,0) -> 31
B68: ClO2 | C68: è | D68: W | E68: = | F68: $ 4 | O68: ClO2 | P68: W | Q68: Q1 | R68: USD | S68: =ROUNDUP( (INDEX(SensorPricing[],MATCH(D68,SensorPricing[Sensor],0),MATCH($M$1,SensorPricing[#Headers],0))*2+ INDEX(SensorPricing[],MATCH(D68,SensorPricing[Sensor],0),MATCH($M$1,SensorPricing[#Headers],0))*(LeaseYears-2)*0.2777777)* Lease_Factor/LeaseMonths,0) -> 4
B69: No Sensor | C69: è | D69: X | E69: = | F69: $ 0 | O69: No Sensor | P69: X | Q69: Q1 | R69: USD | S69: =ROUNDUP( (INDEX(SensorPricing[],MATCH(D69,SensorPricing[Sensor],0),MATCH($M$1,SensorPricing[#Headers],0))*2+ INDEX(SensorPricing[],MATCH(D69,SensorPricing[Sensor],0),MATCH($M$1,SensorPricing[#Headers],0))*(LeaseYears-2)*0.2777777)* Lease_Factor/LeaseMonths,0) -> 0
B70: 0 | C70: =IF(B70=0,"","è") ->  | D70: 0 | E70: =IF(B70=0,"","=") ->  | S70: =ROUNDUP( (INDEX(SensorPricing[],MATCH(D70,SensorPricing[Sensor],0),MATCH($M$1,SensorPricing[#Headers],0))*2+ INDEX(SensorPricing[],MATCH(D70,SensorPricing[Sensor],0),MATCH($M$1,SensorPricing[#Headers],0))*(LeaseYears-2)*0.2777777)* Lease_Factor/LeaseMonths,0) -> 
B71: 0 | C71: =IF(B71=0,"","è") ->  | D71: 0 | E71: =IF(B71=0,"","=") ->  | S71: =ROUNDUP( (INDEX(SensorPricing[],MATCH(D71,SensorPricing[Sensor],0),MATCH($M$1,SensorPricing[#Headers],0))*2+ INDEX(SensorPricing[],MATCH(D71,SensorPricing[Sensor],0),MATCH($M$1,SensorPricing[#Headers],0))*(LeaseYears-2)*0.2777777)* Lease_Factor/LeaseMonths,0) -> 
L72: +
B73: Toxic Sensor #2
B74: =_xlfn.VSTACK(O74:O92) -> HF | C74: =IF(B74=0,"","è") -> è | D74: =_xlfn.VSTACK(P74:P92) -> 2 | E74: =IF(B74=0,"","=") -> = | F74: =IFERROR(SUM(S74:S74),"") -> $ 27 | H74: M | L74: =VLOOKUP(H74,D74:F92,3,FALSE) -> $ 0 | O74: =_xlfn.LET( _xlpm.Dtype,G7Sensors[Type1],_xlpm.Curr,G7Sensors[Currency],_xlpm.Stype,H44&2,_xlpm.SCurr,M1, _xlpm.myCalculation,_xlfn.VSTACK(_xlfn._xlws.FILTER(G7Sensors[],(_xlpm.Dtype=_xlpm.Stype)*(_xlpm.Curr=_xlpm.SCurr))),_xlpm.myCalculation) -> HF | P74: 2 | Q74: Q2 | R74: USD | S74: =ROUNDUP( (INDEX(SensorPricing[],MATCH(D74,SensorPricing[Sensor],0),MATCH($M$1,SensorPricing[#Headers],0))*2+ INDEX(SensorPricing[],MATCH(D74,SensorPricing[Sensor],0),MATCH($M$1,SensorPricing[#Headers],0))*(LeaseYears-2)*0.2777777)* Lease_Factor/LeaseMonths,0) -> 27
B75: NH3 | C75: è | D75: A | E75: = | F75: $ 4 | O75: NH3 | P75: A | Q75: Q2 | R75: USD | S75: =ROUNDUP( (INDEX(SensorPricing[],MATCH(D75,SensorPricing[Sensor],0),MATCH($M$1,SensorPricing[#Headers],0))*2+ INDEX(SensorPricing[],MATCH(D75,SensorPricing[Sensor],0),MATCH($M$1,SensorPricing[#Headers],0))*(LeaseYears-2)*0.2777777)* Lease_Factor/LeaseMonths,0) -> 4
B76: High-range NH3 | C76: è | D76: B | E76: = | F76: $ 9 | O76: High-range NH3 | P76: B | Q76: Q2 | R76: USD | S76: =ROUNDUP( (INDEX(SensorPricing[],MATCH(D76,SensorPricing[Sensor],0),MATCH($M$1,SensorPricing[#Headers],0))*2+ INDEX(SensorPricing[],MATCH(D76,SensorPricing[Sensor],0),MATCH($M$1,SensorPricing[#Headers],0))*(LeaseYears-2)*0.2777777)* Lease_Factor/LeaseMonths,0) -> 9
B77: COSH | C77: è | D77: D | E77: = | F77: $ 4 | O77: COSH | P77: D | Q77: Q2 | R77: USD | S77: =ROUNDUP( (INDEX(SensorPricing[],MATCH(D77,SensorPricing[Sensor],0),MATCH($M$1,SensorPricing[#Headers],0))*2+ INDEX(SensorPricing[],MATCH(D77,SensorPricing[Sensor],0),MATCH($M$1,SensorPricing[#Headers],0))*(LeaseYears-2)*0.2777777)* Lease_Factor/LeaseMonths,0) -> 4
B78: O3 | C78: è | D78: E | E78: = | F78: $ 8 | O78: O3 | P78: E | Q78: Q2 | R78: USD | S78: =ROUNDUP( (INDEX(SensorPricing[],MATCH(D78,SensorPricing[Sensor],0),MATCH($M$1,SensorPricing[#Headers],0))*2+ INDEX(SensorPricing[],MATCH(D78,SensorPricing[Sensor],0),MATCH($M$1,SensorPricing[#Headers],0))*(LeaseYears-2)*0.2777777)* Lease_Factor/LeaseMonths,0) -> 8
B79: H2S | C79: è | D79: H | E79: = | F79: $ 0 | O79: H2S | P79: H | Q79: Q2 | R79: USD | S79: =ROUNDUP( (INDEX(SensorPricing[],MATCH(D79,SensorPricing[Sensor],0),MATCH($M$1,SensorPricing[#Headers],0))*2+ INDEX(SensorPricing[],MATCH(D79,SensorPricing[Sensor],0),MATCH($M$1,SensorPricing[#Headers],0))*(LeaseYears-2)*0.2777777)* Lease_Factor/LeaseMonths,0) -> 0
B80: High-range H2S | C80: è | D80: J | E80: = | F80: $ 8 | O80: High-range H2S | P80: J | Q80: Q2 | R80: USD | S80: =ROUNDUP( (INDEX(SensorPricing[],MATCH(D80,SensorPricing[Sensor],0),MATCH($M$1,SensorPricing[#Headers],0))*2+ INDEX(SensorPricing[],MATCH(D80,SensorPricing[Sensor],0),MATCH($M$1,SensorPricing[#Headers],0))*(LeaseYears-2)*0.2777777)* Lease_Factor/LeaseMonths,0) -> 8
B81: NO2 | C81: è | D81: K | E81: = | F81: $ 4 | O81: NO2 | P81: K | Q81: Q2 | R81: USD | S81: =ROUNDUP( (INDEX(SensorPricing[],MATCH(D81,SensorPricing[Sensor],0),MATCH($M$1,SensorPricing[#Headers],0))*2+ INDEX(SensorPricing[],MATCH(D81,SensorPricing[Sensor],0),MATCH($M$1,SensorPricing[#Headers],0))*(LeaseYears-2)*0.2777777)* Lease_Factor/LeaseMonths,0) -> 4
B82: Cl2 | C82: è | D82: L | E82: = | F82: $ 4 | O82: Cl2 | P82: L | Q82: Q2 | R82: USD | S82: =ROUNDUP( (INDEX(SensorPricing[],MATCH(D82,SensorPricing[Sensor],0),MATCH($M$1,SensorPricing[#Headers],0))*2+ INDEX(SensorPricing[],MATCH(D82,SensorPricing[Sensor],0),MATCH($M$1,SensorPricing[#Headers],0))*(LeaseYears-2)*0.2777777)* Lease_Factor/LeaseMonths,0) -> 4
B83: CO | C83: è | D83: M | E83: = | F83: $ 0 | O83: CO | P83: M | Q83: Q2 | R83: USD | S83: =ROUNDUP( (INDEX(SensorPricing[],MATCH(D83,SensorPricing[Sensor],0),MATCH($M$1,SensorPricing[#Headers],0))*2+ INDEX(SensorPricing[],MATCH(D83,SensorPricing[Sensor],0),MATCH($M$1,SensorPricing[#Headers],0))*(LeaseYears-2)*0.2777777)* Lease_Factor/LeaseMonths,0) -> 0
B84: HCN | C84: è | D84: N | E84: = | F84: $ 4 | O84: HCN | P84: N | Q84: Q2 | R84: USD | S84: =ROUNDUP( (INDEX(SensorPricing[],MATCH(D84,SensorPricing[Sensor],0),MATCH($M$1,SensorPricing[#Headers],0))*2+ INDEX(SensorPricing[],MATCH(D84,SensorPricing[Sensor],0),MATCH($M$1,SensorPricing[#Headers],0))*(LeaseYears-2)*0.2777777)* Lease_Factor/LeaseMonths,0) -> 4
B85: CO-H | C85: è | D85: R | E85: = | F85: $ 0 | O85: CO-H | P85: R | Q85: Q2 | R85: USD | S85: =ROUNDUP( (INDEX(SensorPricing[],MATCH(D85,SensorPricing[Sensor],0),MATCH($M$1,SensorPricing[#Headers],0))*2+ INDEX(SensorPricing[],MATCH(D85,SensorPricing[Sensor],0),MATCH($M$1,SensorPricing[#Headers],0))*(LeaseYears-2)*0.2777777)* Lease_Factor/LeaseMonths,0) -> 0
B86: SO2 | C86: è | D86: S | E86: = | F86: $ 0 | O86: SO2 | P86: S | Q86: Q2 | R86: USD | S86: =ROUNDUP( (INDEX(SensorPricing[],MATCH(D86,SensorPricing[Sensor],0),MATCH($M$1,SensorPricing[#Headers],0))*2+ INDEX(SensorPricing[],MATCH(D86,SensorPricing[Sensor],0),MATCH($M$1,SensorPricing[#Headers],0))*(LeaseYears-2)*0.2777777)* Lease_Factor/LeaseMonths,0) -> 0
B87: High-range CO | C87: è | D87: T | E87: = | F87: $ 8 | O87: High-range CO | P87: T | Q87: Q2 | R87: USD | S87: =ROUNDUP( (INDEX(SensorPricing[],MATCH(D87,SensorPricing[Sensor],0),MATCH($M$1,SensorPricing[#Headers],0))*2+ INDEX(SensorPricing[],MATCH(D87,SensorPricing[Sensor],0),MATCH($M$1,SensorPricing[#Headers],0))*(LeaseYears-2)*0.2777777)* Lease_Factor/LeaseMonths,0) -> 8
B88: ClO2 | C88: è | D88: W | E88: = | F88: $ 4 | O88: ClO2 | P88: W | Q88: Q2 | R88: USD | S88: =ROUNDUP( (INDEX(SensorPricing[],MATCH(D88,SensorPricing[Sensor],0),MATCH($M$1,SensorPricing[#Headers],0))*2+ INDEX(SensorPricing[],MATCH(D88,SensorPricing[Sensor],0),MATCH($M$1,SensorPricing[#Headers],0))*(LeaseYears-2)*0.2777777)* Lease_Factor/LeaseMonths,0) -> 4
B89: No Sensor | C89: è | D89: X | E89: = | F89: $ 0 | O89: No Sensor | P89: X | Q89: Q2 | R89: USD | S89: =ROUNDUP( (INDEX(SensorPricing[],MATCH(D89,SensorPricing[Sensor],0),MATCH($M$1,SensorPricing[#Headers],0))*2+ INDEX(SensorPricing[],MATCH(D89,SensorPricing[Sensor],0),MATCH($M$1,SensorPricing[#Headers],0))*(LeaseYears-2)*0.2777777)* Lease_Factor/LeaseMonths,0) -> 0
B90: 0 | D90: 0 | S90: =ROUNDUP( (INDEX(SensorPricing[],MATCH(D90,SensorPricing[Sensor],0),MATCH($M$1,SensorPricing[#Headers],0))*2+ INDEX(SensorPricing[],MATCH(D90,SensorPricing[Sensor],0),MATCH($M$1,SensorPricing[#Headers],0))*(LeaseYears-2)*0.2777777)* Lease_Factor/LeaseMonths,0) -> 
B91: 0 | D91: 0 | S91: =ROUNDUP( (INDEX(SensorPricing[],MATCH(D91,SensorPricing[Sensor],0),MATCH($M$1,SensorPricing[#Headers],0))*2+ INDEX(SensorPricing[],MATCH(D91,SensorPricing[Sensor],0),MATCH($M$1,SensorPricing[#Headers],0))*(LeaseYears-2)*0.2777777)* Lease_Factor/LeaseMonths,0) -> 
B92: 0 | D92: 0 | S92: =ROUNDUP( (INDEX(SensorPricing[],MATCH(D92,SensorPricing[Sensor],0),MATCH($M$1,SensorPricing[#Headers],0))*2+ INDEX(SensorPricing[],MATCH(D92,SensorPricing[Sensor],0),MATCH($M$1,SensorPricing[#Headers],0))*(LeaseYears-2)*0.2777777)* Lease_Factor/LeaseMonths,0) -> 
L93: +
B94: Oxygen Sensor
B95: =_xlfn.VSTACK(O95:O96) -> O2 | C95: =IF(B95=0,"","è") -> è | D95: =_xlfn.VSTACK(P95:P96) -> O | E95: =IF(B95=0,"","=") -> = | F95: =IFERROR(SUM(S95:T95),"") -> $ 0 | H95: O | L95: =VLOOKUP(H95,D95:F96,3,FALSE) -> $ 0 | O95: =_xlfn._xlws.FILTER(_xlfn._xlws.FILTER(Oxygen[],Oxygen[Type]=H48),{1,1,0}) -> O2 | P95: O | S95: =ROUNDUP( (INDEX(SensorPricing[],MATCH(D95,SensorPricing[Sensor],0),MATCH($M$1,SensorPricing[#Headers],0))*2+ INDEX(SensorPricing[],MATCH(D95,SensorPricing[Sensor],0),MATCH($M$1,SensorPricing[#Headers],0))*(LeaseYears-2)*0.2777777)* Lease_Factor/LeaseMonths,0) -> 0
B96: 0 | D96: 0 | F96: =IFERROR(SUM(S96:T96),"") ->  | S96: =ROUNDUP( (INDEX(SensorPricing[],MATCH(D96,SensorPricing[Sensor],0),MATCH($M$1,SensorPricing[#Headers],0))*2+ INDEX(SensorPricing[],MATCH(D96,SensorPricing[Sensor],0),MATCH($M$1,SensorPricing[#Headers],0))*(LeaseYears-2)*0.2777777)* Lease_Factor/LeaseMonths,0) -> 
H97: -
B98: Country Code
B99: =_xlfn.VSTACK(O99:O101) -> North America (3G/4G) - G7C | C99: =IF(B99="","","è") -> è | D99: =IFERROR(VLOOKUP(B99,Lookup!$F$3:$G$12,2,FALSE),"") -> NA2 | H99: NA2 | O99: =_xlfn.LET( _xlpm.Dtype,G7CountryCodes[Type],_xlpm.Curr,G7CountryCodes[Currency],_xlpm.SType,H40,_xlpm.SCurr,M1, _xlpm.myCalculation,_xlfn.VSTACK(_xlfn._xlws.FILTER(G7CountryCodes[],(_xlpm.Dtype=_xlpm.SType)*(_xlpm.Curr=_xlpm.SCurr))),_xlpm.myCalculation) -> North America (3G/4G) - G7C | P99: NA2 | Q99: C | R99: USD
B100: Outside of North America (3G/4G) - G7C | C100: =IF(B100=0,"","è") -> è | D100: =IFERROR(VLOOKUP(B100,Lookup!$F$3:$G$12,2,FALSE),"") -> EU2 | O100: Outside of North America (3G/4G) - G7C | P100: EU2 | Q100: C | R100: USD
B101: Brazil (3G/4G) - G7C | C101: =IF(B101=0,"","è") -> è | D101: =IFERROR(VLOOKUP(B101,Lookup!$F$3:$G$12,2,FALSE),"") -> BR2 | O101: Brazil (3G/4G) - G7C | P101: BR2 | Q101: C | R101: USD
H102: -
B103: Term
B104: Three-Years | C104: è | D104: 3Y | H104: 4Y | R104: =LEFT(H104,1) -> 4 | S104: =LEFT(H104,1)*12 -> 48
B105: Four-Years | C105: è | D105: 4Y

Sheet G7 Bridge & Satellite Plans
M1: =Currency -> USD | P1: G7 Bridge & Satellite Plans
B2: G7 Bridge and Satellite Plans | M2: =PBYear -> 2025 | N2: Quick Links
M3: =Revision -> Effective February 2, 2026 Rev 2 | N3: Main Menu
M4: Blackline Safety Confidential | N4: G7 Multi-Gas Purchase
M5: All prices are an estimate - for a formal quote contact your local Blackline Safety representative | N5: G7 Multi-Gas Blend
M6: Lease buying option not available in all countries. Please confirm with your local Blackline representative | N6: G7 Multi-Gas Lease
N7: Accessories
F8: Bridge | H8: =IF(OR(M1="AUD",M1="CAD",M1="USD"),CONCATENATE(H16,"-",H19),"") -> BRIDGE-NA2 | L8: =L16 -> $ 1,332 | M8: upfront
F10: Satellite Service | H10: =IF(OR(M1="AUD",M1="CAD",M1="USD"),CONCATENATE(H23,"-",H26),"") -> SER-BRIDGE-1Y | L10: =L26 -> $ 801 | M10: per year
F12: Lease w/ Service | H12: =IF(OR(M1="AUD",M1="CAD",M1="USD"),CONCATENATE(H35,"-",H38,"-",H41),"") -> CMP-BRIDGE-NA2-4Y | L12: =L41 -> $ 113 | M12: per month
B14: Bridge (Purchase)
B15: Buying Option
B16: Purchase | F16: =R16 -> $ 1,332 | H16: BRIDGE | L16: =F16 -> $ 1,332 | R16: =INDEX(BridgePricing[],MATCH("Bridge",BridgePricing[Type],0),MATCH($M$1,BridgePricing[#Headers],0)) -> 1332
H17: -
B18: Region
B19: =IFERROR(O19,"Not Available") -> North America | C19: è | D19: =IF(P19=0,"",P19) -> NA2 | H19: =D19 -> NA2 | O19: =_xlfn.LET( _xlpm.Curr,BridgeCountryCodes[Currency],_xlpm.SCurr,M1, _xlpm.myCalculation,_xlfn.VSTACK(_xlfn._xlws.FILTER(BridgeCountryCodes[],(_xlpm.Curr=_xlpm.SCurr))),_xlpm.myCalculation) -> North America | P19: NA2 | Q19: 0 | R19: USD
B21: Bridge Service Plans
B22: Buying Option
B23: Purchase | H23: SER-BRIDGE
H24: -
B25: Purchase Term
B26: 1-Year | C26: è | D26: 1Y | F26: =R26 -> $ 801 | H26: 1Y | L26: =VLOOKUP(H26,D26:F30,3,FALSE) -> $ 801 | R26: =INDEX(BridgePricing[],MATCH("1Y Service",BridgePricing[Type],0),MATCH($M$1,BridgePricing[#Headers],0)) -> 801
B27: 2-Years | C27: è | D27: 2Y | F27: =R27 -> $ 785 | R27: =INDEX(BridgePricing[],MATCH("2Y Service",BridgePricing[Type],0),MATCH($M$1,BridgePricing[#Headers],0)) -> 785
B28: 3-Years | C28: è | D28: 3Y | F28: $ 777 | R28: =INDEX(BridgePricing[],MATCH("3Y Service",BridgePricing[Type],0),MATCH($M$1,BridgePricing[#Headers],0)) -> 777
B29: 4-Years | C29: è | D29: 4Y | F29: $ 769 | R29: =INDEX(BridgePricing[],MATCH("4Y Service",BridgePricing[Type],0),MATCH($M$1,BridgePricing[#Headers],0)) -> 769
B30: 5-Years | C30: è | D30: 5Y | F30: $ 761 | R30: =INDEX(BridgePricing[],MATCH("5Y Service",BridgePricing[Type],0),MATCH($M$1,BridgePricing[#Headers],0)) -> 761
B33: Bridge (Lease) - Includes Service Plan
B34: Buying Option
B35: Lease | H35: CMP-BRIDGE
H36: -
B37: Region
B38: =IFERROR(O38,"Not Available") -> North America | C38: è | D38: =IF(P38=0,"",P38) -> NA2 | H38: =D38 -> NA2 | O38: =_xlfn.LET( _xlpm.Curr,BridgeCountryCodes[Currency],_xlpm.SCurr,M1, _xlpm.myCalculation,_xlfn.VSTACK(_xlfn._xlws.FILTER(BridgeCountryCodes[],(_xlpm.Curr=_xlpm.SCurr))),_xlpm.myCalculation) -> North America | P38: NA2 | Q38: 0 | R38: USD
H39: -
B40: Lease Term
B41: 1-Year | C41: è | D41: 1Y | F41: =IFERROR(R41,"N/A") -> $ 213 | H41: 4Y | L41: =VLOOKUP(H41,D41:F45,3,FALSE) -> $ 113 | R41: =ROUND(($R$16/12+$R$26/12)*Lease_Factor,0) -> 213
B42: 2-years | C42: è | D42: 2Y | F42: =IFERROR(R42,"N/A") -> $ 147 | R42: =ROUND(($R$16/24+$R$26/12)*Lease_Factor,0) -> 147
B43: 3-Years | C43: è | D43: 3Y | F43: $ 125 | R43: =ROUND(($R$16/36+$R$26/12)*Lease_Factor,0) -> 125
B44: 4-Years | C44: è | D44: 4Y | F44: $ 113 | R44: =ROUND(($R$16/48+$R$26/12)*Lease_Factor,0) -> 113
B45: 5-Years | C45: è | D45: 5Y | F45: $ 107 | R45: =ROUND(($R$16/60+$R$26/12)*Lease_Factor,0) -> 107

Sheet G8 Lone Worker Purchase
M1: =Currency -> USD | P1: G8 Lone Worker Purchase
B2: G8 Lone Worker Purchase | M2: =PBYear -> 2025 | N2: Quick Links
M3: =Revision -> Effective February 2, 2026 Rev 2 | N3: Main Menu
M4: Blackline Safety Confidential | N4: Accessories
M5: All prices are an estimate - for a formal quote contact your local Blackline Safety representative
F8: =CONCATENATE(H15,H19,H20,H22,H23,H25,H28,H30,H31,H33,H37,ServicePlans,H44,H49,H53,H57,H59,H61) -> J-G8C-01-NA2-Z-2Y-SXXXX-2Y | L8: =IFERROR(L15+L33+L39+L44+L49+L53+L57,"Error") -> $ 1,002 | M8: =M1&" List" -> USD List
F12: Additional Cartridge | H12: =_xlfn.LET(_xlpm.trm,IF(H33="2Y","2Y","3Y"), CONCATENATE("J-CART-",H30,"-",_xlpm.trm,"-R")) -> J-CART-Z-2Y-R | L12: =X16 -> $ 118 | M12: =M1&" List" -> USD List
B14: Buying Option | S14: Price | W14: Additional CART
B15: Purchase | C15: è | D15: J-G8 | H15: =D15 -> J-G8 | L15: =F16 -> $ 594 | X15: =IF(H33="2Y",2.5,3) -> 2.5
A16: 1 | D16: Lone Worker | E16: = | F16: =SUM(S16:T16) -> $ 594 | R16: 1 | S16: =INDEX(BasePrices[],MATCH("G8 Purchase Base Price",BasePrices[Type],0),MATCH($M$1,BasePrices[#Headers],0)) -> 594 | X16: =ROUNDUP(INDEX(BasePrices[],MATCH("Standard Cartridge",BasePrices[Type],0),MATCH($M$1,BasePrices[#Headers],0))*$X$15,0) -> 118
L17: +
B18: Connectivity
B19: Cellular | C19: è | D19: C | H19: C
H20: -
B21: SIM Card
B22: Standard (Telenor) | C22: è | D22: 01 | H22: =D22 -> 01
H23: -
B24: Country Code
B25: =_xlfn.VSTACK(O25:O27) -> North America (4G/LTE) - G8C | C25: =IF(B25="","","è") -> è | D25: =IFERROR(_xlfn.VSTACK(P25:P27),"") -> NA2 | H25: NA2 | O25: =_xlfn.LET( _xlpm.Dtype,G8CountryCodes[Type],_xlpm.Curr,G8CountryCodes[Currency],_xlpm.SType,H19,_xlpm.SCurr,M1, _xlpm.myCalculation,_xlfn.VSTACK(_xlfn._xlws.FILTER(G8CountryCodes[],(_xlpm.Dtype=_xlpm.SType)*(_xlpm.Curr=_xlpm.SCurr))),_xlpm.myCalculation) -> North America (4G/LTE) - G8C | P25: NA2 | Q25: C | R25: USD
B26: Outside of North America (4G/LTE) - G8C | C26: =IF(B26=0,"","è") -> è | D26: EU2 | O26: Outside of North America (4G/LTE) - G8C | P26: EU2 | Q26: C | R26: USD
B27: 0 | C27: =IF(B27=0,"","è") ->  | D27: 0
H28: -
B29: Cartridge Type
B30: Lone Worker | C30: è | D30: Z | H30: =D30 -> Z
H31: -
B32: Warranty Term
B33: =_xlfn.VSTACK(O33:O36) -> 2-Years | C33: è | D33: =_xlfn.VSTACK(P33:P36) -> 2Y | H33: 2Y | L33: =S33 -> $ 0 | O33: =_xlfn.VSTACK(G8PurWarr[]) -> 2-Years | P33: 2Y | Q33: 2Y | S33: =INDEX(BasePrices[],MATCH("G7 Warranty Base Price",BasePrices[Type],0),MATCH($M$1,BasePrices[#Headers],0))*MAX(0,LEFT(H33,1)-2) -> 0
B34: 3-Years | C34: è | D34: 3Y | O34: 3-Years | P34: 3Y | Q34: 3Y
B35: 4-Years | C35: è | D35: 4Y | O35: 4-Years | P35: 4Y | Q35: 4Y
B36: 5-Years | C36: è | D36: 5Y | O36: 5-Years | P36: 5Y | Q36: 5Y
H37: - | L37: +
B38: Service Plan
B39: =_xlfn.VSTACK(O39:O41) -> Standard | C39: =IF(B39=0,"","è") -> è | D39: =_xlfn.VSTACK(P39:P41) -> S | E39: =IF(B39=0,"","=") -> = | F39: =IFERROR(S39,"") -> $ 408 | H39: S | L39: =VLOOKUP(H39,D39:F41,3,FALSE) -> $ 408 | O39: =_xlfn.VSTACK(G8ServicePlans[]) -> Standard | P39: S | S39: =INDEX(G8ServicePrices[],MATCH(D39,G8ServicePrices[Code],0),MATCH($M$1,G8ServicePrices[#Headers],0))*PurhcaseTerm -> 408
B40: Pro | C40: è | D40: K | E40: = | F40: $ 768 | O40: Pro | P40: K | S40: =INDEX(G8ServicePrices[],MATCH(D40,G8ServicePrices[Code],0),MATCH($M$1,G8ServicePrices[#Headers],0))*PurhcaseTerm -> 768
B41: 0 | D41: 0 | S41: =INDEX(G8ServicePrices[],MATCH(D41,G8ServicePrices[Code],0),MATCH($M$1,G8ServicePrices[#Headers],0))*PurhcaseTerm -> 
L42: +
B43: Monitoring Services
B44: =_xlfn.VSTACK(O44:O46) -> None | C44: =IF(B44=0,"","è") -> è | D44: =_xlfn.VSTACK(P44:P46) -> X | E44: =IF(B44=0,"","=") -> = | F44: =IFERROR(S44,"") -> $ 0 | H44: X | L44: =VLOOKUP(H44,D44:F46,3,FALSE) -> $ 0 | O44: =_xlfn._xlws.FILTER(_xlfn._xlws.FILTER(G8Monitoring[],G8Monitoring[Type]=ServicePlans),{1,1,0}) -> None | P44: X | S44: =IF(P44="X",0,INDEX(G8ServicePrices[],MATCH(D44,G8ServicePrices[Code],0),MATCH($M$1,G8ServicePrices[#Headers],0))*PurhcaseTerm) -> 0
B45: 0 | D45: 0 | F45: =IFERROR(S45,"") ->  | S45: =IF(P45="X",0,INDEX(G8ServicePrices[],MATCH(D45,G8ServicePrices[Code],0),MATCH($M$1,G8ServicePrices[#Headers],0))*PurhcaseTerm) -> 
B46: 0 | D46: 0 | F46: =IFERROR(S46,"") ->  | S46: =IF(P46="X",0,INDEX(G8ServicePrices[],MATCH(D46,G8ServicePrices[Code],0),MATCH($M$1,G8ServicePrices[#Headers],0))*PurhcaseTerm) -> 
L47: +
B48: Voice
B49: =_xlfn.VSTACK(O49:O50) -> None | C49: =IF(B49=0,"","è") -> è | D49: =_xlfn.VSTACK(P49:P50) -> X | E49: =IF(B49=0,"","=") -> = | F49: =IFERROR(S49,"") -> $ 0 | H49: X | L49: =VLOOKUP(H49,D49:F50,3,FALSE) -> $ 0 | O49: =_xlfn._xlws.FILTER(_xlfn._xlws.FILTER(G8Voice[],G8Voice[Type]=ServicePlans),{1,1,0}) -> None | P49: X | S49: =IF(P49="X",0,INDEX(G8ServicePrices[],MATCH(D49,G8ServicePrices[Code],0),MATCH($M$1,G8ServicePrices[#Headers],0))*PurhcaseTerm) -> 0
B50: 0 | D50: 0 | F50: =IFERROR(S50,"") ->  | S50: =IF(P50="X",0,INDEX(G8ServicePrices[],MATCH(D50,G8ServicePrices[Code],0),MATCH($M$1,G8ServicePrices[#Headers],0))*PurhcaseTerm) -> 
L51: +
B52: Push-to-Talk
B53: =_xlfn.VSTACK(O53:O54) -> None | C53: =IF(B53=0,"","è") -> è | D53: =_xlfn.VSTACK(P53:P54) -> X | E53: =IF(B53=0,"","=") -> = | F53: =IFERROR(S53,"") -> $ 0 | H53: X | L53: =VLOOKUP(H53,D53:F54,3,FALSE) -> $ 0 | O53: =_xlfn._xlws.FILTER(_xlfn._xlws.FILTER(G8PTT[],G8PTT[Type]=ServicePlans),{1,1,0}) -> None | P53: X | S53: =IF(P53="X",0,INDEX(G8ServicePrices[],MATCH(D53,G8ServicePrices[Code],0),MATCH($M$1,G8ServicePrices[#Headers],0))*PurhcaseTerm) -> 0
B54: Included | C54: è | D54: P | E54: = | F54: =IFERROR(S54,"") -> $ 456 | O54: Included | P54: P | S54: =IF(P54="X",0,INDEX(G8ServicePrices[],MATCH(D54,G8ServicePrices[Code],0),MATCH($M$1,G8ServicePrices[#Headers],0))*PurhcaseTerm) -> 456
L55: +
B56: Future Service Option
B57: =_xlfn.VSTACK(O57:O58) -> None | C57: =IF(B57=0,"","è") -> è | D57: =_xlfn.VSTACK(P57:P58) -> X | E57: =IF(B57=0,"","=") -> = | F57: =IFERROR(S57,"") -> $ 0 | H57: X | L57: =VLOOKUP(H57,D57:F58,3,FALSE) -> $ 0 | O57: =_xlfn._xlws.FILTER(_xlfn._xlws.FILTER(G8TeamCalling[],G8TeamCalling[Type]=ServicePlans),{1,1,0}) -> None | P57: X | S57: =IF(P57="X",0,INDEX(G8ServicePrices[],MATCH(D57,G8ServicePrices[Code],0),MATCH($M$1,G8ServicePrices[#Headers],0))*PurhcaseTerm) -> 0
B58: 0 | D58: 0 | F58: =IFERROR(S58,"") ->  | S58: =IF(P58="X",0,INDEX(G8ServicePrices[],MATCH(D58,G8ServicePrices[Code],0),MATCH($M$1,G8ServicePrices[#Headers],0))*PurhcaseTerm) -> 
H59: -
B60: Term
B61: One-Year | C61: è | D61: 1Y | H61: 2Y | S61: =LEFT(H61,1)*12 -> 24
B62: Two-Years | C62: è | D62: 2Y
B63: Three-Years | C63: è | D63: 3Y
B64: Four-Years | C64: è | D64: 4Y
B65: Five-Years | C65: è | D65: 5Y

Sheet G8 Single-Gas Purchase
M1: =Currency -> USD | P1: G8 Single-Gas Purchase
B2: G8 Single-Gas Purchase | M2: =PBYear -> 2025 | N2: Quick Links
M3: =Revision -> Effective February 2, 2026 Rev 2 | N3: Main Menu
M4: Blackline Safety Confidential | N4: Accessories
M5: All prices are an estimate - for a formal quote contact your local Blackline Safety representative
F8: =CONCATENATE(H15,H19,H20,H22,H23,H25,H28,H30,H31,H33,H52,H54,H58,ServicePlans,H65,H70,H74,H78,H80,H82) -> J-G8C-01-EU2-S-H-2Y-SXXXX-2Y | L8: =IFERROR(L15+L30+L33+L54+L60+L65+L70+L74+L78,"Error") -> $ 1,148 | M8: =M1&" List" -> USD List
F12: Additional Cartridge | H12: =_xlfn.LET(_xlpm.trm,IF(H54="2Y","2Y","3Y"), CONCATENATE("J-CART-",H30,"-",H33,"-",_xlpm.trm,"-R")) -> J-CART-S-H-2Y-R | L12: =SUM(X16:X32) -> $ 183 | M12: =M1&" List" -> USD List
B14: Buying Option | S14: Price | T14: EWAR | W14: Additional CART
B15: Purchase | C15: è | D15: J-G8 | H15: =D15 -> J-G8 | L15: =S16 -> $ 594 | X15: =IF(H54="2Y",2.5,3) -> 2.5
A16: 1 | D16: Single-sensor | E16: = | F16: =SUM(S16:T16) -> $ 594 | R16: 1 | S16: =INDEX(BasePrices[],MATCH("G8 Purchase Base Price",BasePrices[Type],0),MATCH($M$1,BasePrices[#Headers],0)) -> 594 | T16: =INDEX(BasePrices[],MATCH("G7 Warranty Base Price",BasePrices[Type],0),MATCH($M$1,BasePrices[#Headers],0))*MAX(0,LEFT(H54,1)-2) -> 0 | X16: =ROUNDUP(INDEX(BasePrices[],MATCH(R16&" Sensor Cartridge",BasePrices[Type],0),MATCH($M$1,BasePrices[#Headers],0))*$X$15,0) -> 183
L17: +
B18: Connectivity
B19: Cellular | C19: è | D19: C | H19: C
H20: -
B21: SIM Card
B22: Standard (Telenor) | C22: è | D22: 01 | H22: =D22 -> 01
H23: -
B24: Country Code
B25: =_xlfn.VSTACK(O25:O27) -> North America (4G/LTE) - G8C | C25: =IF(B25="","","è") -> è | D25: =IFERROR(_xlfn.VSTACK(P25:P27),"") -> NA2 | H25: EU2 | O25: =_xlfn.LET( _xlpm.Dtype,G8CountryCodes[Type],_xlpm.Curr,G8CountryCodes[Currency],_xlpm.SType,H19,_xlpm.SCurr,M1, _xlpm.myCalculation,_xlfn.VSTACK(_xlfn._xlws.FILTER(G8CountryCodes[],(_xlpm.Dtype=_xlpm.SType)*(_xlpm.Curr=_xlpm.SCurr))),_xlpm.myCalculation) -> North America (4G/LTE) - G8C | P25: NA2 | Q25: C | R25: USD
B26: Outside of North America (4G/LTE) - G8C | C26: =IF(B26=0,"","è") -> è | D26: EU2 | O26: Outside of North America (4G/LTE) - G8C | P26: EU2 | Q26: C | R26: USD
B27: 0 | C27: =IF(B27=0,"","è") ->  | D27: 0
H28: -
B29: Cartridge Type
B30: Single Sensor | C30: è | D30: S | E30: = | F30: =SUM(S30:T30) -> $ 146 | H30: =D30 -> S | L30: =S30 -> $ 146 | S30: =INDEX(BasePrices[],MATCH(R16&" Sensor Cartridge",BasePrices[Type],0),MATCH($M$1,BasePrices[#Headers],0))*2 -> 146 | T30: =ROUNDUP(INDEX(BasePrices[],MATCH(R16&" Sensor Cartridge",BasePrices[Type],0),MATCH($M$1,BasePrices[#Headers],0))*0.2777777,0)*MAX(0,LEFT(H54,1)-2) -> 0
H31: - | L31: +
B32: Toxic Sensor | X32: =VLOOKUP(H33,D33:W51,20,FALSE) -> 0
B33: =_xlfn.VSTACK(O33:O51) -> HF | C33: =IF(B33=0,"","è") -> è | D33: =_xlfn.VSTACK(P33:P51) -> 2 | E33: =IF(B33=0,"","=") -> = | F33: =IFERROR(S33,"") -> $ 840 | H33: H | L33: =VLOOKUP(H33,D33:F51,3,FALSE) -> $ 0 | O33: =_xlfn.LET( _xlpm.Dtype,G7Sensors[Type1],_xlpm.Curr,G7Sensors[Currency],_xlpm.Stype,H30,_xlpm.SCurr,M1, _xlpm.myCalculation,_xlfn.VSTACK(_xlfn._xlws.FILTER(G7Sensors[],(_xlpm.Dtype=_xlpm.Stype)*(_xlpm.Curr=_xlpm.SCurr))),_xlpm.myCalculation) -> HF | P33: 2 | Q33: S | R33: USD | S33: =INDEX(SensorPricing[],MATCH(D33,SensorPricing[Sensor],0),MATCH($M$1,SensorPricing[#Headers],0))*2 -> 840 | T33: =ROUNDUP(INDEX(SensorPricing[],MATCH(H33,SensorPricing[Sensor],0),MATCH($M$1,SensorPricing[#Headers],0))*0.2777777,0)*MAX(0,LEFT(H54,1)-2) -> 0 | W33: =INDEX(SensorPricing[],MATCH(D33,SensorPricing[Sensor],0),MATCH($M$1,SensorPricing[#Headers],0))*$X$15 -> 1050
B34: NH3 | C34: è | D34: A | E34: = | F34: =IFERROR(S34,"") -> $ 120 | O34: NH3 | P34: A | Q34: S | R34: USD | S34: =INDEX(SensorPricing[],MATCH(D34,SensorPricing[Sensor],0),MATCH($M$1,SensorPricing[#Headers],0))*2 -> 120 | W34: =INDEX(SensorPricing[],MATCH(D34,SensorPricing[Sensor],0),MATCH($M$1,SensorPricing[#Headers],0))*$X$15 -> 150
B35: High-range NH3 | C35: è | D35: B | E35: = | F35: $ 252 | O35: High-range NH3 | P35: B | Q35: S | R35: USD | S35: =INDEX(SensorPricing[],MATCH(D35,SensorPricing[Sensor],0),MATCH($M$1,SensorPricing[#Headers],0))*2 -> 252 | W35: =INDEX(SensorPricing[],MATCH(D35,SensorPricing[Sensor],0),MATCH($M$1,SensorPricing[#Headers],0))*$X$15 -> 315
B36: CO2 | C36: è | D36: C | E36: = | F36: $ 480 | O36: CO2 | P36: C | Q36: S | R36: USD | S36: =INDEX(SensorPricing[],MATCH(D36,SensorPricing[Sensor],0),MATCH($M$1,SensorPricing[#Headers],0))*2 -> 480 | W36: =INDEX(SensorPricing[],MATCH(D36,SensorPricing[Sensor],0),MATCH($M$1,SensorPricing[#Headers],0))*$X$15 -> 600
B37: O3 | C37: è | D37: E | E37: = | F37: $ 240 | O37: O3 | P37: E | Q37: S | R37: USD | S37: =INDEX(SensorPricing[],MATCH(D37,SensorPricing[Sensor],0),MATCH($M$1,SensorPricing[#Headers],0))*2 -> 240 | W37: =INDEX(SensorPricing[],MATCH(D37,SensorPricing[Sensor],0),MATCH($M$1,SensorPricing[#Headers],0))*$X$15 -> 300
B38: H2S | C38: è | D38: H | E38: = | F38: $ 0 | O38: H2S | P38: H | Q38: S | R38: USD | S38: =INDEX(SensorPricing[],MATCH(D38,SensorPricing[Sensor],0),MATCH($M$1,SensorPricing[#Headers],0))*2 -> 0 | W38: =INDEX(SensorPricing[],MATCH(D38,SensorPricing[Sensor],0),MATCH($M$1,SensorPricing[#Headers],0))*$X$15 -> 0
B39: High-range H2S | C39: è | D39: J | E39: = | F39: $ 240 | O39: High-range H2S | P39: J | Q39: S | R39: USD | S39: =INDEX(SensorPricing[],MATCH(D39,SensorPricing[Sensor],0),MATCH($M$1,SensorPricing[#Headers],0))*2 -> 240 | W39: =INDEX(SensorPricing[],MATCH(D39,SensorPricing[Sensor],0),MATCH($M$1,SensorPricing[#Headers],0))*$X$15 -> 300
B40: NO2 | C40: è | D40: K | E40: = | F40: $ 120 | O40: NO2 | P40: K | Q40: S | R40: USD | S40: =INDEX(SensorPricing[],MATCH(D40,SensorPricing[Sensor],0),MATCH($M$1,SensorPricing[#Headers],0))*2 -> 120 | W40: =INDEX(SensorPricing[],MATCH(D40,SensorPricing[Sensor],0),MATCH($M$1,SensorPricing[#Headers],0))*$X$15 -> 150
B41: Cl2 | C41: è | D41: L | E41: = | F41: $ 120 | O41: Cl2 | P41: L | Q41: S | R41: USD | S41: =INDEX(SensorPricing[],MATCH(D41,SensorPricing[Sensor],0),MATCH($M$1,SensorPricing[#Headers],0))*2 -> 120 | W41: =INDEX(SensorPricing[],MATCH(D41,SensorPricing[Sensor],0),MATCH($M$1,SensorPricing[#Headers],0))*$X$15 -> 150
B42: CO | C42: è | D42: M | E42: = | F42: $ 0 | O42: CO | P42: M | Q42: S | R42: USD | S42: =INDEX(SensorPricing[],MATCH(D42,SensorPricing[Sensor],0),MATCH($M$1,SensorPricing[#Headers],0))*2 -> 0 | W42: =INDEX(SensorPricing[],MATCH(D42,SensorPricing[Sensor],0),MATCH($M$1,SensorPricing[#Headers],0))*$X$15 -> 0
B43: HCN | C43: è | D43: N | E43: = | F43: $ 120 | O43: HCN | P43: N | Q43: S | R43: USD | S43: =INDEX(SensorPricing[],MATCH(D43,SensorPricing[Sensor],0),MATCH($M$1,SensorPricing[#Headers],0))*2 -> 120 | W43: =INDEX(SensorPricing[],MATCH(D43,SensorPricing[Sensor],0),MATCH($M$1,SensorPricing[#Headers],0))*$X$15 -> 150
B44: O2 | C44: è | D44: O | E44: = | F44: $ 0 | O44: O2 | P44: O | Q44: S | R44: USD | S44: =INDEX(SensorPricing[],MATCH(D44,SensorPricing[Sensor],0),MATCH($M$1,SensorPricing[#Headers],0))*2 -> 0 | W44: =INDEX(SensorPricing[],MATCH(D44,SensorPricing[Sensor],0),MATCH($M$1,SensorPricing[#Headers],0))*$X$15 -> 0
B45: CO-H | C45: è | D45: R | E45: = | F45: $ 0 | O45: CO-H | P45: R | Q45: S | R45: USD | S45: =INDEX(SensorPricing[],MATCH(D45,SensorPricing[Sensor],0),MATCH($M$1,SensorPricing[#Headers],0))*2 -> 0 | W45: =INDEX(SensorPricing[],MATCH(D45,SensorPricing[Sensor],0),MATCH($M$1,SensorPricing[#Headers],0))*$X$15 -> 0
B46: SO2 | C46: è | D46: S | E46: = | F46: $ 0 | O46: SO2 | P46: S | Q46: S | R46: USD | S46: =INDEX(SensorPricing[],MATCH(D46,SensorPricing[Sensor],0),MATCH($M$1,SensorPricing[#Headers],0))*2 -> 0 | W46: =INDEX(SensorPricing[],MATCH(D46,SensorPricing[Sensor],0),MATCH($M$1,SensorPricing[#Headers],0))*$X$15 -> 0
B47: High-range CO | C47: è | D47: T | E47: = | F47: $ 240 | O47: High-range CO | P47: T | Q47: S | R47: USD | S47: =INDEX(SensorPricing[],MATCH(D47,SensorPricing[Sensor],0),MATCH($M$1,SensorPricing[#Headers],0))*2 -> 240 | W47: =INDEX(SensorPricing[],MATCH(D47,SensorPricing[Sensor],0),MATCH($M$1,SensorPricing[#Headers],0))*$X$15 -> 300
B48: PID | C48: è | D48: V | E48: = | F48: $ 966 | O48: PID | P48: V | Q48: S | R48: USD | S48: =INDEX(SensorPricing[],MATCH(D48,SensorPricing[Sensor],0),MATCH($M$1,SensorPricing[#Headers],0))*2 -> 966 | W48: =INDEX(SensorPricing[],MATCH(D48,SensorPricing[Sensor],0),MATCH($M$1,SensorPricing[#Headers],0))*$X$15 -> 1207.5
B49: ClO2 | C49: è | D49: W | E49: = | F49: $ 120 | O49: ClO2 | P49: W | Q49: S | R49: USD | S49: =INDEX(SensorPricing[],MATCH(D49,SensorPricing[Sensor],0),MATCH($M$1,SensorPricing[#Headers],0))*2 -> 120 | W49: =INDEX(SensorPricing[],MATCH(D49,SensorPricing[Sensor],0),MATCH($M$1,SensorPricing[#Headers],0))*$X$15 -> 150
B50: 0 | C50: =IF(B50=0,"","è") ->  | D50: 0 | E50: =IF(B50=0,"","=") ->  | S50: =INDEX(SensorPricing[],MATCH(D50,SensorPricing[Sensor],0),MATCH($M$1,SensorPricing[#Headers],0))*2 ->  | W50: =INDEX(SensorPricing[],MATCH(D50,SensorPricing[Sensor],0),MATCH($M$1,SensorPricing[#Headers],0))*$X$15 -> 
B51: 0 | C51: =IF(B51=0,"","è") ->  | D51: 0 | E51: =IF(B51=0,"","=") ->  | S51: =INDEX(SensorPricing[],MATCH(D51,SensorPricing[Sensor],0),MATCH($M$1,SensorPricing[#Headers],0))*2 ->  | W51: =INDEX(SensorPricing[],MATCH(D51,SensorPricing[Sensor],0),MATCH($M$1,SensorPricing[#Headers],0))*$X$15 -> 
H52: - | L52: +
B53: Warranty Term
B54: =_xlfn.VSTACK(O54:O57) -> 2-Years | C54: è | D54: =_xlfn.VSTACK(P54:P57) -> 2Y | H54: 2Y | L54: =S54 -> $ 0 | O54: =_xlfn.VSTACK(G8PurWarr[]) -> 2-Years | P54: 2Y | Q54: 2Y | S54: =SUM(T16:T33) -> 0
B55: 3-Years | C55: è | D55: 3Y | O55: 3-Years | P55: 3Y | Q55: 3Y
B56: 4-Years | C56: è | D56: 4Y | O56: 4-Years | P56: 4Y | Q56: 4Y
B57: 5-Years | C57: è | D57: 5Y | O57: 5-Years | P57: 5Y | Q57: 5Y
H58: - | L58: +
B59: Service Plan
B60: =_xlfn.VSTACK(O60:O62) -> Standard | C60: =IF(B60=0,"","è") -> è | D60: =_xlfn.VSTACK(P60:P62) -> S | E60: =IF(B60=0,"","=") -> = | F60: =IFERROR(S60,"") -> $ 408 | H60: S | L60: =VLOOKUP(H60,D60:F62,3,FALSE) -> $ 408 | O60: =_xlfn.VSTACK(G8ServicePlans[]) -> Standard | P60: S | S60: =INDEX(G8ServicePrices[],MATCH(D60,G8ServicePrices[Code],0),MATCH($M$1,G8ServicePrices[#Headers],0))*PurhcaseTerm -> 408
B61: Pro | C61: è | D61: K | E61: = | F61: $ 768 | O61: Pro | P61: K | S61: =INDEX(G8ServicePrices[],MATCH(D61,G8ServicePrices[Code],0),MATCH($M$1,G8ServicePrices[#Headers],0))*PurhcaseTerm -> 768
B62: 0 | D62: 0 | S62: =INDEX(G8ServicePrices[],MATCH(D62,G8ServicePrices[Code],0),MATCH($M$1,G8ServicePrices[#Headers],0))*PurhcaseTerm -> 
L63: +
B64: Monitoring Services
B65: =_xlfn.VSTACK(O65:O67) -> None | C65: =IF(B65=0,"","è") -> è | D65: =_xlfn.VSTACK(P65:P67) -> X | E65: =IF(B65=0,"","=") -> = | F65: =IFERROR(S65,"") -> $ 0 | H65: X | L65: =VLOOKUP(H65,D65:F67,3,FALSE) -> $ 0 | O65: =_xlfn._xlws.FILTER(_xlfn._xlws.FILTER(G8Monitoring[],G8Monitoring[Type]=ServicePlans),{1,1,0}) -> None | P65: X | S65: =IF(P65="X",0,INDEX(G8ServicePrices[],MATCH(D65,G8ServicePrices[Code],0),MATCH($M$1,G8ServicePrices[#Headers],0))*PurhcaseTerm) -> 0
B66: 0 | D66: 0 | F66: =IFERROR(S66,"") ->  | S66: =IF(P66="X",0,INDEX(G8ServicePrices[],MATCH(D66,G8ServicePrices[Code],0),MATCH($M$1,G8ServicePrices[#Headers],0))*PurhcaseTerm) -> 
B67: 0 | D67: 0 | F67: =IFERROR(S67,"") ->  | S67: =IF(P67="X",0,INDEX(G8ServicePrices[],MATCH(D67,G8ServicePrices[Code],0),MATCH($M$1,G8ServicePrices[#Headers],0))*PurhcaseTerm) -> 
L68: +
B69: Voice
B70: =_xlfn.VSTACK(O70:O71) -> None | C70: =IF(B70=0,"","è") -> è | D70: =_xlfn.VSTACK(P70:P71) -> X | E70: =IF(B70=0,"","=") -> = | F70: =IFERROR(S70,"") -> $ 0 | H70: X | L70: =VLOOKUP(H70,D70:F71,3,FALSE) -> $ 0 | O70: =_xlfn._xlws.FILTER(_xlfn._xlws.FILTER(G8Voice[],G8Voice[Type]=ServicePlans),{1,1,0}) -> None | P70: X | S70: =IF(P70="X",0,INDEX(G8ServicePrices[],MATCH(D70,G8ServicePrices[Code],0),MATCH($M$1,G8ServicePrices[#Headers],0))*PurhcaseTerm) -> 0
B71: 0 | D71: 0 | F71: =IFERROR(S71,"") ->  | S71: =IF(P71="X",0,INDEX(G8ServicePrices[],MATCH(D71,G8ServicePrices[Code],0),MATCH($M$1,G8ServicePrices[#Headers],0))*PurhcaseTerm) -> 
L72: +
B73: Push-to-Talk
B74: =_xlfn.VSTACK(O74:O75) -> None | C74: =IF(B74=0,"","è") -> è | D74: =_xlfn.VSTACK(P74:P75) -> X | E74: =IF(B74=0,"","=") -> = | F74: =IFERROR(S74,"") -> $ 0 | H74: X | L74: =VLOOKUP(H74,D74:F75,3,FALSE) -> $ 0 | O74: =_xlfn._xlws.FILTER(_xlfn._xlws.FILTER(G8PTT[],G8PTT[Type]=ServicePlans),{1,1,0}) -> None | P74: X | S74: =IF(P74="X",0,INDEX(G8ServicePrices[],MATCH(D74,G8ServicePrices[Code],0),MATCH($M$1,G8ServicePrices[#Headers],0))*PurhcaseTerm) -> 0
B75: Included | C75: è | D75: P | E75: = | F75: =IFERROR(S75,"") -> $ 456 | O75: Included | P75: P | S75: =IF(P75="X",0,INDEX(G8ServicePrices[],MATCH(D75,G8ServicePrices[Code],0),MATCH($M$1,G8ServicePrices[#Headers],0))*PurhcaseTerm) -> 456
L76: +
B77: Future Service Option
B78: =_xlfn.VSTACK(O78:O79) -> None | C78: =IF(B78=0,"","è") -> è | D78: =_xlfn.VSTACK(P78:P79) -> X | E78: =IF(B78=0,"","=") -> = | F78: =IFERROR(S78,"") -> $ 0 | H78: X | L78: =VLOOKUP(H78,D78:F79,3,FALSE) -> $ 0 | O78: =_xlfn._xlws.FILTER(_xlfn._xlws.FILTER(G8TeamCalling[],G8TeamCalling[Type]=ServicePlans),{1,1,0}) -> None | P78: X | S78: =IF(P78="X",0,INDEX(G8ServicePrices[],MATCH(D78,G8ServicePrices[Code],0),MATCH($M$1,G8ServicePrices[#Headers],0))*PurhcaseTerm) -> 0
B79: 0 | D79: 0 | F79: =IFERROR(S79,"") ->  | S79: =IF(P79="X",0,INDEX(G8ServicePrices[],MATCH(D79,G8ServicePrices[Code],0),MATCH($M$1,G8ServicePrices[#Headers],0))*PurhcaseTerm) -> 
H80: -
B81: Term
B82: One-Year | C82: è | D82: 1Y | H82: 2Y | S82: =LEFT(H82,1)*12 -> 24
B83: Two-Years | C83: è | D83: 2Y
B84: Three-Years | C84: è | D84: 3Y
B85: Four-Years | C85: è | D85: 4Y
B86: Five-Years | C86: è | D86: 5Y

Sheet G8 Multi-Gas Purchase
M1: =Currency -> USD | P1: G8 Multi-Gas Purchase
B2: G8 Multi-Gas Purchase | M2: =PBYear -> 2025 | N2: Quick Links
M3: =Revision -> Effective February 2, 2026 Rev 2 | N3: Main Menu
M4: Blackline Safety Confidential | N4: Accessories
M5: All prices are an estimate - for a formal quote contact your local Blackline Safety representative
F8: =CONCATENATE(H15,H26,H27,H29,H30,H32,H35,H37,H39,J41,H90,H92,H96,H98,H103,H108,H112,H116,H118,H120) -> J-G8C-01-NA2-Q-FHMO-2Y-SXXXX-2Y | L8: =IFERROR(L15+L41+L46+L67+L88+L92+L98+L103+L108+L112+L116,"Error") -> $ 1,402 | M8: =M1&" List" -> USD List
F12: Additional Cartridge | H12: =_xlfn.LET(_xlpm.trm,IF(H92="2Y","2Y","3Y"), CONCATENATE("J-CART-",H37,"-",J41,"-",_xlpm.trm,"-R")) -> J-CART-Q-FHMO-2Y-R | L12: =SUM(X16:X44) -> $ 500 | M12: =M1&" List" -> USD List
B14: Buying Option | S14: Price | T14: EWAR | W14: Additional CART
B15: Purchase | C15: è | D15: J-G8 | H15: =D15 -> J-G8 | L15: =VLOOKUP(P40,A16:F23,6,FALSE) -> $ 994 | X15: =IF(H92="2Y",2.5,3) -> 2.5
A16: Q1 | D16: Multi 1-sensor | E16: = | F16: =S16 -> $ 740 | R16: 1 | S16: =INDEX(BasePrices[],MATCH("G8 Purchase Base Price",BasePrices[Type],0),MATCH($M$1,BasePrices[#Headers],0))+INDEX(BasePrices[],MATCH(R16&" Sensor Cartridge",BasePrices[Type],0),MATCH($M$1,BasePrices[#Headers],0))*2 -> 740 | T16: =INDEX(BasePrices[],MATCH("G7 Warranty Base Price",BasePrices[Type],0),MATCH($M$1,BasePrices[#Headers],0))*MAX(0,LEFT($H$92,1)-2)+ ROUNDUP(INDEX(BasePrices[],MATCH(R16&" Sensor Cartridge",BasePrices[Type],0),MATCH($M$1,BasePrices[#Headers],0))*0.2777777,0)*MAX(0,LEFT($H$92,1)-2) -> 0 | W16: =ROUNDUP(INDEX(BasePrices[],MATCH(R16&" Sensor Cartridge",BasePrices[Type],0),MATCH($M$1,BasePrices[#Headers],0))*$X$15,0) -> 183 | X16: =VLOOKUP(P40,A16:W23,COLUMN()-1,FALSE) -> 500
A17: Q2 | D17: Multi 2-sensor | E17: = | F17: =S17 -> $ 846 | R17: 2 | S17: =INDEX(BasePrices[],MATCH("G8 Purchase Base Price",BasePrices[Type],0),MATCH($M$1,BasePrices[#Headers],0))+INDEX(BasePrices[],MATCH(R17&" Sensor Cartridge",BasePrices[Type],0),MATCH($M$1,BasePrices[#Headers],0))*2 -> 846 | T17: =INDEX(BasePrices[],MATCH("G7 Warranty Base Price",BasePrices[Type],0),MATCH($M$1,BasePrices[#Headers],0))*MAX(0,LEFT($H$92,1)-2)+ ROUNDUP(INDEX(BasePrices[],MATCH(R17&" Sensor Cartridge",BasePrices[Type],0),MATCH($M$1,BasePrices[#Headers],0))*0.2777777,0)*MAX(0,LEFT($H$92,1)-2) -> 0 | W17: =ROUNDUP(INDEX(BasePrices[],MATCH(R17&" Sensor Cartridge",BasePrices[Type],0),MATCH($M$1,BasePrices[#Headers],0))*$X$15,0) -> 315
A18: Q3 | D18: Multi 3-sensor | E18: = | F18: $ 924 | R18: 3 | S18: =INDEX(BasePrices[],MATCH("G8 Purchase Base Price",BasePrices[Type],0),MATCH($M$1,BasePrices[#Headers],0))+INDEX(BasePrices[],MATCH(R18&" Sensor Cartridge",BasePrices[Type],0),MATCH($M$1,BasePrices[#Headers],0))*2 -> 924 | T18: =INDEX(BasePrices[],MATCH("G7 Warranty Base Price",BasePrices[Type],0),MATCH($M$1,BasePrices[#Headers],0))*MAX(0,LEFT($H$92,1)-2)+ ROUNDUP(INDEX(BasePrices[],MATCH(R18&" Sensor Cartridge",BasePrices[Type],0),MATCH($M$1,BasePrices[#Headers],0))*0.2777777,0)*MAX(0,LEFT($H$92,1)-2) -> 0 | W18: =ROUNDUP(INDEX(BasePrices[],MATCH(R18&" Sensor Cartridge",BasePrices[Type],0),MATCH($M$1,BasePrices[#Headers],0))*$X$15,0) -> 413
A19: Q4 | D19: Multi 4-sensor | E19: = | F19: $ 994 | R19: 4 | S19: =INDEX(BasePrices[],MATCH("G8 Purchase Base Price",BasePrices[Type],0),MATCH($M$1,BasePrices[#Headers],0))+INDEX(BasePrices[],MATCH(R19&" Sensor Cartridge",BasePrices[Type],0),MATCH($M$1,BasePrices[#Headers],0))*2 -> 994 | T19: =INDEX(BasePrices[],MATCH("G7 Warranty Base Price",BasePrices[Type],0),MATCH($M$1,BasePrices[#Headers],0))*MAX(0,LEFT($H$92,1)-2)+ ROUNDUP(INDEX(BasePrices[],MATCH(R19&" Sensor Cartridge",BasePrices[Type],0),MATCH($M$1,BasePrices[#Headers],0))*0.2777777,0)*MAX(0,LEFT($H$92,1)-2) -> 0 | W19: =ROUNDUP(INDEX(BasePrices[],MATCH(R19&" Sensor Cartridge",BasePrices[Type],0),MATCH($M$1,BasePrices[#Headers],0))*$X$15,0) -> 500
A20: P1 | D20: Multi 1-sensor pump | E20: = | F20: $ 1,104 | R20: 1 | S20: =INDEX(BasePrices[],MATCH("G8 Purchase Base Price",BasePrices[Type],0),MATCH($M$1,BasePrices[#Headers],0))+ INDEX(BasePrices[],MATCH(R20&" Sensor Cartridge",BasePrices[Type],0),MATCH($M$1,BasePrices[#Headers],0))*2+ INDEX(BasePrices[],MATCH("G7 Pump",BasePrices[Type],0),MATCH($M$1,BasePrices[#Headers],0))*2 -> 1104 | T20: =INDEX(BasePrices[],MATCH("G7 Warranty Base Price",BasePrices[Type],0),MATCH($M$1,BasePrices[#Headers],0))*MAX(0,LEFT($H$92,1)-2)+ ROUNDUP(INDEX(BasePrices[],MATCH(R20&" Sensor Cartridge",BasePrices[Type],0),MATCH($M$1,BasePrices[#Headers],0))*0.2777777+INDEX(BasePrices[],MATCH("G7 Pump",BasePrices[Type],0),MATCH($M$1,BasePrices[#Headers],0))*0.2777777,0)*MAX(0,LEFT($H$92,1)-2) -> 0 | W20: =ROUNDUP(INDEX(BasePrices[],MATCH(R20&" Sensor Cartridge",BasePrices[Type],0),MATCH($M$1,BasePrices[#Headers],0))*$X$15,0)+ ROUNDUP(INDEX(BasePrices[],MATCH("G7 Pump",BasePrices[Type],0),MATCH($M$1,BasePrices[#Headers],0))*$X$15,0) -> 638
A21: P2 | D21: Multi 2-sensor pump | E21: = | F21: $ 1,210 | R21: 2 | S21: =INDEX(BasePrices[],MATCH("G8 Purchase Base Price",BasePrices[Type],0),MATCH($M$1,BasePrices[#Headers],0))+ INDEX(BasePrices[],MATCH(R21&" Sensor Cartridge",BasePrices[Type],0),MATCH($M$1,BasePrices[#Headers],0))*2+ INDEX(BasePrices[],MATCH("G7 Pump",BasePrices[Type],0),MATCH($M$1,BasePrices[#Headers],0))*2 -> 1210 | T21: =INDEX(BasePrices[],MATCH("G7 Warranty Base Price",BasePrices[Type],0),MATCH($M$1,BasePrices[#Headers],0))*MAX(0,LEFT($H$92,1)-2)+ ROUNDUP(INDEX(BasePrices[],MATCH(R21&" Sensor Cartridge",BasePrices[Type],0),MATCH($M$1,BasePrices[#Headers],0))*0.2777777+INDEX(BasePrices[],MATCH("G7 Pump",BasePrices[Type],0),MATCH($M$1,BasePrices[#Headers],0))*0.2777777,0)*MAX(0,LEFT($H$92,1)-2) -> 0 | W21: =ROUNDUP(INDEX(BasePrices[],MATCH(R21&" Sensor Cartridge",BasePrices[Type],0),MATCH($M$1,BasePrices[#Headers],0))*$X$15,0)+ ROUNDUP(INDEX(BasePrices[],MATCH("G7 Pump",BasePrices[Type],0),MATCH($M$1,BasePrices[#Headers],0))*$X$15,0) -> 770
A22: P3 | D22: Multi 3-sensor pump | E22: = | F22: $ 1,288 | R22: 3 | S22: =INDEX(BasePrices[],MATCH("G8 Purchase Base Price",BasePrices[Type],0),MATCH($M$1,BasePrices[#Headers],0))+ INDEX(BasePrices[],MATCH(R22&" Sensor Cartridge",BasePrices[Type],0),MATCH($M$1,BasePrices[#Headers],0))*2+ INDEX(BasePrices[],MATCH("G7 Pump",BasePrices[Type],0),MATCH($M$1,BasePrices[#Headers],0))*2 -> 1288 | T22: =INDEX(BasePrices[],MATCH("G7 Warranty Base Price",BasePrices[Type],0),MATCH($M$1,BasePrices[#Headers],0))*MAX(0,LEFT($H$92,1)-2)+ ROUNDUP(INDEX(BasePrices[],MATCH(R22&" Sensor Cartridge",BasePrices[Type],0),MATCH($M$1,BasePrices[#Headers],0))*0.2777777+INDEX(BasePrices[],MATCH("G7 Pump",BasePrices[Type],0),MATCH($M$1,BasePrices[#Headers],0))*0.2777777,0)*MAX(0,LEFT($H$92,1)-2) -> 0 | W22: =ROUNDUP(INDEX(BasePrices[],MATCH(R22&" Sensor Cartridge",BasePrices[Type],0),MATCH($M$1,BasePrices[#Headers],0))*$X$15,0)+ ROUNDUP(INDEX(BasePrices[],MATCH("G7 Pump",BasePrices[Type],0),MATCH($M$1,BasePrices[#Headers],0))*$X$15,0) -> 868
A23: P4 | D23: Multi 4-sensor pump | E23: = | F23: $ 1,358 | R23: 4 | S23: =INDEX(BasePrices[],MATCH("G8 Purchase Base Price",BasePrices[Type],0),MATCH($M$1,BasePrices[#Headers],0))+ INDEX(BasePrices[],MATCH(R23&" Sensor Cartridge",BasePrices[Type],0),MATCH($M$1,BasePrices[#Headers],0))*2+ INDEX(BasePrices[],MATCH("G7 Pump",BasePrices[Type],0),MATCH($M$1,BasePrices[#Headers],0))*2 -> 1358 | T23: =INDEX(BasePrices[],MATCH("G7 Warranty Base Price",BasePrices[Type],0),MATCH($M$1,BasePrices[#Headers],0))*MAX(0,LEFT($H$92,1)-2)+ ROUNDUP(INDEX(BasePrices[],MATCH(R23&" Sensor Cartridge",BasePrices[Type],0),MATCH($M$1,BasePrices[#Headers],0))*0.2777777+INDEX(BasePrices[],MATCH("G7 Pump",BasePrices[Type],0),MATCH($M$1,BasePrices[#Headers],0))*0.2777777,0)*MAX(0,LEFT($H$92,1)-2) -> 0 | W23: =ROUNDUP(INDEX(BasePrices[],MATCH(R23&" Sensor Cartridge",BasePrices[Type],0),MATCH($M$1,BasePrices[#Headers],0))*$X$15,0)+ ROUNDUP(INDEX(BasePrices[],MATCH("G7 Pump",BasePrices[Type],0),MATCH($M$1,BasePrices[#Headers],0))*$X$15,0) -> 955
L24: + | T24: =VLOOKUP(P40,A16:T23,20,FALSE) -> 0
B25: Connectivity
B26: Cellular | C26: è | D26: C | H26: C
H27: -
B28: SIM Card
B29: Standard (Telenor) | C29: è | D29: 01 | H29: =D29 -> 01
H30: -
B31: Country Code
B32: =_xlfn.VSTACK(O32:O34) -> North America (4G/LTE) - G8C | C32: =IF(B32="","","è") -> è | D32: =IFERROR(_xlfn.VSTACK(P32:P34),"") -> NA2 | H32: NA2 | O32: =_xlfn.LET( _xlpm.Dtype,G8CountryCodes[Type],_xlpm.Curr,G8CountryCodes[Currency],_xlpm.SType,H26,_xlpm.SCurr,M1, _xlpm.myCalculation,_xlfn.VSTACK(_xlfn._xlws.FILTER(G8CountryCodes[],(_xlpm.Dtype=_xlpm.SType)*(_xlpm.Curr=_xlpm.SCurr))),_xlpm.myCalculation) -> North America (4G/LTE) - G8C | P32: NA2 | Q32: C | R32: USD
B33: Outside of North America (4G/LTE) - G8C | C33: =IF(B33=0,"","è") -> è | D33: EU2 | O33: Outside of North America (4G/LTE) - G8C | P33: EU2 | Q33: C | R33: USD
B34: 0 | C34: =IF(B34=0,"","è") ->  | D34: 0
H35: -
B36: Cartridge Type | O36: =H41 -> F | P36: =_xlfn._xlws.SORT(O36:O39) -> F | Q36: =IF(P36="X",1,0) -> 0
B37: Diffusion | C37: è | D37: Q | H37: Q | O37: =H46 -> H | P37: H | Q37: =IF(P37="X",1,0) -> 0
B38: Pump | C38: è | D38: P | O38: =H67 -> M | P38: M | Q38: =IF(P38="X",1,0) -> 0
H39: - | O39: =H88 -> O | P39: O | Q39: =IF(P39="X",1,0) -> 0
B40: Combustible Sensor | P40: =H37&Q40 -> Q4 | Q40: =4-SUM(Q36:Q39) -> 4 | S40: Price
B41: =_xlfn.CHOOSECOLS(_xlfn.VSTACK(_xlfn.ANCHORARRAY(O41)),1) -> LEL-IR | C41: =IF(B41=0,"","è") -> è | D41: =_xlfn.CHOOSECOLS(_xlfn.VSTACK(_xlfn.ANCHORARRAY(O41)),2) -> I | E41: =IF(B41=0,"","=") -> = | F41: =IFERROR(S41,"") -> $ 120 | H41: F | J41: =CONCATENATE(P36,P37,P38,P39) -> FHMO | L41: =VLOOKUP(H41,D41:F43,3,FALSE) -> $ 0 | O41: =_xlfn.LET( _xlpm.Dtype,CombSensors[Type1],_xlpm.Curr,CombSensors[Currency],_xlpm.Stype,H37&1,_xlpm.SCurr,M1, _xlpm.myCalculation,_xlfn.VSTACK(_xlfn._xlws.FILTER(CombSensors[],(_xlpm.Dtype=_xlpm.Stype)*(_xlpm.Curr=_xlpm.SCurr))),_xlpm.myCalculation) -> LEL-IR | P41: I | Q41: Q1 | R41: USD | S41: =INDEX(SensorPricing[],MATCH(D41,SensorPricing[Sensor],0),MATCH($M$1,SensorPricing[#Headers],0))*2 -> 120 | T41: =ROUNDUP(INDEX(SensorPricing[],MATCH(H41,SensorPricing[Sensor],0),MATCH($M$1,SensorPricing[#Headers],0))*0.2777777,0)*MAX(0,LEFT($H$92,1)-2) -> 0 | X41: =IFERROR(ROUNDUP(INDEX(SensorPricing[],MATCH(P36,SensorPricing[Sensor],0),MATCH($M$1,SensorPricing[#Headers],0))*$X$15,0),"") -> 0
B42: LEL-MPS | C42: è | D42: F | E42: = | F42: =IFERROR(S42,"") -> $ 0 | O42: LEL-MPS | P42: F | Q42: Q1 | R42: USD | S42: =INDEX(SensorPricing[],MATCH(D42,SensorPricing[Sensor],0),MATCH($M$1,SensorPricing[#Headers],0))*2 -> 0 | X42: =IFERROR(ROUNDUP(INDEX(SensorPricing[],MATCH(P37,SensorPricing[Sensor],0),MATCH($M$1,SensorPricing[#Headers],0))*$X$15,0),"") -> 0
B43: None | C43: è | D43: X | E43: = | F43: $ 0 | O43: None | P43: X | Q43: Q1 | R43: USD | S43: =INDEX(SensorPricing[],MATCH(D43,SensorPricing[Sensor],0),MATCH($M$1,SensorPricing[#Headers],0))*2 -> 0 | X43: =IFERROR(ROUNDUP(INDEX(SensorPricing[],MATCH(P38,SensorPricing[Sensor],0),MATCH($M$1,SensorPricing[#Headers],0))*$X$15,0),"") -> 0
L44: + | X44: =IFERROR(ROUNDUP(INDEX(SensorPricing[],MATCH(P39,SensorPricing[Sensor],0),MATCH($M$1,SensorPricing[#Headers],0))*$X$15,0),"") -> 0
B45: Toxic Sensor #1
B46: =_xlfn.VSTACK(O46:O64) -> HF | C46: =IF(B46=0,"","è") -> è | D46: =_xlfn.VSTACK(P46:P64) -> 2 | E46: =IF(B46=0,"","=") -> = | F46: =IFERROR(S46,"") -> $ 840 | H46: H | L46: =VLOOKUP(H46,D46:F64,3,FALSE) -> $ 0 | O46: =_xlfn.LET( _xlpm.Dtype,G7Sensors[Type1],_xlpm.Curr,G7Sensors[Currency],_xlpm.Stype,H37&1,_xlpm.SCurr,M1, _xlpm.myCalculation,_xlfn.VSTACK(_xlfn._xlws.FILTER(G7Sensors[],(_xlpm.Dtype=_xlpm.Stype)*(_xlpm.Curr=_xlpm.SCurr))),_xlpm.myCalculation) -> HF | P46: 2 | Q46: Q1 | R46: USD | S46: =INDEX(SensorPricing[],MATCH(D46,SensorPricing[Sensor],0),MATCH($M$1,SensorPricing[#Headers],0))*2 -> 840 | T46: =ROUNDUP(INDEX(SensorPricing[],MATCH(H46,SensorPricing[Sensor],0),MATCH($M$1,SensorPricing[#Headers],0))*0.2777777,0)*MAX(0,LEFT($H$92,1)-2) -> 0
B47: NH3 | C47: è | D47: A | E47: = | F47: $ 120 | O47: NH3 | P47: A | Q47: Q1 | R47: USD | S47: =INDEX(SensorPricing[],MATCH(D47,SensorPricing[Sensor],0),MATCH($M$1,SensorPricing[#Headers],0))*2 -> 120
B48: High-range NH3 | C48: è | D48: B | E48: = | F48: $ 252 | O48: High-range NH3 | P48: B | Q48: Q1 | R48: USD | S48: =INDEX(SensorPricing[],MATCH(D48,SensorPricing[Sensor],0),MATCH($M$1,SensorPricing[#Headers],0))*2 -> 252
B49: CO2 | C49: è | D49: C | E49: = | F49: $ 480 | O49: CO2 | P49: C | Q49: Q1 | R49: USD | S49: =INDEX(SensorPricing[],MATCH(D49,SensorPricing[Sensor],0),MATCH($M$1,SensorPricing[#Headers],0))*2 -> 480
B50: O3 | C50: è | D50: E | E50: = | F50: $ 240 | O50: O3 | P50: E | Q50: Q1 | R50: USD | S50: =INDEX(SensorPricing[],MATCH(D50,SensorPricing[Sensor],0),MATCH($M$1,SensorPricing[#Headers],0))*2 -> 240
B51: H2S | C51: è | D51: H | E51: = | F51: $ 0 | O51: H2S | P51: H | Q51: Q1 | R51: USD | S51: =INDEX(SensorPricing[],MATCH(D51,SensorPricing[Sensor],0),MATCH($M$1,SensorPricing[#Headers],0))*2 -> 0
B52: High-range H2S | C52: è | D52: J | E52: = | F52: $ 240 | O52: High-range H2S | P52: J | Q52: Q1 | R52: USD | S52: =INDEX(SensorPricing[],MATCH(D52,SensorPricing[Sensor],0),MATCH($M$1,SensorPricing[#Headers],0))*2 -> 240
B53: NO2 | C53: è | D53: K | E53: = | F53: $ 120 | O53: NO2 | P53: K | Q53: Q1 | R53: USD | S53: =INDEX(SensorPricing[],MATCH(D53,SensorPricing[Sensor],0),MATCH($M$1,SensorPricing[#Headers],0))*2 -> 120
B54: Cl2 | C54: è | D54: L | E54: = | F54: $ 120 | O54: Cl2 | P54: L | Q54: Q1 | R54: USD | S54: =INDEX(SensorPricing[],MATCH(D54,SensorPricing[Sensor],0),MATCH($M$1,SensorPricing[#Headers],0))*2 -> 120
B55: CO | C55: è | D55: M | E55: = | F55: $ 0 | O55: CO | P55: M | Q55: Q1 | R55: USD | S55: =INDEX(SensorPricing[],MATCH(D55,SensorPricing[Sensor],0),MATCH($M$1,SensorPricing[#Headers],0))*2 -> 0
B56: HCN | C56: è | D56: N | E56: = | F56: $ 120 | O56: HCN | P56: N | Q56: Q1 | R56: USD | S56: =INDEX(SensorPricing[],MATCH(D56,SensorPricing[Sensor],0),MATCH($M$1,SensorPricing[#Headers],0))*2 -> 120
B57: CO-H | C57: è | D57: R | E57: = | F57: $ 0 | O57: CO-H | P57: R | Q57: Q1 | R57: USD | S57: =INDEX(SensorPricing[],MATCH(D57,SensorPricing[Sensor],0),MATCH($M$1,SensorPricing[#Headers],0))*2 -> 0
B58: SO2 | C58: è | D58: S | E58: = | F58: $ 0 | O58: SO2 | P58: S | Q58: Q1 | R58: USD | S58: =INDEX(SensorPricing[],MATCH(D58,SensorPricing[Sensor],0),MATCH($M$1,SensorPricing[#Headers],0))*2 -> 0
B59: High-range CO | C59: è | D59: T | E59: = | F59: $ 240 | O59: High-range CO | P59: T | Q59: Q1 | R59: USD | S59: =INDEX(SensorPricing[],MATCH(D59,SensorPricing[Sensor],0),MATCH($M$1,SensorPricing[#Headers],0))*2 -> 240
B60: PID | C60: è | D60: V | E60: = | F60: $ 966 | O60: PID | P60: V | Q60: Q1 | R60: USD | S60: =INDEX(SensorPricing[],MATCH(D60,SensorPricing[Sensor],0),MATCH($M$1,SensorPricing[#Headers],0))*2 -> 966
B61: ClO2 | C61: è | D61: W | E61: = | F61: $ 120 | O61: ClO2 | P61: W | Q61: Q1 | R61: USD | S61: =INDEX(SensorPricing[],MATCH(D61,SensorPricing[Sensor],0),MATCH($M$1,SensorPricing[#Headers],0))*2 -> 120
B62: No Sensor | C62: è | D62: X | E62: = | F62: $ 0 | O62: No Sensor | P62: X | Q62: Q1 | R62: USD | S62: =INDEX(SensorPricing[],MATCH(D62,SensorPricing[Sensor],0),MATCH($M$1,SensorPricing[#Headers],0))*2 -> 0
B63: 0 | C63: =IF(B63=0,"","è") ->  | D63: 0 | E63: =IF(B63=0,"","=") ->  | S63: =INDEX(SensorPricing[],MATCH(D63,SensorPricing[Sensor],0),MATCH($M$1,SensorPricing[#Headers],0))*2 -> 
B64: 0 | C64: =IF(B64=0,"","è") ->  | D64: 0 | E64: =IF(B64=0,"","=") ->  | S64: =INDEX(SensorPricing[],MATCH(D64,SensorPricing[Sensor],0),MATCH($M$1,SensorPricing[#Headers],0))*2 -> 
L65: +
B66: Toxic Sensor #2
B67: =_xlfn.VSTACK(O67:O85) -> HF | C67: =IF(B67=0,"","è") -> è | D67: =_xlfn.VSTACK(P67:P85) -> 2 | E67: =IF(B67=0,"","=") -> = | F67: =IFERROR(S67,"") -> $ 840 | H67: M | L67: =VLOOKUP(H67,D67:F85,3,FALSE) -> $ 0 | O67: =_xlfn.LET( _xlpm.Dtype,G7Sensors[Type1],_xlpm.Curr,G7Sensors[Currency],_xlpm.Stype,H37&2,_xlpm.SCurr,M1, _xlpm.myCalculation,_xlfn.VSTACK(_xlfn._xlws.FILTER(G7Sensors[],(_xlpm.Dtype=_xlpm.Stype)*(_xlpm.Curr=_xlpm.SCurr))),_xlpm.myCalculation) -> HF | P67: 2 | Q67: Q2 | R67: USD | S67: =INDEX(SensorPricing[],MATCH(D67,SensorPricing[Sensor],0),MATCH($M$1,SensorPricing[#Headers],0))*2 -> 840 | T67: =ROUNDUP(INDEX(SensorPricing[],MATCH(H67,SensorPricing[Sensor],0),MATCH($M$1,SensorPricing[#Headers],0))*0.2777777,0)*MAX(0,LEFT($H$92,1)-2) -> 0
B68: NH3 | C68: è | D68: A | E68: = | F68: $ 120 | O68: NH3 | P68: A | Q68: Q2 | R68: USD | S68: =INDEX(SensorPricing[],MATCH(D68,SensorPricing[Sensor],0),MATCH($M$1,SensorPricing[#Headers],0))*2 -> 120
B69: High-range NH3 | C69: è | D69: B | E69: = | F69: $ 252 | O69: High-range NH3 | P69: B | Q69: Q2 | R69: USD | S69: =INDEX(SensorPricing[],MATCH(D69,SensorPricing[Sensor],0),MATCH($M$1,SensorPricing[#Headers],0))*2 -> 252
B70: COSH | C70: è | D70: D | E70: = | F70: $ 120 | O70: COSH | P70: D | Q70: Q2 | R70: USD | S70: =INDEX(SensorPricing[],MATCH(D70,SensorPricing[Sensor],0),MATCH($M$1,SensorPricing[#Headers],0))*2 -> 120
B71: O3 | C71: è | D71: E | E71: = | F71: $ 240 | O71: O3 | P71: E | Q71: Q2 | R71: USD | S71: =INDEX(SensorPricing[],MATCH(D71,SensorPricing[Sensor],0),MATCH($M$1,SensorPricing[#Headers],0))*2 -> 240
B72: H2S | C72: è | D72: H | E72: = | F72: $ 0 | O72: H2S | P72: H | Q72: Q2 | R72: USD | S72: =INDEX(SensorPricing[],MATCH(D72,SensorPricing[Sensor],0),MATCH($M$1,SensorPricing[#Headers],0))*2 -> 0
B73: High-range H2S | C73: è | D73: J | E73: = | F73: $ 240 | O73: High-range H2S | P73: J | Q73: Q2 | R73: USD | S73: =INDEX(SensorPricing[],MATCH(D73,SensorPricing[Sensor],0),MATCH($M$1,SensorPricing[#Headers],0))*2 -> 240
B74: NO2 | C74: è | D74: K | E74: = | F74: $ 120 | O74: NO2 | P74: K | Q74: Q2 | R74: USD | S74: =INDEX(SensorPricing[],MATCH(D74,SensorPricing[Sensor],0),MATCH($M$1,SensorPricing[#Headers],0))*2 -> 120
B75: Cl2 | C75: è | D75: L | E75: = | F75: $ 120 | O75: Cl2 | P75: L | Q75: Q2 | R75: USD | S75: =INDEX(SensorPricing[],MATCH(D75,SensorPricing[Sensor],0),MATCH($M$1,SensorPricing[#Headers],0))*2 -> 120
B76: CO | C76: è | D76: M | E76: = | F76: $ 0 | O76: CO | P76: M | Q76: Q2 | R76: USD | S76: =INDEX(SensorPricing[],MATCH(D76,SensorPricing[Sensor],0),MATCH($M$1,SensorPricing[#Headers],0))*2 -> 0
B77: HCN | C77: è | D77: N | E77: = | F77: $ 120 | O77: HCN | P77: N | Q77: Q2 | R77: USD | S77: =INDEX(SensorPricing[],MATCH(D77,SensorPricing[Sensor],0),MATCH($M$1,SensorPricing[#Headers],0))*2 -> 120
B78: CO-H | C78: è | D78: R | E78: = | F78: $ 0 | O78: CO-H | P78: R | Q78: Q2 | R78: USD | S78: =INDEX(SensorPricing[],MATCH(D78,SensorPricing[Sensor],0),MATCH($M$1,SensorPricing[#Headers],0))*2 -> 0
B79: SO2 | C79: è | D79: S | E79: = | F79: $ 0 | O79: SO2 | P79: S | Q79: Q2 | R79: USD | S79: =INDEX(SensorPricing[],MATCH(D79,SensorPricing[Sensor],0),MATCH($M$1,SensorPricing[#Headers],0))*2 -> 0
B80: High-range CO | C80: è | D80: T | E80: = | F80: $ 240 | O80: High-range CO | P80: T | Q80: Q2 | R80: USD | S80: =INDEX(SensorPricing[],MATCH(D80,SensorPricing[Sensor],0),MATCH($M$1,SensorPricing[#Headers],0))*2 -> 240
B81: ClO2 | C81: è | D81: W | E81: = | F81: $ 120 | O81: ClO2 | P81: W | Q81: Q2 | R81: USD | S81: =INDEX(SensorPricing[],MATCH(D81,SensorPricing[Sensor],0),MATCH($M$1,SensorPricing[#Headers],0))*2 -> 120
B82: No Sensor | C82: è | D82: X | E82: = | F82: $ 0 | O82: No Sensor | P82: X | Q82: Q2 | R82: USD | S82: =INDEX(SensorPricing[],MATCH(D82,SensorPricing[Sensor],0),MATCH($M$1,SensorPricing[#Headers],0))*2 -> 0
B83: 0 | D83: 0 | S83: =INDEX(SensorPricing[],MATCH(D83,SensorPricing[Sensor],0),MATCH($M$1,SensorPricing[#Headers],0))*2 -> 
B84: 0 | D84: 0 | S84: =INDEX(SensorPricing[],MATCH(D84,SensorPricing[Sensor],0),MATCH($M$1,SensorPricing[#Headers],0))*2 -> 
B85: 0 | D85: 0 | S85: =INDEX(SensorPricing[],MATCH(D85,SensorPricing[Sensor],0),MATCH($M$1,SensorPricing[#Headers],0))*2 -> 
L86: +
B87: Oxygen Sensor
B88: =_xlfn.VSTACK(O88:O89) -> O2 | C88: =IF(B88=0,"","è") -> è | D88: =_xlfn.VSTACK(P88:P89) -> O | E88: =IF(B88=0,"","=") -> = | F88: =IFERROR(S88,"") -> $ 0 | H88: O | L88: =VLOOKUP(H88,D88:F89,3,FALSE) -> $ 0 | O88: =_xlfn._xlws.FILTER(_xlfn._xlws.FILTER(Oxygen[],Oxygen[Type]=H41),{1,1,0}) -> O2 | P88: O | S88: =INDEX(SensorPricing[],MATCH(D88,SensorPricing[Sensor],0),MATCH($M$1,SensorPricing[#Headers],0))*2 -> 0 | T88: =ROUNDUP(INDEX(SensorPricing[],MATCH(H88,SensorPricing[Sensor],0),MATCH($M$1,SensorPricing[#Headers],0))*0.2777777,0)*MAX(0,LEFT($H$92,1)-2) -> 0
B89: 0 | D89: 0 | S89: =INDEX(SensorPricing[],MATCH(D89,SensorPricing[Sensor],0),MATCH($M$1,SensorPricing[#Headers],0))*2 -> 
H90: - | L90: +
B91: Warranty Term
B92: =_xlfn.VSTACK(O92:O95) -> 2-Years | C92: è | D92: =_xlfn.VSTACK(P92:P95) -> 2Y | H92: 2Y | L92: =S92 -> $ 0 | O92: =_xlfn.VSTACK(G8PurWarr[]) -> 2-Years | P92: 2Y | Q92: 2Y | S92: =SUM(T24:T88) -> 0
B93: 3-Years | C93: è | D93: 3Y | O93: 3-Years | P93: 3Y | Q93: 3Y
B94: 4-Years | C94: è | D94: 4Y | O94: 4-Years | P94: 4Y | Q94: 4Y
B95: 5-Years | C95: è | D95: 5Y | O95: 5-Years | P95: 5Y | Q95: 5Y
H96: - | L96: +
B97: Service Plan
B98: =_xlfn.VSTACK(O98:O100) -> Standard | C98: =IF(B98=0,"","è") -> è | D98: =_xlfn.VSTACK(P98:P100) -> S | E98: =IF(B98=0,"","=") -> = | F98: =IFERROR(S98,"") -> $ 408 | H98: S | L98: =VLOOKUP(H98,D98:F100,3,FALSE) -> $ 408 | O98: =_xlfn.VSTACK(G8ServicePlans[]) -> Standard | P98: S | S98: =INDEX(G8ServicePrices[],MATCH(D98,G8ServicePrices[Code],0),MATCH($M$1,G8ServicePrices[#Headers],0))*PurhcaseTerm -> 408
B99: Pro | C99: è | D99: K | E99: = | F99: $ 768 | O99: Pro | P99: K | S99: =INDEX(G8ServicePrices[],MATCH(D99,G8ServicePrices[Code],0),MATCH($M$1,G8ServicePrices[#Headers],0))*PurhcaseTerm -> 768
B100: 0 | C100: =IF(B100=0,"","è") ->  | D100: 0 | E100: =IF(B100=0,"","=") ->  | S100: =INDEX(G8ServicePrices[],MATCH(D100,G8ServicePrices[Code],0),MATCH($M$1,G8ServicePrices[#Headers],0))*PurhcaseTerm -> 
L101: +
B102: Monitoring Services
B103: =_xlfn.VSTACK(O103:O105) -> None | C103: =IF(B103=0,"","è") -> è | D103: =_xlfn.VSTACK(P103:P105) -> X | E103: =IF(B103=0,"","=") -> = | F103: =IFERROR(S103,"") -> $ 0 | H103: X | L103: =VLOOKUP(H103,D103:F105,3,FALSE) -> $ 0 | O103: =_xlfn._xlws.FILTER(_xlfn._xlws.FILTER(G8Monitoring[],G8Monitoring[Type]=ServicePlans),{1,1,0}) -> None | P103: X | S103: =IF(P103="X",0,INDEX(G8ServicePrices[],MATCH(D103,G8ServicePrices[Code],0),MATCH($M$1,G8ServicePrices[#Headers],0))*PurhcaseTerm) -> 0
B104: 0 | D104: 0 | F104: =IFERROR(S104,"") ->  | S104: =IF(P104="X",0,INDEX(G8ServicePrices[],MATCH(D104,G8ServicePrices[Code],0),MATCH($M$1,G8ServicePrices[#Headers],0))*PurhcaseTerm) -> 
B105: 0 | D105: 0 | F105: =IFERROR(S105,"") ->  | S105: =IF(P105="X",0,INDEX(G8ServicePrices[],MATCH(D105,G8ServicePrices[Code],0),MATCH($M$1,G8ServicePrices[#Headers],0))*PurhcaseTerm) -> 
L106: +
B107: Voice
B108: =_xlfn.VSTACK(O108:O109) -> None | C108: =IF(B108=0,"","è") -> è | D108: =_xlfn.VSTACK(P108:P109) -> X | E108: =IF(B108=0,"","=") -> = | F108: =IFERROR(S108,"") -> $ 0 | H108: X | L108: =VLOOKUP(H108,D108:F109,3,FALSE) -> $ 0 | O108: =_xlfn._xlws.FILTER(_xlfn._xlws.FILTER(G8Voice[],G8Voice[Type]=ServicePlans),{1,1,0}) -> None | P108: X | S108: =IF(P108="X",0,INDEX(G8ServicePrices[],MATCH(D108,G8ServicePrices[Code],0),MATCH($M$1,G8ServicePrices[#Headers],0))*PurhcaseTerm) -> 0
B109: 0 | D109: 0 | F109: =IFERROR(S109,"") ->  | S109: =IF(P109="X",0,INDEX(G8ServicePrices[],MATCH(D109,G8ServicePrices[Code],0),MATCH($M$1,G8ServicePrices[#Headers],0))*PurhcaseTerm) -> 
L110: +
B111: Push-to-Talk
B112: =_xlfn.VSTACK(O112:O113) -> None | C112: =IF(B112=0,"","è") -> è | D112: =_xlfn.VSTACK(P112:P113) -> X | E112: =IF(B112=0,"","=") -> = | F112: =IFERROR(S112,"") -> $ 0 | H112: X | L112: =VLOOKUP(H112,D112:F113,3,FALSE) -> $ 0 | O112: =_xlfn._xlws.FILTER(_xlfn._xlws.FILTER(G8PTT[],G8PTT[Type]=ServicePlans),{1,1,0}) -> None | P112: X | S112: =IF(P112="X",0,INDEX(G8ServicePrices[],MATCH(D112,G8ServicePrices[Code],0),MATCH($M$1,G8ServicePrices[#Headers],0))*PurhcaseTerm) -> 0
B113: Included | C113: è | D113: P | E113: = | F113: =IFERROR(S113,"") -> $ 456 | O113: Included | P113: P | S113: =IF(P113="X",0,INDEX(G8ServicePrices[],MATCH(D113,G8ServicePrices[Code],0),MATCH($M$1,G8ServicePrices[#Headers],0))*PurhcaseTerm) -> 456
L114: +
B115: Future Service Option
B116: =_xlfn.VSTACK(O116:O117) -> None | C116: =IF(B116=0,"","è") -> è | D116: =_xlfn.VSTACK(P116:P117) -> X | E116: =IF(B116=0,"","=") -> = | F116: =IFERROR(S116,"") -> $ 0 | H116: X | L116: =VLOOKUP(H116,D116:F117,3,FALSE) -> $ 0 | O116: =_xlfn._xlws.FILTER(_xlfn._xlws.FILTER(G8TeamCalling[],G8TeamCalling[Type]=ServicePlans),{1,1,0}) -> None | P116: X | S116: =IF(P116="X",0,INDEX(G8ServicePrices[],MATCH(D116,G8ServicePrices[Code],0),MATCH($M$1,G8ServicePrices[#Headers],0))*PurhcaseTerm) -> 0
B117: 0 | D117: 0 | F117: =IFERROR(S117,"") ->  | S117: =IF(P117="X",0,INDEX(G8ServicePrices[],MATCH(D117,G8ServicePrices[Code],0),MATCH($M$1,G8ServicePrices[#Headers],0))*PurhcaseTerm) -> 
H118: -
B119: Term
B120: One-Year | C120: è | D120: 1Y | H120: 2Y | S120: =LEFT(H120,1)*12 -> 24
B121: Two-Years | C121: è | D121: 2Y
B122: Three-Years | C122: è | D122: 3Y
B123: Four-Years | C123: è | D123: 4Y
B124: Five-Years | C124: è | D124: 5Y

Sheet G8 Lone Worker Combination
M1: =Currency -> USD | P1: G8 Lone Worker Combination
B2: G8 Lone Worker Combination | M2: =PBYear -> 2025 | N2: Quick Links
M3: =Revision -> Effective February 2, 2026 Rev 2 | N3: Main Menu
M4: Blackline Safety Confidential | N4: Accessories
M5: All prices are an estimate - for a formal quote contact your local Blackline Safety representative
F8: Hardware | H8: =CONCATENATE(H15,H19,H20,H22,H23,H25,H28,H30,H31,H33) -> CMB-G8C-01-NA2-Z-2Y | L8: =IFERROR(L15+L33,"Error") -> $ 594 | M8: =M1&" List" -> USD List
F10: Service (Annual/Term) | H10: =CONCATENATE("SER-",D15,H19,H20,ServicePlans,H45,H50,H54,H58,H60,H62) -> SER-CMB-G8C-SXXXX-2Y | L10: =L40+L45+L50+L54+L58 -> $ 204 | M10: =L10*S63 -> $ 408
F12: Additional Cartridge | H12: =_xlfn.LET(_xlpm.trm,IF(H33="2Y","2Y","3Y"), CONCATENATE("J-CART-",H30,"-",_xlpm.trm,"-R")) -> J-CART-Z-2Y-R | L12: =X16 -> $ 118 | M12: =M1&" List" -> USD List
B14: Buying Option | S14: Price | W14: Additional CART
B15: Combination | C15: è | D15: CMB-G8 | H15: =D15 -> CMB-G8 | L15: =F16 -> $ 594 | X15: =IF(H33="2Y",2.5,3) -> 2.5
A16: 1 | D16: Lone Worker | E16: = | F16: =SUM(S16:T16) -> $ 594 | R16: 1 | S16: =INDEX(BasePrices[],MATCH("G8 Purchase Base Price",BasePrices[Type],0),MATCH($M$1,BasePrices[#Headers],0)) -> 594 | X16: =ROUNDUP(INDEX(BasePrices[],MATCH("Standard Cartridge",BasePrices[Type],0),MATCH($M$1,BasePrices[#Headers],0))*$X$15,0) -> 118
L17: +
B18: Connectivity
B19: Cellular | C19: è | D19: C | H19: C
H20: -
B21: SIM Card
B22: Standard (Telenor) | C22: è | D22: 01 | H22: =D22 -> 01
H23: -
B24: Country Code
B25: =_xlfn.VSTACK(O25:O27) -> North America (4G/LTE) - G8C | C25: =IF(B25="","","è") -> è | D25: =IFERROR(_xlfn.VSTACK(P25:P27),"") -> NA2 | H25: NA2 | O25: =_xlfn.LET( _xlpm.Dtype,G8CountryCodes[Type],_xlpm.Curr,G8CountryCodes[Currency],_xlpm.SType,H19,_xlpm.SCurr,M1, _xlpm.myCalculation,_xlfn.VSTACK(_xlfn._xlws.FILTER(G8CountryCodes[],(_xlpm.Dtype=_xlpm.SType)*(_xlpm.Curr=_xlpm.SCurr))),_xlpm.myCalculation) -> North America (4G/LTE) - G8C | P25: NA2 | Q25: C | R25: USD
B26: Outside of North America (4G/LTE) - G8C | C26: =IF(B26=0,"","è") -> è | D26: EU2 | O26: Outside of North America (4G/LTE) - G8C | P26: EU2 | Q26: C | R26: USD
B27: 0 | C27: =IF(B27=0,"","è") ->  | D27: 0
H28: -
B29: Cartridge Type
B30: Lone Worker | C30: è | D30: Z | H30: =D30 -> Z
H31: -
B32: Warranty Term
B33: =_xlfn.VSTACK(O33:O36) -> 2-Years | C33: è | D33: =_xlfn.VSTACK(P33:P36) -> 2Y | H33: 2Y | L33: =S33 -> $ 0 | O33: =_xlfn.VSTACK(G8PurWarr[]) -> 2-Years | P33: 2Y | Q33: 2Y | S33: =INDEX(BasePrices[],MATCH("G7 Warranty Base Price",BasePrices[Type],0),MATCH($M$1,BasePrices[#Headers],0))*MAX(0,LEFT(H33,1)-2) -> 0
B34: 3-Years | C34: è | D34: 3Y | O34: 3-Years | P34: 3Y | Q34: 3Y
B35: 4-Years | C35: è | D35: 4Y | O35: 4-Years | P35: 4Y | Q35: 4Y
B36: 5-Years | C36: è | D36: 5Y | O36: 5-Years | P36: 5Y | Q36: 5Y
B38: Service (Annually)
B39: Service Plan
B40: =_xlfn.VSTACK(O40:O42) -> Standard | C40: =IF(B40=0,"","è") -> è | D40: =_xlfn.VSTACK(P40:P42) -> S | E40: =IF(B40=0,"","=") -> = | F40: =IFERROR(S40,"") -> $ 204 | H40: S | L40: =VLOOKUP(H40,D40:F42,3,FALSE) -> $ 204 | O40: =_xlfn.VSTACK(G8ServicePlans[]) -> Standard | P40: S | S40: =INDEX(G8ServicePrices[],MATCH(D40,G8ServicePrices[Code],0),MATCH($M$1,G8ServicePrices[#Headers],0))*PurhcaseTerm -> 204
B41: Pro | C41: è | D41: K | E41: = | F41: $ 384 | O41: Pro | P41: K | S41: =INDEX(G8ServicePrices[],MATCH(D41,G8ServicePrices[Code],0),MATCH($M$1,G8ServicePrices[#Headers],0))*PurhcaseTerm -> 384
B42: 0 | D42: 0 | S42: =INDEX(G8ServicePrices[],MATCH(D42,G8ServicePrices[Code],0),MATCH($M$1,G8ServicePrices[#Headers],0))*PurhcaseTerm -> 
L43: +
B44: Monitoring Services
B45: =_xlfn.VSTACK(O45:O47) -> None | C45: =IF(B45=0,"","è") -> è | D45: =_xlfn.VSTACK(P45:P47) -> X | E45: =IF(B45=0,"","=") -> = | F45: =IFERROR(S45,"") -> $ 0 | H45: X | L45: =VLOOKUP(H45,D45:F47,3,FALSE) -> $ 0 | O45: =_xlfn._xlws.FILTER(_xlfn._xlws.FILTER(G8Monitoring[],G8Monitoring[Type]=ServicePlans),{1,1,0}) -> None | P45: X | S45: =IF(P45="X",0,INDEX(G8ServicePrices[],MATCH(D45,G8ServicePrices[Code],0),MATCH($M$1,G8ServicePrices[#Headers],0))*PurhcaseTerm) -> 0
B46: 0 | D46: 0 | F46: =IFERROR(S46,"") ->  | S46: =IF(P46="X",0,INDEX(G8ServicePrices[],MATCH(D46,G8ServicePrices[Code],0),MATCH($M$1,G8ServicePrices[#Headers],0))*PurhcaseTerm) -> 
B47: 0 | D47: 0 | F47: =IFERROR(S47,"") ->  | S47: =IF(P47="X",0,INDEX(G8ServicePrices[],MATCH(D47,G8ServicePrices[Code],0),MATCH($M$1,G8ServicePrices[#Headers],0))*PurhcaseTerm) -> 
L48: +
B49: Voice
B50: =_xlfn.VSTACK(O50:O51) -> None | C50: =IF(B50=0,"","è") -> è | D50: =_xlfn.VSTACK(P50:P51) -> X | E50: =IF(B50=0,"","=") -> = | F50: =IFERROR(S50,"") -> $ 0 | H50: X | L50: =VLOOKUP(H50,D50:F51,3,FALSE) -> $ 0 | O50: =_xlfn._xlws.FILTER(_xlfn._xlws.FILTER(G8Voice[],G8Voice[Type]=ServicePlans),{1,1,0}) -> None | P50: X | S50: =IF(P50="X",0,INDEX(G8ServicePrices[],MATCH(D50,G8ServicePrices[Code],0),MATCH($M$1,G8ServicePrices[#Headers],0))*PurhcaseTerm) -> 0
B51: 0 | D51: 0 | F51: =IFERROR(S51,"") ->  | S51: =IF(P51="X",0,INDEX(G8ServicePrices[],MATCH(D51,G8ServicePrices[Code],0),MATCH($M$1,G8ServicePrices[#Headers],0))*PurhcaseTerm) -> 
L52: +
B53: Push-to-Talk
B54: =_xlfn.VSTACK(O54:O55) -> None | C54: =IF(B54=0,"","è") -> è | D54: =_xlfn.VSTACK(P54:P55) -> X | E54: =IF(B54=0,"","=") -> = | F54: =IFERROR(S54,"") -> $ 0 | H54: X | L54: =VLOOKUP(H54,D54:F55,3,FALSE) -> $ 0 | O54: =_xlfn._xlws.FILTER(_xlfn._xlws.FILTER(G8PTT[],G8PTT[Type]=ServicePlans),{1,1,0}) -> None | P54: X | S54: =IF(P54="X",0,INDEX(G8ServicePrices[],MATCH(D54,G8ServicePrices[Code],0),MATCH($M$1,G8ServicePrices[#Headers],0))*PurhcaseTerm) -> 0
B55: Included | C55: è | D55: P | E55: = | F55: =IFERROR(S55,"") -> $ 228 | O55: Included | P55: P | S55: =IF(P55="X",0,INDEX(G8ServicePrices[],MATCH(D55,G8ServicePrices[Code],0),MATCH($M$1,G8ServicePrices[#Headers],0))*PurhcaseTerm) -> 228
L56: +
B57: Future Service Option
B58: =_xlfn.VSTACK(O58:O59) -> None | C58: =IF(B58=0,"","è") -> è | D58: =_xlfn.VSTACK(P58:P59) -> X | E58: =IF(B58=0,"","=") -> = | F58: =IFERROR(S58,"") -> $ 0 | H58: X | L58: =VLOOKUP(H58,D58:F59,3,FALSE) -> $ 0 | O58: =_xlfn._xlws.FILTER(_xlfn._xlws.FILTER(G8TeamCalling[],G8TeamCalling[Type]=ServicePlans),{1,1,0}) -> None | P58: X | S58: =IF(P58="X",0,INDEX(G8ServicePrices[],MATCH(D58,G8ServicePrices[Code],0),MATCH($M$1,G8ServicePrices[#Headers],0))*PurhcaseTerm) -> 0
B59: 0 | D59: 0 | F59: =IFERROR(S59,"") ->  | S59: =IF(P59="X",0,INDEX(G8ServicePrices[],MATCH(D59,G8ServicePrices[Code],0),MATCH($M$1,G8ServicePrices[#Headers],0))*PurhcaseTerm) -> 
H60: -
B61: Term
B62: One-Year | C62: è | D62: 1Y | H62: 2Y | S62: 12
B63: Two-Years | C63: è | D63: 2Y | S63: =LEFT(H62,1) -> 2
B64: Three-Years | C64: è | D64: 3Y
B65: Four-Years | C65: è | D65: 4Y
B66: Five-Years | C66: è | D66: 5Y

Sheet G8 Single-Gas Combination
M1: =Currency -> USD | P1: G8 Single-Gas Combination
B2: G8 Single-Gas Combination | M2: =PBYear -> 2025 | N2: Quick Links
M3: =Revision -> Effective February 2, 2026 Rev 2 | N3: Main Menu
M4: Blackline Safety Confidential | N4: Accessories
M5: All prices are an estimate - for a formal quote contact your local Blackline Safety representative
F8: Hardware | H8: =CONCATENATE(H15,H19,H20,H22,H23,H25,H28,H30,H31,H33,H52,H54) -> CMB-G8C-01-NA2-S-H-2Y | L8: =IFERROR(L15+L30+L33+L54,"Error") -> $ 740 | M8: =M1&" List" -> USD List
F10: Service (Annual/Term) | H10: =CONCATENATE("SER-CMB-G8",H19,H20,ServicePlans,H66,H71,H75,H79,H81,H83) -> SER-CMB-G8C-SXXXX-2Y | L10: =L61+L66+L71+L75+L79 -> $ 204 | M10: =L10*ComboYears -> $ 408
F12: Additional Cartridge | H12: =_xlfn.LET(_xlpm.trm,IF(H54="2Y","2Y","3Y"), CONCATENATE("J-CART-",H30,"-",H33,"-",_xlpm.trm,"-R")) -> J-CART-S-H-2Y-R | L12: =SUM(X16:X32) -> $ 183 | M12: =M1&" List" -> USD List
B14: Buying Option | S14: Price | T14: EWAR | W14: Additional CART
B15: Combination | C15: è | D15: CMB-G8 | H15: =D15 -> CMB-G8 | L15: =S16 -> $ 594 | X15: =IF(H54="2Y",2.5,3) -> 2.5
A16: 1 | D16: Single-sensor | E16: = | F16: =SUM(S16:T16) -> $ 594 | R16: 1 | S16: =INDEX(BasePrices[],MATCH("G8 Purchase Base Price",BasePrices[Type],0),MATCH($M$1,BasePrices[#Headers],0)) -> 594 | T16: =INDEX(BasePrices[],MATCH("G7 Warranty Base Price",BasePrices[Type],0),MATCH($M$1,BasePrices[#Headers],0))*MAX(0,LEFT(H54,1)-2) -> 0 | X16: =ROUNDUP(INDEX(BasePrices[],MATCH(R16&" Sensor Cartridge",BasePrices[Type],0),MATCH($M$1,BasePrices[#Headers],0))*$X$15,0) -> 183
L17: +
B18: Connectivity
B19: Cellular | C19: è | D19: C | H19: C
H20: -
B21: SIM Card
B22: Standard (Telenor) | C22: è | D22: 01 | H22: =D22 -> 01
H23: -
B24: Country Code
B25: =_xlfn.VSTACK(O25:O27) -> North America (4G/LTE) - G8C | C25: =IF(B25="","","è") -> è | D25: =IFERROR(_xlfn.VSTACK(P25:P27),"") -> NA2 | H25: NA2 | O25: =_xlfn.LET( _xlpm.Dtype,G8CountryCodes[Type],_xlpm.Curr,G8CountryCodes[Currency],_xlpm.SType,H19,_xlpm.SCurr,M1, _xlpm.myCalculation,_xlfn.VSTACK(_xlfn._xlws.FILTER(G8CountryCodes[],(_xlpm.Dtype=_xlpm.SType)*(_xlpm.Curr=_xlpm.SCurr))),_xlpm.myCalculation) -> North America (4G/LTE) - G8C | P25: NA2 | Q25: C | R25: USD
B26: Outside of North America (4G/LTE) - G8C | C26: =IF(B26=0,"","è") -> è | D26: EU2 | O26: Outside of North America (4G/LTE) - G8C | P26: EU2 | Q26: C | R26: USD
B27: 0 | C27: =IF(B27=0,"","è") ->  | D27: 0
H28: -
B29: Cartridge Type
B30: Single Sensor | C30: è | D30: S | E30: = | F30: =S30 -> $ 146 | H30: =D30 -> S | L30: =S30 -> $ 146 | S30: =INDEX(BasePrices[],MATCH(R16&" Sensor Cartridge",BasePrices[Type],0),MATCH($M$1,BasePrices[#Headers],0))*2 -> 146 | T30: =ROUNDUP(INDEX(BasePrices[],MATCH(R16&" Sensor Cartridge",BasePrices[Type],0),MATCH($M$1,BasePrices[#Headers],0))*0.2777777,0)*MAX(0,LEFT(H54,1)-2) -> 0
H31: - | L31: +
B32: Toxic Sensor | X32: =VLOOKUP(H33,D33:W51,20,FALSE) -> 0
B33: =_xlfn.VSTACK(O33:O51) -> HF | C33: =IF(B33=0,"","è") -> è | D33: =_xlfn.VSTACK(P33:P51) -> 2 | E33: =IF(B33=0,"","=") -> = | F33: =IFERROR(S33,"") -> $ 840 | H33: H | L33: =VLOOKUP(H33,D33:F51,3,FALSE) -> $ 0 | O33: =_xlfn.LET( _xlpm.Dtype,G7Sensors[Type1],_xlpm.Curr,G7Sensors[Currency],_xlpm.Stype,H30,_xlpm.SCurr,M1, _xlpm.myCalculation,_xlfn.VSTACK(_xlfn._xlws.FILTER(G7Sensors[],(_xlpm.Dtype=_xlpm.Stype)*(_xlpm.Curr=_xlpm.SCurr))),_xlpm.myCalculation) -> HF | P33: 2 | Q33: S | R33: USD | S33: =INDEX(SensorPricing[],MATCH(D33,SensorPricing[Sensor],0),MATCH($M$1,SensorPricing[#Headers],0))*2 -> 840 | T33: =ROUNDUP(INDEX(SensorPricing[],MATCH(H33,SensorPricing[Sensor],0),MATCH($M$1,SensorPricing[#Headers],0))*0.2777777,0)*MAX(0,LEFT(H54,1)-2) -> 0 | W33: =INDEX(SensorPricing[],MATCH(D33,SensorPricing[Sensor],0),MATCH($M$1,SensorPricing[#Headers],0))*$X$15 -> 1050
B34: NH3 | C34: è | D34: A | E34: = | F34: =IFERROR(S34,"") -> $ 120 | O34: NH3 | P34: A | Q34: S | R34: USD | S34: =INDEX(SensorPricing[],MATCH(D34,SensorPricing[Sensor],0),MATCH($M$1,SensorPricing[#Headers],0))*2 -> 120 | W34: =INDEX(SensorPricing[],MATCH(D34,SensorPricing[Sensor],0),MATCH($M$1,SensorPricing[#Headers],0))*$X$15 -> 150
B35: High-range NH3 | C35: è | D35: B | E35: = | F35: $ 252 | O35: High-range NH3 | P35: B | Q35: S | R35: USD | S35: =INDEX(SensorPricing[],MATCH(D35,SensorPricing[Sensor],0),MATCH($M$1,SensorPricing[#Headers],0))*2 -> 252 | W35: =INDEX(SensorPricing[],MATCH(D35,SensorPricing[Sensor],0),MATCH($M$1,SensorPricing[#Headers],0))*$X$15 -> 315
B36: CO2 | C36: è | D36: C | E36: = | F36: $ 480 | O36: CO2 | P36: C | Q36: S | R36: USD | S36: =INDEX(SensorPricing[],MATCH(D36,SensorPricing[Sensor],0),MATCH($M$1,SensorPricing[#Headers],0))*2 -> 480 | W36: =INDEX(SensorPricing[],MATCH(D36,SensorPricing[Sensor],0),MATCH($M$1,SensorPricing[#Headers],0))*$X$15 -> 600
B37: O3 | C37: è | D37: E | E37: = | F37: $ 240 | O37: O3 | P37: E | Q37: S | R37: USD | S37: =INDEX(SensorPricing[],MATCH(D37,SensorPricing[Sensor],0),MATCH($M$1,SensorPricing[#Headers],0))*2 -> 240 | W37: =INDEX(SensorPricing[],MATCH(D37,SensorPricing[Sensor],0),MATCH($M$1,SensorPricing[#Headers],0))*$X$15 -> 300
B38: H2S | C38: è | D38: H | E38: = | F38: $ 0 | O38: H2S | P38: H | Q38: S | R38: USD | S38: =INDEX(SensorPricing[],MATCH(D38,SensorPricing[Sensor],0),MATCH($M$1,SensorPricing[#Headers],0))*2 -> 0 | W38: =INDEX(SensorPricing[],MATCH(D38,SensorPricing[Sensor],0),MATCH($M$1,SensorPricing[#Headers],0))*$X$15 -> 0
B39: High-range H2S | C39: è | D39: J | E39: = | F39: $ 240 | O39: High-range H2S | P39: J | Q39: S | R39: USD | S39: =INDEX(SensorPricing[],MATCH(D39,SensorPricing[Sensor],0),MATCH($M$1,SensorPricing[#Headers],0))*2 -> 240 | W39: =INDEX(SensorPricing[],MATCH(D39,SensorPricing[Sensor],0),MATCH($M$1,SensorPricing[#Headers],0))*$X$15 -> 300
B40: NO2 | C40: è | D40: K | E40: = | F40: $ 120 | O40: NO2 | P40: K | Q40: S | R40: USD | S40: =INDEX(SensorPricing[],MATCH(D40,SensorPricing[Sensor],0),MATCH($M$1,SensorPricing[#Headers],0))*2 -> 120 | W40: =INDEX(SensorPricing[],MATCH(D40,SensorPricing[Sensor],0),MATCH($M$1,SensorPricing[#Headers],0))*$X$15 -> 150
B41: Cl2 | C41: è | D41: L | E41: = | F41: $ 120 | O41: Cl2 | P41: L | Q41: S | R41: USD | S41: =INDEX(SensorPricing[],MATCH(D41,SensorPricing[Sensor],0),MATCH($M$1,SensorPricing[#Headers],0))*2 -> 120 | W41: =INDEX(SensorPricing[],MATCH(D41,SensorPricing[Sensor],0),MATCH($M$1,SensorPricing[#Headers],0))*$X$15 -> 150
B42: CO | C42: è | D42: M | E42: = | F42: $ 0 | O42: CO | P42: M | Q42: S | R42: USD | S42: =INDEX(SensorPricing[],MATCH(D42,SensorPricing[Sensor],0),MATCH($M$1,SensorPricing[#Headers],0))*2 -> 0 | W42: =INDEX(SensorPricing[],MATCH(D42,SensorPricing[Sensor],0),MATCH($M$1,SensorPricing[#Headers],0))*$X$15 -> 0
B43: HCN | C43: è | D43: N | E43: = | F43: $ 120 | O43: HCN | P43: N | Q43: S | R43: USD | S43: =INDEX(SensorPricing[],MATCH(D43,SensorPricing[Sensor],0),MATCH($M$1,SensorPricing[#Headers],0))*2 -> 120 | W43: =INDEX(SensorPricing[],MATCH(D43,SensorPricing[Sensor],0),MATCH($M$1,SensorPricing[#Headers],0))*$X$15 -> 150
B44: O2 | C44: è | D44: O | E44: = | F44: $ 0 | O44: O2 | P44: O | Q44: S | R44: USD | S44: =INDEX(SensorPricing[],MATCH(D44,SensorPricing[Sensor],0),MATCH($M$1,SensorPricing[#Headers],0))*2 -> 0 | W44: =INDEX(SensorPricing[],MATCH(D44,SensorPricing[Sensor],0),MATCH($M$1,SensorPricing[#Headers],0))*$X$15 -> 0
B45: CO-H | C45: è | D45: R | E45: = | F45: $ 0 | O45: CO-H | P45: R | Q45: S | R45: USD | S45: =INDEX(SensorPricing[],MATCH(D45,SensorPricing[Sensor],0),MATCH($M$1,SensorPricing[#Headers],0))*2 -> 0 | W45: =INDEX(SensorPricing[],MATCH(D45,SensorPricing[Sensor],0),MATCH($M$1,SensorPricing[#Headers],0))*$X$15 -> 0
B46: SO2 | C46: è | D46: S | E46: = | F46: $ 0 | O46: SO2 | P46: S | Q46: S | R46: USD | S46: =INDEX(SensorPricing[],MATCH(D46,SensorPricing[Sensor],0),MATCH($M$1,SensorPricing[#Headers],0))*2 -> 0 | W46: =INDEX(SensorPricing[],MATCH(D46,SensorPricing[Sensor],0),MATCH($M$1,SensorPricing[#Headers],0))*$X$15 -> 0
B47: High-range CO | C47: è | D47: T | E47: = | F47: $ 240 | O47: High-range CO | P47: T | Q47: S | R47: USD | S47: =INDEX(SensorPricing[],MATCH(D47,SensorPricing[Sensor],0),MATCH($M$1,SensorPricing[#Headers],0))*2 -> 240 | W47: =INDEX(SensorPricing[],MATCH(D47,SensorPricing[Sensor],0),MATCH($M$1,SensorPricing[#Headers],0))*$X$15 -> 300
B48: PID | C48: è | D48: V | E48: = | F48: $ 966 | O48: PID | P48: V | Q48: S | R48: USD | S48: =INDEX(SensorPricing[],MATCH(D48,SensorPricing[Sensor],0),MATCH($M$1,SensorPricing[#Headers],0))*2 -> 966 | W48: =INDEX(SensorPricing[],MATCH(D48,SensorPricing[Sensor],0),MATCH($M$1,SensorPricing[#Headers],0))*$X$15 -> 1207.5
B49: ClO2 | C49: è | D49: W | E49: = | F49: $ 120 | O49: ClO2 | P49: W | Q49: S | R49: USD | S49: =INDEX(SensorPricing[],MATCH(D49,SensorPricing[Sensor],0),MATCH($M$1,SensorPricing[#Headers],0))*2 -> 120 | W49: =INDEX(SensorPricing[],MATCH(D49,SensorPricing[Sensor],0),MATCH($M$1,SensorPricing[#Headers],0))*$X$15 -> 150
B50: 0 | C50: =IF(B50=0,"","è") ->  | D50: 0 | E50: =IF(B50=0,"","=") ->  | S50: =INDEX(SensorPricing[],MATCH(D50,SensorPricing[Sensor],0),MATCH($M$1,SensorPricing[#Headers],0))*2 ->  | W50: =INDEX(SensorPricing[],MATCH(D50,SensorPricing[Sensor],0),MATCH($M$1,SensorPricing[#Headers],0))*$X$15 -> 
B51: 0 | C51: =IF(B51=0,"","è") ->  | D51: 0 | E51: =IF(B51=0,"","=") ->  | S51: =INDEX(SensorPricing[],MATCH(D51,SensorPricing[Sensor],0),MATCH($M$1,SensorPricing[#Headers],0))*2 ->  | W51: =INDEX(SensorPricing[],MATCH(D51,SensorPricing[Sensor],0),MATCH($M$1,SensorPricing[#Headers],0))*$X$15 -> 
H52: - | L52: +
B53: Warranty Term
B54: =_xlfn.VSTACK(O54:O57) -> 2-Years | C54: è | D54: =_xlfn.VSTACK(P54:P57) -> 2Y | H54: 2Y | L54: =S54 -> $ 0 | O54: =_xlfn.VSTACK(G8PurWarr[]) -> 2-Years | P54: 2Y | Q54: 2Y | S54: =SUM(T16:T33) -> 0
B55: 3-Years | C55: è | D55: 3Y | O55: 3-Years | P55: 3Y | Q55: 3Y
B56: 4-Years | C56: è | D56: 4Y | O56: 4-Years | P56: 4Y | Q56: 4Y
B57: 5-Years | C57: è | D57: 5Y | O57: 5-Years | P57: 5Y | Q57: 5Y
B59: Service (Annually)
B60: Service Plan
B61: =_xlfn.VSTACK(O61:O63) -> Standard | C61: =IF(B61=0,"","è") -> è | D61: =_xlfn.VSTACK(P61:P63) -> S | E61: =IF(B61=0,"","=") -> = | F61: =IFERROR(S61,"") -> $ 204 | H61: S | L61: =VLOOKUP(H61,D61:F63,3,FALSE) -> $ 204 | O61: =_xlfn.VSTACK(G8ServicePlans[]) -> Standard | P61: S | S61: =INDEX(G8ServicePrices[],MATCH(D61,G8ServicePrices[Code],0),MATCH($M$1,G8ServicePrices[#Headers],0))*PurhcaseTerm -> 204
B62: Pro | C62: è | D62: K | E62: = | F62: $ 384 | O62: Pro | P62: K | S62: =INDEX(G8ServicePrices[],MATCH(D62,G8ServicePrices[Code],0),MATCH($M$1,G8ServicePrices[#Headers],0))*PurhcaseTerm -> 384
B63: 0 | D63: 0 | S63: =INDEX(G8ServicePrices[],MATCH(D63,G8ServicePrices[Code],0),MATCH($M$1,G8ServicePrices[#Headers],0))*PurhcaseTerm -> 
L64: +
B65: Monitoring Services
B66: =_xlfn.VSTACK(O66:O68) -> None | C66: =IF(B66=0,"","è") -> è | D66: =_xlfn.VSTACK(P66:P68) -> X | E66: =IF(B66=0,"","=") -> = | F66: =IFERROR(S66,"") -> $ 0 | H66: X | L66: =VLOOKUP(H66,D66:F68,3,FALSE) -> $ 0 | O66: =_xlfn._xlws.FILTER(_xlfn._xlws.FILTER(G8Monitoring[],G8Monitoring[Type]=ServicePlans),{1,1,0}) -> None | P66: X | S66: =IF(P66="X",0,INDEX(G8ServicePrices[],MATCH(D66,G8ServicePrices[Code],0),MATCH($M$1,G8ServicePrices[#Headers],0))*PurhcaseTerm) -> 0
B67: 0 | D67: 0 | F67: =IFERROR(S67,"") ->  | S67: =IF(P67="X",0,INDEX(G8ServicePrices[],MATCH(D67,G8ServicePrices[Code],0),MATCH($M$1,G8ServicePrices[#Headers],0))*PurhcaseTerm) -> 
B68: 0 | D68: 0 | F68: =IFERROR(S68,"") ->  | S68: =IF(P68="X",0,INDEX(G8ServicePrices[],MATCH(D68,G8ServicePrices[Code],0),MATCH($M$1,G8ServicePrices[#Headers],0))*PurhcaseTerm) -> 
L69: +
B70: Voice
B71: =_xlfn.VSTACK(O71:O72) -> None | C71: =IF(B71=0,"","è") -> è | D71: =_xlfn.VSTACK(P71:P72) -> X | E71: =IF(B71=0,"","=") -> = | F71: =IFERROR(S71,"") -> $ 0 | H71: X | L71: =VLOOKUP(H71,D71:F72,3,FALSE) -> $ 0 | O71: =_xlfn._xlws.FILTER(_xlfn._xlws.FILTER(G8Voice[],G8Voice[Type]=ServicePlans),{1,1,0}) -> None | P71: X | S71: =IF(P71="X",0,INDEX(G8ServicePrices[],MATCH(D71,G8ServicePrices[Code],0),MATCH($M$1,G8ServicePrices[#Headers],0))*PurhcaseTerm) -> 0
B72: 0 | D72: 0 | F72: =IFERROR(S72,"") ->  | S72: =IF(P72="X",0,INDEX(G8ServicePrices[],MATCH(D72,G8ServicePrices[Code],0),MATCH($M$1,G8ServicePrices[#Headers],0))*PurhcaseTerm) -> 
L73: +
B74: Push-to-Talk
B75: =_xlfn.VSTACK(O75:O76) -> None | C75: =IF(B75=0,"","è") -> è | D75: =_xlfn.VSTACK(P75:P76) -> X | E75: =IF(B75=0,"","=") -> = | F75: =IFERROR(S75,"") -> $ 0 | H75: X | L75: =VLOOKUP(H75,D75:F76,3,FALSE) -> $ 0 | O75: =_xlfn._xlws.FILTER(_xlfn._xlws.FILTER(G8PTT[],G8PTT[Type]=ServicePlans),{1,1,0}) -> None | P75: X | S75: =IF(P75="X",0,INDEX(G8ServicePrices[],MATCH(D75,G8ServicePrices[Code],0),MATCH($M$1,G8ServicePrices[#Headers],0))*PurhcaseTerm) -> 0
B76: Included | C76: è | D76: P | E76: = | F76: =IFERROR(S76,"") -> $ 228 | O76: Included | P76: P | S76: =IF(P76="X",0,INDEX(G8ServicePrices[],MATCH(D76,G8ServicePrices[Code],0),MATCH($M$1,G8ServicePrices[#Headers],0))*PurhcaseTerm) -> 228
L77: +
B78: Future Service Option
B79: =_xlfn.VSTACK(O79:O80) -> None | C79: =IF(B79=0,"","è") -> è | D79: =_xlfn.VSTACK(P79:P80) -> X | E79: =IF(B79=0,"","=") -> = | F79: =IFERROR(S79,"") -> $ 0 | H79: X | L79: =VLOOKUP(H79,D79:F80,3,FALSE) -> $ 0 | O79: =_xlfn._xlws.FILTER(_xlfn._xlws.FILTER(G8TeamCalling[],G8TeamCalling[Type]=ServicePlans),{1,1,0}) -> None | P79: X | S79: =IF(P79="X",0,INDEX(G8ServicePrices[],MATCH(D79,G8ServicePrices[Code],0),MATCH($M$1,G8ServicePrices[#Headers],0))*PurhcaseTerm) -> 0
B80: 0 | D80: 0 | F80: =IFERROR(S80,"") ->  | S80: =IF(P80="X",0,INDEX(G8ServicePrices[],MATCH(D80,G8ServicePrices[Code],0),MATCH($M$1,G8ServicePrices[#Headers],0))*PurhcaseTerm) -> 
H81: -
B82: Term
B83: One-Year | C83: è | D83: 1Y | H83: 2Y | S83: 12
B84: Two-Years | C84: è | D84: 2Y | S84: =LEFT(H83,1) -> 2
B85: Three-Years | C85: è | D85: 3Y
B86: Four-Years | C86: è | D86: 4Y
B87: Five-Years | C87: è | D87: 5Y

Sheet G8 Multi-Gas Combination
M1: =Currency -> USD | P1: G8 Multi-Gas Combination
B2: G8 Multi-Gas Combination | M2: =PBYear -> 2025 | N2: Quick Links
M3: =Revision -> Effective February 2, 2026 Rev 2 | N3: Main Menu
M4: Blackline Safety Confidential | N4: Accessories
M5: All prices are an estimate - for a formal quote contact your local Blackline Safety representative
F8: Hardware | H8: =CONCATENATE(H15,H26,H27,H29,H30,H32,H35,H37,H39,J41,H90,H92) -> CMB-G8C-01-NA2-Q-FHMO-2Y | L8: =IFERROR(L15+L37+L41+L46+L67+L88+L92,"Error") -> $ 994 | M8: =M1&" List" -> USD List
F10: Service (Annual/Term) | H10: =CONCATENATE("SER-CMB-G8",H26,H27,ServicePlans,H104,H109,H113,H117,H119,H121) -> SER-CMB-G8C-SXXXX-2Y | L10: =IFERROR(L99+L104+L109+L113+L117,"Error") -> $ 204 | M10: =L10*ComboYears -> $ 408
F12: Additional Cartridge | H12: =_xlfn.LET(_xlpm.trm,IF(H92="2Y","2Y","3Y"), CONCATENATE("J-CART-",H37,"-",J41,"-",_xlpm.trm,"-R")) -> J-CART-Q-FHMO-2Y-R | L12: =SUM(X16:X44) -> $ 500 | M12: =M1&" List" -> USD List
B14: Buying Option | S14: Price | T14: EWAR | W14: Additional CART
B15: Combination | C15: è | D15: CMB-G8 | H15: =D15 -> CMB-G8 | L15: =VLOOKUP(P39,A16:F23,6,FALSE) -> $ 994 | X15: =IF(H92="2Y",2.5,3) -> 2.5
A16: Q1 | D16: Multi 1-sensor | E16: = | F16: =S16 -> $ 740 | R16: 1 | S16: =INDEX(BasePrices[],MATCH("G8 Purchase Base Price",BasePrices[Type],0),MATCH($M$1,BasePrices[#Headers],0))+INDEX(BasePrices[],MATCH(R16&" Sensor Cartridge",BasePrices[Type],0),MATCH($M$1,BasePrices[#Headers],0))*2 -> 740 | T16: =INDEX(BasePrices[],MATCH("G7 Warranty Base Price",BasePrices[Type],0),MATCH($M$1,BasePrices[#Headers],0))*MAX(0,LEFT($H$92,1)-2)+ ROUNDUP(INDEX(BasePrices[],MATCH(R16&" Sensor Cartridge",BasePrices[Type],0),MATCH($M$1,BasePrices[#Headers],0))*0.2777777,0)*MAX(0,LEFT($H$92,1)-2) -> 0 | W16: =ROUNDUP(INDEX(BasePrices[],MATCH(R16&" Sensor Cartridge",BasePrices[Type],0),MATCH($M$1,BasePrices[#Headers],0))*$X$15,0) -> 183 | X16: =VLOOKUP(P39,A16:W23,COLUMN()-1,FALSE) -> 500
A17: Q2 | D17: Multi 2-sensor | E17: = | F17: =S17 -> $ 846 | R17: 2 | S17: =INDEX(BasePrices[],MATCH("G8 Purchase Base Price",BasePrices[Type],0),MATCH($M$1,BasePrices[#Headers],0))+INDEX(BasePrices[],MATCH(R17&" Sensor Cartridge",BasePrices[Type],0),MATCH($M$1,BasePrices[#Headers],0))*2 -> 846 | T17: =INDEX(BasePrices[],MATCH("G7 Warranty Base Price",BasePrices[Type],0),MATCH($M$1,BasePrices[#Headers],0))*MAX(0,LEFT($H$92,1)-2)+ ROUNDUP(INDEX(BasePrices[],MATCH(R17&" Sensor Cartridge",BasePrices[Type],0),MATCH($M$1,BasePrices[#Headers],0))*0.2777777,0)*MAX(0,LEFT($H$92,1)-2) -> 0 | W17: =ROUNDUP(INDEX(BasePrices[],MATCH(R17&" Sensor Cartridge",BasePrices[Type],0),MATCH($M$1,BasePrices[#Headers],0))*$X$15,0) -> 315
A18: Q3 | D18: Multi 3-sensor | E18: = | F18: $ 924 | R18: 3 | S18: =INDEX(BasePrices[],MATCH("G8 Purchase Base Price",BasePrices[Type],0),MATCH($M$1,BasePrices[#Headers],0))+INDEX(BasePrices[],MATCH(R18&" Sensor Cartridge",BasePrices[Type],0),MATCH($M$1,BasePrices[#Headers],0))*2 -> 924 | T18: =INDEX(BasePrices[],MATCH("G7 Warranty Base Price",BasePrices[Type],0),MATCH($M$1,BasePrices[#Headers],0))*MAX(0,LEFT($H$92,1)-2)+ ROUNDUP(INDEX(BasePrices[],MATCH(R18&" Sensor Cartridge",BasePrices[Type],0),MATCH($M$1,BasePrices[#Headers],0))*0.2777777,0)*MAX(0,LEFT($H$92,1)-2) -> 0 | W18: =ROUNDUP(INDEX(BasePrices[],MATCH(R18&" Sensor Cartridge",BasePrices[Type],0),MATCH($M$1,BasePrices[#Headers],0))*$X$15,0) -> 413
A19: Q4 | D19: Multi 4-sensor | E19: = | F19: $ 994 | R19: 4 | S19: =INDEX(BasePrices[],MATCH("G8 Purchase Base Price",BasePrices[Type],0),MATCH($M$1,BasePrices[#Headers],0))+INDEX(BasePrices[],MATCH(R19&" Sensor Cartridge",BasePrices[Type],0),MATCH($M$1,BasePrices[#Headers],0))*2 -> 994 | T19: =INDEX(BasePrices[],MATCH("G7 Warranty Base Price",BasePrices[Type],0),MATCH($M$1,BasePrices[#Headers],0))*MAX(0,LEFT($H$92,1)-2)+ ROUNDUP(INDEX(BasePrices[],MATCH(R19&" Sensor Cartridge",BasePrices[Type],0),MATCH($M$1,BasePrices[#Headers],0))*0.2777777,0)*MAX(0,LEFT($H$92,1)-2) -> 0 | W19: =ROUNDUP(INDEX(BasePrices[],MATCH(R19&" Sensor Cartridge",BasePrices[Type],0),MATCH($M$1,BasePrices[#Headers],0))*$X$15,0) -> 500
A20: P1 | D20: Multi 1-sensor pump | E20: = | F20: $ 1,104 | R20: 1 | S20: =INDEX(BasePrices[],MATCH("G8 Purchase Base Price",BasePrices[Type],0),MATCH($M$1,BasePrices[#Headers],0))+ INDEX(BasePrices[],MATCH(R20&" Sensor Cartridge",BasePrices[Type],0),MATCH($M$1,BasePrices[#Headers],0))*2+ INDEX(BasePrices[],MATCH("G7 Pump",BasePrices[Type],0),MATCH($M$1,BasePrices[#Headers],0))*2 -> 1104 | T20: =INDEX(BasePrices[],MATCH("G7 Warranty Base Price",BasePrices[Type],0),MATCH($M$1,BasePrices[#Headers],0))*MAX(0,LEFT($H$92,1)-2)+ ROUNDUP(INDEX(BasePrices[],MATCH(R20&" Sensor Cartridge",BasePrices[Type],0),MATCH($M$1,BasePrices[#Headers],0))*0.2777777+INDEX(BasePrices[],MATCH("G7 Pump",BasePrices[Type],0),MATCH($M$1,BasePrices[#Headers],0))*0.2777777,0)*MAX(0,LEFT($H$92,1)-2) -> 0 | W20: =ROUNDUP(INDEX(BasePrices[],MATCH(R20&" Sensor Cartridge",BasePrices[Type],0),MATCH($M$1,BasePrices[#Headers],0))*$X$15,0)+ ROUNDUP(INDEX(BasePrices[],MATCH("G7 Pump",BasePrices[Type],0),MATCH($M$1,BasePrices[#Headers],0))*$X$15,0) -> 638
A21: P2 | D21: Multi 2-sensor pump | E21: = | F21: $ 1,210 | R21: 2 | S21: =INDEX(BasePrices[],MATCH("G8 Purchase Base Price",BasePrices[Type],0),MATCH($M$1,BasePrices[#Headers],0))+ INDEX(BasePrices[],MATCH(R21&" Sensor Cartridge",BasePrices[Type],0),MATCH($M$1,BasePrices[#Headers],0))*2+ INDEX(BasePrices[],MATCH("G7 Pump",BasePrices[Type],0),MATCH($M$1,BasePrices[#Headers],0))*2 -> 1210 | T21: =INDEX(BasePrices[],MATCH("G7 Warranty Base Price",BasePrices[Type],0),MATCH($M$1,BasePrices[#Headers],0))*MAX(0,LEFT($H$92,1)-2)+ ROUNDUP(INDEX(BasePrices[],MATCH(R21&" Sensor Cartridge",BasePrices[Type],0),MATCH($M$1,BasePrices[#Headers],0))*0.2777777+INDEX(BasePrices[],MATCH("G7 Pump",BasePrices[Type],0),MATCH($M$1,BasePrices[#Headers],0))*0.2777777,0)*MAX(0,LEFT($H$92,1)-2) -> 0 | W21: =ROUNDUP(INDEX(BasePrices[],MATCH(R21&" Sensor Cartridge",BasePrices[Type],0),MATCH($M$1,BasePrices[#Headers],0))*$X$15,0)+ ROUNDUP(INDEX(BasePrices[],MATCH("G7 Pump",BasePrices[Type],0),MATCH($M$1,BasePrices[#Headers],0))*$X$15,0) -> 770
A22: P3 | D22: Multi 3-sensor pump | E22: = | F22: $ 1,288 | R22: 3 | S22: =INDEX(BasePrices[],MATCH("G8 Purchase Base Price",BasePrices[Type],0),MATCH($M$1,BasePrices[#Headers],0))+ INDEX(BasePrices[],MATCH(R22&" Sensor Cartridge",BasePrices[Type],0),MATCH($M$1,BasePrices[#Headers],0))*2+ INDEX(BasePrices[],MATCH("G7 Pump",BasePrices[Type],0),MATCH($M$1,BasePrices[#Headers],0))*2 -> 1288 | T22: =INDEX(BasePrices[],MATCH("G7 Warranty Base Price",BasePrices[Type],0),MATCH($M$1,BasePrices[#Headers],0))*MAX(0,LEFT($H$92,1)-2)+ ROUNDUP(INDEX(BasePrices[],MATCH(R22&" Sensor Cartridge",BasePrices[Type],0),MATCH($M$1,BasePrices[#Headers],0))*0.2777777+INDEX(BasePrices[],MATCH("G7 Pump",BasePrices[Type],0),MATCH($M$1,BasePrices[#Headers],0))*0.2777777,0)*MAX(0,LEFT($H$92,1)-2) -> 0 | W22: =ROUNDUP(INDEX(BasePrices[],MATCH(R22&" Sensor Cartridge",BasePrices[Type],0),MATCH($M$1,BasePrices[#Headers],0))*$X$15,0)+ ROUNDUP(INDEX(BasePrices[],MATCH("G7 Pump",BasePrices[Type],0),MATCH($M$1,BasePrices[#Headers],0))*$X$15,0) -> 868
A23: P4 | D23: Multi 4-sensor pump | E23: = | F23: $ 1,358 | R23: 4 | S23: =INDEX(BasePrices[],MATCH("G8 Purchase Base Price",BasePrices[Type],0),MATCH($M$1,BasePrices[#Headers],0))+ INDEX(BasePrices[],MATCH(R23&" Sensor Cartridge",BasePrices[Type],0),MATCH($M$1,BasePrices[#Headers],0))*2+ INDEX(BasePrices[],MATCH("G7 Pump",BasePrices[Type],0),MATCH($M$1,BasePrices[#Headers],0))*2 -> 1358 | T23: =INDEX(BasePrices[],MATCH("G7 Warranty Base Price",BasePrices[Type],0),MATCH($M$1,BasePrices[#Headers],0))*MAX(0,LEFT($H$92,1)-2)+ ROUNDUP(INDEX(BasePrices[],MATCH(R23&" Sensor Cartridge",BasePrices[Type],0),MATCH($M$1,BasePrices[#Headers],0))*0.2777777+INDEX(BasePrices[],MATCH("G7 Pump",BasePrices[Type],0),MATCH($M$1,BasePrices[#Headers],0))*0.2777777,0)*MAX(0,LEFT($H$92,1)-2) -> 0 | W23: =ROUNDUP(INDEX(BasePrices[],MATCH(R23&" Sensor Cartridge",BasePrices[Type],0),MATCH($M$1,BasePrices[#Headers],0))*$X$15,0)+ ROUNDUP(INDEX(BasePrices[],MATCH("G7 Pump",BasePrices[Type],0),MATCH($M$1,BasePrices[#Headers],0))*$X$15,0) -> 955
L24: + | T24: =VLOOKUP(P39,A16:T23,20,FALSE) -> 0
B25: Connectivity
B26: Cellular | C26: è | D26: C | H26: C
H27: -
B28: SIM Card
B29: Standard (Telenor) | C29: è | D29: 01 | H29: =D29 -> 01
H30: -
B31: Country Code
B32: =_xlfn.VSTACK(O32:O34) -> North America (4G/LTE) - G8C | C32: =IF(B32="","","è") -> è | D32: =IFERROR(_xlfn.VSTACK(P32:P34),"") -> NA2 | H32: NA2 | O32: =_xlfn.LET( _xlpm.Dtype,G8CountryCodes[Type],_xlpm.Curr,G8CountryCodes[Currency],_xlpm.SType,H26,_xlpm.SCurr,M1, _xlpm.myCalculation,_xlfn.VSTACK(_xlfn._xlws.FILTER(G8CountryCodes[],(_xlpm.Dtype=_xlpm.SType)*(_xlpm.Curr=_xlpm.SCurr))),_xlpm.myCalculation) -> North America (4G/LTE) - G8C | P32: NA2 | Q32: C | R32: USD
B33: Outside of North America (4G/LTE) - G8C | C33: =IF(B33=0,"","è") -> è | D33: EU2 | O33: Outside of North America (4G/LTE) - G8C | P33: EU2 | Q33: C | R33: USD
B34: 0 | C34: =IF(B34=0,"","è") ->  | D34: 0
H35: - | O35: =H41 -> F | P35: =_xlfn._xlws.SORT(O35:O38) -> F | Q35: =IF(P35="X",1,0) -> 0
B36: Cartridge Type | O36: =H46 -> H | P36: H | Q36: =IF(P36="X",1,0) -> 0
B37: Diffusion | C37: è | D37: Q | H37: Q | O37: =H67 -> M | P37: M | Q37: =IF(P37="X",1,0) -> 0
B38: Pump | C38: è | D38: P | O38: =H88 -> O | P38: O | Q38: =IF(P38="X",1,0) -> 0
H39: - | P39: =H37&Q39 -> Q4 | Q39: =4-SUM(Q35:Q38) -> 4
B40: Combustible Sensor | S40: Price | X40: =IFERROR(ROUNDUP(INDEX(SensorPricing[],MATCH(P35,SensorPricing[Sensor],0),MATCH($M$1,SensorPricing[#Headers],0))*$X$15,0),"") -> 0
B41: =_xlfn.CHOOSECOLS(_xlfn.VSTACK(_xlfn.ANCHORARRAY(O41)),1) -> LEL-IR | C41: =IF(B41=0,"","è") -> è | D41: =_xlfn.CHOOSECOLS(_xlfn.VSTACK(_xlfn.ANCHORARRAY(O41)),2) -> I | E41: =IF(B41=0,"","=") -> = | F41: =IFERROR(S41,"") -> $ 120 | H41: F | J41: =CONCATENATE(P35,P36,P37,P38) -> FHMO | L41: =VLOOKUP(H41,D41:F43,3,FALSE) -> $ 0 | O41: =_xlfn.LET( _xlpm.Dtype,CombSensors[Type1],_xlpm.Curr,CombSensors[Currency],_xlpm.Stype,H37&1,_xlpm.SCurr,M1, _xlpm.myCalculation,_xlfn.VSTACK(_xlfn._xlws.FILTER(CombSensors[],(_xlpm.Dtype=_xlpm.Stype)*(_xlpm.Curr=_xlpm.SCurr))),_xlpm.myCalculation) -> LEL-IR | P41: I | Q41: Q1 | R41: USD | S41: =INDEX(SensorPricing[],MATCH(D41,SensorPricing[Sensor],0),MATCH($M$1,SensorPricing[#Headers],0))*2 -> 120 | T41: =ROUNDUP(INDEX(SensorPricing[],MATCH(H41,SensorPricing[Sensor],0),MATCH($M$1,SensorPricing[#Headers],0))*0.2777777,0)*MAX(0,LEFT($H$92,1)-2) -> 0 | X41: =IFERROR(ROUNDUP(INDEX(SensorPricing[],MATCH(P36,SensorPricing[Sensor],0),MATCH($M$1,SensorPricing[#Headers],0))*$X$15,0),"") -> 0
B42: LEL-MPS | C42: è | D42: F | E42: = | F42: =IFERROR(S42,"") -> $ 0 | O42: LEL-MPS | P42: F | Q42: Q1 | R42: USD | S42: =INDEX(SensorPricing[],MATCH(D42,SensorPricing[Sensor],0),MATCH($M$1,SensorPricing[#Headers],0))*2 -> 0 | X42: =IFERROR(ROUNDUP(INDEX(SensorPricing[],MATCH(P37,SensorPricing[Sensor],0),MATCH($M$1,SensorPricing[#Headers],0))*$X$15,0),"") -> 0
B43: None | C43: è | D43: X | E43: = | F43: $ 0 | O43: None | P43: X | Q43: Q1 | R43: USD | S43: =INDEX(SensorPricing[],MATCH(D43,SensorPricing[Sensor],0),MATCH($M$1,SensorPricing[#Headers],0))*2 -> 0 | X43: =IFERROR(ROUNDUP(INDEX(SensorPricing[],MATCH(P38,SensorPricing[Sensor],0),MATCH($M$1,SensorPricing[#Headers],0))*$X$15,0),"") -> 0
L44: + | X44: =IFERROR(ROUNDUP(INDEX(SensorPricing[],MATCH(P39,SensorPricing[Sensor],0),MATCH($M$1,SensorPricing[#Headers],0))*$X$15,0),"") -> 
B45: Toxic Sensor #1
B46: =_xlfn.VSTACK(O46:O64) -> HF | C46: =IF(B46=0,"","è") -> è | D46: =_xlfn.VSTACK(P46:P64) -> 2 | E46: =IF(B46=0,"","=") -> = | F46: =IFERROR(S46,"") -> $ 840 | H46: H | L46: =VLOOKUP(H46,D46:F64,3,FALSE) -> $ 0 | O46: =_xlfn.LET( _xlpm.Dtype,G7Sensors[Type1],_xlpm.Curr,G7Sensors[Currency],_xlpm.Stype,H37&1,_xlpm.SCurr,M1, _xlpm.myCalculation,_xlfn.VSTACK(_xlfn._xlws.FILTER(G7Sensors[],(_xlpm.Dtype=_xlpm.Stype)*(_xlpm.Curr=_xlpm.SCurr))),_xlpm.myCalculation) -> HF | P46: 2 | Q46: Q1 | R46: USD | S46: =INDEX(SensorPricing[],MATCH(D46,SensorPricing[Sensor],0),MATCH($M$1,SensorPricing[#Headers],0))*2 -> 840 | T46: =ROUNDUP(INDEX(SensorPricing[],MATCH(H46,SensorPricing[Sensor],0),MATCH($M$1,SensorPricing[#Headers],0))*0.2777777,0)*MAX(0,LEFT($H$92,1)-2) -> 0
B47: NH3 | C47: è | D47: A | E47: = | F47: $ 120 | O47: NH3 | P47: A | Q47: Q1 | R47: USD | S47: =INDEX(SensorPricing[],MATCH(D47,SensorPricing[Sensor],0),MATCH($M$1,SensorPricing[#Headers],0))*2 -> 120
B48: High-range NH3 | C48: è | D48: B | E48: = | F48: $ 252 | O48: High-range NH3 | P48: B | Q48: Q1 | R48: USD | S48: =INDEX(SensorPricing[],MATCH(D48,SensorPricing[Sensor],0),MATCH($M$1,SensorPricing[#Headers],0))*2 -> 252
B49: CO2 | C49: è | D49: C | E49: = | F49: $ 480 | O49: CO2 | P49: C | Q49: Q1 | R49: USD | S49: =INDEX(SensorPricing[],MATCH(D49,SensorPricing[Sensor],0),MATCH($M$1,SensorPricing[#Headers],0))*2 -> 480
B50: O3 | C50: è | D50: E | E50: = | F50: $ 240 | O50: O3 | P50: E | Q50: Q1 | R50: USD | S50: =INDEX(SensorPricing[],MATCH(D50,SensorPricing[Sensor],0),MATCH($M$1,SensorPricing[#Headers],0))*2 -> 240
B51: H2S | C51: è | D51: H | E51: = | F51: $ 0 | O51: H2S | P51: H | Q51: Q1 | R51: USD | S51: =INDEX(SensorPricing[],MATCH(D51,SensorPricing[Sensor],0),MATCH($M$1,SensorPricing[#Headers],0))*2 -> 0
B52: High-range H2S | C52: è | D52: J | E52: = | F52: $ 240 | O52: High-range H2S | P52: J | Q52: Q1 | R52: USD | S52: =INDEX(SensorPricing[],MATCH(D52,SensorPricing[Sensor],0),MATCH($M$1,SensorPricing[#Headers],0))*2 -> 240
B53: NO2 | C53: è | D53: K | E53: = | F53: $ 120 | O53: NO2 | P53: K | Q53: Q1 | R53: USD | S53: =INDEX(SensorPricing[],MATCH(D53,SensorPricing[Sensor],0),MATCH($M$1,SensorPricing[#Headers],0))*2 -> 120
B54: Cl2 | C54: è | D54: L | E54: = | F54: $ 120 | O54: Cl2 | P54: L | Q54: Q1 | R54: USD | S54: =INDEX(SensorPricing[],MATCH(D54,SensorPricing[Sensor],0),MATCH($M$1,SensorPricing[#Headers],0))*2 -> 120
B55: CO | C55: è | D55: M | E55: = | F55: $ 0 | O55: CO | P55: M | Q55: Q1 | R55: USD | S55: =INDEX(SensorPricing[],MATCH(D55,SensorPricing[Sensor],0),MATCH($M$1,SensorPricing[#Headers],0))*2 -> 0
B56: HCN | C56: è | D56: N | E56: = | F56: $ 120 | O56: HCN | P56: N | Q56: Q1 | R56: USD | S56: =INDEX(SensorPricing[],MATCH(D56,SensorPricing[Sensor],0),MATCH($M$1,SensorPricing[#Headers],0))*2 -> 120
B57: CO-H | C57: è | D57: R | E57: = | F57: $ 0 | O57: CO-H | P57: R | Q57: Q1 | R57: USD | S57: =INDEX(SensorPricing[],MATCH(D57,SensorPricing[Sensor],0),MATCH($M$1,SensorPricing[#Headers],0))*2 -> 0
B58: SO2 | C58: è | D58: S | E58: = | F58: $ 0 | O58: SO2 | P58: S | Q58: Q1 | R58: USD | S58: =INDEX(SensorPricing[],MATCH(D58,SensorPricing[Sensor],0),MATCH($M$1,SensorPricing[#Headers],0))*2 -> 0
B59: High-range CO | C59: è | D59: T | E59: = | F59: $ 240 | O59: High-range CO | P59: T | Q59: Q1 | R59: USD | S59: =INDEX(SensorPricing[],MATCH(D59,SensorPricing[Sensor],0),MATCH($M$1,SensorPricing[#Headers],0))*2 -> 240
B60: PID | C60: è | D60: V | E60: = | F60: $ 966 | O60: PID | P60: V | Q60: Q1 | R60: USD | S60: =INDEX(SensorPricing[],MATCH(D60,SensorPricing[Sensor],0),MATCH($M$1,SensorPricing[#Headers],0))*2 -> 966
B61: ClO2 | C61: è | D61: W | E61: = | F61: $ 120 | O61: ClO2 | P61: W | Q61: Q1 | R61: USD | S61: =INDEX(SensorPricing[],MATCH(D61,SensorPricing[Sensor],0),MATCH($M$1,SensorPricing[#Headers],0))*2 -> 120
B62: No Sensor | C62: è | D62: X | E62: = | F62: $ 0 | O62: No Sensor | P62: X | Q62: Q1 | R62: USD | S62: =INDEX(SensorPricing[],MATCH(D62,SensorPricing[Sensor],0),MATCH($M$1,SensorPricing[#Headers],0))*2 -> 0
B63: 0 | C63: =IF(B63=0,"","è") ->  | D63: 0 | E63: =IF(B63=0,"","=") ->  | S63: =INDEX(SensorPricing[],MATCH(D63,SensorPricing[Sensor],0),MATCH($M$1,SensorPricing[#Headers],0))*2 -> 
B64: 0 | C64: =IF(B64=0,"","è") ->  | D64: 0 | E64: =IF(B64=0,"","=") ->  | S64: =INDEX(SensorPricing[],MATCH(D64,SensorPricing[Sensor],0),MATCH($M$1,SensorPricing[#Headers],0))*2 -> 
L65: +
B66: Toxic Sensor #2
B67: =_xlfn.VSTACK(O67:O85) -> HF | C67: =IF(B67=0,"","è") -> è | D67: =_xlfn.VSTACK(P67:P85) -> 2 | E67: =IF(B67=0,"","=") -> = | F67: =IFERROR(S67,"") -> $ 840 | H67: M | L67: =VLOOKUP(H67,D67:F85,3,FALSE) -> $ 0 | O67: =_xlfn.LET( _xlpm.Dtype,G7Sensors[Type1],_xlpm.Curr,G7Sensors[Currency],_xlpm.Stype,H37&2,_xlpm.SCurr,M1, _xlpm.myCalculation,_xlfn.VSTACK(_xlfn._xlws.FILTER(G7Sensors[],(_xlpm.Dtype=_xlpm.Stype)*(_xlpm.Curr=_xlpm.SCurr))),_xlpm.myCalculation) -> HF | P67: 2 | Q67: Q2 | R67: USD | S67: =INDEX(SensorPricing[],MATCH(D67,SensorPricing[Sensor],0),MATCH($M$1,SensorPricing[#Headers],0))*2 -> 840 | T67: =ROUNDUP(INDEX(SensorPricing[],MATCH(H67,SensorPricing[Sensor],0),MATCH($M$1,SensorPricing[#Headers],0))*0.2777777,0)*MAX(0,LEFT($H$92,1)-2) -> 0
B68: NH3 | C68: è | D68: A | E68: = | F68: $ 120 | O68: NH3 | P68: A | Q68: Q2 | R68: USD | S68: =INDEX(SensorPricing[],MATCH(D68,SensorPricing[Sensor],0),MATCH($M$1,SensorPricing[#Headers],0))*2 -> 120
B69: High-range NH3 | C69: è | D69: B | E69: = | F69: $ 252 | O69: High-range NH3 | P69: B | Q69: Q2 | R69: USD | S69: =INDEX(SensorPricing[],MATCH(D69,SensorPricing[Sensor],0),MATCH($M$1,SensorPricing[#Headers],0))*2 -> 252
B70: COSH | C70: è | D70: D | E70: = | F70: $ 120 | O70: COSH | P70: D | Q70: Q2 | R70: USD | S70: =INDEX(SensorPricing[],MATCH(D70,SensorPricing[Sensor],0),MATCH($M$1,SensorPricing[#Headers],0))*2 -> 120
B71: O3 | C71: è | D71: E | E71: = | F71: $ 240 | O71: O3 | P71: E | Q71: Q2 | R71: USD | S71: =INDEX(SensorPricing[],MATCH(D71,SensorPricing[Sensor],0),MATCH($M$1,SensorPricing[#Headers],0))*2 -> 240
B72: H2S | C72: è | D72: H | E72: = | F72: $ 0 | O72: H2S | P72: H | Q72: Q2 | R72: USD | S72: =INDEX(SensorPricing[],MATCH(D72,SensorPricing[Sensor],0),MATCH($M$1,SensorPricing[#Headers],0))*2 -> 0
B73: High-range H2S | C73: è | D73: J | E73: = | F73: $ 240 | O73: High-range H2S | P73: J | Q73: Q2 | R73: USD | S73: =INDEX(SensorPricing[],MATCH(D73,SensorPricing[Sensor],0),MATCH($M$1,SensorPricing[#Headers],0))*2 -> 240
B74: NO2 | C74: è | D74: K | E74: = | F74: $ 120 | O74: NO2 | P74: K | Q74: Q2 | R74: USD | S74: =INDEX(SensorPricing[],MATCH(D74,SensorPricing[Sensor],0),MATCH($M$1,SensorPricing[#Headers],0))*2 -> 120
B75: Cl2 | C75: è | D75: L | E75: = | F75: $ 120 | O75: Cl2 | P75: L | Q75: Q2 | R75: USD | S75: =INDEX(SensorPricing[],MATCH(D75,SensorPricing[Sensor],0),MATCH($M$1,SensorPricing[#Headers],0))*2 -> 120
B76: CO | C76: è | D76: M | E76: = | F76: $ 0 | O76: CO | P76: M | Q76: Q2 | R76: USD | S76: =INDEX(SensorPricing[],MATCH(D76,SensorPricing[Sensor],0),MATCH($M$1,SensorPricing[#Headers],0))*2 -> 0
B77: HCN | C77: è | D77: N | E77: = | F77: $ 120 | O77: HCN | P77: N | Q77: Q2 | R77: USD | S77: =INDEX(SensorPricing[],MATCH(D77,SensorPricing[Sensor],0),MATCH($M$1,SensorPricing[#Headers],0))*2 -> 120
B78: CO-H | C78: è | D78: R | E78: = | F78: $ 0 | O78: CO-H | P78: R | Q78: Q2 | R78: USD | S78: =INDEX(SensorPricing[],MATCH(D78,SensorPricing[Sensor],0),MATCH($M$1,SensorPricing[#Headers],0))*2 -> 0
B79: SO2 | C79: è | D79: S | E79: = | F79: $ 0 | O79: SO2 | P79: S | Q79: Q2 | R79: USD | S79: =INDEX(SensorPricing[],MATCH(D79,SensorPricing[Sensor],0),MATCH($M$1,SensorPricing[#Headers],0))*2 -> 0
B80: High-range CO | C80: è | D80: T | E80: = | F80: $ 240 | O80: High-range CO | P80: T | Q80: Q2 | R80: USD | S80: =INDEX(SensorPricing[],MATCH(D80,SensorPricing[Sensor],0),MATCH($M$1,SensorPricing[#Headers],0))*2 -> 240
B81: ClO2 | C81: è | D81: W | E81: = | F81: $ 120 | O81: ClO2 | P81: W | Q81: Q2 | R81: USD | S81: =INDEX(SensorPricing[],MATCH(D81,SensorPricing[Sensor],0),MATCH($M$1,SensorPricing[#Headers],0))*2 -> 120
B82: No Sensor | C82: è | D82: X | E82: = | F82: $ 0 | O82: No Sensor | P82: X | Q82: Q2 | R82: USD | S82: =INDEX(SensorPricing[],MATCH(D82,SensorPricing[Sensor],0),MATCH($M$1,SensorPricing[#Headers],0))*2 -> 0
B83: 0 | D83: 0 | S83: =INDEX(SensorPricing[],MATCH(D83,SensorPricing[Sensor],0),MATCH($M$1,SensorPricing[#Headers],0))*2 -> 
B84: 0 | D84: 0 | S84: =INDEX(SensorPricing[],MATCH(D84,SensorPricing[Sensor],0),MATCH($M$1,SensorPricing[#Headers],0))*2 -> 
B85: 0 | D85: 0 | S85: =INDEX(SensorPricing[],MATCH(D85,SensorPricing[Sensor],0),MATCH($M$1,SensorPricing[#Headers],0))*2 -> 
L86: +
B87: Oxygen Sensor
B88: =_xlfn.VSTACK(O88:O89) -> O2 | C88: =IF(B88=0,"","è") -> è | D88: =_xlfn.VSTACK(P88:P89) -> O | E88: =IF(B88=0,"","=") -> = | F88: =IFERROR(S88,"") -> $ 0 | H88: O | L88: =VLOOKUP(H88,D88:F89,3,FALSE) -> $ 0 | O88: =_xlfn._xlws.FILTER(_xlfn._xlws.FILTER(Oxygen[],Oxygen[Type]=H41),{1,1,0}) -> O2 | P88: O | S88: =INDEX(SensorPricing[],MATCH(D88,SensorPricing[Sensor],0),MATCH($M$1,SensorPricing[#Headers],0))*2 -> 0 | T88: =ROUNDUP(INDEX(SensorPricing[],MATCH(H88,SensorPricing[Sensor],0),MATCH($M$1,SensorPricing[#Headers],0))*0.2777777,0)*MAX(0,LEFT($H$92,1)-2) -> 0
B89: 0 | D89: 0 | S89: =INDEX(SensorPricing[],MATCH(D89,SensorPricing[Sensor],0),MATCH($M$1,SensorPricing[#Headers],0))*2 -> 
H90: - | L90: +
B91: Warranty Term
B92: =_xlfn.VSTACK(O92:O95) -> 2-Years | C92: è | D92: =_xlfn.VSTACK(P92:P95) -> 2Y | H92: 2Y | L92: =S92 -> $ 0 | O92: =_xlfn.VSTACK(G8PurWarr[]) -> 2-Years | P92: 2Y | Q92: 2Y | S92: =SUM(T24:T88) -> 0
B93: 3-Years | C93: è | D93: 3Y | O93: 3-Years | P93: 3Y | Q93: 3Y
B94: 4-Years | C94: è | D94: 4Y | O94: 4-Years | P94: 4Y | Q94: 4Y
B95: 5-Years | C95: è | D95: 5Y | O95: 5-Years | P95: 5Y | Q95: 5Y
B97: Service (Annually)
B98: Service Plan
B99: =_xlfn.VSTACK(O99:O101) -> Standard | C99: =IF(B99=0,"","è") -> è | D99: =_xlfn.VSTACK(P99:P101) -> S | E99: =IF(B99=0,"","=") -> = | F99: =IFERROR(S99,"") -> $ 204 | H99: S | L99: =VLOOKUP(H99,D99:F101,3,FALSE) -> $ 204 | O99: =_xlfn.VSTACK(G8ServicePlans[]) -> Standard | P99: S | S99: =INDEX(G8ServicePrices[],MATCH(D99,G8ServicePrices[Code],0),MATCH($M$1,G8ServicePrices[#Headers],0))*AnnualMonths -> 204
B100: Pro | C100: è | D100: K | E100: = | F100: $ 384 | O100: Pro | P100: K | S100: =INDEX(G8ServicePrices[],MATCH(D100,G8ServicePrices[Code],0),MATCH($M$1,G8ServicePrices[#Headers],0))*AnnualMonths -> 384
B101: 0 | D101: 0 | S101: =INDEX(G8ServicePrices[],MATCH(D101,G8ServicePrices[Code],0),MATCH($M$1,G8ServicePrices[#Headers],0))*AnnualMonths -> 
L102: +
B103: Monitoring Services
B104: =_xlfn.VSTACK(O104:O106) -> None | C104: =IF(B104=0,"","è") -> è | D104: =_xlfn.VSTACK(P104:P106) -> X | E104: =IF(B104=0,"","=") -> = | F104: =IFERROR(S104,"") -> $ 0 | H104: X | L104: =VLOOKUP(H104,D104:F106,3,FALSE) -> $ 0 | O104: =_xlfn._xlws.FILTER(_xlfn._xlws.FILTER(G8Monitoring[],G8Monitoring[Type]=ServicePlans),{1,1,0}) -> None | P104: X | S104: =IF(P104="X",0,INDEX(G8ServicePrices[],MATCH(D104,G8ServicePrices[Code],0),MATCH($M$1,G8ServicePrices[#Headers],0))*AnnualMonths) -> 0
B105: 0 | D105: 0 | F105: =IFERROR(S105,"") ->  | S105: =IF(P105="X",0,INDEX(G8ServicePrices[],MATCH(D105,G8ServicePrices[Code],0),MATCH($M$1,G8ServicePrices[#Headers],0))*AnnualMonths) -> 
B106: 0 | D106: 0 | F106: =IFERROR(S106,"") ->  | S106: =IF(P106="X",0,INDEX(G8ServicePrices[],MATCH(D106,G8ServicePrices[Code],0),MATCH($M$1,G8ServicePrices[#Headers],0))*AnnualMonths) -> 
L107: +
B108: Voice
B109: =_xlfn.VSTACK(O109:O110) -> None | C109: =IF(B109=0,"","è") -> è | D109: =_xlfn.VSTACK(P109:P110) -> X | E109: =IF(B109=0,"","=") -> = | F109: =IFERROR(S109,"") -> $ 0 | H109: X | L109: =VLOOKUP(H109,D109:F110,3,FALSE) -> $ 0 | O109: =_xlfn._xlws.FILTER(_xlfn._xlws.FILTER(G8Voice[],G8Voice[Type]=ServicePlans),{1,1,0}) -> None | P109: X | S109: =IF(P109="X",0,INDEX(G8ServicePrices[],MATCH(D109,G8ServicePrices[Code],0),MATCH($M$1,G8ServicePrices[#Headers],0))*AnnualMonths) -> 0
B110: 0 | D110: 0 | F110: =IFERROR(S110,"") ->  | S110: =IF(P110="X",0,INDEX(G8ServicePrices[],MATCH(D110,G8ServicePrices[Code],0),MATCH($M$1,G8ServicePrices[#Headers],0))*AnnualMonths) -> 
L111: +
B112: Push-to-Talk
B113: =_xlfn.VSTACK(O113:O114) -> None | C113: =IF(B113=0,"","è") -> è | D113: =_xlfn.VSTACK(P113:P114) -> X | E113: =IF(B113=0,"","=") -> = | F113: =IFERROR(S113,"") -> $ 0 | H113: X | L113: =VLOOKUP(H113,D113:F114,3,FALSE) -> $ 0 | O113: =_xlfn._xlws.FILTER(_xlfn._xlws.FILTER(G8PTT[],G8PTT[Type]=ServicePlans),{1,1,0}) -> None | P113: X | S113: =IF(P113="X",0,INDEX(G8ServicePrices[],MATCH(D113,G8ServicePrices[Code],0),MATCH($M$1,G8ServicePrices[#Headers],0))*AnnualMonths) -> 0
B114: Included | C114: è | D114: P | E114: = | F114: =IFERROR(S114,"") -> $ 228 | O114: Included | P114: P | S114: =IF(P114="X",0,INDEX(G8ServicePrices[],MATCH(D114,G8ServicePrices[Code],0),MATCH($M$1,G8ServicePrices[#Headers],0))*AnnualMonths) -> 228
L115: +
B116: Future Service Option
B117: =_xlfn.VSTACK(O117:O118) -> None | C117: =IF(B117=0,"","è") -> è | D117: =_xlfn.VSTACK(P117:P118) -> X | E117: =IF(B117=0,"","=") -> = | F117: =IFERROR(S117,"") -> $ 0 | H117: X | L117: =VLOOKUP(H117,D117:F118,3,FALSE) -> $ 0 | O117: =_xlfn._xlws.FILTER(_xlfn._xlws.FILTER(G8TeamCalling[],G8TeamCalling[Type]=ServicePlans),{1,1,0}) -> None | P117: X | S117: =IF(P117="X",0,INDEX(G8ServicePrices[],MATCH(D117,G8ServicePrices[Code],0),MATCH($M$1,G8ServicePrices[#Headers],0))*AnnualMonths) -> 0
B118: 0 | D118: 0 | F118: =IFERROR(S118,"") ->  | S118: =IF(P118="X",0,INDEX(G8ServicePrices[],MATCH(D118,G8ServicePrices[Code],0),MATCH($M$1,G8ServicePrices[#Headers],0))*AnnualMonths) -> 
H119: -
B120: Term
B121: One-Year | C121: è | D121: 1Y | H121: 2Y | S121: 12
B122: Two-Years | C122: è | D122: 2Y | S122: =LEFT(H121,1) -> 2
B123: Three-Years | C123: è | D123: 3Y
B124: Four-Years | C124: è | D124: 4Y
B125: Five-Years | C125: è | D125: 5Y

Sheet G8 Lone Worker Blend
M1: =Currency -> USD | P1: G8 Lone Worker Blend
B2: G8 Lone Worker Blend | M2: =PBYear -> 2025 | N2: Quick Links
M3: =Revision -> Effective February 2, 2026 Rev 2 | N3: Main Menu
M4: Blackline Safety Confidential | N4: Accessories
M5: All prices are an estimate - for a formal quote contact your local Blackline Safety representative
F8: Hardware | H8: =CONCATENATE(H15,H19,H20,H22,H23,H25,"-",H31) -> G8C-01-NA2-Z | L8: =IFERROR(L15,"Error") -> $ 777 | M8: =M1&" List" -> USD List
F10: Cartridge + Service | H10: =CONCATENATE("SER-",H15,H19,H32,H31,H32,ServicePlans,H39,H44,H48,H52,H54,H56) -> SER-G8C-Z-SXXXX-1Y | L10: =M54 -> $ 204 | M10: =L10*S57 -> $ 204
L12: Annual | M12: Term
B14: Buying Option | S14: Price
B15: Blend | C15: è | D15: G8 | H15: =D15 -> G8 | L15: =F16 -> $ 777
A16: 1 | D16: Device | E16: = | F16: =SUM(S16:T16) -> $ 777 | R16: 1 | S16: =INDEX(BasePrices[],MATCH("G8 Blend Base Price",BasePrices[Type],0),MATCH($M$1,BasePrices[#Headers],0)) -> 777
B18: Connectivity
B19: Cellular | C19: è | D19: C | H19: C
H20: -
B21: SIM Card
B22: Standard (Telenor) | C22: è | D22: 01 | H22: =D22 -> 01
H23: -
B24: Country Code
B25: =_xlfn.VSTACK(O25:O27) -> North America (4G/LTE) - G8C | C25: =IF(B25="","","è") -> è | D25: =IFERROR(_xlfn.VSTACK(P25:P27),"") -> NA2 | H25: NA2 | O25: =_xlfn.LET( _xlpm.Dtype,G8CountryCodes[Type],_xlpm.Curr,G8CountryCodes[Currency],_xlpm.SType,H19,_xlpm.SCurr,M1, _xlpm.myCalculation,_xlfn.VSTACK(_xlfn._xlws.FILTER(G8CountryCodes[],(_xlpm.Dtype=_xlpm.SType)*(_xlpm.Curr=_xlpm.SCurr))),_xlpm.myCalculation) -> North America (4G/LTE) - G8C | P25: NA2 | Q25: C | R25: USD
B26: Outside of North America (4G/LTE) - G8C | C26: =IF(B26=0,"","è") -> è | D26: EU2 | O26: Outside of North America (4G/LTE) - G8C | P26: EU2 | Q26: C | R26: USD
B27: 0 | C27: =IF(B27=0,"","è") ->  | D27: 0
B29: Cartridge + Service
B30: Cartridge Type
B31: Lone Worker | C31: è | D31: Z | H31: =D31 -> Z
H32: -
B33: Service Plan
B34: =_xlfn.VSTACK(O34:O36) -> Standard | C34: =IF(B34=0,"","è") -> è | D34: =_xlfn.VSTACK(P34:P36) -> S | E34: =IF(B34=0,"","=") -> = | F34: =IFERROR(S34,"") -> $ 204 | H34: S | L34: =VLOOKUP(H34,D34:F36,3,FALSE) -> $ 204 | O34: =_xlfn.VSTACK(G8ServicePlans[]) -> Standard | P34: S | S34: =INDEX(G8ServicePrices[],MATCH(D34,G8ServicePrices[Code],0),MATCH($M$1,G8ServicePrices[#Headers],0))*PurhcaseTerm -> 204
B35: Pro | C35: è | D35: K | E35: = | F35: $ 384 | O35: Pro | P35: K | S35: =INDEX(G8ServicePrices[],MATCH(D35,G8ServicePrices[Code],0),MATCH($M$1,G8ServicePrices[#Headers],0))*PurhcaseTerm -> 384
B36: 0 | D36: 0 | S36: =INDEX(G8ServicePrices[],MATCH(D36,G8ServicePrices[Code],0),MATCH($M$1,G8ServicePrices[#Headers],0))*PurhcaseTerm -> 
L37: +
B38: Monitoring Services
B39: =_xlfn.VSTACK(O39:O41) -> None | C39: =IF(B39=0,"","è") -> è | D39: =_xlfn.VSTACK(P39:P41) -> X | E39: =IF(B39=0,"","=") -> = | F39: =IFERROR(S39,"") -> $ 0 | H39: X | L39: =VLOOKUP(H39,D39:F41,3,FALSE) -> $ 0 | O39: =_xlfn._xlws.FILTER(_xlfn._xlws.FILTER(G8Monitoring[],G8Monitoring[Type]=ServicePlans),{1,1,0}) -> None | P39: X | S39: =IF(P39="X",0,INDEX(G8ServicePrices[],MATCH(D39,G8ServicePrices[Code],0),MATCH($M$1,G8ServicePrices[#Headers],0))*PurhcaseTerm) -> 0
B40: 0 | D40: 0 | F40: =IFERROR(S40,"") ->  | S40: =IF(P40="X",0,INDEX(G8ServicePrices[],MATCH(D40,G8ServicePrices[Code],0),MATCH($M$1,G8ServicePrices[#Headers],0))*PurhcaseTerm) -> 
B41: 0 | D41: 0 | F41: =IFERROR(S41,"") ->  | S41: =IF(P41="X",0,INDEX(G8ServicePrices[],MATCH(D41,G8ServicePrices[Code],0),MATCH($M$1,G8ServicePrices[#Headers],0))*PurhcaseTerm) -> 
L42: +
B43: Voice
B44: =_xlfn.VSTACK(O44:O45) -> None | C44: =IF(B44=0,"","è") -> è | D44: =_xlfn.VSTACK(P44:P45) -> X | E44: =IF(B44=0,"","=") -> = | F44: =IFERROR(S44,"") -> $ 0 | H44: X | L44: =VLOOKUP(H44,D44:F45,3,FALSE) -> $ 0 | O44: =_xlfn._xlws.FILTER(_xlfn._xlws.FILTER(G8Voice[],G8Voice[Type]=ServicePlans),{1,1,0}) -> None | P44: X | S44: =IF(P44="X",0,INDEX(G8ServicePrices[],MATCH(D44,G8ServicePrices[Code],0),MATCH($M$1,G8ServicePrices[#Headers],0))*PurhcaseTerm) -> 0
B45: 0 | D45: 0 | F45: =IFERROR(S45,"") ->  | S45: =IF(P45="X",0,INDEX(G8ServicePrices[],MATCH(D45,G8ServicePrices[Code],0),MATCH($M$1,G8ServicePrices[#Headers],0))*PurhcaseTerm) -> 
L46: +
B47: Push-to-Talk
B48: =_xlfn.VSTACK(O48:O49) -> None | C48: =IF(B48=0,"","è") -> è | D48: =_xlfn.VSTACK(P48:P49) -> X | E48: =IF(B48=0,"","=") -> = | F48: =IFERROR(S48,"") -> $ 0 | H48: X | L48: =VLOOKUP(H48,D48:F49,3,FALSE) -> $ 0 | O48: =_xlfn._xlws.FILTER(_xlfn._xlws.FILTER(G8PTT[],G8PTT[Type]=ServicePlans),{1,1,0}) -> None | P48: X | S48: =IF(P48="X",0,INDEX(G8ServicePrices[],MATCH(D48,G8ServicePrices[Code],0),MATCH($M$1,G8ServicePrices[#Headers],0))*PurhcaseTerm) -> 0
B49: Included | C49: è | D49: P | E49: = | F49: =IFERROR(S49,"") -> $ 228 | O49: Included | P49: P | S49: =IF(P49="X",0,INDEX(G8ServicePrices[],MATCH(D49,G8ServicePrices[Code],0),MATCH($M$1,G8ServicePrices[#Headers],0))*PurhcaseTerm) -> 228
L50: +
B51: Future Service Option
B52: =_xlfn.VSTACK(O52:O53) -> None | C52: =IF(B52=0,"","è") -> è | D52: =_xlfn.VSTACK(P52:P53) -> X | E52: =IF(B52=0,"","=") -> = | F52: =IFERROR(S52,"") -> $ 0 | H52: X | L52: =VLOOKUP(H52,D52:F53,3,FALSE) -> $ 0 | O52: =_xlfn._xlws.FILTER(_xlfn._xlws.FILTER(G8TeamCalling[],G8TeamCalling[Type]=ServicePlans),{1,1,0}) -> None | P52: X | S52: =IF(P52="X",0,INDEX(G8ServicePrices[],MATCH(D52,G8ServicePrices[Code],0),MATCH($M$1,G8ServicePrices[#Headers],0))*PurhcaseTerm) -> 0
B53: 0 | D53: 0 | F53: =IFERROR(S53,"") ->  | S53: =IF(P53="X",0,INDEX(G8ServicePrices[],MATCH(D53,G8ServicePrices[Code],0),MATCH($M$1,G8ServicePrices[#Headers],0))*PurhcaseTerm) -> 
H54: - | L54: = | M54: =ROUND((L34+L39+L44+L48+L52)*INDEX(BlendDisc[],MATCH(H56,BlendDisc[Term],0),MATCH("Multiplier",BlendDisc[#Headers],0)),0) -> $ 204
B55: Term
B56: One-Year | C56: è | D56: 1Y | H56: 1Y | M56: Discounted Service | S56: 12
B57: Two-Years | C57: è | D57: 2Y | S57: =LEFT(H56,1) -> 1
B58: Three-Years | C58: è | D58: 3Y
B59: Four-Years | C59: è | D59: 4Y
B60: Five-Years | C60: è | D60: 5Y
B61: Term discounts are 2% for 2-years, 3% for 3-years, 4% for 4-years, and 5% for 5-years
B62: Term discounts are applied to the individual sum of the cartridge and service

Sheet G8 Single-Gas Blend
M1: =Currency -> USD | P1: G8 Single-Gas Blend
B2: G8 Single-Gas Blend | M2: =PBYear -> 2025 | N2: Quick Links
M3: =Revision -> Effective February 2, 2026 Rev 2 | N3: Main Menu
M4: Blackline Safety Confidential | N4: Accessories
M5: All prices are an estimate - for a formal quote contact your local Blackline Safety representative
F8: Hardware | H8: =CONCATENATE(H16,H20,H21,H23,H24,H26,H29,H32,H33,H35) -> G8C-01-NA2-S-H | L8: =L16 -> $ 777 | M8: =M1&" List" -> USD List
F10: Cartridge + Service | H10: =CONCATENATE("SER-",H16,H20,H29,H32,H33,H35,"-",ServicePlans,H62,H67,H71,H75,H77,H79) -> SER-G8C-S-H-SXXXX-1Y | L10: =M54+M77 -> $ 277 | M10: =L10*ComboYears -> $ 277
L12: Annual | M12: Term
B14: Device
B15: Buying Option | S15: Price | W15: Additional CART
B16: Blend | C16: è | D16: G8 | H16: =D16 -> G8 | L16: =F17 -> $ 777
A17: 1 | D17: Device | E17: = | F17: =SUM(S17:T17) -> $ 777 | R17: 1 | S17: =INDEX(BasePrices[],MATCH("G8 Blend Base Price",BasePrices[Type],0),MATCH($M$1,BasePrices[#Headers],0)) -> 777 | X17: =ROUNDUP(INDEX(BasePrices[],MATCH(R17&" Sensor Cartridge",BasePrices[Type],0),MATCH($M$1,BasePrices[#Headers],0))*3,0) -> 219
B19: Connectivity
B20: Cellular | C20: è | D20: C | H20: C
H21: -
B22: SIM Card
B23: Standard (Telenor) | C23: è | D23: 01 | H23: =D23 -> 01
H24: -
B25: Country Code
B26: =_xlfn.VSTACK(O26:O28) -> North America (4G/LTE) - G8C | C26: =IF(B26="","","è") -> è | D26: =IFERROR(_xlfn.VSTACK(P26:P28),"") -> NA2 | H26: NA2 | O26: =_xlfn.LET( _xlpm.Dtype,G8CountryCodes[Type],_xlpm.Curr,G8CountryCodes[Currency],_xlpm.SType,H20,_xlpm.SCurr,M1, _xlpm.myCalculation,_xlfn.VSTACK(_xlfn._xlws.FILTER(G8CountryCodes[],(_xlpm.Dtype=_xlpm.SType)*(_xlpm.Curr=_xlpm.SCurr))),_xlpm.myCalculation) -> North America (4G/LTE) - G8C | P26: NA2 | Q26: C | R26: USD
B27: Outside of North America (4G/LTE) - G8C | C27: =IF(B27=0,"","è") -> è | D27: EU2 | O27: Outside of North America (4G/LTE) - G8C | P27: EU2 | Q27: C | R27: USD
B28: 0 | C28: =IF(B28=0,"","è") ->  | D28: 0
H29: -
B30: Cartridge + Service
B31: Cartridge Type
B32: Single Sensor | C32: è | D32: S | E32: = | F32: =SUM(S32:T32) -> $ 73 | H32: =D32 -> S | L32: =F32 -> $ 73 | S32: =INDEX(BasePrices[],MATCH("1 Sensor Cartridge",BasePrices[Type],0),MATCH($M$1,BasePrices[#Headers],0)) -> 73
H33: - | L33: +
B34: Toxic Sensor | X34: =VLOOKUP(H35,D35:W53,20,FALSE) -> 0
B35: =_xlfn.VSTACK(O35:O53) -> HF | C35: =IF(B35=0,"","è") -> è | D35: =_xlfn.VSTACK(P35:P53) -> 2 | E35: =IF(B35=0,"","=") -> = | F35: =IFERROR(SUM(S35:T35),"") -> $ 420 | H35: H | L35: =VLOOKUP(H35,D35:F53,3,FALSE) -> $ 0 | O35: =_xlfn.LET( _xlpm.Dtype,G7Sensors[Type1],_xlpm.Curr,G7Sensors[Currency],_xlpm.Stype,H32,_xlpm.SCurr,M1, _xlpm.myCalculation,_xlfn.VSTACK(_xlfn._xlws.FILTER(G7Sensors[],(_xlpm.Dtype=_xlpm.Stype)*(_xlpm.Curr=_xlpm.SCurr))),_xlpm.myCalculation) -> HF | P35: 2 | Q35: S | R35: USD | S35: =INDEX(SensorPricing[],MATCH(D35,SensorPricing[Sensor],0),MATCH($M$1,SensorPricing[#Headers],0)) -> 420 | W35: =INDEX(SensorPricing[],MATCH(D35,SensorPricing[Sensor],0),MATCH($M$1,SensorPricing[#Headers],0))*3 -> 1260
B36: NH3 | C36: è | D36: A | E36: = | F36: =IFERROR(SUM(S36:T36),"") -> $ 60 | O36: NH3 | P36: A | Q36: S | R36: USD | S36: =INDEX(SensorPricing[],MATCH(D36,SensorPricing[Sensor],0),MATCH($M$1,SensorPricing[#Headers],0)) -> 60 | W36: =INDEX(SensorPricing[],MATCH(D36,SensorPricing[Sensor],0),MATCH($M$1,SensorPricing[#Headers],0))*3 -> 180
B37: High-range NH3 | C37: è | D37: B | E37: = | F37: $ 126 | O37: High-range NH3 | P37: B | Q37: S | R37: USD | S37: =INDEX(SensorPricing[],MATCH(D37,SensorPricing[Sensor],0),MATCH($M$1,SensorPricing[#Headers],0)) -> 126 | W37: =INDEX(SensorPricing[],MATCH(D37,SensorPricing[Sensor],0),MATCH($M$1,SensorPricing[#Headers],0))*3 -> 378
B38: CO2 | C38: è | D38: C | E38: = | F38: $ 240 | O38: CO2 | P38: C | Q38: S | R38: USD | S38: =INDEX(SensorPricing[],MATCH(D38,SensorPricing[Sensor],0),MATCH($M$1,SensorPricing[#Headers],0)) -> 240 | W38: =INDEX(SensorPricing[],MATCH(D38,SensorPricing[Sensor],0),MATCH($M$1,SensorPricing[#Headers],0))*3 -> 720
B39: O3 | C39: è | D39: E | E39: = | F39: $ 120 | O39: O3 | P39: E | Q39: S | R39: USD | S39: =INDEX(SensorPricing[],MATCH(D39,SensorPricing[Sensor],0),MATCH($M$1,SensorPricing[#Headers],0)) -> 120 | W39: =INDEX(SensorPricing[],MATCH(D39,SensorPricing[Sensor],0),MATCH($M$1,SensorPricing[#Headers],0))*3 -> 360
B40: H2S | C40: è | D40: H | E40: = | F40: $ 0 | O40: H2S | P40: H | Q40: S | R40: USD | S40: =INDEX(SensorPricing[],MATCH(D40,SensorPricing[Sensor],0),MATCH($M$1,SensorPricing[#Headers],0)) -> 0 | W40: =INDEX(SensorPricing[],MATCH(D40,SensorPricing[Sensor],0),MATCH($M$1,SensorPricing[#Headers],0))*3 -> 0
B41: High-range H2S | C41: è | D41: J | E41: = | F41: $ 120 | O41: High-range H2S | P41: J | Q41: S | R41: USD | S41: =INDEX(SensorPricing[],MATCH(D41,SensorPricing[Sensor],0),MATCH($M$1,SensorPricing[#Headers],0)) -> 120 | W41: =INDEX(SensorPricing[],MATCH(D41,SensorPricing[Sensor],0),MATCH($M$1,SensorPricing[#Headers],0))*3 -> 360
B42: NO2 | C42: è | D42: K | E42: = | F42: $ 60 | O42: NO2 | P42: K | Q42: S | R42: USD | S42: =INDEX(SensorPricing[],MATCH(D42,SensorPricing[Sensor],0),MATCH($M$1,SensorPricing[#Headers],0)) -> 60 | W42: =INDEX(SensorPricing[],MATCH(D42,SensorPricing[Sensor],0),MATCH($M$1,SensorPricing[#Headers],0))*3 -> 180
B43: Cl2 | C43: è | D43: L | E43: = | F43: $ 60 | O43: Cl2 | P43: L | Q43: S | R43: USD | S43: =INDEX(SensorPricing[],MATCH(D43,SensorPricing[Sensor],0),MATCH($M$1,SensorPricing[#Headers],0)) -> 60 | W43: =INDEX(SensorPricing[],MATCH(D43,SensorPricing[Sensor],0),MATCH($M$1,SensorPricing[#Headers],0))*3 -> 180
B44: CO | C44: è | D44: M | E44: = | F44: $ 0 | O44: CO | P44: M | Q44: S | R44: USD | S44: =INDEX(SensorPricing[],MATCH(D44,SensorPricing[Sensor],0),MATCH($M$1,SensorPricing[#Headers],0)) -> 0 | W44: =INDEX(SensorPricing[],MATCH(D44,SensorPricing[Sensor],0),MATCH($M$1,SensorPricing[#Headers],0))*3 -> 0
B45: HCN | C45: è | D45: N | E45: = | F45: $ 60 | O45: HCN | P45: N | Q45: S | R45: USD | S45: =INDEX(SensorPricing[],MATCH(D45,SensorPricing[Sensor],0),MATCH($M$1,SensorPricing[#Headers],0)) -> 60 | W45: =INDEX(SensorPricing[],MATCH(D45,SensorPricing[Sensor],0),MATCH($M$1,SensorPricing[#Headers],0))*3 -> 180
B46: O2 | C46: è | D46: O | E46: = | F46: $ 0 | O46: O2 | P46: O | Q46: S | R46: USD | S46: =INDEX(SensorPricing[],MATCH(D46,SensorPricing[Sensor],0),MATCH($M$1,SensorPricing[#Headers],0)) -> 0 | W46: =INDEX(SensorPricing[],MATCH(D46,SensorPricing[Sensor],0),MATCH($M$1,SensorPricing[#Headers],0))*3 -> 0
B47: CO-H | C47: è | D47: R | E47: = | F47: $ 0 | O47: CO-H | P47: R | Q47: S | R47: USD | S47: =INDEX(SensorPricing[],MATCH(D47,SensorPricing[Sensor],0),MATCH($M$1,SensorPricing[#Headers],0)) -> 0 | W47: =INDEX(SensorPricing[],MATCH(D47,SensorPricing[Sensor],0),MATCH($M$1,SensorPricing[#Headers],0))*3 -> 0
B48: SO2 | C48: è | D48: S | E48: = | F48: $ 0 | O48: SO2 | P48: S | Q48: S | R48: USD | S48: =INDEX(SensorPricing[],MATCH(D48,SensorPricing[Sensor],0),MATCH($M$1,SensorPricing[#Headers],0)) -> 0 | W48: =INDEX(SensorPricing[],MATCH(D48,SensorPricing[Sensor],0),MATCH($M$1,SensorPricing[#Headers],0))*3 -> 0
B49: High-range CO | C49: è | D49: T | E49: = | F49: $ 120 | O49: High-range CO | P49: T | Q49: S | R49: USD | S49: =INDEX(SensorPricing[],MATCH(D49,SensorPricing[Sensor],0),MATCH($M$1,SensorPricing[#Headers],0)) -> 120 | W49: =INDEX(SensorPricing[],MATCH(D49,SensorPricing[Sensor],0),MATCH($M$1,SensorPricing[#Headers],0))*3 -> 360
B50: PID | C50: è | D50: V | E50: = | F50: $ 483 | O50: PID | P50: V | Q50: S | R50: USD | S50: =INDEX(SensorPricing[],MATCH(D50,SensorPricing[Sensor],0),MATCH($M$1,SensorPricing[#Headers],0)) -> 483 | W50: =INDEX(SensorPricing[],MATCH(D50,SensorPricing[Sensor],0),MATCH($M$1,SensorPricing[#Headers],0))*3 -> 1449
B51: ClO2 | C51: è | D51: W | E51: = | F51: $ 60 | O51: ClO2 | P51: W | Q51: S | R51: USD | S51: =INDEX(SensorPricing[],MATCH(D51,SensorPricing[Sensor],0),MATCH($M$1,SensorPricing[#Headers],0)) -> 60 | W51: =INDEX(SensorPricing[],MATCH(D51,SensorPricing[Sensor],0),MATCH($M$1,SensorPricing[#Headers],0))*3 -> 180
B52: 0 | C52: =IF(B52=0,"","è") ->  | D52: 0 | E52: =IF(B52=0,"","=") ->  | S52: =INDEX(SensorPricing[],MATCH(D52,SensorPricing[Sensor],0),MATCH($M$1,SensorPricing[#Headers],0)) ->  | W52: =INDEX(SensorPricing[],MATCH(D52,SensorPricing[Sensor],0),MATCH($M$1,SensorPricing[#Headers],0))*3 -> 
B53: 0 | C53: =IF(B53=0,"","è") ->  | D53: 0 | E53: =IF(B53=0,"","=") ->  | S53: =INDEX(SensorPricing[],MATCH(D53,SensorPricing[Sensor],0),MATCH($M$1,SensorPricing[#Headers],0)) ->  | W53: =INDEX(SensorPricing[],MATCH(D53,SensorPricing[Sensor],0),MATCH($M$1,SensorPricing[#Headers],0))*3 -> 
L54: = | M54: =ROUNDUP((L32+L35)*INDEX(BlendDisc[],MATCH(H79,BlendDisc[Term],0),MATCH("Multiplier",BlendDisc[#Headers],0)),0) -> $ 73
B56: Service Plan | M56: Discounted Cartridge
B57: =_xlfn.VSTACK(O57:O59) -> Standard | C57: =IF(B57=0,"","è") -> è | D57: =_xlfn.VSTACK(P57:P59) -> S | E57: =IF(B57=0,"","=") -> = | F57: =IFERROR(S57,"") -> $ 204 | H57: S | L57: =VLOOKUP(H57,D57:F59,3,FALSE) -> $ 204 | O57: =_xlfn.VSTACK(G8ServicePlans[]) -> Standard | P57: S | S57: =INDEX(G8ServicePrices[],MATCH(D57,G8ServicePrices[Code],0),MATCH($M$1,G8ServicePrices[#Headers],0))*PurhcaseTerm -> 204
B58: Pro | C58: è | D58: K | E58: = | F58: $ 384 | O58: Pro | P58: K | S58: =INDEX(G8ServicePrices[],MATCH(D58,G8ServicePrices[Code],0),MATCH($M$1,G8ServicePrices[#Headers],0))*PurhcaseTerm -> 384
B59: 0 | D59: 0 | S59: =INDEX(G8ServicePrices[],MATCH(D59,G8ServicePrices[Code],0),MATCH($M$1,G8ServicePrices[#Headers],0))*PurhcaseTerm -> 
L60: +
B61: Monitoring Services
B62: =_xlfn.VSTACK(O62:O64) -> None | C62: =IF(B62=0,"","è") -> è | D62: =_xlfn.VSTACK(P62:P64) -> X | E62: =IF(B62=0,"","=") -> = | F62: =IFERROR(S62,"") -> $ 0 | H62: X | L62: =VLOOKUP(H62,D62:F64,3,FALSE) -> $ 0 | O62: =_xlfn._xlws.FILTER(_xlfn._xlws.FILTER(G8Monitoring[],G8Monitoring[Type]=ServicePlans),{1,1,0}) -> None | P62: X | S62: =IF(P62="X",0,INDEX(G8ServicePrices[],MATCH(D62,G8ServicePrices[Code],0),MATCH($M$1,G8ServicePrices[#Headers],0))*PurhcaseTerm) -> 0
B63: 0 | D63: 0 | F63: =IFERROR(S63,"") ->  | S63: =IF(P63="X",0,INDEX(G8ServicePrices[],MATCH(D63,G8ServicePrices[Code],0),MATCH($M$1,G8ServicePrices[#Headers],0))*PurhcaseTerm) -> 
B64: 0 | D64: 0 | F64: =IFERROR(S64,"") ->  | S64: =IF(P64="X",0,INDEX(G8ServicePrices[],MATCH(D64,G8ServicePrices[Code],0),MATCH($M$1,G8ServicePrices[#Headers],0))*PurhcaseTerm) -> 
L65: +
B66: Voice
B67: =_xlfn.VSTACK(O67:O68) -> None | C67: =IF(B67=0,"","è") -> è | D67: =_xlfn.VSTACK(P67:P68) -> X | E67: =IF(B67=0,"","=") -> = | F67: =IFERROR(S67,"") -> $ 0 | H67: X | L67: =VLOOKUP(H67,D67:F68,3,FALSE) -> $ 0 | O67: =_xlfn._xlws.FILTER(_xlfn._xlws.FILTER(G8Voice[],G8Voice[Type]=ServicePlans),{1,1,0}) -> None | P67: X | S67: =IF(P67="X",0,INDEX(G8ServicePrices[],MATCH(D67,G8ServicePrices[Code],0),MATCH($M$1,G8ServicePrices[#Headers],0))*PurhcaseTerm) -> 0
B68: 0 | D68: 0 | F68: =IFERROR(S68,"") ->  | S68: =IF(P68="X",0,INDEX(G8ServicePrices[],MATCH(D68,G8ServicePrices[Code],0),MATCH($M$1,G8ServicePrices[#Headers],0))*PurhcaseTerm) -> 
L69: +
B70: Push-to-Talk
B71: =_xlfn.VSTACK(O71:O72) -> None | C71: =IF(B71=0,"","è") -> è | D71: =_xlfn.VSTACK(P71:P72) -> X | E71: =IF(B71=0,"","=") -> = | F71: =IFERROR(S71,"") -> $ 0 | H71: X | L71: =VLOOKUP(H71,D71:F72,3,FALSE) -> $ 0 | O71: =_xlfn._xlws.FILTER(_xlfn._xlws.FILTER(G8PTT[],G8PTT[Type]=ServicePlans),{1,1,0}) -> None | P71: X | S71: =IF(P71="X",0,INDEX(G8ServicePrices[],MATCH(D71,G8ServicePrices[Code],0),MATCH($M$1,G8ServicePrices[#Headers],0))*PurhcaseTerm) -> 0
B72: Included | C72: è | D72: P | E72: = | F72: =IFERROR(S72,"") -> $ 228 | O72: Included | P72: P | S72: =IF(P72="X",0,INDEX(G8ServicePrices[],MATCH(D72,G8ServicePrices[Code],0),MATCH($M$1,G8ServicePrices[#Headers],0))*PurhcaseTerm) -> 228
L73: +
B74: Future Service Option
B75: =_xlfn.VSTACK(O75:O76) -> None | C75: =IF(B75=0,"","è") -> è | D75: =_xlfn.VSTACK(P75:P76) -> X | E75: =IF(B75=0,"","=") -> = | F75: =IFERROR(S75,"") -> $ 0 | H75: X | L75: =VLOOKUP(H75,D75:F76,3,FALSE) -> $ 0 | O75: =_xlfn._xlws.FILTER(_xlfn._xlws.FILTER(G8TeamCalling[],G8TeamCalling[Type]=ServicePlans),{1,1,0}) -> None | P75: X | S75: =IF(P75="X",0,INDEX(G8ServicePrices[],MATCH(D75,G8ServicePrices[Code],0),MATCH($M$1,G8ServicePrices[#Headers],0))*PurhcaseTerm) -> 0
B76: 0 | D76: 0 | F76: =IFERROR(S76,"") ->  | S76: =IF(P76="X",0,INDEX(G8ServicePrices[],MATCH(D76,G8ServicePrices[Code],0),MATCH($M$1,G8ServicePrices[#Headers],0))*PurhcaseTerm) -> 
H77: - | L77: = | M77: =ROUND((L57+L62+L67+L71+L75)*INDEX(BlendDisc[],MATCH(H79,BlendDisc[Term],0),MATCH("Multiplier",BlendDisc[#Headers],0)),0) -> $ 204
B78: Term
B79: One-Year | C79: è | D79: 1Y | H79: 1Y | M79: Discounted Service | S79: 12
B80: Two-Years | C80: è | D80: 2Y | S80: =LEFT(H79,1) -> 1
B81: Three-Years | C81: è | D81: 3Y
B82: Four-Years | C82: è | D82: 4Y
B83: Five-Years | C83: è | D83: 5Y
B84: Term discounts are 2% for 2-years, 3% for 3-years, 4% for 4-years, and 5% for 5-years
B85: Term discounts are applied to the individual sum of the cartridge and service

Sheet G8 Multi-Gas Blend
M1: =Currency -> USD | P1: G8 Multi-Gas Blend
B2: G8 Multi-Gas Blend | M2: =PBYear -> 2025 | N2: Quick Links
M3: =Revision -> Effective February 2, 2026 Rev 2 | N3: Main Menu
M4: Blackline Safety Confidential | N4: Accessories
M5: All prices are an estimate - for a formal quote contact your local Blackline Safety representative
F8: Hardware | H8: =CONCATENATE(H16,H20,H21,H23,H24,H26,H29,H42,H44,J46) -> G8C-01-NA2-Q-FHMO | L8: =L16 -> $ 777 | M8: =M1&" List" -> USD List
F10: Cartridge + Service | H10: =CONCATENATE("SER-",H16,H20,H29,H42,H44,J46,H95,ServicePlans,H103,H108,H112,H116,H118,H120) -> SER-G8C-Q-FHMO-SXXXX-1Y | L10: =M95+M118 -> $ 404 | M10: =L10*ComboYears -> $ 404
L12: Annual | M12: Term
B14: Device
B15: Buying Option | S15: Price
B16: Blend | C16: è | D16: G8 | H16: =D16 -> G8 | L16: =F17 -> $ 777
A17: 1 | D17: Device | E17: = | F17: =SUM(S17:S17) -> $ 777 | S17: =INDEX(BasePrices[],MATCH("G8 Blend Base Price",BasePrices[Type],0),MATCH($M$1,BasePrices[#Headers],0)) -> 777
B19: Connectivity
B20: Cellular | C20: è | D20: C | H20: C
H21: -
B22: SIM Card
B23: Standard (Telenor) | C23: è | D23: 01 | H23: =D23 -> 01
H24: -
B25: Country Code
B26: =_xlfn.VSTACK(O26:O28) -> North America (4G/LTE) - G8C | C26: =IF(B26="","","è") -> è | D26: =IFERROR(_xlfn.VSTACK(P26:P28),"") -> NA2 | H26: NA2 | O26: =_xlfn.LET( _xlpm.Dtype,G8CountryCodes[Type],_xlpm.Curr,G8CountryCodes[Currency],_xlpm.SType,H20,_xlpm.SCurr,M1, _xlpm.myCalculation,_xlfn.VSTACK(_xlfn._xlws.FILTER(G8CountryCodes[],(_xlpm.Dtype=_xlpm.SType)*(_xlpm.Curr=_xlpm.SCurr))),_xlpm.myCalculation) -> North America (4G/LTE) - G8C | P26: NA2 | Q26: C | R26: USD
B27: Outside of North America (4G/LTE) - G8C | C27: =IF(B27=0,"","è") -> è | D27: EU2 | O27: Outside of North America (4G/LTE) - G8C | P27: EU2 | Q27: C | R27: USD
B28: 0 | C28: =IF(B28=0,"","è") ->  | D28: 0
H29: -
B30: Cartridge + Service
B31: Cartridge | S31: Price
A32: Q1 | D32: Multi 1-sensor | E32: = | F32: =SUM(S32:T32) -> $ 73 | L32: =VLOOKUP(P45,A32:F39,6,FALSE) -> $ 200 | R32: 1 | S32: =INDEX(BasePrices[],MATCH(R32&" Sensor Cartridge",BasePrices[Type],0),MATCH($M$1,BasePrices[#Headers],0)) -> 73
A33: Q2 | D33: Multi 2-sensor | E33: = | F33: =SUM(S33:T33) -> $ 126 | R33: 2 | S33: =INDEX(BasePrices[],MATCH(R33&" Sensor Cartridge",BasePrices[Type],0),MATCH($M$1,BasePrices[#Headers],0)) -> 126
A34: Q3 | D34: Multi 3-sensor | E34: = | F34: =SUM(S34:T34) -> $ 165 | R34: 3 | S34: =INDEX(BasePrices[],MATCH(R34&" Sensor Cartridge",BasePrices[Type],0),MATCH($M$1,BasePrices[#Headers],0)) -> 165
A35: Q4 | D35: Multi 4-sensor | E35: = | F35: =SUM(S35:T35) -> $ 200 | R35: 4 | S35: =INDEX(BasePrices[],MATCH(R35&" Sensor Cartridge",BasePrices[Type],0),MATCH($M$1,BasePrices[#Headers],0)) -> 200
A36: P1 | D36: Multi 1-sensor pump | E36: = | F36: =SUM(S36:T36) -> $ 255 | R36: 1 | S36: =INDEX(BasePrices[],MATCH(R36&" Sensor Cartridge",BasePrices[Type],0),MATCH($M$1,BasePrices[#Headers],0))+ INDEX(BasePrices[],MATCH("G7 Pump",BasePrices[Type],0),MATCH($M$1,BasePrices[#Headers],0)) -> 255
A37: P2 | D37: Multi 2-sensor pump | E37: = | F37: $ 308 | R37: 2 | S37: =INDEX(BasePrices[],MATCH(R37&" Sensor Cartridge",BasePrices[Type],0),MATCH($M$1,BasePrices[#Headers],0))+ INDEX(BasePrices[],MATCH("G7 Pump",BasePrices[Type],0),MATCH($M$1,BasePrices[#Headers],0)) -> 308
A38: P3 | D38: Multi 3-sensor pump | E38: = | F38: $ 347 | R38: 3 | S38: =INDEX(BasePrices[],MATCH(R38&" Sensor Cartridge",BasePrices[Type],0),MATCH($M$1,BasePrices[#Headers],0))+ INDEX(BasePrices[],MATCH("G7 Pump",BasePrices[Type],0),MATCH($M$1,BasePrices[#Headers],0)) -> 347
A39: P4 | D39: Multi 4-sensor pump | E39: = | F39: $ 382 | R39: 4 | S39: =INDEX(BasePrices[],MATCH(R39&" Sensor Cartridge",BasePrices[Type],0),MATCH($M$1,BasePrices[#Headers],0))+ INDEX(BasePrices[],MATCH("G7 Pump",BasePrices[Type],0),MATCH($M$1,BasePrices[#Headers],0)) -> 382
L40: +
B41: Cartridge Type | O41: =H46 -> F | P41: =_xlfn._xlws.SORT(O41:O44) -> F | Q41: =IF(P41="X",1,0) -> 0
B42: Diffusion | C42: è | D42: Q | H42: Q | O42: =H51 -> H | P42: H | Q42: =IF(P42="X",1,0) -> 0
B43: Pump | C43: è | D43: P | O43: =H72 -> M | P43: M | Q43: =IF(P43="X",1,0) -> 0
H44: - | O44: =H93 -> O | P44: O | Q44: =IF(P44="X",1,0) -> 0
B45: Combustible Sensor | P45: =H42&Q45 -> Q4 | Q45: =4-SUM(Q41:Q44) -> 4 | S45: Price
B46: =_xlfn.CHOOSECOLS(_xlfn.VSTACK(_xlfn.ANCHORARRAY(O46)),1) -> LEL-IR | C46: =IF(B46=0,"","è") -> è | D46: =_xlfn.CHOOSECOLS(_xlfn.VSTACK(_xlfn.ANCHORARRAY(O46)),2) -> I | E46: =IF(B46=0,"","=") -> = | F46: =IFERROR(SUM(S46:T46),"") -> $ 60 | H46: F | J46: =CONCATENATE(P41,P42,P43,P44) -> FHMO | L46: =VLOOKUP(H46,D46:F48,3,FALSE) -> $ 0 | O46: =_xlfn.LET( _xlpm.Dtype,CombSensors[Type1],_xlpm.Curr,CombSensors[Currency],_xlpm.Stype,H42&1,_xlpm.SCurr,M1, _xlpm.myCalculation,_xlfn.VSTACK(_xlfn._xlws.FILTER(CombSensors[],(_xlpm.Dtype=_xlpm.Stype)*(_xlpm.Curr=_xlpm.SCurr))),_xlpm.myCalculation) -> LEL-IR | P46: I | Q46: Q1 | R46: USD | S46: =INDEX(SensorPricing[],MATCH(D46,SensorPricing[Sensor],0),MATCH($M$1,SensorPricing[#Headers],0)) -> 60
B47: LEL-MPS | C47: è | D47: F | E47: = | F47: =IFERROR(SUM(S47:T47),"") -> $ 0 | O47: LEL-MPS | P47: F | Q47: Q1 | R47: USD | S47: =INDEX(SensorPricing[],MATCH(D47,SensorPricing[Sensor],0),MATCH($M$1,SensorPricing[#Headers],0)) -> 0
B48: None | C48: è | D48: X | E48: = | F48: $ 0 | O48: None | P48: X | Q48: Q1 | R48: USD | S48: =INDEX(SensorPricing[],MATCH(D48,SensorPricing[Sensor],0),MATCH($M$1,SensorPricing[#Headers],0)) -> 0
L49: +
B50: Toxic Sensor #1
B51: =_xlfn.VSTACK(O51:O69) -> HF | C51: =IF(B51=0,"","è") -> è | D51: =_xlfn.VSTACK(P51:P69) -> 2 | E51: =IF(B51=0,"","=") -> = | F51: =IFERROR(SUM(S51:T51),"") -> $ 420 | H51: H | L51: =VLOOKUP(H51,D51:F69,3,FALSE) -> $ 0 | O51: =_xlfn.LET( _xlpm.Dtype,G7Sensors[Type1],_xlpm.Curr,G7Sensors[Currency],_xlpm.Stype,H42&1,_xlpm.SCurr,M1, _xlpm.myCalculation,_xlfn.VSTACK(_xlfn._xlws.FILTER(G7Sensors[],(_xlpm.Dtype=_xlpm.Stype)*(_xlpm.Curr=_xlpm.SCurr))),_xlpm.myCalculation) -> HF | P51: 2 | Q51: Q1 | R51: USD | S51: =INDEX(SensorPricing[],MATCH(D51,SensorPricing[Sensor],0),MATCH($M$1,SensorPricing[#Headers],0)) -> 420
B52: NH3 | C52: è | D52: A | E52: = | F52: =IFERROR(SUM(S52:T52),"") -> $ 60 | O52: NH3 | P52: A | Q52: Q1 | R52: USD | S52: =INDEX(SensorPricing[],MATCH(D52,SensorPricing[Sensor],0),MATCH($M$1,SensorPricing[#Headers],0)) -> 60
B53: High-range NH3 | C53: è | D53: B | E53: = | F53: $ 126 | O53: High-range NH3 | P53: B | Q53: Q1 | R53: USD | S53: =INDEX(SensorPricing[],MATCH(D53,SensorPricing[Sensor],0),MATCH($M$1,SensorPricing[#Headers],0)) -> 126
B54: CO2 | C54: è | D54: C | E54: = | F54: $ 240 | O54: CO2 | P54: C | Q54: Q1 | R54: USD | S54: =INDEX(SensorPricing[],MATCH(D54,SensorPricing[Sensor],0),MATCH($M$1,SensorPricing[#Headers],0)) -> 240
B55: O3 | C55: è | D55: E | E55: = | F55: $ 120 | O55: O3 | P55: E | Q55: Q1 | R55: USD | S55: =INDEX(SensorPricing[],MATCH(D55,SensorPricing[Sensor],0),MATCH($M$1,SensorPricing[#Headers],0)) -> 120
B56: H2S | C56: è | D56: H | E56: = | F56: $ 0 | O56: H2S | P56: H | Q56: Q1 | R56: USD | S56: =INDEX(SensorPricing[],MATCH(D56,SensorPricing[Sensor],0),MATCH($M$1,SensorPricing[#Headers],0)) -> 0
B57: High-range H2S | C57: è | D57: J | E57: = | F57: $ 120 | O57: High-range H2S | P57: J | Q57: Q1 | R57: USD | S57: =INDEX(SensorPricing[],MATCH(D57,SensorPricing[Sensor],0),MATCH($M$1,SensorPricing[#Headers],0)) -> 120
B58: NO2 | C58: è | D58: K | E58: = | F58: $ 60 | O58: NO2 | P58: K | Q58: Q1 | R58: USD | S58: =INDEX(SensorPricing[],MATCH(D58,SensorPricing[Sensor],0),MATCH($M$1,SensorPricing[#Headers],0)) -> 60
B59: Cl2 | C59: è | D59: L | E59: = | F59: $ 60 | O59: Cl2 | P59: L | Q59: Q1 | R59: USD | S59: =INDEX(SensorPricing[],MATCH(D59,SensorPricing[Sensor],0),MATCH($M$1,SensorPricing[#Headers],0)) -> 60
B60: CO | C60: è | D60: M | E60: = | F60: $ 0 | O60: CO | P60: M | Q60: Q1 | R60: USD | S60: =INDEX(SensorPricing[],MATCH(D60,SensorPricing[Sensor],0),MATCH($M$1,SensorPricing[#Headers],0)) -> 0
B61: HCN | C61: è | D61: N | E61: = | F61: $ 60 | O61: HCN | P61: N | Q61: Q1 | R61: USD | S61: =INDEX(SensorPricing[],MATCH(D61,SensorPricing[Sensor],0),MATCH($M$1,SensorPricing[#Headers],0)) -> 60
B62: CO-H | C62: è | D62: R | E62: = | F62: $ 0 | O62: CO-H | P62: R | Q62: Q1 | R62: USD | S62: =INDEX(SensorPricing[],MATCH(D62,SensorPricing[Sensor],0),MATCH($M$1,SensorPricing[#Headers],0)) -> 0
B63: SO2 | C63: è | D63: S | E63: = | F63: $ 0 | O63: SO2 | P63: S | Q63: Q1 | R63: USD | S63: =INDEX(SensorPricing[],MATCH(D63,SensorPricing[Sensor],0),MATCH($M$1,SensorPricing[#Headers],0)) -> 0
B64: High-range CO | C64: è | D64: T | E64: = | F64: $ 120 | O64: High-range CO | P64: T | Q64: Q1 | R64: USD | S64: =INDEX(SensorPricing[],MATCH(D64,SensorPricing[Sensor],0),MATCH($M$1,SensorPricing[#Headers],0)) -> 120
B65: PID | C65: è | D65: V | E65: = | F65: $ 483 | O65: PID | P65: V | Q65: Q1 | R65: USD | S65: =INDEX(SensorPricing[],MATCH(D65,SensorPricing[Sensor],0),MATCH($M$1,SensorPricing[#Headers],0)) -> 483
B66: ClO2 | C66: è | D66: W | E66: = | F66: $ 60 | O66: ClO2 | P66: W | Q66: Q1 | R66: USD | S66: =INDEX(SensorPricing[],MATCH(D66,SensorPricing[Sensor],0),MATCH($M$1,SensorPricing[#Headers],0)) -> 60
B67: No Sensor | C67: è | D67: X | E67: = | F67: $ 0 | O67: No Sensor | P67: X | Q67: Q1 | R67: USD | S67: =INDEX(SensorPricing[],MATCH(D67,SensorPricing[Sensor],0),MATCH($M$1,SensorPricing[#Headers],0)) -> 0
B68: 0 | C68: =IF(B68=0,"","è") ->  | D68: 0 | E68: =IF(B68=0,"","=") ->  | S68: =INDEX(SensorPricing[],MATCH(D68,SensorPricing[Sensor],0),MATCH($M$1,SensorPricing[#Headers],0)) -> 
B69: 0 | C69: =IF(B69=0,"","è") ->  | D69: 0 | E69: =IF(B69=0,"","=") ->  | S69: =INDEX(SensorPricing[],MATCH(D69,SensorPricing[Sensor],0),MATCH($M$1,SensorPricing[#Headers],0)) -> 
L70: +
B71: Toxic Sensor #2
B72: =_xlfn.VSTACK(O72:O90) -> HF | C72: =IF(B72=0,"","è") -> è | D72: =_xlfn.VSTACK(P72:P90) -> 2 | E72: =IF(B72=0,"","=") -> = | F72: =IFERROR(SUM(S72:T72),"") -> $ 420 | H72: M | L72: =VLOOKUP(H72,D72:F90,3,FALSE) -> $ 0 | O72: =_xlfn.LET( _xlpm.Dtype,G7Sensors[Type1],_xlpm.Curr,G7Sensors[Currency],_xlpm.Stype,H42&2,_xlpm.SCurr,M1, _xlpm.myCalculation,_xlfn.VSTACK(_xlfn._xlws.FILTER(G7Sensors[],(_xlpm.Dtype=_xlpm.Stype)*(_xlpm.Curr=_xlpm.SCurr))),_xlpm.myCalculation) -> HF | P72: 2 | Q72: Q2 | R72: USD | S72: =INDEX(SensorPricing[],MATCH(D72,SensorPricing[Sensor],0),MATCH($M$1,SensorPricing[#Headers],0)) -> 420
B73: NH3 | C73: è | D73: A | E73: = | F73: $ 60 | O73: NH3 | P73: A | Q73: Q2 | R73: USD | S73: =INDEX(SensorPricing[],MATCH(D73,SensorPricing[Sensor],0),MATCH($M$1,SensorPricing[#Headers],0)) -> 60
B74: High-range NH3 | C74: è | D74: B | E74: = | F74: $ 126 | O74: High-range NH3 | P74: B | Q74: Q2 | R74: USD | S74: =INDEX(SensorPricing[],MATCH(D74,SensorPricing[Sensor],0),MATCH($M$1,SensorPricing[#Headers],0)) -> 126
B75: COSH | C75: è | D75: D | E75: = | F75: $ 60 | O75: COSH | P75: D | Q75: Q2 | R75: USD | S75: =INDEX(SensorPricing[],MATCH(D75,SensorPricing[Sensor],0),MATCH($M$1,SensorPricing[#Headers],0)) -> 60
B76: O3 | C76: è | D76: E | E76: = | F76: $ 120 | O76: O3 | P76: E | Q76: Q2 | R76: USD | S76: =INDEX(SensorPricing[],MATCH(D76,SensorPricing[Sensor],0),MATCH($M$1,SensorPricing[#Headers],0)) -> 120
B77: H2S | C77: è | D77: H | E77: = | F77: $ 0 | O77: H2S | P77: H | Q77: Q2 | R77: USD | S77: =INDEX(SensorPricing[],MATCH(D77,SensorPricing[Sensor],0),MATCH($M$1,SensorPricing[#Headers],0)) -> 0
B78: High-range H2S | C78: è | D78: J | E78: = | F78: $ 120 | O78: High-range H2S | P78: J | Q78: Q2 | R78: USD | S78: =INDEX(SensorPricing[],MATCH(D78,SensorPricing[Sensor],0),MATCH($M$1,SensorPricing[#Headers],0)) -> 120
B79: NO2 | C79: è | D79: K | E79: = | F79: $ 60 | O79: NO2 | P79: K | Q79: Q2 | R79: USD | S79: =INDEX(SensorPricing[],MATCH(D79,SensorPricing[Sensor],0),MATCH($M$1,SensorPricing[#Headers],0)) -> 60
B80: Cl2 | C80: è | D80: L | E80: = | F80: $ 60 | O80: Cl2 | P80: L | Q80: Q2 | R80: USD | S80: =INDEX(SensorPricing[],MATCH(D80,SensorPricing[Sensor],0),MATCH($M$1,SensorPricing[#Headers],0)) -> 60
B81: CO | C81: è | D81: M | E81: = | F81: $ 0 | O81: CO | P81: M | Q81: Q2 | R81: USD | S81: =INDEX(SensorPricing[],MATCH(D81,SensorPricing[Sensor],0),MATCH($M$1,SensorPricing[#Headers],0)) -> 0
B82: HCN | C82: è | D82: N | E82: = | F82: $ 60 | O82: HCN | P82: N | Q82: Q2 | R82: USD | S82: =INDEX(SensorPricing[],MATCH(D82,SensorPricing[Sensor],0),MATCH($M$1,SensorPricing[#Headers],0)) -> 60
B83: CO-H | C83: è | D83: R | E83: = | F83: $ 0 | O83: CO-H | P83: R | Q83: Q2 | R83: USD | S83: =INDEX(SensorPricing[],MATCH(D83,SensorPricing[Sensor],0),MATCH($M$1,SensorPricing[#Headers],0)) -> 0
B84: SO2 | C84: è | D84: S | E84: = | F84: $ 0 | O84: SO2 | P84: S | Q84: Q2 | R84: USD | S84: =INDEX(SensorPricing[],MATCH(D84,SensorPricing[Sensor],0),MATCH($M$1,SensorPricing[#Headers],0)) -> 0
B85: High-range CO | C85: è | D85: T | E85: = | F85: $ 120 | O85: High-range CO | P85: T | Q85: Q2 | R85: USD | S85: =INDEX(SensorPricing[],MATCH(D85,SensorPricing[Sensor],0),MATCH($M$1,SensorPricing[#Headers],0)) -> 120
B86: ClO2 | C86: è | D86: W | E86: = | F86: $ 60 | O86: ClO2 | P86: W | Q86: Q2 | R86: USD | S86: =INDEX(SensorPricing[],MATCH(D86,SensorPricing[Sensor],0),MATCH($M$1,SensorPricing[#Headers],0)) -> 60
B87: No Sensor | C87: è | D87: X | E87: = | F87: $ 0 | O87: No Sensor | P87: X | Q87: Q2 | R87: USD | S87: =INDEX(SensorPricing[],MATCH(D87,SensorPricing[Sensor],0),MATCH($M$1,SensorPricing[#Headers],0)) -> 0
B88: 0 | D88: 0 | S88: =INDEX(SensorPricing[],MATCH(D88,SensorPricing[Sensor],0),MATCH($M$1,SensorPricing[#Headers],0)) -> 
B89: 0 | D89: 0 | S89: =INDEX(SensorPricing[],MATCH(D89,SensorPricing[Sensor],0),MATCH($M$1,SensorPricing[#Headers],0)) -> 
B90: 0 | D90: 0 | S90: =INDEX(SensorPricing[],MATCH(D90,SensorPricing[Sensor],0),MATCH($M$1,SensorPricing[#Headers],0)) -> 
L91: +
B92: Oxygen Sensor
B93: =_xlfn.VSTACK(O93:O94) -> O2 | C93: =IF(B93=0,"","è") -> è | D93: =_xlfn.VSTACK(P93:P94) -> O | E93: =IF(B93=0,"","=") -> = | F93: =IFERROR(SUM(S93:T93),"") -> $ 0 | H93: O | L93: =VLOOKUP(H93,D93:F94,3,FALSE) -> $ 0 | O93: =_xlfn._xlws.FILTER(_xlfn._xlws.FILTER(Oxygen[],Oxygen[Type]=H46),{1,1,0}) -> O2 | P93: O | S93: =INDEX(SensorPricing[],MATCH(D93,SensorPricing[Sensor],0),MATCH($M$1,SensorPricing[#Headers],0)) -> 0
B94: 0 | D94: 0 | F94: =IFERROR(SUM(S94:T94),"") ->  | S94: =INDEX(SensorPricing[],MATCH(D94,SensorPricing[Sensor],0),MATCH($M$1,SensorPricing[#Headers],0)) -> 
H95: - | L95: = | M95: =ROUNDUP((L32+L46+L51+L72+L93)*INDEX(BlendDisc[],MATCH(H120,BlendDisc[Term],0),MATCH("Multiplier",BlendDisc[#Headers],0)),0) -> $ 200
B97: Service Plan | M97: Discounted Cartridge
B98: =_xlfn.VSTACK(O98:O100) -> Standard | C98: =IF(B98=0,"","è") -> è | D98: =_xlfn.VSTACK(P98:P100) -> S | E98: =IF(B98=0,"","=") -> = | F98: =IFERROR(S98,"") -> $ 204 | H98: S | L98: =VLOOKUP(H98,D98:F100,3,FALSE) -> $ 204 | O98: =_xlfn.VSTACK(G8ServicePlans[]) -> Standard | P98: S | S98: =INDEX(G8ServicePrices[],MATCH(D98,G8ServicePrices[Code],0),MATCH($M$1,G8ServicePrices[#Headers],0))*AnnualMonths -> 204
B99: Pro | C99: è | D99: K | E99: = | F99: $ 384 | O99: Pro | P99: K | S99: =INDEX(G8ServicePrices[],MATCH(D99,G8ServicePrices[Code],0),MATCH($M$1,G8ServicePrices[#Headers],0))*AnnualMonths -> 384
B100: 0 | D100: 0 | S100: =INDEX(G8ServicePrices[],MATCH(D100,G8ServicePrices[Code],0),MATCH($M$1,G8ServicePrices[#Headers],0))*AnnualMonths -> 
L101: +
B102: Monitoring Services
B103: =_xlfn.VSTACK(O103:O105) -> None | C103: =IF(B103=0,"","è") -> è | D103: =_xlfn.VSTACK(P103:P105) -> X | E103: =IF(B103=0,"","=") -> = | F103: =IFERROR(S103,"") -> $ 0 | H103: X | L103: =VLOOKUP(H103,D103:F105,3,FALSE) -> $ 0 | O103: =_xlfn._xlws.FILTER(_xlfn._xlws.FILTER(G8Monitoring[],G8Monitoring[Type]=ServicePlans),{1,1,0}) -> None | P103: X | S103: =IF(P103="X",0,INDEX(G8ServicePrices[],MATCH(D103,G8ServicePrices[Code],0),MATCH($M$1,G8ServicePrices[#Headers],0))*AnnualMonths) -> 0
B104: 0 | D104: 0 | F104: =IFERROR(S104,"") ->  | S104: =IF(P104="X",0,INDEX(G8ServicePrices[],MATCH(D104,G8ServicePrices[Code],0),MATCH($M$1,G8ServicePrices[#Headers],0))*AnnualMonths) -> 
B105: 0 | D105: 0 | F105: =IFERROR(S105,"") ->  | S105: =IF(P105="X",0,INDEX(G8ServicePrices[],MATCH(D105,G8ServicePrices[Code],0),MATCH($M$1,G8ServicePrices[#Headers],0))*AnnualMonths) -> 
L106: +
B107: Voice
B108: =_xlfn.VSTACK(O108:O109) -> None | C108: =IF(B108=0,"","è") -> è | D108: =_xlfn.VSTACK(P108:P109) -> X | E108: =IF(B108=0,"","=") -> = | F108: =IFERROR(S108,"") -> $ 0 | H108: X | L108: =VLOOKUP(H108,D108:F109,3,FALSE) -> $ 0 | O108: =_xlfn._xlws.FILTER(_xlfn._xlws.FILTER(G8Voice[],G8Voice[Type]=ServicePlans),{1,1,0}) -> None | P108: X | S108: =IF(P108="X",0,INDEX(G8ServicePrices[],MATCH(D108,G8ServicePrices[Code],0),MATCH($M$1,G8ServicePrices[#Headers],0))*AnnualMonths) -> 0
B109: 0 | D109: 0 | F109: =IFERROR(S109,"") ->  | S109: =IF(P109="X",0,INDEX(G8ServicePrices[],MATCH(D109,G8ServicePrices[Code],0),MATCH($M$1,G8ServicePrices[#Headers],0))*AnnualMonths) -> 
L110: +
B111: Push-to-Talk
B112: =_xlfn.VSTACK(O112:O113) -> None | C112: =IF(B112=0,"","è") -> è | D112: =_xlfn.VSTACK(P112:P113) -> X | E112: =IF(B112=0,"","=") -> = | F112: =IFERROR(S112,"") -> $ 0 | H112: X | L112: =VLOOKUP(H112,D112:F113,3,FALSE) -> $ 0 | O112: =_xlfn._xlws.FILTER(_xlfn._xlws.FILTER(G8PTT[],G8PTT[Type]=ServicePlans),{1,1,0}) -> None | P112: X | S112: =IF(P112="X",0,INDEX(G8ServicePrices[],MATCH(D112,G8ServicePrices[Code],0),MATCH($M$1,G8ServicePrices[#Headers],0))*AnnualMonths) -> 0
B113: Included | C113: è | D113: P | E113: = | F113: =IFERROR(S113,"") -> $ 228 | O113: Included | P113: P | S113: =IF(P113="X",0,INDEX(G8ServicePrices[],MATCH(D113,G8ServicePrices[Code],0),MATCH($M$1,G8ServicePrices[#Headers],0))*AnnualMonths) -> 228
L114: +
B115: Future Service Option
B116: =_xlfn.VSTACK(O116:O117) -> None | C116: =IF(B116=0,"","è") -> è | D116: =_xlfn.VSTACK(P116:P117) -> X | E116: =IF(B116=0,"","=") -> = | F116: =IFERROR(S116,"") -> $ 0 | H116: X | L116: =VLOOKUP(H116,D116:F117,3,FALSE) -> $ 0 | O116: =_xlfn._xlws.FILTER(_xlfn._xlws.FILTER(G8TeamCalling[],G8TeamCalling[Type]=ServicePlans),{1,1,0}) -> None | P116: X | S116: =IF(P116="X",0,INDEX(G8ServicePrices[],MATCH(D116,G8ServicePrices[Code],0),MATCH($M$1,G8ServicePrices[#Headers],0))*AnnualMonths) -> 0
B117: 0 | D117: 0 | F117: =IFERROR(S117,"") ->  | S117: =IF(P117="X",0,INDEX(G8ServicePrices[],MATCH(D117,G8ServicePrices[Code],0),MATCH($M$1,G8ServicePrices[#Headers],0))*AnnualMonths) -> 
H118: - | L118: = | M118: =ROUND((L98+L103+L108+L112+L116)*INDEX(BlendDisc[],MATCH(H120,BlendDisc[Term],0),MATCH("Multiplier",BlendDisc[#Headers],0)),0) -> $ 204
B119: Term
B120: One-Year | C120: è | D120: 1Y | H120: 1Y | M120: Discounted Service | S120: 12
B121: Two-Years | C121: è | D121: 2Y | S121: =LEFT(H120,1) -> 1
B122: Three-Years | C122: è | D122: 3Y
B123: Four-Years | C123: è | D123: 4Y
B124: Five-Years | C124: è | D124: 5Y
B125: Term discounts are 2% for 2-years, 3% for 3-years, 4% for 4-years, and 5% for 5-years
B126: Term discounts are applied to the individual sum of the cartridge and service

Sheet G8 Lone Worker Lease
M1: =Currency -> USD | P1: G8 Lone Worker Lease
B2: G8 Lone Worker Lease | M2: =PBYear -> 2025 | N2: Quick Links
M3: =Revision -> Effective February 2, 2026 Rev 2 | N3: Main Menu
M4: Blackline Safety Confidential | N4: Accessories
M5: All prices are an estimate - for a formal quote contact your local Blackline Safety representative
F8: =CONCATENATE(H15,H19,H20,H22,H23,H25,H28,H30,H31,ServicePlans,H38,H43,H47,H51,H53,H55) -> CMP-G8C-01-NA2-Z-SXXXX-4Y | L8: =L15+L33+L38+L43+L47+L51 -> $ 35 | M8: =M1&" / mo" -> USD / mo
F12: Additional Cartridge | H12: =CONCATENATE("CMP-CART-",H30,"-",H55,"-R") -> CMP-CART-Z-4Y-R | L12: =S31 -> $ 4 | M12: =M1&" / mo" -> USD / mo
B14: Buying Option | S14: Price
B15: Lease | C15: è | D15: CMP-G8 | H15: =D15 -> CMP-G8 | L15: =F16 -> $ 18
A16: 1 | D16: Device | E16: = | F16: =SUM(S16:T16) -> $ 18 | R16: 1 | S16: =ROUND(INDEX(BasePrices[],MATCH("G8 Purchase Base Price",BasePrices[Type],0),MATCH($M$1,BasePrices[#Headers],0))*Lease_Factor/LeaseMonths,0)+ ROUND(INDEX(BasePrices[],MATCH("G7 Warranty Base Price",BasePrices[Type],0),MATCH($M$1,BasePrices[#Headers],0))*MAX(2,LeaseYears-2)*Lease_Factor/LeaseMonths,0) -> 18
B18: Connectivity
B19: Cellular | C19: è | D19: C | H19: C
H20: -
B21: SIM Card
B22: Standard (Telenor) | C22: è | D22: 01 | H22: =D22 -> 01
H23: -
B24: Country Code
B25: =_xlfn.VSTACK(O25:O27) -> North America (4G/LTE) - G8C | C25: =IF(B25="","","è") -> è | D25: =IFERROR(_xlfn.VSTACK(P25:P27),"") -> NA2 | H25: NA2 | O25: =_xlfn.LET( _xlpm.Dtype,G8CountryCodes[Type],_xlpm.Curr,G8CountryCodes[Currency],_xlpm.SType,H19,_xlpm.SCurr,M1, _xlpm.myCalculation,_xlfn.VSTACK(_xlfn._xlws.FILTER(G8CountryCodes[],(_xlpm.Dtype=_xlpm.SType)*(_xlpm.Curr=_xlpm.SCurr))),_xlpm.myCalculation) -> North America (4G/LTE) - G8C | P25: NA2 | Q25: C | R25: USD
B26: Outside of North America (4G/LTE) - G8C | C26: =IF(B26=0,"","è") -> è | D26: EU2 | O26: Outside of North America (4G/LTE) - G8C | P26: EU2 | Q26: C | R26: USD
B27: 0 | C27: =IF(B27=0,"","è") ->  | D27: 0
H28: -
B29: Cartridge Type | S29: =INDEX(BasePrices[],MATCH("Standard Cartridge",BasePrices[Type],0),MATCH($M$1,BasePrices[#Headers],0)) -> 47
B30: Lone Worker | C30: è | D30: Z | H30: =D30 -> Z | S30: =IF(H55="3Y",3, IF(H55="4Y",3.5, IF(H55="5Y",4))) -> 3.5
H31: - | S31: =ROUND(S29*S30*Lease_Factor/LeaseMonths,0) -> 4
B32: Service Plan
B33: =_xlfn.VSTACK(O33:O35) -> Standard | C33: =IF(B33=0,"","è") -> è | D33: =_xlfn.VSTACK(P33:P35) -> S | E33: =IF(B33=0,"","=") -> = | F33: =IFERROR(S33,"") -> $ 17 | H33: S | L33: =VLOOKUP(H33,D33:F35,3,FALSE) -> $ 17 | O33: =_xlfn.VSTACK(G8ServicePlans[]) -> Standard | P33: S | S33: =IF(D33="X",0, ROUND(INDEX(G8ServicePrices[],MATCH(D33,G8ServicePrices[Code],0),MATCH($M$1,G8ServicePrices[#Headers],0))* INDEX(G8ServicePrices[],MATCH(D33,G8ServicePrices[Code],0),MATCH("LeaseFactor",G8ServicePrices[#Headers],0)),0)) -> 17
B34: Pro | C34: è | D34: K | E34: = | F34: $ 32 | O34: Pro | P34: K | S34: =IF(D34="X",0, ROUND(INDEX(G8ServicePrices[],MATCH(D34,G8ServicePrices[Code],0),MATCH($M$1,G8ServicePrices[#Headers],0))* INDEX(G8ServicePrices[],MATCH(D34,G8ServicePrices[Code],0),MATCH("LeaseFactor",G8ServicePrices[#Headers],0)),0)) -> 32
B35: 0 | D35: 0 | S35: =IF(D35="X",0, ROUND(INDEX(G8ServicePrices[],MATCH(D35,G8ServicePrices[Code],0),MATCH($M$1,G8ServicePrices[#Headers],0))* INDEX(G8ServicePrices[],MATCH(D35,G8ServicePrices[Code],0),MATCH("LeaseFactor",G8ServicePrices[#Headers],0)),0)) -> 
L36: +
B37: Monitoring Services
B38: =_xlfn.VSTACK(O38:O40) -> None | C38: =IF(B38=0,"","è") -> è | D38: =_xlfn.VSTACK(P38:P40) -> X | E38: =IF(B38=0,"","=") -> = | F38: =IFERROR(S38,"") -> $ 0 | H38: X | L38: =VLOOKUP(H38,D38:F40,3,FALSE) -> $ 0 | O38: =_xlfn._xlws.FILTER(_xlfn._xlws.FILTER(G8Monitoring[],G8Monitoring[Type]=ServicePlans),{1,1,0}) -> None | P38: X | S38: =IF(D38="X",0, ROUND(INDEX(G8ServicePrices[],MATCH(D38,G8ServicePrices[Code],0),MATCH($M$1,G8ServicePrices[#Headers],0))* INDEX(G8ServicePrices[],MATCH(D38,G8ServicePrices[Code],0),MATCH("LeaseFactor",G8ServicePrices[#Headers],0)),0)) -> 0
B39: 0 | D39: 0 | F39: =IFERROR(S39,"") ->  | S39: =IF(D39="X",0, ROUND(INDEX(G8ServicePrices[],MATCH(D39,G8ServicePrices[Code],0),MATCH($M$1,G8ServicePrices[#Headers],0))* INDEX(G8ServicePrices[],MATCH(D39,G8ServicePrices[Code],0),MATCH("LeaseFactor",G8ServicePrices[#Headers],0)),0)) -> 
B40: 0 | D40: 0 | F40: =IFERROR(S40,"") ->  | S40: =IF(D40="X",0, ROUND(INDEX(G8ServicePrices[],MATCH(D40,G8ServicePrices[Code],0),MATCH($M$1,G8ServicePrices[#Headers],0))* INDEX(G8ServicePrices[],MATCH(D40,G8ServicePrices[Code],0),MATCH("LeaseFactor",G8ServicePrices[#Headers],0)),0)) -> 
L41: +
B42: Voice
B43: =_xlfn.VSTACK(O43:O44) -> None | C43: =IF(B43=0,"","è") -> è | D43: =_xlfn.VSTACK(P43:P44) -> X | E43: =IF(B43=0,"","=") -> = | F43: =IFERROR(S43,"") -> $ 0 | H43: X | L43: =VLOOKUP(H43,D43:F44,3,FALSE) -> $ 0 | O43: =_xlfn._xlws.FILTER(_xlfn._xlws.FILTER(G8Voice[],G8Voice[Type]=ServicePlans),{1,1,0}) -> None | P43: X | S43: =IF(D43="X",0, ROUND(INDEX(G8ServicePrices[],MATCH(D43,G8ServicePrices[Code],0),MATCH($M$1,G8ServicePrices[#Headers],0))* INDEX(G8ServicePrices[],MATCH(D43,G8ServicePrices[Code],0),MATCH("LeaseFactor",G8ServicePrices[#Headers],0)),0)) -> 0
B44: 0 | D44: 0 | F44: =IFERROR(S44,"") ->  | S44: =IF(D44="X",0, ROUND(INDEX(G8ServicePrices[],MATCH(D44,G8ServicePrices[Code],0),MATCH($M$1,G8ServicePrices[#Headers],0))* INDEX(G8ServicePrices[],MATCH(D44,G8ServicePrices[Code],0),MATCH("LeaseFactor",G8ServicePrices[#Headers],0)),0)) -> 
L45: +
B46: Push-to-Talk
B47: =_xlfn.VSTACK(O47:O48) -> None | C47: =IF(B47=0,"","è") -> è | D47: =_xlfn.VSTACK(P47:P48) -> X | E47: =IF(B47=0,"","=") -> = | F47: =IFERROR(S47,"") -> $ 0 | H47: X | L47: =VLOOKUP(H47,D47:F48,3,FALSE) -> $ 0 | O47: =_xlfn._xlws.FILTER(_xlfn._xlws.FILTER(G8PTT[],G8PTT[Type]=ServicePlans),{1,1,0}) -> None | P47: X | S47: =IF(D47="X",0, ROUND(INDEX(G8ServicePrices[],MATCH(D47,G8ServicePrices[Code],0),MATCH($M$1,G8ServicePrices[#Headers],0))* INDEX(G8ServicePrices[],MATCH(D47,G8ServicePrices[Code],0),MATCH("LeaseFactor",G8ServicePrices[#Headers],0)),0)) -> 0
B48: Included | C48: è | D48: P | E48: = | F48: =IFERROR(S48,"") -> $ 23 | O48: Included | P48: P | S48: =IF(D48="X",0, ROUND(INDEX(G8ServicePrices[],MATCH(D48,G8ServicePrices[Code],0),MATCH($M$1,G8ServicePrices[#Headers],0))* INDEX(G8ServicePrices[],MATCH(D48,G8ServicePrices[Code],0),MATCH("LeaseFactor",G8ServicePrices[#Headers],0)),0)) -> 23
L49: +
B50: Future Service Option
B51: =_xlfn.VSTACK(O51:O52) -> None | C51: =IF(B51=0,"","è") -> è | D51: =_xlfn.VSTACK(P51:P52) -> X | E51: =IF(B51=0,"","=") -> = | F51: =IFERROR(S51,"") -> $ 0 | H51: X | L51: =VLOOKUP(H51,D51:F52,3,FALSE) -> $ 0 | O51: =_xlfn._xlws.FILTER(_xlfn._xlws.FILTER(G8TeamCalling[],G8TeamCalling[Type]=ServicePlans),{1,1,0}) -> None | P51: X | S51: =IF(D51="X",0, ROUND(INDEX(G8ServicePrices[],MATCH(D51,G8ServicePrices[Code],0),MATCH($M$1,G8ServicePrices[#Headers],0))* INDEX(G8ServicePrices[],MATCH(D51,G8ServicePrices[Code],0),MATCH("LeaseFactor",G8ServicePrices[#Headers],0)),0)) -> 0
B52: 0 | D52: 0 | F52: =IFERROR(S52,"") ->  | S52: =IF(D52="X",0, ROUND(INDEX(G8ServicePrices[],MATCH(D52,G8ServicePrices[Code],0),MATCH($M$1,G8ServicePrices[#Headers],0))* INDEX(G8ServicePrices[],MATCH(D52,G8ServicePrices[Code],0),MATCH("LeaseFactor",G8ServicePrices[#Headers],0)),0)) -> 
H53: -
B54: Lease Term
B55: Three-Years | C55: è | D55: 3Y | H55: 4Y | O55: =LEFT(H55,1) -> 4
B56: Four-Years | C56: è | D56: 4Y | O56: =LeaseYears*12 -> 48

Sheet G8 Single-Gas Lease
M1: =Currency -> USD | P1: G8 Single-Gas Lease
B2: G8 Single-Gas Lease | M2: =PBYear -> 2025 | N2: Quick Links
M3: =Revision -> Effective February 2, 2026 Rev 2 | N3: Main Menu
M4: Blackline Safety Confidential | N4: Accessories
M5: All prices are an estimate - for a formal quote contact your local Blackline Safety representative
F8: =CONCATENATE(H16,H20,H21,H23,H24,H26,H29,H31,H32,H34,H53,ServicePlans,H60,H65,H69,H73,H75,H77) -> CMP-G8C-01-NA2-S-H-SXXXX-4Y | L8: =L16+L31+L34+L55+L60+L65+L69+L73 -> $ 40 | M8: =M1&" / mo" -> USD / mo
F12: Additional Cartridge | H12: =CONCATENATE("CMP-CART-",H31,H32,H34,H75,H77,"-R") -> CMP-CART-S-H-4Y-R | L12: =X33 -> $ 0 | M12: =M1&" / mo" -> USD / mo
B14: Device
B15: Buying Option | S15: Price | W15: Additional CART
B16: Lease | C16: è | D16: CMP-G8 | H16: =D16 -> CMP-G8 | L16: =F17 -> $ 18
A17: 1 | D17: Device | E17: = | F17: =SUM(S17:T17) -> $ 18 | R17: 1 | S17: =ROUND(INDEX(BasePrices[],MATCH("G8 Purchase Base Price",BasePrices[Type],0),MATCH($M$1,BasePrices[#Headers],0))*Lease_Factor/LeaseMonths,0)+ ROUND(INDEX(BasePrices[],MATCH("G7 Warranty Base Price",BasePrices[Type],0),MATCH($M$1,BasePrices[#Headers],0))*MAX(2,LeaseYears-2)*Lease_Factor/LeaseMonths,0) -> 18
B19: Connectivity
B20: Cellular | C20: è | D20: C | H20: C
H21: -
B22: SIM Card
B23: Standard (Telenor) | C23: è | D23: 01 | H23: =D23 -> 01
H24: -
B25: Country Code
B26: =_xlfn.VSTACK(O26:O28) -> North America (4G/LTE) - G8C | C26: =IF(B26="","","è") -> è | D26: =IFERROR(_xlfn.VSTACK(P26:P28),"") -> NA2 | H26: NA2 | O26: =_xlfn.LET( _xlpm.Dtype,G8CountryCodes[Type],_xlpm.Curr,G8CountryCodes[Currency],_xlpm.SType,H20,_xlpm.SCurr,M1, _xlpm.myCalculation,_xlfn.VSTACK(_xlfn._xlws.FILTER(G8CountryCodes[],(_xlpm.Dtype=_xlpm.SType)*(_xlpm.Curr=_xlpm.SCurr))),_xlpm.myCalculation) -> North America (4G/LTE) - G8C | P26: NA2 | Q26: C | R26: USD
B27: Outside of North America (4G/LTE) - G8C | C27: =IF(B27=0,"","è") -> è | D27: EU2 | O27: Outside of North America (4G/LTE) - G8C | P27: EU2 | Q27: C | R27: USD
B28: 0 | C28: =IF(B28=0,"","è") ->  | D28: 0
H29: -
B30: Cartridge Type
B31: Single Sensor | C31: è | D31: S | E31: = | F31: =SUM(S31:T31) -> $ 5 | H31: =D31 -> S | L31: =F31 -> $ 5 | S31: =ROUND((INDEX(BasePrices[],MATCH("1 Sensor Cartridge",BasePrices[Type],0),MATCH($M$1,BasePrices[#Headers],0))*2+ INDEX(BasePrices[],MATCH("1 Sensor Cartridge",BasePrices[Type],0),MATCH($M$1,BasePrices[#Headers],0))*0.2777777*MAX(0,LeaseYears-2))*Lease_Factor/LeaseMonths,0) -> 5 | W31: =IF(H77="3Y",3, IF(H77="4Y",3.5, IF(H77="5Y",4))) -> 3.5
H32: - | L32: +
B33: Toxic Sensor | X33: =VLOOKUP(H34,D34:W52,20,FALSE) -> 0
